Workbook

Sheet Übersicht
D3: Leitaktion 2: Zusammenarbeit zur Förderung von Innovation und zum Austausch über bewährte Verfahren
D4: Kapazitätsaufbau im Hochschulbereich
B7: Bevor Sie diese Tabelle ausfüllen, lesen Sie bitte sorgfältig die Anweisungen auf
B8: AUFFORDERUNG ZUR EINREICHUNG VON VORSCHLÄGEN 2017 – EAC/A03/2016 - Erasmus+ Programme (C2016/386/09)
B9: Programmleitfaden und Anweisungen für Antragsteller
B11: Aktion | E11: =IF(D11="","Bitte Art der Maßnahme auswählen",IF(OR(D11="Algemeen Projekt",D11="Structurele Projekt"),"","Fehler Art der Maßnahme")) -> Bitte Art der Maßnahme auswählen
B12: Dauer (Anzahl der Monate) | E12: =IF(D12="","Bitte Dauer auswählen",IF(OR(D12=24,D12=36),"","Fehler Dauer")) -> Bitte Dauer auswählen
B13: Projektakronym | E13: =IF(D13="","Bitte Projektakronym angeben","") -> Bitte Projektakronym angeben
B14: Projekttitel
B16: VON DER EU BEANTRAGTER ZUSCHUSS (IN EUR)
B17: 1. Personalkosten | D17: ='1. Personalkosten'!D9 -> 0 | E17: ="Darf 40% des Gesamtbetrags unter A nicht überschreiten." -> Darf 40% des Gesamtbetrags unter A nicht überschreiten.
B18: 2. Reisekosten | D18: ='2-3. Reise&Unterkunftskosten'!D8 -> 0
B19: 3. Unterkunftskosten | D19: ='2-3. Reise&Unterkunftskosten'!D9 -> 0
B20: 4. Ausrüstungskosten | D20: ='4. Ausrüstungskosten'!C4 -> 0 | E20: ="Darf 30% des Gesamtbetrags unter A nicht überschreiten." -> Darf 30% des Gesamtbetrags unter A nicht überschreiten.
B21: 5. Kosten für Unteraufträge | D21: ='5. Kosten für Unteraufträge'!C4 -> 0 | E21: ="Darf 10% des Gesamtbetrags unter A nicht überschreiten." -> Darf 10% des Gesamtbetrags unter A nicht überschreiten.
B22: A. Förderung für Projektaktivitäten | D22: =SUM(D17:D21) -> 0 | E22: ="Muss gleich oder grösser als EUR 500.000,00 sein und darf EUR 1.000.000,00 nicht überschreiten" -> Muss gleich oder grösser als EUR 500.000,00 sein und darf EUR 1.000.000,00 nicht überschreiten
B24: B. Zusätzliche Förderung für den speziellen Mobilitätsbereich | D24: =SUM(J24:J27) -> 0 | E24: Darf 80% des Gesamtbetrags unter A nicht überschreiten. | G24: Student von Partnerländer | I24: Beträge (in EUR) | J24: =SUMIF('B. Spezieller Mob. - Student'!E:E,G24,'B. Spezieller Mob. - Student'!N:N) -> 0 | K24: Anzahl der Teilnehmer | L24: =SUMIFS('B. Spezieller Mob. - Student'!G:G,'B. Spezieller Mob. - Student'!E:E,G24,'B. Spezieller Mob. - Student'!O:O,"<>Fehler") -> 0
G25: Student von Programmländer | J25: =SUMIF('B. Spezieller Mob. - Student'!E:E,G25,'B. Spezieller Mob. - Student'!N:N) -> 0 | L25: =SUMIFS('B. Spezieller Mob. - Student'!G:G,'B. Spezieller Mob. - Student'!E:E,G25,'B. Spezieller Mob. - Student'!O:O,"<>Fehler") -> 0
G26: Personal von Partnerländer | J26: =SUMIF('B. Spezieller Mob. - Personal'!E:E,G26,'B. Spezieller Mob. - Personal'!N:N) -> 0 | L26: =SUMIFS('B. Spezieller Mob. - Personal'!G:G,'B. Spezieller Mob. - Personal'!E:E,G26,'B. Spezieller Mob. - Personal'!O:O,"<>Fehler") -> 0
G27: Personal von Programmländer | J27: =SUMIF('B. Spezieller Mob. - Personal'!E:E,G27,'B. Spezieller Mob. - Personal'!N:N) -> 0 | L27: =SUMIFS('B. Spezieller Mob. - Personal'!G:G,'B. Spezieller Mob. - Personal'!E:E,G27,'B. Spezieller Mob. - Personal'!O:O,"<>Fehler") -> 0
B29: Gesamtbetrag der von der EU beantragten Finanzhilfe (A + B) | D29: =D22+D24 -> 0
B31: UMVERTEILUNG DER FINANZHILFE PRO ORGANISATION (in EUR)
B32: Partner Nr. | C32: Name des Partners | D32: Land | E32: PR/PA | F32: 1. Personalkosten | G32: 2. Reisekosten | H32: 3. Unterkunftskosten | I32: 4. Ausrüstungskosten | J32: 5. Kosten für Unteraufträge | K32: B. Spezieller Mobilitätsbereich | L32: Gesamtkosten
B33: P1 | E33: =IFERROR(IF(D33<>"",VLOOKUP(D33,CountryType,2,FALSE),""),"Land nicht gefunden") ->  | F33: =SUMIF('1. Personalkosten'!C:C,B33,'1. Personalkosten'!S:S) -> 0 | G33: =SUMIF('2-3. Reise&Unterkunftskosten'!C:C,B33,'2-3. Reise&Unterkunftskosten'!L:L) -> 0 | H33: =SUMIF('2-3. Reise&Unterkunftskosten'!C:C,B33,'2-3. Reise&Unterkunftskosten'!M:M) -> 0 | I33: =SUMIF('4. Ausrüstungskosten'!C:C,B33,'4. Ausrüstungskosten'!H:H) -> 0 | J33: =SUMIF('5. Kosten für Unteraufträge'!C:C,B33,'5. Kosten für Unteraufträge'!H:H) -> 0 | K33: =SUMIF('B. Spezieller Mob. - Student'!B:B,B33,'B. Spezieller Mob. - Student'!N:N)+SUMIF('B. Spezieller Mob. - Personal'!B:B,B33,'B. Spezieller Mob. - Personal'!N:N) -> 0 | L33: =SUM(F33:K33) -> 0
B34: P2 | F34: =SUMIF('1. Personalkosten'!C:C,B34,'1. Personalkosten'!S:S) -> 0 | G34: =SUMIF('2-3. Reise&Unterkunftskosten'!C:C,B34,'2-3. Reise&Unterkunftskosten'!L:L) -> 0 | H34: =SUMIF('2-3. Reise&Unterkunftskosten'!C:C,B34,'2-3. Reise&Unterkunftskosten'!M:M) -> 0 | I34: =SUMIF('4. Ausrüstungskosten'!C:C,B34,'4. Ausrüstungskosten'!H:H) -> 0 | J34: =SUMIF('5. Kosten für Unteraufträge'!C:C,B34,'5. Kosten für Unteraufträge'!H:H) -> 0 | K34: =SUMIF('B. Spezieller Mob. - Student'!B:B,B34,'B. Spezieller Mob. - Student'!N:N)+SUMIF('B. Spezieller Mob. - Personal'!B:B,B34,'B. Spezieller Mob. - Personal'!N:N) -> 0 | L34: =SUM(F34:K34) -> 0
B35: P3 | F35: =SUMIF('1. Personalkosten'!C:C,B35,'1. Personalkosten'!S:S) -> 0 | G35: =SUMIF('2-3. Reise&Unterkunftskosten'!C:C,B35,'2-3. Reise&Unterkunftskosten'!L:L) -> 0 | H35: =SUMIF('2-3. Reise&Unterkunftskosten'!C:C,B35,'2-3. Reise&Unterkunftskosten'!M:M) -> 0 | I35: =SUMIF('4. Ausrüstungskosten'!C:C,B35,'4. Ausrüstungskosten'!H:H) -> 0 | J35: =SUMIF('5. Kosten für Unteraufträge'!C:C,B35,'5. Kosten für Unteraufträge'!H:H) -> 0 | K35: =SUMIF('B. Spezieller Mob. - Student'!B:B,B35,'B. Spezieller Mob. - Student'!N:N)+SUMIF('B. Spezieller Mob. - Personal'!B:B,B35,'B. Spezieller Mob. - Personal'!N:N) -> 0 | L35: 0
B36: P4 | F36: =SUMIF('1. Personalkosten'!C:C,B36,'1. Personalkosten'!S:S) -> 0 | G36: =SUMIF('2-3. Reise&Unterkunftskosten'!C:C,B36,'2-3. Reise&Unterkunftskosten'!L:L) -> 0 | H36: =SUMIF('2-3. Reise&Unterkunftskosten'!C:C,B36,'2-3. Reise&Unterkunftskosten'!M:M) -> 0 | I36: =SUMIF('4. Ausrüstungskosten'!C:C,B36,'4. Ausrüstungskosten'!H:H) -> 0 | J36: =SUMIF('5. Kosten für Unteraufträge'!C:C,B36,'5. Kosten für Unteraufträge'!H:H) -> 0 | K36: =SUMIF('B. Spezieller Mob. - Student'!B:B,B36,'B. Spezieller Mob. - Student'!N:N)+SUMIF('B. Spezieller Mob. - Personal'!B:B,B36,'B. Spezieller Mob. - Personal'!N:N) -> 0 | L36: 0
B37: P5 | F37: =SUMIF('1. Personalkosten'!C:C,B37,'1. Personalkosten'!S:S) -> 0 | G37: =SUMIF('2-3. Reise&Unterkunftskosten'!C:C,B37,'2-3. Reise&Unterkunftskosten'!L:L) -> 0 | H37: =SUMIF('2-3. Reise&Unterkunftskosten'!C:C,B37,'2-3. Reise&Unterkunftskosten'!M:M) -> 0 | I37: =SUMIF('4. Ausrüstungskosten'!C:C,B37,'4. Ausrüstungskosten'!H:H) -> 0 | J37: =SUMIF('5. Kosten für Unteraufträge'!C:C,B37,'5. Kosten für Unteraufträge'!H:H) -> 0 | K37: =SUMIF('B. Spezieller Mob. - Student'!B:B,B37,'B. Spezieller Mob. - Student'!N:N)+SUMIF('B. Spezieller Mob. - Personal'!B:B,B37,'B. Spezieller Mob. - Personal'!N:N) -> 0 | L37: 0
B38: P6 | F38: =SUMIF('1. Personalkosten'!C:C,B38,'1. Personalkosten'!S:S) -> 0 | G38: =SUMIF('2-3. Reise&Unterkunftskosten'!C:C,B38,'2-3. Reise&Unterkunftskosten'!L:L) -> 0 | H38: =SUMIF('2-3. Reise&Unterkunftskosten'!C:C,B38,'2-3. Reise&Unterkunftskosten'!M:M) -> 0 | I38: =SUMIF('4. Ausrüstungskosten'!C:C,B38,'4. Ausrüstungskosten'!H:H) -> 0 | J38: =SUMIF('5. Kosten für Unteraufträge'!C:C,B38,'5. Kosten für Unteraufträge'!H:H) -> 0 | K38: =SUMIF('B. Spezieller Mob. - Student'!B:B,B38,'B. Spezieller Mob. - Student'!N:N)+SUMIF('B. Spezieller Mob. - Personal'!B:B,B38,'B. Spezieller Mob. - Personal'!N:N) -> 0 | L38: 0
B39: P7 | F39: =SUMIF('1. Personalkosten'!C:C,B39,'1. Personalkosten'!S:S) -> 0 | G39: =SUMIF('2-3. Reise&Unterkunftskosten'!C:C,B39,'2-3. Reise&Unterkunftskosten'!L:L) -> 0 | H39: =SUMIF('2-3. Reise&Unterkunftskosten'!C:C,B39,'2-3. Reise&Unterkunftskosten'!M:M) -> 0 | I39: =SUMIF('4. Ausrüstungskosten'!C:C,B39,'4. Ausrüstungskosten'!H:H) -> 0 | J39: =SUMIF('5. Kosten für Unteraufträge'!C:C,B39,'5. Kosten für Unteraufträge'!H:H) -> 0 | K39: =SUMIF('B. Spezieller Mob. - Student'!B:B,B39,'B. Spezieller Mob. - Student'!N:N)+SUMIF('B. Spezieller Mob. - Personal'!B:B,B39,'B. Spezieller Mob. - Personal'!N:N) -> 0 | L39: 0
B40: P8 | F40: =SUMIF('1. Personalkosten'!C:C,B40,'1. Personalkosten'!S:S) -> 0 | G40: =SUMIF('2-3. Reise&Unterkunftskosten'!C:C,B40,'2-3. Reise&Unterkunftskosten'!L:L) -> 0 | H40: =SUMIF('2-3. Reise&Unterkunftskosten'!C:C,B40,'2-3. Reise&Unterkunftskosten'!M:M) -> 0 | I40: =SUMIF('4. Ausrüstungskosten'!C:C,B40,'4. Ausrüstungskosten'!H:H) -> 0 | J40: =SUMIF('5. Kosten für Unteraufträge'!C:C,B40,'5. Kosten für Unteraufträge'!H:H) -> 0 | K40: =SUMIF('B. Spezieller Mob. - Student'!B:B,B40,'B. Spezieller Mob. - Student'!N:N)+SUMIF('B. Spezieller Mob. - Personal'!B:B,B40,'B. Spezieller Mob. - Personal'!N:N) -> 0 | L40: 0
B41: P9 | F41: =SUMIF('1. Personalkosten'!C:C,B41,'1. Personalkosten'!S:S) -> 0 | G41: =SUMIF('2-3. Reise&Unterkunftskosten'!C:C,B41,'2-3. Reise&Unterkunftskosten'!L:L) -> 0 | H41: =SUMIF('2-3. Reise&Unterkunftskosten'!C:C,B41,'2-3. Reise&Unterkunftskosten'!M:M) -> 0 | I41: =SUMIF('4. Ausrüstungskosten'!C:C,B41,'4. Ausrüstungskosten'!H:H) -> 0 | J41: =SUMIF('5. Kosten für Unteraufträge'!C:C,B41,'5. Kosten für Unteraufträge'!H:H) -> 0 | K41: =SUMIF('B. Spezieller Mob. - Student'!B:B,B41,'B. Spezieller Mob. - Student'!N:N)+SUMIF('B. Spezieller Mob. - Personal'!B:B,B41,'B. Spezieller Mob. - Personal'!N:N) -> 0 | L41: 0
B42: P10 | F42: =SUMIF('1. Personalkosten'!C:C,B42,'1. Personalkosten'!S:S) -> 0 | G42: =SUMIF('2-3. Reise&Unterkunftskosten'!C:C,B42,'2-3. Reise&Unterkunftskosten'!L:L) -> 0 | H42: =SUMIF('2-3. Reise&Unterkunftskosten'!C:C,B42,'2-3. Reise&Unterkunftskosten'!M:M) -> 0 | I42: =SUMIF('4. Ausrüstungskosten'!C:C,B42,'4. Ausrüstungskosten'!H:H) -> 0 | J42: =SUMIF('5. Kosten für Unteraufträge'!C:C,B42,'5. Kosten für Unteraufträge'!H:H) -> 0 | K42: =SUMIF('B. Spezieller Mob. - Student'!B:B,B42,'B. Spezieller Mob. - Student'!N:N)+SUMIF('B. Spezieller Mob. - Personal'!B:B,B42,'B. Spezieller Mob. - Personal'!N:N) -> 0 | L42: 0
B43: P11 | F43: =SUMIF('1. Personalkosten'!C:C,B43,'1. Personalkosten'!S:S) -> 0 | G43: =SUMIF('2-3. Reise&Unterkunftskosten'!C:C,B43,'2-3. Reise&Unterkunftskosten'!L:L) -> 0 | H43: =SUMIF('2-3. Reise&Unterkunftskosten'!C:C,B43,'2-3. Reise&Unterkunftskosten'!M:M) -> 0 | I43: =SUMIF('4. Ausrüstungskosten'!C:C,B43,'4. Ausrüstungskosten'!H:H) -> 0 | J43: =SUMIF('5. Kosten für Unteraufträge'!C:C,B43,'5. Kosten für Unteraufträge'!H:H) -> 0 | K43: =SUMIF('B. Spezieller Mob. - Student'!B:B,B43,'B. Spezieller Mob. - Student'!N:N)+SUMIF('B. Spezieller Mob. - Personal'!B:B,B43,'B. Spezieller Mob. - Personal'!N:N) -> 0 | L43: 0
B44: P12 | F44: =SUMIF('1. Personalkosten'!C:C,B44,'1. Personalkosten'!S:S) -> 0 | G44: =SUMIF('2-3. Reise&Unterkunftskosten'!C:C,B44,'2-3. Reise&Unterkunftskosten'!L:L) -> 0 | H44: =SUMIF('2-3. Reise&Unterkunftskosten'!C:C,B44,'2-3. Reise&Unterkunftskosten'!M:M) -> 0 | I44: =SUMIF('4. Ausrüstungskosten'!C:C,B44,'4. Ausrüstungskosten'!H:H) -> 0 | J44: =SUMIF('5. Kosten für Unteraufträge'!C:C,B44,'5. Kosten für Unteraufträge'!H:H) -> 0 | K44: =SUMIF('B. Spezieller Mob. - Student'!B:B,B44,'B. Spezieller Mob. - Student'!N:N)+SUMIF('B. Spezieller Mob. - Personal'!B:B,B44,'B. Spezieller Mob. - Personal'!N:N) -> 0 | L44: 0
B45: P13 | F45: =SUMIF('1. Personalkosten'!C:C,B45,'1. Personalkosten'!S:S) -> 0 | G45: =SUMIF('2-3. Reise&Unterkunftskosten'!C:C,B45,'2-3. Reise&Unterkunftskosten'!L:L) -> 0 | H45: =SUMIF('2-3. Reise&Unterkunftskosten'!C:C,B45,'2-3. Reise&Unterkunftskosten'!M:M) -> 0 | I45: =SUMIF('4. Ausrüstungskosten'!C:C,B45,'4. Ausrüstungskosten'!H:H) -> 0 | J45: =SUMIF('5. Kosten für Unteraufträge'!C:C,B45,'5. Kosten für Unteraufträge'!H:H) -> 0 | K45: =SUMIF('B. Spezieller Mob. - Student'!B:B,B45,'B. Spezieller Mob. - Student'!N:N)+SUMIF('B. Spezieller Mob. - Personal'!B:B,B45,'B. Spezieller Mob. - Personal'!N:N) -> 0 | L45: 0
B46: P14 | F46: =SUMIF('1. Personalkosten'!C:C,B46,'1. Personalkosten'!S:S) -> 0 | G46: =SUMIF('2-3. Reise&Unterkunftskosten'!C:C,B46,'2-3. Reise&Unterkunftskosten'!L:L) -> 0 | H46: =SUMIF('2-3. Reise&Unterkunftskosten'!C:C,B46,'2-3. Reise&Unterkunftskosten'!M:M) -> 0 | I46: =SUMIF('4. Ausrüstungskosten'!C:C,B46,'4. Ausrüstungskosten'!H:H) -> 0 | J46: =SUMIF('5. Kosten für Unteraufträge'!C:C,B46,'5. Kosten für Unteraufträge'!H:H) -> 0 | K46: =SUMIF('B. Spezieller Mob. - Student'!B:B,B46,'B. Spezieller Mob. - Student'!N:N)+SUMIF('B. Spezieller Mob. - Personal'!B:B,B46,'B. Spezieller Mob. - Personal'!N:N) -> 0 | L46: 0
B47: P15 | F47: =SUMIF('1. Personalkosten'!C:C,B47,'1. Personalkosten'!S:S) -> 0 | G47: =SUMIF('2-3. Reise&Unterkunftskosten'!C:C,B47,'2-3. Reise&Unterkunftskosten'!L:L) -> 0 | H47: =SUMIF('2-3. Reise&Unterkunftskosten'!C:C,B47,'2-3. Reise&Unterkunftskosten'!M:M) -> 0 | I47: =SUMIF('4. Ausrüstungskosten'!C:C,B47,'4. Ausrüstungskosten'!H:H) -> 0 | J47: =SUMIF('5. Kosten für Unteraufträge'!C:C,B47,'5. Kosten für Unteraufträge'!H:H) -> 0 | K47: =SUMIF('B. Spezieller Mob. - Student'!B:B,B47,'B. Spezieller Mob. - Student'!N:N)+SUMIF('B. Spezieller Mob. - Personal'!B:B,B47,'B. Spezieller Mob. - Personal'!N:N) -> 0 | L47: 0
B48: P16 | F48: =SUMIF('1. Personalkosten'!C:C,B48,'1. Personalkosten'!S:S) -> 0 | G48: =SUMIF('2-3. Reise&Unterkunftskosten'!C:C,B48,'2-3. Reise&Unterkunftskosten'!L:L) -> 0 | H48: =SUMIF('2-3. Reise&Unterkunftskosten'!C:C,B48,'2-3. Reise&Unterkunftskosten'!M:M) -> 0 | I48: =SUMIF('4. Ausrüstungskosten'!C:C,B48,'4. Ausrüstungskosten'!H:H) -> 0 | J48: =SUMIF('5. Kosten für Unteraufträge'!C:C,B48,'5. Kosten für Unteraufträge'!H:H) -> 0 | K48: =SUMIF('B. Spezieller Mob. - Student'!B:B,B48,'B. Spezieller Mob. - Student'!N:N)+SUMIF('B. Spezieller Mob. - Personal'!B:B,B48,'B. Spezieller Mob. - Personal'!N:N) -> 0 | L48: 0
B49: P17 | F49: =SUMIF('1. Personalkosten'!C:C,B49,'1. Personalkosten'!S:S) -> 0 | G49: =SUMIF('2-3. Reise&Unterkunftskosten'!C:C,B49,'2-3. Reise&Unterkunftskosten'!L:L) -> 0 | H49: =SUMIF('2-3. Reise&Unterkunftskosten'!C:C,B49,'2-3. Reise&Unterkunftskosten'!M:M) -> 0 | I49: =SUMIF('4. Ausrüstungskosten'!C:C,B49,'4. Ausrüstungskosten'!H:H) -> 0 | J49: =SUMIF('5. Kosten für Unteraufträge'!C:C,B49,'5. Kosten für Unteraufträge'!H:H) -> 0 | K49: =SUMIF('B. Spezieller Mob. - Student'!B:B,B49,'B. Spezieller Mob. - Student'!N:N)+SUMIF('B. Spezieller Mob. - Personal'!B:B,B49,'B. Spezieller Mob. - Personal'!N:N) -> 0 | L49: 0
B50: P18 | F50: =SUMIF('1. Personalkosten'!C:C,B50,'1. Personalkosten'!S:S) -> 0 | G50: =SUMIF('2-3. Reise&Unterkunftskosten'!C:C,B50,'2-3. Reise&Unterkunftskosten'!L:L) -> 0 | H50: =SUMIF('2-3. Reise&Unterkunftskosten'!C:C,B50,'2-3. Reise&Unterkunftskosten'!M:M) -> 0 | I50: =SUMIF('4. Ausrüstungskosten'!C:C,B50,'4. Ausrüstungskosten'!H:H) -> 0 | J50: =SUMIF('5. Kosten für Unteraufträge'!C:C,B50,'5. Kosten für Unteraufträge'!H:H) -> 0 | K50: =SUMIF('B. Spezieller Mob. - Student'!B:B,B50,'B. Spezieller Mob. - Student'!N:N)+SUMIF('B. Spezieller Mob. - Personal'!B:B,B50,'B. Spezieller Mob. - Personal'!N:N) -> 0 | L50: 0
B51: P19 | F51: =SUMIF('1. Personalkosten'!C:C,B51,'1. Personalkosten'!S:S) -> 0 | G51: =SUMIF('2-3. Reise&Unterkunftskosten'!C:C,B51,'2-3. Reise&Unterkunftskosten'!L:L) -> 0 | H51: =SUMIF('2-3. Reise&Unterkunftskosten'!C:C,B51,'2-3. Reise&Unterkunftskosten'!M:M) -> 0 | I51: =SUMIF('4. Ausrüstungskosten'!C:C,B51,'4. Ausrüstungskosten'!H:H) -> 0 | J51: =SUMIF('5. Kosten für Unteraufträge'!C:C,B51,'5. Kosten für Unteraufträge'!H:H) -> 0 | K51: =SUMIF('B. Spezieller Mob. - Student'!B:B,B51,'B. Spezieller Mob. - Student'!N:N)+SUMIF('B. Spezieller Mob. - Personal'!B:B,B51,'B. Spezieller Mob. - Personal'!N:N) -> 0 | L51: 0
B52: P20 | F52: =SUMIF('1. Personalkosten'!C:C,B52,'1. Personalkosten'!S:S) -> 0 | G52: =SUMIF('2-3. Reise&Unterkunftskosten'!C:C,B52,'2-3. Reise&Unterkunftskosten'!L:L) -> 0 | H52: =SUMIF('2-3. Reise&Unterkunftskosten'!C:C,B52,'2-3. Reise&Unterkunftskosten'!M:M) -> 0 | I52: =SUMIF('4. Ausrüstungskosten'!C:C,B52,'4. Ausrüstungskosten'!H:H) -> 0 | J52: =SUMIF('5. Kosten für Unteraufträge'!C:C,B52,'5. Kosten für Unteraufträge'!H:H) -> 0 | K52: =SUMIF('B. Spezieller Mob. - Student'!B:B,B52,'B. Spezieller Mob. - Student'!N:N)+SUMIF('B. Spezieller Mob. - Personal'!B:B,B52,'B. Spezieller Mob. - Personal'!N:N) -> 0 | L52: 0
B53: P21 | F53: =SUMIF('1. Personalkosten'!C:C,B53,'1. Personalkosten'!S:S) -> 0 | G53: =SUMIF('2-3. Reise&Unterkunftskosten'!C:C,B53,'2-3. Reise&Unterkunftskosten'!L:L) -> 0 | H53: =SUMIF('2-3. Reise&Unterkunftskosten'!C:C,B53,'2-3. Reise&Unterkunftskosten'!M:M) -> 0 | I53: =SUMIF('4. Ausrüstungskosten'!C:C,B53,'4. Ausrüstungskosten'!H:H) -> 0 | J53: =SUMIF('5. Kosten für Unteraufträge'!C:C,B53,'5. Kosten für Unteraufträge'!H:H) -> 0 | K53: =SUMIF('B. Spezieller Mob. - Student'!B:B,B53,'B. Spezieller Mob. - Student'!N:N)+SUMIF('B. Spezieller Mob. - Personal'!B:B,B53,'B. Spezieller Mob. - Personal'!N:N) -> 0 | L53: 0
B54: P22 | F54: =SUMIF('1. Personalkosten'!C:C,B54,'1. Personalkosten'!S:S) -> 0 | G54: =SUMIF('2-3. Reise&Unterkunftskosten'!C:C,B54,'2-3. Reise&Unterkunftskosten'!L:L) -> 0 | H54: =SUMIF('2-3. Reise&Unterkunftskosten'!C:C,B54,'2-3. Reise&Unterkunftskosten'!M:M) -> 0 | I54: =SUMIF('4. Ausrüstungskosten'!C:C,B54,'4. Ausrüstungskosten'!H:H) -> 0 | J54: =SUMIF('5. Kosten für Unteraufträge'!C:C,B54,'5. Kosten für Unteraufträge'!H:H) -> 0 | K54: =SUMIF('B. Spezieller Mob. - Student'!B:B,B54,'B. Spezieller Mob. - Student'!N:N)+SUMIF('B. Spezieller Mob. - Personal'!B:B,B54,'B. Spezieller Mob. - Personal'!N:N) -> 0 | L54: 0
B55: P23 | F55: =SUMIF('1. Personalkosten'!C:C,B55,'1. Personalkosten'!S:S) -> 0 | G55: =SUMIF('2-3. Reise&Unterkunftskosten'!C:C,B55,'2-3. Reise&Unterkunftskosten'!L:L) -> 0 | H55: =SUMIF('2-3. Reise&Unterkunftskosten'!C:C,B55,'2-3. Reise&Unterkunftskosten'!M:M) -> 0 | I55: =SUMIF('4. Ausrüstungskosten'!C:C,B55,'4. Ausrüstungskosten'!H:H) -> 0 | J55: =SUMIF('5. Kosten für Unteraufträge'!C:C,B55,'5. Kosten für Unteraufträge'!H:H) -> 0 | K55: =SUMIF('B. Spezieller Mob. - Student'!B:B,B55,'B. Spezieller Mob. - Student'!N:N)+SUMIF('B. Spezieller Mob. - Personal'!B:B,B55,'B. Spezieller Mob. - Personal'!N:N) -> 0 | L55: 0
B56: P24 | F56: =SUMIF('1. Personalkosten'!C:C,B56,'1. Personalkosten'!S:S) -> 0 | G56: =SUMIF('2-3. Reise&Unterkunftskosten'!C:C,B56,'2-3. Reise&Unterkunftskosten'!L:L) -> 0 | H56: =SUMIF('2-3. Reise&Unterkunftskosten'!C:C,B56,'2-3. Reise&Unterkunftskosten'!M:M) -> 0 | I56: =SUMIF('4. Ausrüstungskosten'!C:C,B56,'4. Ausrüstungskosten'!H:H) -> 0 | J56: =SUMIF('5. Kosten für Unteraufträge'!C:C,B56,'5. Kosten für Unteraufträge'!H:H) -> 0 | K56: =SUMIF('B. Spezieller Mob. - Student'!B:B,B56,'B. Spezieller Mob. - Student'!N:N)+SUMIF('B. Spezieller Mob. - Personal'!B:B,B56,'B. Spezieller Mob. - Personal'!N:N) -> 0 | L56: 0
B57: P25 | F57: =SUMIF('1. Personalkosten'!C:C,B57,'1. Personalkosten'!S:S) -> 0 | G57: =SUMIF('2-3. Reise&Unterkunftskosten'!C:C,B57,'2-3. Reise&Unterkunftskosten'!L:L) -> 0 | H57: =SUMIF('2-3. Reise&Unterkunftskosten'!C:C,B57,'2-3. Reise&Unterkunftskosten'!M:M) -> 0 | I57: =SUMIF('4. Ausrüstungskosten'!C:C,B57,'4. Ausrüstungskosten'!H:H) -> 0 | J57: =SUMIF('5. Kosten für Unteraufträge'!C:C,B57,'5. Kosten für Unteraufträge'!H:H) -> 0 | K57: =SUMIF('B. Spezieller Mob. - Student'!B:B,B57,'B. Spezieller Mob. - Student'!N:N)+SUMIF('B. Spezieller Mob. - Personal'!B:B,B57,'B. Spezieller Mob. - Personal'!N:N) -> 0 | L57: 0
B58: P26 | F58: =SUMIF('1. Personalkosten'!C:C,B58,'1. Personalkosten'!S:S) -> 0 | G58: =SUMIF('2-3. Reise&Unterkunftskosten'!C:C,B58,'2-3. Reise&Unterkunftskosten'!L:L) -> 0 | H58: =SUMIF('2-3. Reise&Unterkunftskosten'!C:C,B58,'2-3. Reise&Unterkunftskosten'!M:M) -> 0 | I58: =SUMIF('4. Ausrüstungskosten'!C:C,B58,'4. Ausrüstungskosten'!H:H) -> 0 | J58: =SUMIF('5. Kosten für Unteraufträge'!C:C,B58,'5. Kosten für Unteraufträge'!H:H) -> 0 | K58: =SUMIF('B. Spezieller Mob. - Student'!B:B,B58,'B. Spezieller Mob. - Student'!N:N)+SUMIF('B. Spezieller Mob. - Personal'!B:B,B58,'B. Spezieller Mob. - Personal'!N:N) -> 0 | L58: 0
B59: P27 | F59: =SUMIF('1. Personalkosten'!C:C,B59,'1. Personalkosten'!S:S) -> 0 | G59: =SUMIF('2-3. Reise&Unterkunftskosten'!C:C,B59,'2-3. Reise&Unterkunftskosten'!L:L) -> 0 | H59: =SUMIF('2-3. Reise&Unterkunftskosten'!C:C,B59,'2-3. Reise&Unterkunftskosten'!M:M) -> 0 | I59: =SUMIF('4. Ausrüstungskosten'!C:C,B59,'4. Ausrüstungskosten'!H:H) -> 0 | J59: =SUMIF('5. Kosten für Unteraufträge'!C:C,B59,'5. Kosten für Unteraufträge'!H:H) -> 0 | K59: =SUMIF('B. Spezieller Mob. - Student'!B:B,B59,'B. Spezieller Mob. - Student'!N:N)+SUMIF('B. Spezieller Mob. - Personal'!B:B,B59,'B. Spezieller Mob. - Personal'!N:N) -> 0 | L59: 0
B60: P28 | F60: =SUMIF('1. Personalkosten'!C:C,B60,'1. Personalkosten'!S:S) -> 0 | G60: =SUMIF('2-3. Reise&Unterkunftskosten'!C:C,B60,'2-3. Reise&Unterkunftskosten'!L:L) -> 0 | H60: =SUMIF('2-3. Reise&Unterkunftskosten'!C:C,B60,'2-3. Reise&Unterkunftskosten'!M:M) -> 0 | I60: =SUMIF('4. Ausrüstungskosten'!C:C,B60,'4. Ausrüstungskosten'!H:H) -> 0 | J60: =SUMIF('5. Kosten für Unteraufträge'!C:C,B60,'5. Kosten für Unteraufträge'!H:H) -> 0 | K60: =SUMIF('B. Spezieller Mob. - Student'!B:B,B60,'B. Spezieller Mob. - Student'!N:N)+SUMIF('B. Spezieller Mob. - Personal'!B:B,B60,'B. Spezieller Mob. - Personal'!N:N) -> 0 | L60: 0
B61: P29 | F61: =SUMIF('1. Personalkosten'!C:C,B61,'1. Personalkosten'!S:S) -> 0 | G61: =SUMIF('2-3. Reise&Unterkunftskosten'!C:C,B61,'2-3. Reise&Unterkunftskosten'!L:L) -> 0 | H61: =SUMIF('2-3. Reise&Unterkunftskosten'!C:C,B61,'2-3. Reise&Unterkunftskosten'!M:M) -> 0 | I61: =SUMIF('4. Ausrüstungskosten'!C:C,B61,'4. Ausrüstungskosten'!H:H) -> 0 | J61: =SUMIF('5. Kosten für Unteraufträge'!C:C,B61,'5. Kosten für Unteraufträge'!H:H) -> 0 | K61: =SUMIF('B. Spezieller Mob. - Student'!B:B,B61,'B. Spezieller Mob. - Student'!N:N)+SUMIF('B. Spezieller Mob. - Personal'!B:B,B61,'B. Spezieller Mob. - Personal'!N:N) -> 0 | L61: 0
B62: P30 | F62: =SUMIF('1. Personalkosten'!C:C,B62,'1. Personalkosten'!S:S) -> 0 | G62: =SUMIF('2-3. Reise&Unterkunftskosten'!C:C,B62,'2-3. Reise&Unterkunftskosten'!L:L) -> 0 | H62: =SUMIF('2-3. Reise&Unterkunftskosten'!C:C,B62,'2-3. Reise&Unterkunftskosten'!M:M) -> 0 | I62: =SUMIF('4. Ausrüstungskosten'!C:C,B62,'4. Ausrüstungskosten'!H:H) -> 0 | J62: =SUMIF('5. Kosten für Unteraufträge'!C:C,B62,'5. Kosten für Unteraufträge'!H:H) -> 0 | K62: =SUMIF('B. Spezieller Mob. - Student'!B:B,B62,'B. Spezieller Mob. - Student'!N:N)+SUMIF('B. Spezieller Mob. - Personal'!B:B,B62,'B. Spezieller Mob. - Personal'!N:N) -> 0 | L62: 0
B63: P31 | F63: =SUMIF('1. Personalkosten'!C:C,B63,'1. Personalkosten'!S:S) -> 0 | G63: =SUMIF('2-3. Reise&Unterkunftskosten'!C:C,B63,'2-3. Reise&Unterkunftskosten'!L:L) -> 0 | H63: =SUMIF('2-3. Reise&Unterkunftskosten'!C:C,B63,'2-3. Reise&Unterkunftskosten'!M:M) -> 0 | I63: =SUMIF('4. Ausrüstungskosten'!C:C,B63,'4. Ausrüstungskosten'!H:H) -> 0 | J63: =SUMIF('5. Kosten für Unteraufträge'!C:C,B63,'5. Kosten für Unteraufträge'!H:H) -> 0 | K63: =SUMIF('B. Spezieller Mob. - Student'!B:B,B63,'B. Spezieller Mob. - Student'!N:N)+SUMIF('B. Spezieller Mob. - Personal'!B:B,B63,'B. Spezieller Mob. - Personal'!N:N) -> 0 | L63: 0
B64: P32 | F64: =SUMIF('1. Personalkosten'!C:C,B64,'1. Personalkosten'!S:S) -> 0 | G64: =SUMIF('2-3. Reise&Unterkunftskosten'!C:C,B64,'2-3. Reise&Unterkunftskosten'!L:L) -> 0 | H64: =SUMIF('2-3. Reise&Unterkunftskosten'!C:C,B64,'2-3. Reise&Unterkunftskosten'!M:M) -> 0 | I64: =SUMIF('4. Ausrüstungskosten'!C:C,B64,'4. Ausrüstungskosten'!H:H) -> 0 | J64: =SUMIF('5. Kosten für Unteraufträge'!C:C,B64,'5. Kosten für Unteraufträge'!H:H) -> 0 | K64: =SUMIF('B. Spezieller Mob. - Student'!B:B,B64,'B. Spezieller Mob. - Student'!N:N)+SUMIF('B. Spezieller Mob. - Personal'!B:B,B64,'B. Spezieller Mob. - Personal'!N:N) -> 0 | L64: 0
B65: P33 | E65: =IFERROR(IF(D65<>"",VLOOKUP(D65,CountryType,2,FALSE),""),"Land nicht gefunden") ->  | F65: =SUMIF('1. Personalkosten'!C:C,B65,'1. Personalkosten'!S:S) -> 0 | G65: =SUMIF('2-3. Reise&Unterkunftskosten'!C:C,B65,'2-3. Reise&Unterkunftskosten'!L:L) -> 0 | H65: =SUMIF('2-3. Reise&Unterkunftskosten'!C:C,B65,'2-3. Reise&Unterkunftskosten'!M:M) -> 0 | I65: =SUMIF('4. Ausrüstungskosten'!C:C,B65,'4. Ausrüstungskosten'!H:H) -> 0 | J65: =SUMIF('5. Kosten für Unteraufträge'!C:C,B65,'5. Kosten für Unteraufträge'!H:H) -> 0 | K65: =SUMIF('B. Spezieller Mob. - Student'!B:B,B65,'B. Spezieller Mob. - Student'!N:N)+SUMIF('B. Spezieller Mob. - Personal'!B:B,B65,'B. Spezieller Mob. - Personal'!N:N) -> 0 | L65: 0
B66: P34 | F66: =SUMIF('1. Personalkosten'!C:C,B66,'1. Personalkosten'!S:S) -> 0 | G66: =SUMIF('2-3. Reise&Unterkunftskosten'!C:C,B66,'2-3. Reise&Unterkunftskosten'!L:L) -> 0 | H66: =SUMIF('2-3. Reise&Unterkunftskosten'!C:C,B66,'2-3. Reise&Unterkunftskosten'!M:M) -> 0 | I66: =SUMIF('4. Ausrüstungskosten'!C:C,B66,'4. Ausrüstungskosten'!H:H) -> 0 | J66: =SUMIF('5. Kosten für Unteraufträge'!C:C,B66,'5. Kosten für Unteraufträge'!H:H) -> 0 | K66: =SUMIF('B. Spezieller Mob. - Student'!B:B,B66,'B. Spezieller Mob. - Student'!N:N)+SUMIF('B. Spezieller Mob. - Personal'!B:B,B66,'B. Spezieller Mob. - Personal'!N:N) -> 0 | L66: 0
B67: P35 | F67: =SUMIF('1. Personalkosten'!C:C,B67,'1. Personalkosten'!S:S) -> 0 | G67: =SUMIF('2-3. Reise&Unterkunftskosten'!C:C,B67,'2-3. Reise&Unterkunftskosten'!L:L) -> 0 | H67: =SUMIF('2-3. Reise&Unterkunftskosten'!C:C,B67,'2-3. Reise&Unterkunftskosten'!M:M) -> 0 | I67: =SUMIF('4. Ausrüstungskosten'!C:C,B67,'4. Ausrüstungskosten'!H:H) -> 0 | J67: =SUMIF('5. Kosten für Unteraufträge'!C:C,B67,'5. Kosten für Unteraufträge'!H:H) -> 0 | K67: =SUMIF('B. Spezieller Mob. - Student'!B:B,B67,'B. Spezieller Mob. - Student'!N:N)+SUMIF('B. Spezieller Mob. - Personal'!B:B,B67,'B. Spezieller Mob. - Personal'!N:N) -> 0 | L67: 0
B68: P36 | F68: =SUMIF('1. Personalkosten'!C:C,B68,'1. Personalkosten'!S:S) -> 0 | G68: =SUMIF('2-3. Reise&Unterkunftskosten'!C:C,B68,'2-3. Reise&Unterkunftskosten'!L:L) -> 0 | H68: =SUMIF('2-3. Reise&Unterkunftskosten'!C:C,B68,'2-3. Reise&Unterkunftskosten'!M:M) -> 0 | I68: =SUMIF('4. Ausrüstungskosten'!C:C,B68,'4. Ausrüstungskosten'!H:H) -> 0 | J68: =SUMIF('5. Kosten für Unteraufträge'!C:C,B68,'5. Kosten für Unteraufträge'!H:H) -> 0 | K68: =SUMIF('B. Spezieller Mob. - Student'!B:B,B68,'B. Spezieller Mob. - Student'!N:N)+SUMIF('B. Spezieller Mob. - Personal'!B:B,B68,'B. Spezieller Mob. - Personal'!N:N) -> 0 | L68: 0
B69: P37 | F69: =SUMIF('1. Personalkosten'!C:C,B69,'1. Personalkosten'!S:S) -> 0 | G69: =SUMIF('2-3. Reise&Unterkunftskosten'!C:C,B69,'2-3. Reise&Unterkunftskosten'!L:L) -> 0 | H69: =SUMIF('2-3. Reise&Unterkunftskosten'!C:C,B69,'2-3. Reise&Unterkunftskosten'!M:M) -> 0 | I69: =SUMIF('4. Ausrüstungskosten'!C:C,B69,'4. Ausrüstungskosten'!H:H) -> 0 | J69: =SUMIF('5. Kosten für Unteraufträge'!C:C,B69,'5. Kosten für Unteraufträge'!H:H) -> 0 | K69: =SUMIF('B. Spezieller Mob. - Student'!B:B,B69,'B. Spezieller Mob. - Student'!N:N)+SUMIF('B. Spezieller Mob. - Personal'!B:B,B69,'B. Spezieller Mob. - Personal'!N:N) -> 0 | L69: 0
B70: P38 | F70: =SUMIF('1. Personalkosten'!C:C,B70,'1. Personalkosten'!S:S) -> 0 | G70: =SUMIF('2-3. Reise&Unterkunftskosten'!C:C,B70,'2-3. Reise&Unterkunftskosten'!L:L) -> 0 | H70: =SUMIF('2-3. Reise&Unterkunftskosten'!C:C,B70,'2-3. Reise&Unterkunftskosten'!M:M) -> 0 | I70: =SUMIF('4. Ausrüstungskosten'!C:C,B70,'4. Ausrüstungskosten'!H:H) -> 0 | J70: =SUMIF('5. Kosten für Unteraufträge'!C:C,B70,'5. Kosten für Unteraufträge'!H:H) -> 0 | K70: =SUMIF('B. Spezieller Mob. - Student'!B:B,B70,'B. Spezieller Mob. - Student'!N:N)+SUMIF('B. Spezieller Mob. - Personal'!B:B,B70,'B. Spezieller Mob. - Personal'!N:N) -> 0 | L70: 0
B71: P39 | F71: =SUMIF('1. Personalkosten'!C:C,B71,'1. Personalkosten'!S:S) -> 0 | G71: =SUMIF('2-3. Reise&Unterkunftskosten'!C:C,B71,'2-3. Reise&Unterkunftskosten'!L:L) -> 0 | H71: =SUMIF('2-3. Reise&Unterkunftskosten'!C:C,B71,'2-3. Reise&Unterkunftskosten'!M:M) -> 0 | I71: =SUMIF('4. Ausrüstungskosten'!C:C,B71,'4. Ausrüstungskosten'!H:H) -> 0 | J71: =SUMIF('5. Kosten für Unteraufträge'!C:C,B71,'5. Kosten für Unteraufträge'!H:H) -> 0 | K71: =SUMIF('B. Spezieller Mob. - Student'!B:B,B71,'B. Spezieller Mob. - Student'!N:N)+SUMIF('B. Spezieller Mob. - Personal'!B:B,B71,'B. Spezieller Mob. - Personal'!N:N) -> 0 | L71: 0
B72: P40 | F72: =SUMIF('1. Personalkosten'!C:C,B72,'1. Personalkosten'!S:S) -> 0 | G72: =SUMIF('2-3. Reise&Unterkunftskosten'!C:C,B72,'2-3. Reise&Unterkunftskosten'!L:L) -> 0 | H72: =SUMIF('2-3. Reise&Unterkunftskosten'!C:C,B72,'2-3. Reise&Unterkunftskosten'!M:M) -> 0 | I72: =SUMIF('4. Ausrüstungskosten'!C:C,B72,'4. Ausrüstungskosten'!H:H) -> 0 | J72: =SUMIF('5. Kosten für Unteraufträge'!C:C,B72,'5. Kosten für Unteraufträge'!H:H) -> 0 | K72: =SUMIF('B. Spezieller Mob. - Student'!B:B,B72,'B. Spezieller Mob. - Student'!N:N)+SUMIF('B. Spezieller Mob. - Personal'!B:B,B72,'B. Spezieller Mob. - Personal'!N:N) -> 0 | L72: 0
B73: P41 | F73: =SUMIF('1. Personalkosten'!C:C,B73,'1. Personalkosten'!S:S) -> 0 | G73: =SUMIF('2-3. Reise&Unterkunftskosten'!C:C,B73,'2-3. Reise&Unterkunftskosten'!L:L) -> 0 | H73: =SUMIF('2-3. Reise&Unterkunftskosten'!C:C,B73,'2-3. Reise&Unterkunftskosten'!M:M) -> 0 | I73: =SUMIF('4. Ausrüstungskosten'!C:C,B73,'4. Ausrüstungskosten'!H:H) -> 0 | J73: =SUMIF('5. Kosten für Unteraufträge'!C:C,B73,'5. Kosten für Unteraufträge'!H:H) -> 0 | K73: =SUMIF('B. Spezieller Mob. - Student'!B:B,B73,'B. Spezieller Mob. - Student'!N:N)+SUMIF('B. Spezieller Mob. - Personal'!B:B,B73,'B. Spezieller Mob. - Personal'!N:N) -> 0 | L73: 0
B74: P42 | F74: =SUMIF('1. Personalkosten'!C:C,B74,'1. Personalkosten'!S:S) -> 0 | G74: =SUMIF('2-3. Reise&Unterkunftskosten'!C:C,B74,'2-3. Reise&Unterkunftskosten'!L:L) -> 0 | H74: =SUMIF('2-3. Reise&Unterkunftskosten'!C:C,B74,'2-3. Reise&Unterkunftskosten'!M:M) -> 0 | I74: =SUMIF('4. Ausrüstungskosten'!C:C,B74,'4. Ausrüstungskosten'!H:H) -> 0 | J74: =SUMIF('5. Kosten für Unteraufträge'!C:C,B74,'5. Kosten für Unteraufträge'!H:H) -> 0 | K74: =SUMIF('B. Spezieller Mob. - Student'!B:B,B74,'B. Spezieller Mob. - Student'!N:N)+SUMIF('B. Spezieller Mob. - Personal'!B:B,B74,'B. Spezieller Mob. - Personal'!N:N) -> 0 | L74: 0
B75: P43 | F75: =SUMIF('1. Personalkosten'!C:C,B75,'1. Personalkosten'!S:S) -> 0 | G75: =SUMIF('2-3. Reise&Unterkunftskosten'!C:C,B75,'2-3. Reise&Unterkunftskosten'!L:L) -> 0 | H75: =SUMIF('2-3. Reise&Unterkunftskosten'!C:C,B75,'2-3. Reise&Unterkunftskosten'!M:M) -> 0 | I75: =SUMIF('4. Ausrüstungskosten'!C:C,B75,'4. Ausrüstungskosten'!H:H) -> 0 | J75: =SUMIF('5. Kosten für Unteraufträge'!C:C,B75,'5. Kosten für Unteraufträge'!H:H) -> 0 | K75: =SUMIF('B. Spezieller Mob. - Student'!B:B,B75,'B. Spezieller Mob. - Student'!N:N)+SUMIF('B. Spezieller Mob. - Personal'!B:B,B75,'B. Spezieller Mob. - Personal'!N:N) -> 0 | L75: 0
B76: P44 | F76: =SUMIF('1. Personalkosten'!C:C,B76,'1. Personalkosten'!S:S) -> 0 | G76: =SUMIF('2-3. Reise&Unterkunftskosten'!C:C,B76,'2-3. Reise&Unterkunftskosten'!L:L) -> 0 | H76: =SUMIF('2-3. Reise&Unterkunftskosten'!C:C,B76,'2-3. Reise&Unterkunftskosten'!M:M) -> 0 | I76: =SUMIF('4. Ausrüstungskosten'!C:C,B76,'4. Ausrüstungskosten'!H:H) -> 0 | J76: =SUMIF('5. Kosten für Unteraufträge'!C:C,B76,'5. Kosten für Unteraufträge'!H:H) -> 0 | K76: =SUMIF('B. Spezieller Mob. - Student'!B:B,B76,'B. Spezieller Mob. - Student'!N:N)+SUMIF('B. Spezieller Mob. - Personal'!B:B,B76,'B. Spezieller Mob. - Personal'!N:N) -> 0 | L76: 0
B77: P45 | F77: =SUMIF('1. Personalkosten'!C:C,B77,'1. Personalkosten'!S:S) -> 0 | G77: =SUMIF('2-3. Reise&Unterkunftskosten'!C:C,B77,'2-3. Reise&Unterkunftskosten'!L:L) -> 0 | H77: =SUMIF('2-3. Reise&Unterkunftskosten'!C:C,B77,'2-3. Reise&Unterkunftskosten'!M:M) -> 0 | I77: =SUMIF('4. Ausrüstungskosten'!C:C,B77,'4. Ausrüstungskosten'!H:H) -> 0 | J77: =SUMIF('5. Kosten für Unteraufträge'!C:C,B77,'5. Kosten für Unteraufträge'!H:H) -> 0 | K77: =SUMIF('B. Spezieller Mob. - Student'!B:B,B77,'B. Spezieller Mob. - Student'!N:N)+SUMIF('B. Spezieller Mob. - Personal'!B:B,B77,'B. Spezieller Mob. - Personal'!N:N) -> 0 | L77: 0
B78: P46 | F78: =SUMIF('1. Personalkosten'!C:C,B78,'1. Personalkosten'!S:S) -> 0 | G78: =SUMIF('2-3. Reise&Unterkunftskosten'!C:C,B78,'2-3. Reise&Unterkunftskosten'!L:L) -> 0 | H78: =SUMIF('2-3. Reise&Unterkunftskosten'!C:C,B78,'2-3. Reise&Unterkunftskosten'!M:M) -> 0 | I78: =SUMIF('4. Ausrüstungskosten'!C:C,B78,'4. Ausrüstungskosten'!H:H) -> 0 | J78: =SUMIF('5. Kosten für Unteraufträge'!C:C,B78,'5. Kosten für Unteraufträge'!H:H) -> 0 | K78: =SUMIF('B. Spezieller Mob. - Student'!B:B,B78,'B. Spezieller Mob. - Student'!N:N)+SUMIF('B. Spezieller Mob. - Personal'!B:B,B78,'B. Spezieller Mob. - Personal'!N:N) -> 0 | L78: 0
B79: P47 | F79: =SUMIF('1. Personalkosten'!C:C,B79,'1. Personalkosten'!S:S) -> 0 | G79: =SUMIF('2-3. Reise&Unterkunftskosten'!C:C,B79,'2-3. Reise&Unterkunftskosten'!L:L) -> 0 | H79: =SUMIF('2-3. Reise&Unterkunftskosten'!C:C,B79,'2-3. Reise&Unterkunftskosten'!M:M) -> 0 | I79: =SUMIF('4. Ausrüstungskosten'!C:C,B79,'4. Ausrüstungskosten'!H:H) -> 0 | J79: =SUMIF('5. Kosten für Unteraufträge'!C:C,B79,'5. Kosten für Unteraufträge'!H:H) -> 0 | K79: =SUMIF('B. Spezieller Mob. - Student'!B:B,B79,'B. Spezieller Mob. - Student'!N:N)+SUMIF('B. Spezieller Mob. - Personal'!B:B,B79,'B. Spezieller Mob. - Personal'!N:N) -> 0 | L79: 0
B80: P48 | F80: =SUMIF('1. Personalkosten'!C:C,B80,'1. Personalkosten'!S:S) -> 0 | G80: =SUMIF('2-3. Reise&Unterkunftskosten'!C:C,B80,'2-3. Reise&Unterkunftskosten'!L:L) -> 0 | H80: =SUMIF('2-3. Reise&Unterkunftskosten'!C:C,B80,'2-3. Reise&Unterkunftskosten'!M:M) -> 0 | I80: =SUMIF('4. Ausrüstungskosten'!C:C,B80,'4. Ausrüstungskosten'!H:H) -> 0 | J80: =SUMIF('5. Kosten für Unteraufträge'!C:C,B80,'5. Kosten für Unteraufträge'!H:H) -> 0 | K80: =SUMIF('B. Spezieller Mob. - Student'!B:B,B80,'B. Spezieller Mob. - Student'!N:N)+SUMIF('B. Spezieller Mob. - Personal'!B:B,B80,'B. Spezieller Mob. - Personal'!N:N) -> 0 | L80: 0
B81: P49 | F81: =SUMIF('1. Personalkosten'!C:C,B81,'1. Personalkosten'!S:S) -> 0 | G81: =SUMIF('2-3. Reise&Unterkunftskosten'!C:C,B81,'2-3. Reise&Unterkunftskosten'!L:L) -> 0 | H81: =SUMIF('2-3. Reise&Unterkunftskosten'!C:C,B81,'2-3. Reise&Unterkunftskosten'!M:M) -> 0 | I81: =SUMIF('4. Ausrüstungskosten'!C:C,B81,'4. Ausrüstungskosten'!H:H) -> 0 | J81: =SUMIF('5. Kosten für Unteraufträge'!C:C,B81,'5. Kosten für Unteraufträge'!H:H) -> 0 | K81: =SUMIF('B. Spezieller Mob. - Student'!B:B,B81,'B. Spezieller Mob. - Student'!N:N)+SUMIF('B. Spezieller Mob. - Personal'!B:B,B81,'B. Spezieller Mob. - Personal'!N:N) -> 0 | L81: 0
B82: P50 | F82: =SUMIF('1. Personalkosten'!C:C,B82,'1. Personalkosten'!S:S) -> 0 | G82: =SUMIF('2-3. Reise&Unterkunftskosten'!C:C,B82,'2-3. Reise&Unterkunftskosten'!L:L) -> 0 | H82: =SUMIF('2-3. Reise&Unterkunftskosten'!C:C,B82,'2-3. Reise&Unterkunftskosten'!M:M) -> 0 | I82: =SUMIF('4. Ausrüstungskosten'!C:C,B82,'4. Ausrüstungskosten'!H:H) -> 0 | J82: =SUMIF('5. Kosten für Unteraufträge'!C:C,B82,'5. Kosten für Unteraufträge'!H:H) -> 0 | K82: =SUMIF('B. Spezieller Mob. - Student'!B:B,B82,'B. Spezieller Mob. - Student'!N:N)+SUMIF('B. Spezieller Mob. - Personal'!B:B,B82,'B. Spezieller Mob. - Personal'!N:N) -> 0 | L82: 0
B83: P51 | F83: =SUMIF('1. Personalkosten'!C:C,B83,'1. Personalkosten'!S:S) -> 0 | G83: =SUMIF('2-3. Reise&Unterkunftskosten'!C:C,B83,'2-3. Reise&Unterkunftskosten'!L:L) -> 0 | H83: =SUMIF('2-3. Reise&Unterkunftskosten'!C:C,B83,'2-3. Reise&Unterkunftskosten'!M:M) -> 0 | I83: =SUMIF('4. Ausrüstungskosten'!C:C,B83,'4. Ausrüstungskosten'!H:H) -> 0 | J83: =SUMIF('5. Kosten für Unteraufträge'!C:C,B83,'5. Kosten für Unteraufträge'!H:H) -> 0 | K83: =SUMIF('B. Spezieller Mob. - Student'!B:B,B83,'B. Spezieller Mob. - Student'!N:N)+SUMIF('B. Spezieller Mob. - Personal'!B:B,B83,'B. Spezieller Mob. - Personal'!N:N) -> 0 | L83: 0
B84: P52 | F84: =SUMIF('1. Personalkosten'!C:C,B84,'1. Personalkosten'!S:S) -> 0 | G84: =SUMIF('2-3. Reise&Unterkunftskosten'!C:C,B84,'2-3. Reise&Unterkunftskosten'!L:L) -> 0 | H84: =SUMIF('2-3. Reise&Unterkunftskosten'!C:C,B84,'2-3. Reise&Unterkunftskosten'!M:M) -> 0 | I84: =SUMIF('4. Ausrüstungskosten'!C:C,B84,'4. Ausrüstungskosten'!H:H) -> 0 | J84: =SUMIF('5. Kosten für Unteraufträge'!C:C,B84,'5. Kosten für Unteraufträge'!H:H) -> 0 | K84: =SUMIF('B. Spezieller Mob. - Student'!B:B,B84,'B. Spezieller Mob. - Student'!N:N)+SUMIF('B. Spezieller Mob. - Personal'!B:B,B84,'B. Spezieller Mob. - Personal'!N:N) -> 0 | L84: 0
B85: P53 | F85: =SUMIF('1. Personalkosten'!C:C,B85,'1. Personalkosten'!S:S) -> 0 | G85: =SUMIF('2-3. Reise&Unterkunftskosten'!C:C,B85,'2-3. Reise&Unterkunftskosten'!L:L) -> 0 | H85: =SUMIF('2-3. Reise&Unterkunftskosten'!C:C,B85,'2-3. Reise&Unterkunftskosten'!M:M) -> 0 | I85: =SUMIF('4. Ausrüstungskosten'!C:C,B85,'4. Ausrüstungskosten'!H:H) -> 0 | J85: =SUMIF('5. Kosten für Unteraufträge'!C:C,B85,'5. Kosten für Unteraufträge'!H:H) -> 0 | K85: =SUMIF('B. Spezieller Mob. - Student'!B:B,B85,'B. Spezieller Mob. - Student'!N:N)+SUMIF('B. Spezieller Mob. - Personal'!B:B,B85,'B. Spezieller Mob. - Personal'!N:N) -> 0 | L85: 0
B86: P54 | F86: =SUMIF('1. Personalkosten'!C:C,B86,'1. Personalkosten'!S:S) -> 0 | G86: =SUMIF('2-3. Reise&Unterkunftskosten'!C:C,B86,'2-3. Reise&Unterkunftskosten'!L:L) -> 0 | H86: =SUMIF('2-3. Reise&Unterkunftskosten'!C:C,B86,'2-3. Reise&Unterkunftskosten'!M:M) -> 0 | I86: =SUMIF('4. Ausrüstungskosten'!C:C,B86,'4. Ausrüstungskosten'!H:H) -> 0 | J86: =SUMIF('5. Kosten für Unteraufträge'!C:C,B86,'5. Kosten für Unteraufträge'!H:H) -> 0 | K86: =SUMIF('B. Spezieller Mob. - Student'!B:B,B86,'B. Spezieller Mob. - Student'!N:N)+SUMIF('B. Spezieller Mob. - Personal'!B:B,B86,'B. Spezieller Mob. - Personal'!N:N) -> 0 | L86: 0
B87: P55 | F87: =SUMIF('1. Personalkosten'!C:C,B87,'1. Personalkosten'!S:S) -> 0 | G87: =SUMIF('2-3. Reise&Unterkunftskosten'!C:C,B87,'2-3. Reise&Unterkunftskosten'!L:L) -> 0 | H87: =SUMIF('2-3. Reise&Unterkunftskosten'!C:C,B87,'2-3. Reise&Unterkunftskosten'!M:M) -> 0 | I87: =SUMIF('4. Ausrüstungskosten'!C:C,B87,'4. Ausrüstungskosten'!H:H) -> 0 | J87: =SUMIF('5. Kosten für Unteraufträge'!C:C,B87,'5. Kosten für Unteraufträge'!H:H) -> 0 | K87: =SUMIF('B. Spezieller Mob. - Student'!B:B,B87,'B. Spezieller Mob. - Student'!N:N)+SUMIF('B. Spezieller Mob. - Personal'!B:B,B87,'B. Spezieller Mob. - Personal'!N:N) -> 0 | L87: 0

Sheet 1. Personalkosten
B2: 1. Personalkosten
D4: Gesamtbetrag (EUR) | E4: Anzahl von Tagen
B5: Manager | D5: =SUM(H:H) -> 0 | E5: =SUMIF(T:T,"<>Fehler",F:F) -> 0
B6: Lehrkraft/Ausbilder/Forscher | D6: =SUM(K:K) -> 0 | E6: =SUMIF(T:T,"<>Fehler",I:I) -> 0
B7: Techniker | D7: =SUM(N:N) -> 0 | E7: =SUMIF(T:T,"<>Fehler",L:L) -> 0
B8: Verwaltungskraft | D8: =SUM(Q:Q) -> 0 | E8: =SUMIF(T:T,"<>Fehler",O:O) -> 0
D9: =SUM(D5:D8) -> 0 | E9: =SUM(E5:E8) -> 0
B11: Arbeitspaket | C11: Partner Nr. | D11: Name des Partners (ins Übersichtsblatt eingeben) | E11: Land (ins Übersichtsblatt eingeben) | F11: =Rates!E3 -> Manager | I11: =Rates!F3 -> Lehrkraft/Ausbilder/Forscher | L11: =Rates!G3 -> Techniker | O11: =Rates!H3 -> Verwaltungskraft | R11: Gesamtanzahl von Tagen | S11: Gesamtbetrag (EUR) | T11: Codierungsfehler
F12: Anzahl von Tagen | G12: Kosten je Einheit pro Tag | H12: Gesamtbetrag (EUR) | I12: Anzahl von Tagen | J12: Kosten je Einheit pro Tag | K12: Gesamtbetrag (EUR) | L12: Anzahl von Tagen | M12: Kosten je Einheit pro Tag | N12: Gesamtbetrag (EUR) | O12: Anzahl von Tagen | P12: Kosten je Einheit pro Tag | Q12: Gesamtbetrag (EUR)
D13: =IFERROR(IF(VLOOKUP(C13,PartnerN°Ref,2,FALSE)=0,"",VLOOKUP(C13,PartnerN°Ref,2,FALSE)),"") ->  | E13: =IFERROR(IF(OR(VLOOKUP(C13,PartnerN°Ref,4,FALSE)="Land nicht gefunden",VLOOKUP(C13,PartnerN°Ref,3,FALSE)=0),"",VLOOKUP(C13,PartnerN°Ref,3,FALSE)),"") ->  | F13: 0 | G13: =IF(T13="Fehler",0,INDEX(Rates,MATCH(E13,CountryALL,0),MATCH($F$11,Category,0))) -> 0 | H13: =IFERROR(IF(T13="Fehler",0,ROUND(F13*G13,2)),0) -> 0 | I13: 0 | J13: =IF(T13="Fehler",0,INDEX(Rates,MATCH(E13,CountryALL,0),MATCH($I$11,Category,0))) -> 0 | K13: =IFERROR(IF(T13="Fehler",0,ROUND(I13*J13,2)),0) -> 0 | L13: 0 | M13: =IF(T13="Fehler",0,INDEX(Rates,MATCH(E13,CountryALL,0),MATCH($L$11,Category,0))) -> 0 | N13: =IFERROR(IF(T13="Fehler",0,ROUND(L13*M13,2)),0) -> 0 | O13: 0 | P13: =IF(T13="Fehler",0,INDEX(Rates,MATCH(E13,CountryALL,0),MATCH($O$11,Category,0))) -> 0 | Q13: =IFERROR(IF(T13="Fehler",0,ROUND(O13*P13,2)),0) -> 0 | R13: =IF(T13="Fehler",0,F13+I13+L13+O13) -> 0 | S13: =IF(T13="Fehler",0,H13+K13+N13+Q13) -> 0 | T13: =IF(OR(COUNTIF(WorkPackage,B13)=0,COUNTIF(PartnerN°,C13)=0,D13="",COUNTIF(CountryALL,E13)=0,ISNUMBER(F13)=FALSE,ISNUMBER(I13)=FALSE,ISNUMBER(L13)=FALSE,ISNUMBER(O13)=FALSE,IF(ISNUMBER(F13)=TRUE,F13=INT(F13*10)/10=FALSE),IF(ISNUMBER(I13)=TRUE,I13=INT(I13*10)/10=FALSE),IF(ISNUMBER(L13)=TRUE,L13=INT(L13*10)/10=FALSE),IF(ISNUMBER(O13)=TRUE,O13=INT(O13*10)/10=FALSE)),"Fehler","") -> Fehler
D14: =IFERROR(IF(VLOOKUP(C14,PartnerN°Ref,2,FALSE)=0,"",VLOOKUP(C14,PartnerN°Ref,2,FALSE)),"") ->  | E14: =IFERROR(IF(OR(VLOOKUP(C14,PartnerN°Ref,4,FALSE)="Land nicht gefunden",VLOOKUP(C14,PartnerN°Ref,3,FALSE)=0),"",VLOOKUP(C14,PartnerN°Ref,3,FALSE)),"") ->  | F14: 0 | G14: =IF(T14="Fehler",0,INDEX(Rates,MATCH(E14,CountryALL,0),MATCH($F$11,Category,0))) -> 0 | H14: =IFERROR(IF(T14="Fehler",0,ROUND(F14*G14,2)),0) -> 0 | I14: 0 | J14: =IF(T14="Fehler",0,INDEX(Rates,MATCH(E14,CountryALL,0),MATCH($I$11,Category,0))) -> 0 | K14: =IFERROR(IF(T14="Fehler",0,ROUND(I14*J14,2)),0) -> 0 | L14: 0 | M14: =IF(T14="Fehler",0,INDEX(Rates,MATCH(E14,CountryALL,0),MATCH($L$11,Category,0))) -> 0 | N14: =IFERROR(IF(T14="Fehler",0,ROUND(L14*M14,2)),0) -> 0 | O14: 0 | P14: =IF(T14="Fehler",0,INDEX(Rates,MATCH(E14,CountryALL,0),MATCH($O$11,Category,0))) -> 0 | Q14: =IFERROR(IF(T14="Fehler",0,ROUND(O14*P14,2)),0) -> 0 | R14: =IF(T14="Fehler",0,F14+I14+L14+O14) -> 0 | S14: =IF(T14="Fehler",0,H14+K14+N14+Q14) -> 0 | T14: =IF(OR(COUNTIF(WorkPackage,B14)=0,COUNTIF(PartnerN°,C14)=0,D14="",COUNTIF(CountryALL,E14)=0,ISNUMBER(F14)=FALSE,ISNUMBER(I14)=FALSE,ISNUMBER(L14)=FALSE,ISNUMBER(O14)=FALSE,IF(ISNUMBER(F14)=TRUE,F14=INT(F14*10)/10=FALSE),IF(ISNUMBER(I14)=TRUE,I14=INT(I14*10)/10=FALSE),IF(ISNUMBER(L14)=TRUE,L14=INT(L14*10)/10=FALSE),IF(ISNUMBER(O14)=TRUE,O14=INT(O14*10)/10=FALSE)),"Fehler","") -> Fehler

Sheet 2-3. Reise&Unterkunftskosten
B2: 2-3. Reise&Unterkunftskosten
B4: Reisekosten Student (EUR) | D4: =SUMIF(G:G,"Student",L:L) -> 0 | E4: =D4+D5 -> 0 | F4: =SUMIFS(H:H,G:G,"Student",O:O,"<>Fehler") -> 0
B5: Unterhaltskosten Student (EUR) | D5: =SUMIF(G:G,"Student",M:M) -> 0
B6: Reisekosten Personal (EUR) | D6: =SUMIF(G:G,"Personal",L:L) -> 0 | E6: =D6+D7 -> 0 | F6: =SUMIFS(H:H,G:G,"Personal",O:O,"<>Fehler") -> 0
B7: Unterhaltskosten Personal (EUR) | D7: =SUMIF(G:G,"Personal",M:M) -> 0
B8: Gesamtbetrag Reisekosten (EUR) | D8: =SUM(L:L) -> 0 | E8: =D8+D9 -> 0 | F8: =F4+F6 -> 0
B9: Gesamtbetrag Unterhaltskosten (EUR) | D9: =SUM(M:M) -> 0
B11: Arbeitspaket | C11: Partner Nr. | D11: Name des Partners (ins Übersichtsblatt eingeben) | E11: Land (ins Übersichtsblatt eingeben) | F11: Stadt der Abreise | G11: Student/Personal | H11: Anzahl der Teilnehmer | I11: Stadt der Ankunft | J11: Reiseentfernung | K11: Anzahl von Tagen (je Teilnehmer) | L11: Reisekosten (EUR) | M11: Unterkunftskosten (EUR) | N11: Gesamtbetrag (EUR) | O11: Codierungsfehler
D13: =IFERROR(IF(VLOOKUP(C13,PartnerN°Ref,2,FALSE)=0,"",VLOOKUP(C13,PartnerN°Ref,2,FALSE)),"") ->  | E13: =IFERROR(IF(OR(VLOOKUP(C13,PartnerN°Ref,4,FALSE)="Land nicht gefunden",VLOOKUP(C13,PartnerN°Ref,3,FALSE)=0),"",VLOOKUP(C13,PartnerN°Ref,3,FALSE)),"") ->  | H13: 0 | K13: 0 | L13: =IF(O13="Fehler",0,ROUND(ROUND(H13,0)*(VLOOKUP(J13,TravelCosts,2,FALSE)),2)) -> 0 | M13: =IF(O13="Fehler",0,IF(AND(G13="Personal",K13>0,K13<15),(120*K13)*H13,IF(AND(G13="Personal",K13>14,K13<61),(1680+((K13-14)*70))*H13,IF(AND(G13="Personal",K13>60,K13<91),(4900+((K13-60)*50))*H13,IF(AND(G13="Student",K13>0,K13<15),(55*K13)*H13,IF(AND(G13="Student",K13>14,K13<91),(770+((K13-14)*40))*H13,0)))))) -> 0 | N13: =L13+M13 -> 0 | O13: =IF(OR(COUNTIF(WorkPackage,B13)=0,COUNTIF(PartnerN°,C13)=0,D13="",COUNTIF(CountryALL,E13)=0,F13="",COUNTIF(Category2,G13)=0,ISNUMBER(H13)=FALSE,I13="",COUNTIF(TravelBands,J13)=0,ISNUMBER(K13)=FALSE,OR(K13<0,K13>90),IF(ISNUMBER(H13)=TRUE,H13=INT(H13*1)/1=FALSE),IF(ISNUMBER(K13)=TRUE,K13=INT(K13*1)/1=FALSE)),"Fehler","") -> Fehler
D14: =IFERROR(IF(VLOOKUP(C14,PartnerN°Ref,2,FALSE)=0,"",VLOOKUP(C14,PartnerN°Ref,2,FALSE)),"") ->  | E14: =IFERROR(IF(OR(VLOOKUP(C14,PartnerN°Ref,4,FALSE)="Land nicht gefunden",VLOOKUP(C14,PartnerN°Ref,3,FALSE)=0),"",VLOOKUP(C14,PartnerN°Ref,3,FALSE)),"") ->  | H14: 0 | K14: 0 | L14: =IF(O14="Fehler",0,ROUND(ROUND(H14,0)*(VLOOKUP(J14,TravelCosts,2,FALSE)),2)) -> 0 | M14: =IF(O14="Fehler",0,IF(AND(G14="Personal",K14>0,K14<15),(120*K14)*H14,IF(AND(G14="Personal",K14>14,K14<61),(1680+((K14-14)*70))*H14,IF(AND(G14="Personal",K14>60,K14<91),(4900+((K14-60)*50))*H14,IF(AND(G14="Student",K14>0,K14<15),(55*K14)*H14,IF(AND(G14="Student",K14>14,K14<91),(770+((K14-14)*40))*H14,0)))))) -> 0 | N14: =L14+M14 -> 0 | O14: =IF(OR(COUNTIF(WorkPackage,B14)=0,COUNTIF(PartnerN°,C14)=0,D14="",COUNTIF(CountryALL,E14)=0,F14="",COUNTIF(Category2,G14)=0,ISNUMBER(H14)=FALSE,I14="",COUNTIF(TravelBands,J14)=0,ISNUMBER(K14)=FALSE,OR(K14<0,K14>90),IF(ISNUMBER(H14)=TRUE,H14=INT(H14*1)/1=FALSE),IF(ISNUMBER(K14)=TRUE,K14=INT(K14*1)/1=FALSE)),"Fehler","") -> Fehler

Sheet 4. Ausrüstungskosten
B2: 4. Ausrüstungskosten
B4: GESAMTBETRAG (EUR) | C4: =SUM(H:H) -> 0
B11: Arbeitspaket | C11: Partner Nr. | D11: Name des Partners (ins Übersichtsblatt eingeben) | E11: Land (ins Übersichtsblatt eingeben) | F11: Art, Modell und Beschreibung des Rechnungspostens | G11: Betrag ohne MwSt (EUR) | H11: Gesamtbetrag (EUR) | I11: Codierungsfehler
D13: =IFERROR(IF(VLOOKUP(C13,PartnerN°Ref,2,FALSE)=0,"",VLOOKUP(C13,PartnerN°Ref,2,FALSE)),"") ->  | E13: =IFERROR(IF(OR(VLOOKUP(C13,PartnerN°Ref,4,FALSE)="Land nicht gefunden",VLOOKUP(C13,PartnerN°Ref,3,FALSE)=0),"",VLOOKUP(C13,PartnerN°Ref,3,FALSE)),"") ->  | G13: 0 | H13: =IF(I13="Fehler",0,ROUND(G13,2)) -> 0 | I13: =IF(OR(COUNTIF(WorkPackage,B13)=0,COUNTIF(PartnerN°,C13)=0,D13="",COUNTIF(CountryEligEquip,E13)=0,F13="",ISNUMBER(G13)=FALSE,IF(ISNUMBER(G13)=TRUE,G13=INT(G13*100)/100=FALSE)),"Fehler","") -> Fehler
D14: =IFERROR(IF(VLOOKUP(C14,PartnerN°Ref,2,FALSE)=0,"",VLOOKUP(C14,PartnerN°Ref,2,FALSE)),"") ->  | E14: =IFERROR(IF(OR(VLOOKUP(C14,PartnerN°Ref,4,FALSE)="Land nicht gefunden",VLOOKUP(C14,PartnerN°Ref,3,FALSE)=0),"",VLOOKUP(C14,PartnerN°Ref,3,FALSE)),"") ->  | G14: 0 | H14: =IF(I14="Fehler",0,ROUND(G14,2)) -> 0 | I14: =IF(OR(COUNTIF(WorkPackage,B14)=0,COUNTIF(PartnerN°,C14)=0,D14="",COUNTIF(CountryEligEquip,E14)=0,F14="",ISNUMBER(G14)=FALSE,IF(ISNUMBER(G14)=TRUE,G14=INT(G14*100)/100=FALSE)),"Fehler","") -> Fehler

Sheet 5. Kosten für Unteraufträge
B2: 5. Kosten für Unteraufträge
B4: GESAMTBETRAG (EUR) | C4: =SUM(H:H) -> 0
B11: Arbeitspaket | C11: Partner Nr. | D11: Name des Partners (ins Übersichtsblatt eingeben) | E11: Land (ins Übersichtsblatt eingeben) | F11: Art, Modell und Beschreibung des Rechnungspostens | G11: Betrag ohne MwSt (EUR) | H11: Gesamtbetrag (EUR) | I11: Codierungsfehler
D13: =IFERROR(IF(VLOOKUP(C13,PartnerN°Ref,2,FALSE)=0,"",VLOOKUP(C13,PartnerN°Ref,2,FALSE)),"") ->  | E13: =IFERROR(IF(OR(VLOOKUP(C13,PartnerN°Ref,4,FALSE)="Land nicht gefunden",VLOOKUP(C13,PartnerN°Ref,3,FALSE)=0),"",VLOOKUP(C13,PartnerN°Ref,3,FALSE)),"") ->  | G13: 0 | H13: =IF(I13="Fehler",0,ROUND(G13,2)) -> 0 | I13: =IF(OR(COUNTIF(WorkPackage,B13)=0,COUNTIF(PartnerN°,C13)=0,D13="",COUNTIF(CountryALL,E13)=0,F13="",ISNUMBER(G13)=FALSE,IF(ISNUMBER(G13)=TRUE,G13=INT(G13*100)/100=FALSE)),"Fehler","") -> Fehler
D14: =IFERROR(IF(VLOOKUP(C14,PartnerN°Ref,2,FALSE)=0,"",VLOOKUP(C14,PartnerN°Ref,2,FALSE)),"") ->  | E14: =IFERROR(IF(OR(VLOOKUP(C14,PartnerN°Ref,4,FALSE)="Land nicht gefunden",VLOOKUP(C14,PartnerN°Ref,3,FALSE)=0),"",VLOOKUP(C14,PartnerN°Ref,3,FALSE)),"") ->  | G14: 0 | H14: =IF(I14="Fehler",0,ROUND(G14,2)) -> 0 | I14: =IF(OR(COUNTIF(WorkPackage,B14)=0,COUNTIF(PartnerN°,C14)=0,D14="",COUNTIF(CountryALL,E14)=0,F14="",ISNUMBER(G14)=FALSE,IF(ISNUMBER(G14)=TRUE,G14=INT(G14*100)/100=FALSE)),"Fehler","") -> Fehler

Sheet B. Spezieller Mob. - Student
B2: B. Spezieller Mobilitätsbereich - Student
B4: Reisekosten | C4: =SUM(L:L) -> 0
B6: Unterhaltskosten | C6: =SUM(M:M) -> 0
B8: Gesamtbetrag (EUR) | C8: =C4+C6 -> 0
B11: Partner Nr. | C11: Name des Partners (ins Übersichtsblatt eingeben) | D11: Land (ins Übersichtsblatt eingeben) | E11: Kategorie | F11: Stadt der Abreise | G11: Anzahl der Teilnehmer | H11: Empfängerland | I11: Stadt der Ankunft | J11: Reiseentfernung | K11: Anzahl von Monaten (je Teilnehmer) | L11: Reisekosten (EUR) | M11: Unterhaltskosten (EUR) | N11: Gesamtbetrag (EUR) | O11: Codierungsfehler
C13: =IFERROR(IF(VLOOKUP(B13,PartnerN°Ref,2,FALSE)=0,"",VLOOKUP(B13,PartnerN°Ref,2,FALSE)),"") ->  | D13: =IFERROR(IF(OR(VLOOKUP(B13,PartnerN°Ref,4,FALSE)="Land nicht gefunden",VLOOKUP(B13,PartnerN°Ref,3,FALSE)=0),"",VLOOKUP(B13,PartnerN°Ref,3,FALSE)),"") ->  | E13: =IF(D13="","",CONCATENATE("Student von"," ",VLOOKUP(D13,CountryType,2,FALSE))) ->  | G13: 0 | L13: =IF(O13="Fehler",0,ROUND(ROUND(G13,0)*(VLOOKUP(J13,TravelCosts,2,FALSE)),2)) -> 0 | M13: =IF(O13="Fehler",0,ROUND(ROUND(G13,0)*(ROUND(K13,0)*(INDEX(Rates,MATCH(H13,CountryALL,0),MATCH(E13,Category,0)))),2)) -> 0 | N13: =L13+M13 -> 0 | O13: =IF(OR(COUNTIF(PartnerN°,B13)=0,C13="",COUNTIF(SMSCountry,D13)=0,COUNTIF(Category,E13)=0,F13="",ISNUMBER(G13)=FALSE,COUNTIF(SMSCountry,H13)=0,I13="",COUNTIF(TravelBands,J13)=0,ISNUMBER(K13)=FALSE,COUNTIF(StudentSMSMonths,K13)=0,P13=1,Q13=1,R13=1,IF(ISNUMBER(G13)=TRUE,G13=INT(G13*1)/1=FALSE),IF(ISNUMBER(K13)=TRUE,K13=INT(K13*1)/1=FALSE)),"Fehler","") -> Fehler | P13: =IF(AND(COUNTIF(EUCountry,D13)=1,COUNTIF(EUCountry,H13)=1),1,0) -> 0 | Q13: =IF(AND(D13<>"",COUNTIF(SMSCountry,D13)=0),1,0) -> 0 | R13: =IF(AND(H13<>"",COUNTIF(SMSCountry,H13)=0),1,0) -> 0
C14: =IFERROR(IF(VLOOKUP(B14,PartnerN°Ref,2,FALSE)=0,"",VLOOKUP(B14,PartnerN°Ref,2,FALSE)),"") ->  | D14: =IFERROR(IF(OR(VLOOKUP(B14,PartnerN°Ref,4,FALSE)="Land nicht gefunden",VLOOKUP(B14,PartnerN°Ref,3,FALSE)=0),"",VLOOKUP(B14,PartnerN°Ref,3,FALSE)),"") ->  | E14: =IF(D14="","",CONCATENATE("Student von"," ",VLOOKUP(D14,CountryType,2,FALSE))) ->  | G14: 0 | L14: =IF(O14="Fehler",0,ROUND(ROUND(G14,0)*(VLOOKUP(J14,TravelCosts,2,FALSE)),2)) -> 0 | M14: =IF(O14="Fehler",0,ROUND(ROUND(G14,0)*(ROUND(K14,0)*(INDEX(Rates,MATCH(H14,CountryALL,0),MATCH(E14,Category,0)))),2)) -> 0 | N14: =L14+M14 -> 0 | O14: =IF(OR(COUNTIF(PartnerN°,B14)=0,C14="",COUNTIF(SMSCountry,D14)=0,COUNTIF(Category,E14)=0,F14="",ISNUMBER(G14)=FALSE,COUNTIF(SMSCountry,H14)=0,I14="",COUNTIF(TravelBands,J14)=0,ISNUMBER(K14)=FALSE,COUNTIF(StudentSMSMonths,K14)=0,P14=1,Q14=1,R14=1,IF(ISNUMBER(G14)=TRUE,G14=INT(G14*1)/1=FALSE),IF(ISNUMBER(K14)=TRUE,K14=INT(K14*1)/1=FALSE)),"Fehler","") -> Fehler | P14: =IF(AND(COUNTIF(EUCountry,D14)=1,COUNTIF(EUCountry,H14)=1),1,0) -> 0 | Q14: =IF(AND(D14<>"",COUNTIF(SMSCountry,D14)=0),1,0) -> 0 | R14: =IF(AND(H14<>"",COUNTIF(SMSCountry,H14)=0),1,0) -> 0

Sheet B. Spezieller Mob. - Personal
B2: B. Spezieller Mobilitätsbereich - Personal
B4: Reisekosten | C4: =SUM(L:L) -> 0
B6: Unterhaltskosten | C6: =SUM(M:M) -> 0
B8: Gesamtbetrag (EUR) | C8: =C4+C6 -> 0
B11: Partner Nr. | C11: Name des Partners (ins Übersichtsblatt eingeben) | D11: Land (ins Übersichtsblatt eingeben) | E11: Kategorie | F11: Stadt der Abreise | G11: Anzahl der Teilnehmer | H11: Empfängerland | I11: Stadt der Ankunft | J11: Reiseentfernung | K11: Anzahl von Tagen (je Teilnehmer) | L11: Reisekosten (EUR) | M11: Unterhaltskosten (EUR) | N11: Gesamtbetrag (EUR) | O11: Codierungsfehler
C13: =IFERROR(IF(VLOOKUP(B13,PartnerN°Ref,2,FALSE)=0,"",VLOOKUP(B13,PartnerN°Ref,2,FALSE)),"") ->  | D13: =IFERROR(IF(OR(VLOOKUP(B13,PartnerN°Ref,4,FALSE)="Land nicht gefunden",VLOOKUP(B13,PartnerN°Ref,3,FALSE)=0),"",VLOOKUP(B13,PartnerN°Ref,3,FALSE)),"") ->  | E13: =IF(D13="","",CONCATENATE("Personal von"," ",VLOOKUP(D13,CountryType,2,FALSE))) ->  | G13: 0 | L13: =IF(O13="Fehler",0,ROUND(ROUND(G13,0)*(VLOOKUP(J13,TravelCosts,2,FALSE)),2)) -> 0 | M13: =IF(O13="Fehler",0,ROUND(IF(AND(ROUND(K13,0)>0,ROUND(K13,0)<=14),ROUND(G13,0)*(ROUND(K13,0)*(INDEX(Rates,MATCH(H13,CountryALL,0),MATCH(E13,Category,0)))),IF(AND(ROUND(K13,0)>14,ROUND(K13,0)<=60),ROUND(G13,0)*((14*(INDEX(Rates,MATCH(H13,CountryALL,0),MATCH(E13,Category,0)))))+ROUND(G13,0)*(((ROUND(K13,0)-14)*(0.7*INDEX(Rates,MATCH(H13,CountryALL,0),MATCH(E13,Category,0))))),IF(ROUND(K13,0)>60,0))),2)) -> 0 | N13: =L13+M13 -> 0 | O13: =IF(OR(COUNTIF(PartnerN°,B13)=0,C13="",COUNTIF(SMSCountry,D13)=0,COUNTIF(Category,E13)=0,F13="",ISNUMBER(G13)=FALSE,COUNTIF(SMSCountry,H13)=0,I13="",COUNTIF(TravelBands,J13)=0,ISNUMBER(K13)=FALSE,COUNTIF(StaffSMSDays,K13)=0,P13=1,Q13=1,R13=1,IF(ISNUMBER(G13)=TRUE,G13=INT(G13*1)/1=FALSE),IF(ISNUMBER(K13)=TRUE,K13=INT(K13*1)/1=FALSE)),"Fehler","") -> Fehler | P13: =IF(AND(COUNTIF(EUCountry,D13)=1,COUNTIF(EUCountry,H13)=1),1,0) -> 0 | Q13: =IF(AND(D13<>"",COUNTIF(SMSCountry,D13)=0),1,0) -> 0 | R13: =IF(AND(H13<>"",COUNTIF(SMSCountry,H13)=0),1,0) -> 0
C14: =IFERROR(IF(VLOOKUP(B14,PartnerN°Ref,2,FALSE)=0,"",VLOOKUP(B14,PartnerN°Ref,2,FALSE)),"") ->  | D14: =IFERROR(IF(OR(VLOOKUP(B14,PartnerN°Ref,4,FALSE)="Land nicht gefunden",VLOOKUP(B14,PartnerN°Ref,3,FALSE)=0),"",VLOOKUP(B14,PartnerN°Ref,3,FALSE)),"") ->  | E14: =IF(D14="","",CONCATENATE("Personal von"," ",VLOOKUP(D14,CountryType,2,FALSE))) ->  | G14: 0 | L14: =IF(O14="Fehler",0,ROUND(ROUND(G14,0)*(VLOOKUP(J14,TravelCosts,2,FALSE)),2)) -> 0 | M14: =IF(O14="Fehler",0,ROUND(IF(AND(ROUND(K14,0)>0,ROUND(K14,0)<=14),ROUND(G14,0)*(ROUND(K14,0)*(INDEX(Rates,MATCH(H14,CountryALL,0),MATCH(E14,Category,0)))),IF(AND(ROUND(K14,0)>14,ROUND(K14,0)<=60),ROUND(G14,0)*((14*(INDEX(Rates,MATCH(H14,CountryALL,0),MATCH(E14,Category,0)))))+ROUND(G14,0)*(((ROUND(K14,0)-14)*(0.7*INDEX(Rates,MATCH(H14,CountryALL,0),MATCH(E14,Category,0))))),IF(ROUND(K14,0)>60,0))),2)) -> 0 | N14: 0 | O14: =IF(OR(COUNTIF(PartnerN°,B14)=0,C14="",COUNTIF(SMSCountry,D14)=0,COUNTIF(Category,E14)=0,F14="",ISNUMBER(G14)=FALSE,COUNTIF(SMSCountry,H14)=0,I14="",COUNTIF(TravelBands,J14)=0,ISNUMBER(K14)=FALSE,COUNTIF(StaffSMSDays,K14)=0,P14=1,Q14=1,R14=1,IF(ISNUMBER(G14)=TRUE,G14=INT(G14*1)/1=FALSE),IF(ISNUMBER(K14)=TRUE,K14=INT(K14*1)/1=FALSE)),"Fehler","") -> Fehler | P14: =IF(AND(COUNTIF(EUCountry,D14)=1,COUNTIF(EUCountry,H14)=1),1,0) -> 0 | Q14: =IF(AND(D14<>"",COUNTIF(SMSCountry,D14)=0),1,0) -> 0 | R14: =IF(AND(H14<>"",COUNTIF(SMSCountry,H14)=0),1,0) -> 0

Sheet Kofinanzierung
B2: Information zur Kofinanzierung
B4: GESAMTBETRAG (EUR) | C4: =SUM(I:I) -> 0
B11: Partner Nr. | C11: Name des Partners (ins Übersichtsblatt eingeben) | D11: Land (ins Übersichtsblatt eingeben) | E11: Rechungsposten* | F11: Quelle der Kofinanzierung** | G11: Rechtfertigung / Erklärung*** | H11: Betrag ohne MwSt (EUR) | I11: Gesamtbetrag (EUR) | J11: Codierungsfehler
C13: =IFERROR(IF(VLOOKUP(B13,PartnerN°Ref,2,FALSE)=0,"",VLOOKUP(B13,PartnerN°Ref,2,FALSE)),"") ->  | D13: =IFERROR(IF(OR(VLOOKUP(B13,PartnerN°Ref,4,FALSE)="Land nicht gefunden",VLOOKUP(B13,PartnerN°Ref,3,FALSE)=0),"",VLOOKUP(B13,PartnerN°Ref,3,FALSE)),"") ->  | H13: 0 | I13: =IF(J13="Fehler",0,ROUND(H13,2)) -> 0 | J13: =IF(OR(COUNTIF(PartnerN°,B13)=0,C13="",COUNTIF(CountryALL,D13)=0,E13="",F13="",G13="",ISNUMBER(H13)=FALSE,IF(ISNUMBER(H13)=TRUE,H13=INT(H13*100)/100=FALSE)),"Fehler","") -> Fehler
C14: =IFERROR(IF(VLOOKUP(B14,PartnerN°Ref,2,FALSE)=0,"",VLOOKUP(B14,PartnerN°Ref,2,FALSE)),"") ->  | D14: =IFERROR(IF(OR(VLOOKUP(B14,PartnerN°Ref,4,FALSE)="Land nicht gefunden",VLOOKUP(B14,PartnerN°Ref,3,FALSE)=0),"",VLOOKUP(B14,PartnerN°Ref,3,FALSE)),"") ->  | H14: 0 | I14: =IF(J14="Fehler",0,ROUND(H14,2)) -> 0 | J14: =IF(OR(COUNTIF(PartnerN°,B14)=0,C14="",COUNTIF(CountryALL,D14)=0,E14="",F14="",G14="",ISNUMBER(H14)=FALSE,IF(ISNUMBER(H14)=TRUE,H14=INT(H14*100)/100=FALSE)),"Fehler","") -> Fehler
B16: * z.B.: Ausrüstung, Personalkosten, Reise- und/oder Unterkunftskosten, Druckerei- und Verlagskosten
B17: ** z.B.: Staatliche Finanzhilfe, Eigenmittel der Organisation/Einrichtung
B18: *** z.B.: Erstellung von Lehrmaterial – 2 Tage x 7,5 Stunden x 3 Pers. x € 25

Sheet Aufschlüsselung des Budgets
B2: Aufschlüsselung des Budgets nach Arbeitspaketen/Haushaltslinien
B4: Arbeitspaket | C4: 1. Personalkosten | D4: 2. Reisekosten | E4: 3. Unterkunftskosten | F4: 4. Ausrüstungskosten | G4: 5. Kosten für Unteraufträge | H4: B. Spezieller Mobilitätsbereich | I4: Gesamtbetrag (EUR)
B5: =Rates!P14 -> Vorbereitung | C5: =SUMIF('1. Personalkosten'!B:B,B5,'1. Personalkosten'!S:S) -> 0 | D5: =SUMIF('2-3. Reise&Unterkunftskosten'!B:B,B5,'2-3. Reise&Unterkunftskosten'!L:L) -> 0 | E5: =SUMIF('2-3. Reise&Unterkunftskosten'!B:B,B5,'2-3. Reise&Unterkunftskosten'!M:M) -> 0 | F5: =SUMIF('4. Ausrüstungskosten'!B:B,B5,'4. Ausrüstungskosten'!H:H) -> 0 | G5: =SUMIF('5. Kosten für Unteraufträge'!B:B,B5,'5. Kosten für Unteraufträge'!H:H) -> 0 | I5: =SUM(C5:G5) -> 0
B6: =Rates!P15 -> Entwicklung | C6: =SUMIF('1. Personalkosten'!B:B,B6,'1. Personalkosten'!S:S) -> 0 | D6: =SUMIF('2-3. Reise&Unterkunftskosten'!B:B,B6,'2-3. Reise&Unterkunftskosten'!L:L) -> 0 | E6: =SUMIF('2-3. Reise&Unterkunftskosten'!B:B,B6,'2-3. Reise&Unterkunftskosten'!M:M) -> 0 | F6: =SUMIF('4. Ausrüstungskosten'!B:B,B6,'4. Ausrüstungskosten'!H:H) -> 0 | G6: =SUMIF('5. Kosten für Unteraufträge'!B:B,B6,'5. Kosten für Unteraufträge'!H:H) -> 0 | I6: =SUM(C6:G6) -> 0
B7: =Rates!P16 -> Qualitätssicherungsplan | C7: =SUMIF('1. Personalkosten'!B:B,B7,'1. Personalkosten'!S:S) -> 0 | D7: =SUMIF('2-3. Reise&Unterkunftskosten'!B:B,B7,'2-3. Reise&Unterkunftskosten'!L:L) -> 0 | E7: =SUMIF('2-3. Reise&Unterkunftskosten'!B:B,B7,'2-3. Reise&Unterkunftskosten'!M:M) -> 0 | F7: =SUMIF('4. Ausrüstungskosten'!B:B,B7,'4. Ausrüstungskosten'!H:H) -> 0 | G7: =SUMIF('5. Kosten für Unteraufträge'!B:B,B7,'5. Kosten für Unteraufträge'!H:H) -> 0 | I7: 0
B8: =Rates!P17 -> Verbeitung und Nutzung der Ergebnisse | C8: =SUMIF('1. Personalkosten'!B:B,B8,'1. Personalkosten'!S:S) -> 0 | D8: =SUMIF('2-3. Reise&Unterkunftskosten'!B:B,B8,'2-3. Reise&Unterkunftskosten'!L:L) -> 0 | E8: =SUMIF('2-3. Reise&Unterkunftskosten'!B:B,B8,'2-3. Reise&Unterkunftskosten'!M:M) -> 0 | F8: =SUMIF('4. Ausrüstungskosten'!B:B,B8,'4. Ausrüstungskosten'!H:H) -> 0 | G8: =SUMIF('5. Kosten für Unteraufträge'!B:B,B8,'5. Kosten für Unteraufträge'!H:H) -> 0 | I8: 0
B9: =Rates!P18 -> Verwaltung | C9: =SUMIF('1. Personalkosten'!B:B,B9,'1. Personalkosten'!S:S) -> 0 | D9: =SUMIF('2-3. Reise&Unterkunftskosten'!B:B,B9,'2-3. Reise&Unterkunftskosten'!L:L) -> 0 | E9: =SUMIF('2-3. Reise&Unterkunftskosten'!B:B,B9,'2-3. Reise&Unterkunftskosten'!M:M) -> 0 | F9: =SUMIF('4. Ausrüstungskosten'!B:B,B9,'4. Ausrüstungskosten'!H:H) -> 0 | G9: =SUMIF('5. Kosten für Unteraufträge'!B:B,B9,'5. Kosten für Unteraufträge'!H:H) -> 0 | I9: 0
B10: Gesamtbetrag | C10: =SUM(C5:C9) -> 0 | D10: 0 | E10: 0 | F10: 0 | G10: =SUM(G5:G9) -> 0 | H10: ='B. Spezieller Mob. - Student'!C8+'B. Spezieller Mob. - Personal'!C8 -> 0 | I10: =SUM(C10:H10) -> 0
B14: Aufschlüsselung des Budgets nach Programm oder Partnerländern/Haushaltslinien
B16: Landen | C16: 1. Personalkosten | D16: 2. Reisekosten | E16: 3. Unterkunftskosten | F16: 4. Ausrüstungskosten | G16: 5. Kosten für Unteraufträge | H16: B. Spezieller Mobilitätsbereich | I16: Gesamtbetrag (EUR)
B17: Programmländer | C17: =SUMIF(Übersicht!$E$33:$E$87,B17,Übersicht!$F$33:$F$87) -> 0 | D17: =SUMIF(Übersicht!$E$33:$E$87,B17,Übersicht!$G$33:$G$87) -> 0 | E17: =SUMIF(Übersicht!$E$33:$E$87,B17,Übersicht!$H$33:$H$87) -> 0 | F17: =SUMIF(Übersicht!$E$33:$E$87,B17,Übersicht!$I$33:$I$87) -> 0 | G17: =SUMIF(Übersicht!$E$33:$E$87,B17,Übersicht!$J$33:$J$87) -> 0 | H17: =SUMIF(Übersicht!$E$33:$E$87,B17,Übersicht!$K$33:$K$87) -> 0 | I17: =SUM(C17:H17) -> 0
B18: Partnerländer | C18: =SUMIF(Übersicht!$E$33:$E$87,B18,Übersicht!$F$33:$F$87) -> 0 | D18: =SUMIF(Übersicht!$E$33:$E$87,B18,Übersicht!$G$33:$G$87) -> 0 | E18: =SUMIF(Übersicht!$E$33:$E$87,B18,Übersicht!$H$33:$H$87) -> 0 | F18: =SUMIF(Übersicht!$E$33:$E$87,B18,Übersicht!$I$33:$I$87) -> 0 | G18: =SUMIF(Übersicht!$E$33:$E$87,B18,Übersicht!$J$33:$J$87) -> 0 | H18: =SUMIF(Übersicht!$E$33:$E$87,B18,Übersicht!$K$33:$K$87) -> 0 | I18: =SUM(C18:H18) -> 0
B19: Gesamtbetrag | C19: =SUM(C17:C18) -> 0 | D19: 0 | E19: 0 | F19: 0 | G19: 0 | H19: 0 | I19: =SUM(C19:H19) -> 0
B23: Aufschlüsselung des Budgets nach Partnern/Arbeitspaketen
B25: Partner Nr. | C25: =Rates!P14 -> Vorbereitung | D25: =Rates!P15 -> Entwicklung | E25: =Rates!P16 -> Qualitätssicherungsplan | F25: =Rates!P17 -> Verbeitung und Nutzung der Ergebnisse | G25: =Rates!P18 -> Verwaltung | H25: B. Spezieller Mobilitätsbereich | I25: Gesamtbetrag (EUR)
B26: P1 | C26: =SUMIFS('1. Personalkosten'!S:S,'1. Personalkosten'!C:C,B26,'1. Personalkosten'!B:B,$C$25)+SUMIFS('2-3. Reise&Unterkunftskosten'!N:N,'2-3. Reise&Unterkunftskosten'!C:C,B26,'2-3. Reise&Unterkunftskosten'!B:B,$C$25)+SUMIFS('4. Ausrüstungskosten'!H:H,'4. Ausrüstungskosten'!C:C,B26,'4. Ausrüstungskosten'!B:B,$C$25)+SUMIFS('5. Kosten für Unteraufträge'!H:H,'5. Kosten für Unteraufträge'!C:C,B26,'5. Kosten für Unteraufträge'!B:B,$C$25) -> 0 | D26: =SUMIFS('1. Personalkosten'!S:S,'1. Personalkosten'!C:C,B26,'1. Personalkosten'!B:B,$D$25)+SUMIFS('2-3. Reise&Unterkunftskosten'!N:N,'2-3. Reise&Unterkunftskosten'!C:C,B26,'2-3. Reise&Unterkunftskosten'!B:B,$D$25)+SUMIFS('4. Ausrüstungskosten'!H:H,'4. Ausrüstungskosten'!C:C,B26,'4. Ausrüstungskosten'!B:B,$D$25)+SUMIFS('5. Kosten für Unteraufträge'!H:H,'5. Kosten für Unteraufträge'!C:C,B26,'5. Kosten für Unteraufträge'!B:B,$D$25) -> 0 | E26: =SUMIFS('1. Personalkosten'!S:S,'1. Personalkosten'!C:C,B26,'1. Personalkosten'!B:B,$E$25)+SUMIFS('2-3. Reise&Unterkunftskosten'!N:N,'2-3. Reise&Unterkunftskosten'!C:C,B26,'2-3. Reise&Unterkunftskosten'!B:B,$E$25)+SUMIFS('4. Ausrüstungskosten'!H:H,'4. Ausrüstungskosten'!C:C,B26,'4. Ausrüstungskosten'!B:B,$E$25)+SUMIFS('5. Kosten für Unteraufträge'!H:H,'5. Kosten für Unteraufträge'!C:C,B26,'5. Kosten für Unteraufträge'!B:B,$E$25) -> 0 | F26: =SUMIFS('1. Personalkosten'!S:S,'1. Personalkosten'!C:C,B26,'1. Personalkosten'!B:B,$B$8)+SUMIFS('2-3. Reise&Unterkunftskosten'!N:N,'2-3. Reise&Unterkunftskosten'!C:C,B26,'2-3. Reise&Unterkunftskosten'!B:B,$B$8)+SUMIFS('4. Ausrüstungskosten'!H:H,'4. Ausrüstungskosten'!C:C,B26,'4. Ausrüstungskosten'!B:B,$B$8)+SUMIFS('5. Kosten für Unteraufträge'!H:H,'5. Kosten für Unteraufträge'!C:C,B26,'5. Kosten für Unteraufträge'!B:B,$B$8) -> 0 | G26: =SUMIFS('1. Personalkosten'!S:S,'1. Personalkosten'!C:C,B26,'1. Personalkosten'!B:B,$G$25)+SUMIFS('2-3. Reise&Unterkunftskosten'!N:N,'2-3. Reise&Unterkunftskosten'!C:C,B26,'2-3. Reise&Unterkunftskosten'!B:B,$G$25)+SUMIFS('4. Ausrüstungskosten'!H:H,'4. Ausrüstungskosten'!C:C,B26,'4. Ausrüstungskosten'!B:B,$G$25)+SUMIFS('5. Kosten für Unteraufträge'!H:H,'5. Kosten für Unteraufträge'!C:C,B26,'5. Kosten für Unteraufträge'!B:B,$G$25) -> 0 | H26: =SUMIF('B. Spezieller Mob. - Student'!B:B,B26,'B. Spezieller Mob. - Student'!N:N)+SUMIF('B. Spezieller Mob. - Personal'!B:B,B26,'B. Spezieller Mob. - Personal'!N:N) -> 0 | I26: =SUM(C26:H26) -> 0
B27: P2 | C27: =SUMIFS('1. Personalkosten'!S:S,'1. Personalkosten'!C:C,B27,'1. Personalkosten'!B:B,$C$25)+SUMIFS('2-3. Reise&Unterkunftskosten'!N:N,'2-3. Reise&Unterkunftskosten'!C:C,B27,'2-3. Reise&Unterkunftskosten'!B:B,$C$25)+SUMIFS('4. Ausrüstungskosten'!H:H,'4. Ausrüstungskosten'!C:C,B27,'4. Ausrüstungskosten'!B:B,$C$25)+SUMIFS('5. Kosten für Unteraufträge'!H:H,'5. Kosten für Unteraufträge'!C:C,B27,'5. Kosten für Unteraufträge'!B:B,$C$25) -> 0 | D27: =SUMIFS('1. Personalkosten'!S:S,'1. Personalkosten'!C:C,B27,'1. Personalkosten'!B:B,$D$25)+SUMIFS('2-3. Reise&Unterkunftskosten'!N:N,'2-3. Reise&Unterkunftskosten'!C:C,B27,'2-3. Reise&Unterkunftskosten'!B:B,$D$25)+SUMIFS('4. Ausrüstungskosten'!H:H,'4. Ausrüstungskosten'!C:C,B27,'4. Ausrüstungskosten'!B:B,$D$25)+SUMIFS('5. Kosten für Unteraufträge'!H:H,'5. Kosten für Unteraufträge'!C:C,B27,'5. Kosten für Unteraufträge'!B:B,$D$25) -> 0 | E27: =SUMIFS('1. Personalkosten'!S:S,'1. Personalkosten'!C:C,B27,'1. Personalkosten'!B:B,$E$25)+SUMIFS('2-3. Reise&Unterkunftskosten'!N:N,'2-3. Reise&Unterkunftskosten'!C:C,B27,'2-3. Reise&Unterkunftskosten'!B:B,$E$25)+SUMIFS('4. Ausrüstungskosten'!H:H,'4. Ausrüstungskosten'!C:C,B27,'4. Ausrüstungskosten'!B:B,$E$25)+SUMIFS('5. Kosten für Unteraufträge'!H:H,'5. Kosten für Unteraufträge'!C:C,B27,'5. Kosten für Unteraufträge'!B:B,$E$25) -> 0 | F27: =SUMIFS('1. Personalkosten'!S:S,'1. Personalkosten'!C:C,B27,'1. Personalkosten'!B:B,$B$8)+SUMIFS('2-3. Reise&Unterkunftskosten'!N:N,'2-3. Reise&Unterkunftskosten'!C:C,B27,'2-3. Reise&Unterkunftskosten'!B:B,$B$8)+SUMIFS('4. Ausrüstungskosten'!H:H,'4. Ausrüstungskosten'!C:C,B27,'4. Ausrüstungskosten'!B:B,$B$8)+SUMIFS('5. Kosten für Unteraufträge'!H:H,'5. Kosten für Unteraufträge'!C:C,B27,'5. Kosten für Unteraufträge'!B:B,$B$8) -> 0 | G27: =SUMIFS('1. Personalkosten'!S:S,'1. Personalkosten'!C:C,B27,'1. Personalkosten'!B:B,$G$25)+SUMIFS('2-3. Reise&Unterkunftskosten'!N:N,'2-3. Reise&Unterkunftskosten'!C:C,B27,'2-3. Reise&Unterkunftskosten'!B:B,$G$25)+SUMIFS('4. Ausrüstungskosten'!H:H,'4. Ausrüstungskosten'!C:C,B27,'4. Ausrüstungskosten'!B:B,$G$25)+SUMIFS('5. Kosten für Unteraufträge'!H:H,'5. Kosten für Unteraufträge'!C:C,B27,'5. Kosten für Unteraufträge'!B:B,$G$25) -> 0 | H27: =SUMIF('B. Spezieller Mob. - Student'!B:B,B27,'B. Spezieller Mob. - Student'!N:N)+SUMIF('B. Spezieller Mob. - Personal'!B:B,B27,'B. Spezieller Mob. - Personal'!N:N) -> 0 | I27: =SUM(C27:H27) -> 0
B28: P3 | C28: =SUMIFS('1. Personalkosten'!S:S,'1. Personalkosten'!C:C,B28,'1. Personalkosten'!B:B,$C$25)+SUMIFS('2-3. Reise&Unterkunftskosten'!N:N,'2-3. Reise&Unterkunftskosten'!C:C,B28,'2-3. Reise&Unterkunftskosten'!B:B,$C$25)+SUMIFS('4. Ausrüstungskosten'!H:H,'4. Ausrüstungskosten'!C:C,B28,'4. Ausrüstungskosten'!B:B,$C$25)+SUMIFS('5. Kosten für Unteraufträge'!H:H,'5. Kosten für Unteraufträge'!C:C,B28,'5. Kosten für Unteraufträge'!B:B,$C$25) -> 0 | D28: =SUMIFS('1. Personalkosten'!S:S,'1. Personalkosten'!C:C,B28,'1. Personalkosten'!B:B,$D$25)+SUMIFS('2-3. Reise&Unterkunftskosten'!N:N,'2-3. Reise&Unterkunftskosten'!C:C,B28,'2-3. Reise&Unterkunftskosten'!B:B,$D$25)+SUMIFS('4. Ausrüstungskosten'!H:H,'4. Ausrüstungskosten'!C:C,B28,'4. Ausrüstungskosten'!B:B,$D$25)+SUMIFS('5. Kosten für Unteraufträge'!H:H,'5. Kosten für Unteraufträge'!C:C,B28,'5. Kosten für Unteraufträge'!B:B,$D$25) -> 0 | E28: =SUMIFS('1. Personalkosten'!S:S,'1. Personalkosten'!C:C,B28,'1. Personalkosten'!B:B,$E$25)+SUMIFS('2-3. Reise&Unterkunftskosten'!N:N,'2-3. Reise&Unterkunftskosten'!C:C,B28,'2-3. Reise&Unterkunftskosten'!B:B,$E$25)+SUMIFS('4. Ausrüstungskosten'!H:H,'4. Ausrüstungskosten'!C:C,B28,'4. Ausrüstungskosten'!B:B,$E$25)+SUMIFS('5. Kosten für Unteraufträge'!H:H,'5. Kosten für Unteraufträge'!C:C,B28,'5. Kosten für Unteraufträge'!B:B,$E$25) -> 0 | F28: =SUMIFS('1. Personalkosten'!S:S,'1. Personalkosten'!C:C,B28,'1. Personalkosten'!B:B,$B$8)+SUMIFS('2-3. Reise&Unterkunftskosten'!N:N,'2-3. Reise&Unterkunftskosten'!C:C,B28,'2-3. Reise&Unterkunftskosten'!B:B,$B$8)+SUMIFS('4. Ausrüstungskosten'!H:H,'4. Ausrüstungskosten'!C:C,B28,'4. Ausrüstungskosten'!B:B,$B$8)+SUMIFS('5. Kosten für Unteraufträge'!H:H,'5. Kosten für Unteraufträge'!C:C,B28,'5. Kosten für Unteraufträge'!B:B,$B$8) -> 0 | G28: =SUMIFS('1. Personalkosten'!S:S,'1. Personalkosten'!C:C,B28,'1. Personalkosten'!B:B,$G$25)+SUMIFS('2-3. Reise&Unterkunftskosten'!N:N,'2-3. Reise&Unterkunftskosten'!C:C,B28,'2-3. Reise&Unterkunftskosten'!B:B,$G$25)+SUMIFS('4. Ausrüstungskosten'!H:H,'4. Ausrüstungskosten'!C:C,B28,'4. Ausrüstungskosten'!B:B,$G$25)+SUMIFS('5. Kosten für Unteraufträge'!H:H,'5. Kosten für Unteraufträge'!C:C,B28,'5. Kosten für Unteraufträge'!B:B,$G$25) -> 0 | H28: =SUMIF('B. Spezieller Mob. - Student'!B:B,B28,'B. Spezieller Mob. - Student'!N:N)+SUMIF('B. Spezieller Mob. - Personal'!B:B,B28,'B. Spezieller Mob. - Personal'!N:N) -> 0 | I28: 0
B29: P4 | C29: =SUMIFS('1. Personalkosten'!S:S,'1. Personalkosten'!C:C,B29,'1. Personalkosten'!B:B,$C$25)+SUMIFS('2-3. Reise&Unterkunftskosten'!N:N,'2-3. Reise&Unterkunftskosten'!C:C,B29,'2-3. Reise&Unterkunftskosten'!B:B,$C$25)+SUMIFS('4. Ausrüstungskosten'!H:H,'4. Ausrüstungskosten'!C:C,B29,'4. Ausrüstungskosten'!B:B,$C$25)+SUMIFS('5. Kosten für Unteraufträge'!H:H,'5. Kosten für Unteraufträge'!C:C,B29,'5. Kosten für Unteraufträge'!B:B,$C$25) -> 0 | D29: =SUMIFS('1. Personalkosten'!S:S,'1. Personalkosten'!C:C,B29,'1. Personalkosten'!B:B,$D$25)+SUMIFS('2-3. Reise&Unterkunftskosten'!N:N,'2-3. Reise&Unterkunftskosten'!C:C,B29,'2-3. Reise&Unterkunftskosten'!B:B,$D$25)+SUMIFS('4. Ausrüstungskosten'!H:H,'4. Ausrüstungskosten'!C:C,B29,'4. Ausrüstungskosten'!B:B,$D$25)+SUMIFS('5. Kosten für Unteraufträge'!H:H,'5. Kosten für Unteraufträge'!C:C,B29,'5. Kosten für Unteraufträge'!B:B,$D$25) -> 0 | E29: =SUMIFS('1. Personalkosten'!S:S,'1. Personalkosten'!C:C,B29,'1. Personalkosten'!B:B,$E$25)+SUMIFS('2-3. Reise&Unterkunftskosten'!N:N,'2-3. Reise&Unterkunftskosten'!C:C,B29,'2-3. Reise&Unterkunftskosten'!B:B,$E$25)+SUMIFS('4. Ausrüstungskosten'!H:H,'4. Ausrüstungskosten'!C:C,B29,'4. Ausrüstungskosten'!B:B,$E$25)+SUMIFS('5. Kosten für Unteraufträge'!H:H,'5. Kosten für Unteraufträge'!C:C,B29,'5. Kosten für Unteraufträge'!B:B,$E$25) -> 0 | F29: =SUMIFS('1. Personalkosten'!S:S,'1. Personalkosten'!C:C,B29,'1. Personalkosten'!B:B,$B$8)+SUMIFS('2-3. Reise&Unterkunftskosten'!N:N,'2-3. Reise&Unterkunftskosten'!C:C,B29,'2-3. Reise&Unterkunftskosten'!B:B,$B$8)+SUMIFS('4. Ausrüstungskosten'!H:H,'4. Ausrüstungskosten'!C:C,B29,'4. Ausrüstungskosten'!B:B,$B$8)+SUMIFS('5. Kosten für Unteraufträge'!H:H,'5. Kosten für Unteraufträge'!C:C,B29,'5. Kosten für Unteraufträge'!B:B,$B$8) -> 0 | G29: =SUMIFS('1. Personalkosten'!S:S,'1. Personalkosten'!C:C,B29,'1. Personalkosten'!B:B,$G$25)+SUMIFS('2-3. Reise&Unterkunftskosten'!N:N,'2-3. Reise&Unterkunftskosten'!C:C,B29,'2-3. Reise&Unterkunftskosten'!B:B,$G$25)+SUMIFS('4. Ausrüstungskosten'!H:H,'4. Ausrüstungskosten'!C:C,B29,'4. Ausrüstungskosten'!B:B,$G$25)+SUMIFS('5. Kosten für Unteraufträge'!H:H,'5. Kosten für Unteraufträge'!C:C,B29,'5. Kosten für Unteraufträge'!B:B,$G$25) -> 0 | H29: =SUMIF('B. Spezieller Mob. - Student'!B:B,B29,'B. Spezieller Mob. - Student'!N:N)+SUMIF('B. Spezieller Mob. - Personal'!B:B,B29,'B. Spezieller Mob. - Personal'!N:N) -> 0 | I29: 0
B30: P5 | C30: =SUMIFS('1. Personalkosten'!S:S,'1. Personalkosten'!C:C,B30,'1. Personalkosten'!B:B,$C$25)+SUMIFS('2-3. Reise&Unterkunftskosten'!N:N,'2-3. Reise&Unterkunftskosten'!C:C,B30,'2-3. Reise&Unterkunftskosten'!B:B,$C$25)+SUMIFS('4. Ausrüstungskosten'!H:H,'4. Ausrüstungskosten'!C:C,B30,'4. Ausrüstungskosten'!B:B,$C$25)+SUMIFS('5. Kosten für Unteraufträge'!H:H,'5. Kosten für Unteraufträge'!C:C,B30,'5. Kosten für Unteraufträge'!B:B,$C$25) -> 0 | D30: =SUMIFS('1. Personalkosten'!S:S,'1. Personalkosten'!C:C,B30,'1. Personalkosten'!B:B,$D$25)+SUMIFS('2-3. Reise&Unterkunftskosten'!N:N,'2-3. Reise&Unterkunftskosten'!C:C,B30,'2-3. Reise&Unterkunftskosten'!B:B,$D$25)+SUMIFS('4. Ausrüstungskosten'!H:H,'4. Ausrüstungskosten'!C:C,B30,'4. Ausrüstungskosten'!B:B,$D$25)+SUMIFS('5. Kosten für Unteraufträge'!H:H,'5. Kosten für Unteraufträge'!C:C,B30,'5. Kosten für Unteraufträge'!B:B,$D$25) -> 0 | E30: =SUMIFS('1. Personalkosten'!S:S,'1. Personalkosten'!C:C,B30,'1. Personalkosten'!B:B,$E$25)+SUMIFS('2-3. Reise&Unterkunftskosten'!N:N,'2-3. Reise&Unterkunftskosten'!C:C,B30,'2-3. Reise&Unterkunftskosten'!B:B,$E$25)+SUMIFS('4. Ausrüstungskosten'!H:H,'4. Ausrüstungskosten'!C:C,B30,'4. Ausrüstungskosten'!B:B,$E$25)+SUMIFS('5. Kosten für Unteraufträge'!H:H,'5. Kosten für Unteraufträge'!C:C,B30,'5. Kosten für Unteraufträge'!B:B,$E$25) -> 0 | F30: =SUMIFS('1. Personalkosten'!S:S,'1. Personalkosten'!C:C,B30,'1. Personalkosten'!B:B,$B$8)+SUMIFS('2-3. Reise&Unterkunftskosten'!N:N,'2-3. Reise&Unterkunftskosten'!C:C,B30,'2-3. Reise&Unterkunftskosten'!B:B,$B$8)+SUMIFS('4. Ausrüstungskosten'!H:H,'4. Ausrüstungskosten'!C:C,B30,'4. Ausrüstungskosten'!B:B,$B$8)+SUMIFS('5. Kosten für Unteraufträge'!H:H,'5. Kosten für Unteraufträge'!C:C,B30,'5. Kosten für Unteraufträge'!B:B,$B$8) -> 0 | G30: =SUMIFS('1. Personalkosten'!S:S,'1. Personalkosten'!C:C,B30,'1. Personalkosten'!B:B,$G$25)+SUMIFS('2-3. Reise&Unterkunftskosten'!N:N,'2-3. Reise&Unterkunftskosten'!C:C,B30,'2-3. Reise&Unterkunftskosten'!B:B,$G$25)+SUMIFS('4. Ausrüstungskosten'!H:H,'4. Ausrüstungskosten'!C:C,B30,'4. Ausrüstungskosten'!B:B,$G$25)+SUMIFS('5. Kosten für Unteraufträge'!H:H,'5. Kosten für Unteraufträge'!C:C,B30,'5. Kosten für Unteraufträge'!B:B,$G$25) -> 0 | H30: =SUMIF('B. Spezieller Mob. - Student'!B:B,B30,'B. Spezieller Mob. - Student'!N:N)+SUMIF('B. Spezieller Mob. - Personal'!B:B,B30,'B. Spezieller Mob. - Personal'!N:N) -> 0 | I30: 0
B31: P6 | C31: =SUMIFS('1. Personalkosten'!S:S,'1. Personalkosten'!C:C,B31,'1. Personalkosten'!B:B,$C$25)+SUMIFS('2-3. Reise&Unterkunftskosten'!N:N,'2-3. Reise&Unterkunftskosten'!C:C,B31,'2-3. Reise&Unterkunftskosten'!B:B,$C$25)+SUMIFS('4. Ausrüstungskosten'!H:H,'4. Ausrüstungskosten'!C:C,B31,'4. Ausrüstungskosten'!B:B,$C$25)+SUMIFS('5. Kosten für Unteraufträge'!H:H,'5. Kosten für Unteraufträge'!C:C,B31,'5. Kosten für Unteraufträge'!B:B,$C$25) -> 0 | D31: =SUMIFS('1. Personalkosten'!S:S,'1. Personalkosten'!C:C,B31,'1. Personalkosten'!B:B,$D$25)+SUMIFS('2-3. Reise&Unterkunftskosten'!N:N,'2-3. Reise&Unterkunftskosten'!C:C,B31,'2-3. Reise&Unterkunftskosten'!B:B,$D$25)+SUMIFS('4. Ausrüstungskosten'!H:H,'4. Ausrüstungskosten'!C:C,B31,'4. Ausrüstungskosten'!B:B,$D$25)+SUMIFS('5. Kosten für Unteraufträge'!H:H,'5. Kosten für Unteraufträge'!C:C,B31,'5. Kosten für Unteraufträge'!B:B,$D$25) -> 0 | E31: =SUMIFS('1. Personalkosten'!S:S,'1. Personalkosten'!C:C,B31,'1. Personalkosten'!B:B,$E$25)+SUMIFS('2-3. Reise&Unterkunftskosten'!N:N,'2-3. Reise&Unterkunftskosten'!C:C,B31,'2-3. Reise&Unterkunftskosten'!B:B,$E$25)+SUMIFS('4. Ausrüstungskosten'!H:H,'4. Ausrüstungskosten'!C:C,B31,'4. Ausrüstungskosten'!B:B,$E$25)+SUMIFS('5. Kosten für Unteraufträge'!H:H,'5. Kosten für Unteraufträge'!C:C,B31,'5. Kosten für Unteraufträge'!B:B,$E$25) -> 0 | F31: =SUMIFS('1. Personalkosten'!S:S,'1. Personalkosten'!C:C,B31,'1. Personalkosten'!B:B,$B$8)+SUMIFS('2-3. Reise&Unterkunftskosten'!N:N,'2-3. Reise&Unterkunftskosten'!C:C,B31,'2-3. Reise&Unterkunftskosten'!B:B,$B$8)+SUMIFS('4. Ausrüstungskosten'!H:H,'4. Ausrüstungskosten'!C:C,B31,'4. Ausrüstungskosten'!B:B,$B$8)+SUMIFS('5. Kosten für Unteraufträge'!H:H,'5. Kosten für Unteraufträge'!C:C,B31,'5. Kosten für Unteraufträge'!B:B,$B$8) -> 0 | G31: =SUMIFS('1. Personalkosten'!S:S,'1. Personalkosten'!C:C,B31,'1. Personalkosten'!B:B,$G$25)+SUMIFS('2-3. Reise&Unterkunftskosten'!N:N,'2-3. Reise&Unterkunftskosten'!C:C,B31,'2-3. Reise&Unterkunftskosten'!B:B,$G$25)+SUMIFS('4. Ausrüstungskosten'!H:H,'4. Ausrüstungskosten'!C:C,B31,'4. Ausrüstungskosten'!B:B,$G$25)+SUMIFS('5. Kosten für Unteraufträge'!H:H,'5. Kosten für Unteraufträge'!C:C,B31,'5. Kosten für Unteraufträge'!B:B,$G$25) -> 0 | H31: =SUMIF('B. Spezieller Mob. - Student'!B:B,B31,'B. Spezieller Mob. - Student'!N:N)+SUMIF('B. Spezieller Mob. - Personal'!B:B,B31,'B. Spezieller Mob. - Personal'!N:N) -> 0 | I31: 0
B32: P7 | C32: =SUMIFS('1. Personalkosten'!S:S,'1. Personalkosten'!C:C,B32,'1. Personalkosten'!B:B,$C$25)+SUMIFS('2-3. Reise&Unterkunftskosten'!N:N,'2-3. Reise&Unterkunftskosten'!C:C,B32,'2-3. Reise&Unterkunftskosten'!B:B,$C$25)+SUMIFS('4. Ausrüstungskosten'!H:H,'4. Ausrüstungskosten'!C:C,B32,'4. Ausrüstungskosten'!B:B,$C$25)+SUMIFS('5. Kosten für Unteraufträge'!H:H,'5. Kosten für Unteraufträge'!C:C,B32,'5. Kosten für Unteraufträge'!B:B,$C$25) -> 0 | D32: =SUMIFS('1. Personalkosten'!S:S,'1. Personalkosten'!C:C,B32,'1. Personalkosten'!B:B,$D$25)+SUMIFS('2-3. Reise&Unterkunftskosten'!N:N,'2-3. Reise&Unterkunftskosten'!C:C,B32,'2-3. Reise&Unterkunftskosten'!B:B,$D$25)+SUMIFS('4. Ausrüstungskosten'!H:H,'4. Ausrüstungskosten'!C:C,B32,'4. Ausrüstungskosten'!B:B,$D$25)+SUMIFS('5. Kosten für Unteraufträge'!H:H,'5. Kosten für Unteraufträge'!C:C,B32,'5. Kosten für Unteraufträge'!B:B,$D$25) -> 0 | E32: =SUMIFS('1. Personalkosten'!S:S,'1. Personalkosten'!C:C,B32,'1. Personalkosten'!B:B,$E$25)+SUMIFS('2-3. Reise&Unterkunftskosten'!N:N,'2-3. Reise&Unterkunftskosten'!C:C,B32,'2-3. Reise&Unterkunftskosten'!B:B,$E$25)+SUMIFS('4. Ausrüstungskosten'!H:H,'4. Ausrüstungskosten'!C:C,B32,'4. Ausrüstungskosten'!B:B,$E$25)+SUMIFS('5. Kosten für Unteraufträge'!H:H,'5. Kosten für Unteraufträge'!C:C,B32,'5. Kosten für Unteraufträge'!B:B,$E$25) -> 0 | F32: =SUMIFS('1. Personalkosten'!S:S,'1. Personalkosten'!C:C,B32,'1. Personalkosten'!B:B,$B$8)+SUMIFS('2-3. Reise&Unterkunftskosten'!N:N,'2-3. Reise&Unterkunftskosten'!C:C,B32,'2-3. Reise&Unterkunftskosten'!B:B,$B$8)+SUMIFS('4. Ausrüstungskosten'!H:H,'4. Ausrüstungskosten'!C:C,B32,'4. Ausrüstungskosten'!B:B,$B$8)+SUMIFS('5. Kosten für Unteraufträge'!H:H,'5. Kosten für Unteraufträge'!C:C,B32,'5. Kosten für Unteraufträge'!B:B,$B$8) -> 0 | G32: =SUMIFS('1. Personalkosten'!S:S,'1. Personalkosten'!C:C,B32,'1. Personalkosten'!B:B,$G$25)+SUMIFS('2-3. Reise&Unterkunftskosten'!N:N,'2-3. Reise&Unterkunftskosten'!C:C,B32,'2-3. Reise&Unterkunftskosten'!B:B,$G$25)+SUMIFS('4. Ausrüstungskosten'!H:H,'4. Ausrüstungskosten'!C:C,B32,'4. Ausrüstungskosten'!B:B,$G$25)+SUMIFS('5. Kosten für Unteraufträge'!H:H,'5. Kosten für Unteraufträge'!C:C,B32,'5. Kosten für Unteraufträge'!B:B,$G$25) -> 0 | H32: =SUMIF('B. Spezieller Mob. - Student'!B:B,B32,'B. Spezieller Mob. - Student'!N:N)+SUMIF('B. Spezieller Mob. - Personal'!B:B,B32,'B. Spezieller Mob. - Personal'!N:N) -> 0 | I32: 0
B33: P8 | C33: =SUMIFS('1. Personalkosten'!S:S,'1. Personalkosten'!C:C,B33,'1. Personalkosten'!B:B,$C$25)+SUMIFS('2-3. Reise&Unterkunftskosten'!N:N,'2-3. Reise&Unterkunftskosten'!C:C,B33,'2-3. Reise&Unterkunftskosten'!B:B,$C$25)+SUMIFS('4. Ausrüstungskosten'!H:H,'4. Ausrüstungskosten'!C:C,B33,'4. Ausrüstungskosten'!B:B,$C$25)+SUMIFS('5. Kosten für Unteraufträge'!H:H,'5. Kosten für Unteraufträge'!C:C,B33,'5. Kosten für Unteraufträge'!B:B,$C$25) -> 0 | D33: =SUMIFS('1. Personalkosten'!S:S,'1. Personalkosten'!C:C,B33,'1. Personalkosten'!B:B,$D$25)+SUMIFS('2-3. Reise&Unterkunftskosten'!N:N,'2-3. Reise&Unterkunftskosten'!C:C,B33,'2-3. Reise&Unterkunftskosten'!B:B,$D$25)+SUMIFS('4. Ausrüstungskosten'!H:H,'4. Ausrüstungskosten'!C:C,B33,'4. Ausrüstungskosten'!B:B,$D$25)+SUMIFS('5. Kosten für Unteraufträge'!H:H,'5. Kosten für Unteraufträge'!C:C,B33,'5. Kosten für Unteraufträge'!B:B,$D$25) -> 0 | E33: =SUMIFS('1. Personalkosten'!S:S,'1. Personalkosten'!C:C,B33,'1. Personalkosten'!B:B,$E$25)+SUMIFS('2-3. Reise&Unterkunftskosten'!N:N,'2-3. Reise&Unterkunftskosten'!C:C,B33,'2-3. Reise&Unterkunftskosten'!B:B,$E$25)+SUMIFS('4. Ausrüstungskosten'!H:H,'4. Ausrüstungskosten'!C:C,B33,'4. Ausrüstungskosten'!B:B,$E$25)+SUMIFS('5. Kosten für Unteraufträge'!H:H,'5. Kosten für Unteraufträge'!C:C,B33,'5. Kosten für Unteraufträge'!B:B,$E$25) -> 0 | F33: =SUMIFS('1. Personalkosten'!S:S,'1. Personalkosten'!C:C,B33,'1. Personalkosten'!B:B,$B$8)+SUMIFS('2-3. Reise&Unterkunftskosten'!N:N,'2-3. Reise&Unterkunftskosten'!C:C,B33,'2-3. Reise&Unterkunftskosten'!B:B,$B$8)+SUMIFS('4. Ausrüstungskosten'!H:H,'4. Ausrüstungskosten'!C:C,B33,'4. Ausrüstungskosten'!B:B,$B$8)+SUMIFS('5. Kosten für Unteraufträge'!H:H,'5. Kosten für Unteraufträge'!C:C,B33,'5. Kosten für Unteraufträge'!B:B,$B$8) -> 0 | G33: =SUMIFS('1. Personalkosten'!S:S,'1. Personalkosten'!C:C,B33,'1. Personalkosten'!B:B,$G$25)+SUMIFS('2-3. Reise&Unterkunftskosten'!N:N,'2-3. Reise&Unterkunftskosten'!C:C,B33,'2-3. Reise&Unterkunftskosten'!B:B,$G$25)+SUMIFS('4. Ausrüstungskosten'!H:H,'4. Ausrüstungskosten'!C:C,B33,'4. Ausrüstungskosten'!B:B,$G$25)+SUMIFS('5. Kosten für Unteraufträge'!H:H,'5. Kosten für Unteraufträge'!C:C,B33,'5. Kosten für Unteraufträge'!B:B,$G$25) -> 0 | H33: =SUMIF('B. Spezieller Mob. - Student'!B:B,B33,'B. Spezieller Mob. - Student'!N:N)+SUMIF('B. Spezieller Mob. - Personal'!B:B,B33,'B. Spezieller Mob. - Personal'!N:N) -> 0 | I33: 0
B34: P9 | C34: =SUMIFS('1. Personalkosten'!S:S,'1. Personalkosten'!C:C,B34,'1. Personalkosten'!B:B,$C$25)+SUMIFS('2-3. Reise&Unterkunftskosten'!N:N,'2-3. Reise&Unterkunftskosten'!C:C,B34,'2-3. Reise&Unterkunftskosten'!B:B,$C$25)+SUMIFS('4. Ausrüstungskosten'!H:H,'4. Ausrüstungskosten'!C:C,B34,'4. Ausrüstungskosten'!B:B,$C$25)+SUMIFS('5. Kosten für Unteraufträge'!H:H,'5. Kosten für Unteraufträge'!C:C,B34,'5. Kosten für Unteraufträge'!B:B,$C$25) -> 0 | D34: =SUMIFS('1. Personalkosten'!S:S,'1. Personalkosten'!C:C,B34,'1. Personalkosten'!B:B,$D$25)+SUMIFS('2-3. Reise&Unterkunftskosten'!N:N,'2-3. Reise&Unterkunftskosten'!C:C,B34,'2-3. Reise&Unterkunftskosten'!B:B,$D$25)+SUMIFS('4. Ausrüstungskosten'!H:H,'4. Ausrüstungskosten'!C:C,B34,'4. Ausrüstungskosten'!B:B,$D$25)+SUMIFS('5. Kosten für Unteraufträge'!H:H,'5. Kosten für Unteraufträge'!C:C,B34,'5. Kosten für Unteraufträge'!B:B,$D$25) -> 0 | E34: =SUMIFS('1. Personalkosten'!S:S,'1. Personalkosten'!C:C,B34,'1. Personalkosten'!B:B,$E$25)+SUMIFS('2-3. Reise&Unterkunftskosten'!N:N,'2-3. Reise&Unterkunftskosten'!C:C,B34,'2-3. Reise&Unterkunftskosten'!B:B,$E$25)+SUMIFS('4. Ausrüstungskosten'!H:H,'4. Ausrüstungskosten'!C:C,B34,'4. Ausrüstungskosten'!B:B,$E$25)+SUMIFS('5. Kosten für Unteraufträge'!H:H,'5. Kosten für Unteraufträge'!C:C,B34,'5. Kosten für Unteraufträge'!B:B,$E$25) -> 0 | F34: =SUMIFS('1. Personalkosten'!S:S,'1. Personalkosten'!C:C,B34,'1. Personalkosten'!B:B,$B$8)+SUMIFS('2-3. Reise&Unterkunftskosten'!N:N,'2-3. Reise&Unterkunftskosten'!C:C,B34,'2-3. Reise&Unterkunftskosten'!B:B,$B$8)+SUMIFS('4. Ausrüstungskosten'!H:H,'4. Ausrüstungskosten'!C:C,B34,'4. Ausrüstungskosten'!B:B,$B$8)+SUMIFS('5. Kosten für Unteraufträge'!H:H,'5. Kosten für Unteraufträge'!C:C,B34,'5. Kosten für Unteraufträge'!B:B,$B$8) -> 0 | G34: =SUMIFS('1. Personalkosten'!S:S,'1. Personalkosten'!C:C,B34,'1. Personalkosten'!B:B,$G$25)+SUMIFS('2-3. Reise&Unterkunftskosten'!N:N,'2-3. Reise&Unterkunftskosten'!C:C,B34,'2-3. Reise&Unterkunftskosten'!B:B,$G$25)+SUMIFS('4. Ausrüstungskosten'!H:H,'4. Ausrüstungskosten'!C:C,B34,'4. Ausrüstungskosten'!B:B,$G$25)+SUMIFS('5. Kosten für Unteraufträge'!H:H,'5. Kosten für Unteraufträge'!C:C,B34,'5. Kosten für Unteraufträge'!B:B,$G$25) -> 0 | H34: =SUMIF('B. Spezieller Mob. - Student'!B:B,B34,'B. Spezieller Mob. - Student'!N:N)+SUMIF('B. Spezieller Mob. - Personal'!B:B,B34,'B. Spezieller Mob. - Personal'!N:N) -> 0 | I34: 0
B35: P10 | C35: =SUMIFS('1. Personalkosten'!S:S,'1. Personalkosten'!C:C,B35,'1. Personalkosten'!B:B,$C$25)+SUMIFS('2-3. Reise&Unterkunftskosten'!N:N,'2-3. Reise&Unterkunftskosten'!C:C,B35,'2-3. Reise&Unterkunftskosten'!B:B,$C$25)+SUMIFS('4. Ausrüstungskosten'!H:H,'4. Ausrüstungskosten'!C:C,B35,'4. Ausrüstungskosten'!B:B,$C$25)+SUMIFS('5. Kosten für Unteraufträge'!H:H,'5. Kosten für Unteraufträge'!C:C,B35,'5. Kosten für Unteraufträge'!B:B,$C$25) -> 0 | D35: =SUMIFS('1. Personalkosten'!S:S,'1. Personalkosten'!C:C,B35,'1. Personalkosten'!B:B,$D$25)+SUMIFS('2-3. Reise&Unterkunftskosten'!N:N,'2-3. Reise&Unterkunftskosten'!C:C,B35,'2-3. Reise&Unterkunftskosten'!B:B,$D$25)+SUMIFS('4. Ausrüstungskosten'!H:H,'4. Ausrüstungskosten'!C:C,B35,'4. Ausrüstungskosten'!B:B,$D$25)+SUMIFS('5. Kosten für Unteraufträge'!H:H,'5. Kosten für Unteraufträge'!C:C,B35,'5. Kosten für Unteraufträge'!B:B,$D$25) -> 0 | E35: =SUMIFS('1. Personalkosten'!S:S,'1. Personalkosten'!C:C,B35,'1. Personalkosten'!B:B,$E$25)+SUMIFS('2-3. Reise&Unterkunftskosten'!N:N,'2-3. Reise&Unterkunftskosten'!C:C,B35,'2-3. Reise&Unterkunftskosten'!B:B,$E$25)+SUMIFS('4. Ausrüstungskosten'!H:H,'4. Ausrüstungskosten'!C:C,B35,'4. Ausrüstungskosten'!B:B,$E$25)+SUMIFS('5. Kosten für Unteraufträge'!H:H,'5. Kosten für Unteraufträge'!C:C,B35,'5. Kosten für Unteraufträge'!B:B,$E$25) -> 0 | F35: =SUMIFS('1. Personalkosten'!S:S,'1. Personalkosten'!C:C,B35,'1. Personalkosten'!B:B,$B$8)+SUMIFS('2-3. Reise&Unterkunftskosten'!N:N,'2-3. Reise&Unterkunftskosten'!C:C,B35,'2-3. Reise&Unterkunftskosten'!B:B,$B$8)+SUMIFS('4. Ausrüstungskosten'!H:H,'4. Ausrüstungskosten'!C:C,B35,'4. Ausrüstungskosten'!B:B,$B$8)+SUMIFS('5. Kosten für Unteraufträge'!H:H,'5. Kosten für Unteraufträge'!C:C,B35,'5. Kosten für Unteraufträge'!B:B,$B$8) -> 0 | G35: =SUMIFS('1. Personalkosten'!S:S,'1. Personalkosten'!C:C,B35,'1. Personalkosten'!B:B,$G$25)+SUMIFS('2-3. Reise&Unterkunftskosten'!N:N,'2-3. Reise&Unterkunftskosten'!C:C,B35,'2-3. Reise&Unterkunftskosten'!B:B,$G$25)+SUMIFS('4. Ausrüstungskosten'!H:H,'4. Ausrüstungskosten'!C:C,B35,'4. Ausrüstungskosten'!B:B,$G$25)+SUMIFS('5. Kosten für Unteraufträge'!H:H,'5. Kosten für Unteraufträge'!C:C,B35,'5. Kosten für Unteraufträge'!B:B,$G$25) -> 0 | H35: =SUMIF('B. Spezieller Mob. - Student'!B:B,B35,'B. Spezieller Mob. - Student'!N:N)+SUMIF('B. Spezieller Mob. - Personal'!B:B,B35,'B. Spezieller Mob. - Personal'!N:N) -> 0 | I35: 0
B36: P11 | C36: =SUMIFS('1. Personalkosten'!S:S,'1. Personalkosten'!C:C,B36,'1. Personalkosten'!B:B,$C$25)+SUMIFS('2-3. Reise&Unterkunftskosten'!N:N,'2-3. Reise&Unterkunftskosten'!C:C,B36,'2-3. Reise&Unterkunftskosten'!B:B,$C$25)+SUMIFS('4. Ausrüstungskosten'!H:H,'4. Ausrüstungskosten'!C:C,B36,'4. Ausrüstungskosten'!B:B,$C$25)+SUMIFS('5. Kosten für Unteraufträge'!H:H,'5. Kosten für Unteraufträge'!C:C,B36,'5. Kosten für Unteraufträge'!B:B,$C$25) -> 0 | D36: =SUMIFS('1. Personalkosten'!S:S,'1. Personalkosten'!C:C,B36,'1. Personalkosten'!B:B,$D$25)+SUMIFS('2-3. Reise&Unterkunftskosten'!N:N,'2-3. Reise&Unterkunftskosten'!C:C,B36,'2-3. Reise&Unterkunftskosten'!B:B,$D$25)+SUMIFS('4. Ausrüstungskosten'!H:H,'4. Ausrüstungskosten'!C:C,B36,'4. Ausrüstungskosten'!B:B,$D$25)+SUMIFS('5. Kosten für Unteraufträge'!H:H,'5. Kosten für Unteraufträge'!C:C,B36,'5. Kosten für Unteraufträge'!B:B,$D$25) -> 0 | E36: =SUMIFS('1. Personalkosten'!S:S,'1. Personalkosten'!C:C,B36,'1. Personalkosten'!B:B,$E$25)+SUMIFS('2-3. Reise&Unterkunftskosten'!N:N,'2-3. Reise&Unterkunftskosten'!C:C,B36,'2-3. Reise&Unterkunftskosten'!B:B,$E$25)+SUMIFS('4. Ausrüstungskosten'!H:H,'4. Ausrüstungskosten'!C:C,B36,'4. Ausrüstungskosten'!B:B,$E$25)+SUMIFS('5. Kosten für Unteraufträge'!H:H,'5. Kosten für Unteraufträge'!C:C,B36,'5. Kosten für Unteraufträge'!B:B,$E$25) -> 0 | F36: =SUMIFS('1. Personalkosten'!S:S,'1. Personalkosten'!C:C,B36,'1. Personalkosten'!B:B,$B$8)+SUMIFS('2-3. Reise&Unterkunftskosten'!N:N,'2-3. Reise&Unterkunftskosten'!C:C,B36,'2-3. Reise&Unterkunftskosten'!B:B,$B$8)+SUMIFS('4. Ausrüstungskosten'!H:H,'4. Ausrüstungskosten'!C:C,B36,'4. Ausrüstungskosten'!B:B,$B$8)+SUMIFS('5. Kosten für Unteraufträge'!H:H,'5. Kosten für Unteraufträge'!C:C,B36,'5. Kosten für Unteraufträge'!B:B,$B$8) -> 0 | G36: =SUMIFS('1. Personalkosten'!S:S,'1. Personalkosten'!C:C,B36,'1. Personalkosten'!B:B,$G$25)+SUMIFS('2-3. Reise&Unterkunftskosten'!N:N,'2-3. Reise&Unterkunftskosten'!C:C,B36,'2-3. Reise&Unterkunftskosten'!B:B,$G$25)+SUMIFS('4. Ausrüstungskosten'!H:H,'4. Ausrüstungskosten'!C:C,B36,'4. Ausrüstungskosten'!B:B,$G$25)+SUMIFS('5. Kosten für Unteraufträge'!H:H,'5. Kosten für Unteraufträge'!C:C,B36,'5. Kosten für Unteraufträge'!B:B,$G$25) -> 0 | H36: =SUMIF('B. Spezieller Mob. - Student'!B:B,B36,'B. Spezieller Mob. - Student'!N:N)+SUMIF('B. Spezieller Mob. - Personal'!B:B,B36,'B. Spezieller Mob. - Personal'!N:N) -> 0 | I36: 0
B37: P12 | C37: =SUMIFS('1. Personalkosten'!S:S,'1. Personalkosten'!C:C,B37,'1. Personalkosten'!B:B,$C$25)+SUMIFS('2-3. Reise&Unterkunftskosten'!N:N,'2-3. Reise&Unterkunftskosten'!C:C,B37,'2-3. Reise&Unterkunftskosten'!B:B,$C$25)+SUMIFS('4. Ausrüstungskosten'!H:H,'4. Ausrüstungskosten'!C:C,B37,'4. Ausrüstungskosten'!B:B,$C$25)+SUMIFS('5. Kosten für Unteraufträge'!H:H,'5. Kosten für Unteraufträge'!C:C,B37,'5. Kosten für Unteraufträge'!B:B,$C$25) -> 0 | D37: =SUMIFS('1. Personalkosten'!S:S,'1. Personalkosten'!C:C,B37,'1. Personalkosten'!B:B,$D$25)+SUMIFS('2-3. Reise&Unterkunftskosten'!N:N,'2-3. Reise&Unterkunftskosten'!C:C,B37,'2-3. Reise&Unterkunftskosten'!B:B,$D$25)+SUMIFS('4. Ausrüstungskosten'!H:H,'4. Ausrüstungskosten'!C:C,B37,'4. Ausrüstungskosten'!B:B,$D$25)+SUMIFS('5. Kosten für Unteraufträge'!H:H,'5. Kosten für Unteraufträge'!C:C,B37,'5. Kosten für Unteraufträge'!B:B,$D$25) -> 0 | E37: =SUMIFS('1. Personalkosten'!S:S,'1. Personalkosten'!C:C,B37,'1. Personalkosten'!B:B,$E$25)+SUMIFS('2-3. Reise&Unterkunftskosten'!N:N,'2-3. Reise&Unterkunftskosten'!C:C,B37,'2-3. Reise&Unterkunftskosten'!B:B,$E$25)+SUMIFS('4. Ausrüstungskosten'!H:H,'4. Ausrüstungskosten'!C:C,B37,'4. Ausrüstungskosten'!B:B,$E$25)+SUMIFS('5. Kosten für Unteraufträge'!H:H,'5. Kosten für Unteraufträge'!C:C,B37,'5. Kosten für Unteraufträge'!B:B,$E$25) -> 0 | F37: =SUMIFS('1. Personalkosten'!S:S,'1. Personalkosten'!C:C,B37,'1. Personalkosten'!B:B,$B$8)+SUMIFS('2-3. Reise&Unterkunftskosten'!N:N,'2-3. Reise&Unterkunftskosten'!C:C,B37,'2-3. Reise&Unterkunftskosten'!B:B,$B$8)+SUMIFS('4. Ausrüstungskosten'!H:H,'4. Ausrüstungskosten'!C:C,B37,'4. Ausrüstungskosten'!B:B,$B$8)+SUMIFS('5. Kosten für Unteraufträge'!H:H,'5. Kosten für Unteraufträge'!C:C,B37,'5. Kosten für Unteraufträge'!B:B,$B$8) -> 0 | G37: =SUMIFS('1. Personalkosten'!S:S,'1. Personalkosten'!C:C,B37,'1. Personalkosten'!B:B,$G$25)+SUMIFS('2-3. Reise&Unterkunftskosten'!N:N,'2-3. Reise&Unterkunftskosten'!C:C,B37,'2-3. Reise&Unterkunftskosten'!B:B,$G$25)+SUMIFS('4. Ausrüstungskosten'!H:H,'4. Ausrüstungskosten'!C:C,B37,'4. Ausrüstungskosten'!B:B,$G$25)+SUMIFS('5. Kosten für Unteraufträge'!H:H,'5. Kosten für Unteraufträge'!C:C,B37,'5. Kosten für Unteraufträge'!B:B,$G$25) -> 0 | H37: =SUMIF('B. Spezieller Mob. - Student'!B:B,B37,'B. Spezieller Mob. - Student'!N:N)+SUMIF('B. Spezieller Mob. - Personal'!B:B,B37,'B. Spezieller Mob. - Personal'!N:N) -> 0 | I37: 0
B38: P13 | C38: =SUMIFS('1. Personalkosten'!S:S,'1. Personalkosten'!C:C,B38,'1. Personalkosten'!B:B,$C$25)+SUMIFS('2-3. Reise&Unterkunftskosten'!N:N,'2-3. Reise&Unterkunftskosten'!C:C,B38,'2-3. Reise&Unterkunftskosten'!B:B,$C$25)+SUMIFS('4. Ausrüstungskosten'!H:H,'4. Ausrüstungskosten'!C:C,B38,'4. Ausrüstungskosten'!B:B,$C$25)+SUMIFS('5. Kosten für Unteraufträge'!H:H,'5. Kosten für Unteraufträge'!C:C,B38,'5. Kosten für Unteraufträge'!B:B,$C$25) -> 0 | D38: =SUMIFS('1. Personalkosten'!S:S,'1. Personalkosten'!C:C,B38,'1. Personalkosten'!B:B,$D$25)+SUMIFS('2-3. Reise&Unterkunftskosten'!N:N,'2-3. Reise&Unterkunftskosten'!C:C,B38,'2-3. Reise&Unterkunftskosten'!B:B,$D$25)+SUMIFS('4. Ausrüstungskosten'!H:H,'4. Ausrüstungskosten'!C:C,B38,'4. Ausrüstungskosten'!B:B,$D$25)+SUMIFS('5. Kosten für Unteraufträge'!H:H,'5. Kosten für Unteraufträge'!C:C,B38,'5. Kosten für Unteraufträge'!B:B,$D$25) -> 0 | E38: =SUMIFS('1. Personalkosten'!S:S,'1. Personalkosten'!C:C,B38,'1. Personalkosten'!B:B,$E$25)+SUMIFS('2-3. Reise&Unterkunftskosten'!N:N,'2-3. Reise&Unterkunftskosten'!C:C,B38,'2-3. Reise&Unterkunftskosten'!B:B,$E$25)+SUMIFS('4. Ausrüstungskosten'!H:H,'4. Ausrüstungskosten'!C:C,B38,'4. Ausrüstungskosten'!B:B,$E$25)+SUMIFS('5. Kosten für Unteraufträge'!H:H,'5. Kosten für Unteraufträge'!C:C,B38,'5. Kosten für Unteraufträge'!B:B,$E$25) -> 0 | F38: =SUMIFS('1. Personalkosten'!S:S,'1. Personalkosten'!C:C,B38,'1. Personalkosten'!B:B,$B$8)+SUMIFS('2-3. Reise&Unterkunftskosten'!N:N,'2-3. Reise&Unterkunftskosten'!C:C,B38,'2-3. Reise&Unterkunftskosten'!B:B,$B$8)+SUMIFS('4. Ausrüstungskosten'!H:H,'4. Ausrüstungskosten'!C:C,B38,'4. Ausrüstungskosten'!B:B,$B$8)+SUMIFS('5. Kosten für Unteraufträge'!H:H,'5. Kosten für Unteraufträge'!C:C,B38,'5. Kosten für Unteraufträge'!B:B,$B$8) -> 0 | G38: =SUMIFS('1. Personalkosten'!S:S,'1. Personalkosten'!C:C,B38,'1. Personalkosten'!B:B,$G$25)+SUMIFS('2-3. Reise&Unterkunftskosten'!N:N,'2-3. Reise&Unterkunftskosten'!C:C,B38,'2-3. Reise&Unterkunftskosten'!B:B,$G$25)+SUMIFS('4. Ausrüstungskosten'!H:H,'4. Ausrüstungskosten'!C:C,B38,'4. Ausrüstungskosten'!B:B,$G$25)+SUMIFS('5. Kosten für Unteraufträge'!H:H,'5. Kosten für Unteraufträge'!C:C,B38,'5. Kosten für Unteraufträge'!B:B,$G$25) -> 0 | H38: =SUMIF('B. Spezieller Mob. - Student'!B:B,B38,'B. Spezieller Mob. - Student'!N:N)+SUMIF('B. Spezieller Mob. - Personal'!B:B,B38,'B. Spezieller Mob. - Personal'!N:N) -> 0 | I38: 0
B39: P14 | C39: =SUMIFS('1. Personalkosten'!S:S,'1. Personalkosten'!C:C,B39,'1. Personalkosten'!B:B,$C$25)+SUMIFS('2-3. Reise&Unterkunftskosten'!N:N,'2-3. Reise&Unterkunftskosten'!C:C,B39,'2-3. Reise&Unterkunftskosten'!B:B,$C$25)+SUMIFS('4. Ausrüstungskosten'!H:H,'4. Ausrüstungskosten'!C:C,B39,'4. Ausrüstungskosten'!B:B,$C$25)+SUMIFS('5. Kosten für Unteraufträge'!H:H,'5. Kosten für Unteraufträge'!C:C,B39,'5. Kosten für Unteraufträge'!B:B,$C$25) -> 0 | D39: =SUMIFS('1. Personalkosten'!S:S,'1. Personalkosten'!C:C,B39,'1. Personalkosten'!B:B,$D$25)+SUMIFS('2-3. Reise&Unterkunftskosten'!N:N,'2-3. Reise&Unterkunftskosten'!C:C,B39,'2-3. Reise&Unterkunftskosten'!B:B,$D$25)+SUMIFS('4. Ausrüstungskosten'!H:H,'4. Ausrüstungskosten'!C:C,B39,'4. Ausrüstungskosten'!B:B,$D$25)+SUMIFS('5. Kosten für Unteraufträge'!H:H,'5. Kosten für Unteraufträge'!C:C,B39,'5. Kosten für Unteraufträge'!B:B,$D$25) -> 0 | E39: =SUMIFS('1. Personalkosten'!S:S,'1. Personalkosten'!C:C,B39,'1. Personalkosten'!B:B,$E$25)+SUMIFS('2-3. Reise&Unterkunftskosten'!N:N,'2-3. Reise&Unterkunftskosten'!C:C,B39,'2-3. Reise&Unterkunftskosten'!B:B,$E$25)+SUMIFS('4. Ausrüstungskosten'!H:H,'4. Ausrüstungskosten'!C:C,B39,'4. Ausrüstungskosten'!B:B,$E$25)+SUMIFS('5. Kosten für Unteraufträge'!H:H,'5. Kosten für Unteraufträge'!C:C,B39,'5. Kosten für Unteraufträge'!B:B,$E$25) -> 0 | F39: =SUMIFS('1. Personalkosten'!S:S,'1. Personalkosten'!C:C,B39,'1. Personalkosten'!B:B,$B$8)+SUMIFS('2-3. Reise&Unterkunftskosten'!N:N,'2-3. Reise&Unterkunftskosten'!C:C,B39,'2-3. Reise&Unterkunftskosten'!B:B,$B$8)+SUMIFS('4. Ausrüstungskosten'!H:H,'4. Ausrüstungskosten'!C:C,B39,'4. Ausrüstungskosten'!B:B,$B$8)+SUMIFS('5. Kosten für Unteraufträge'!H:H,'5. Kosten für Unteraufträge'!C:C,B39,'5. Kosten für Unteraufträge'!B:B,$B$8) -> 0 | G39: =SUMIFS('1. Personalkosten'!S:S,'1. Personalkosten'!C:C,B39,'1. Personalkosten'!B:B,$G$25)+SUMIFS('2-3. Reise&Unterkunftskosten'!N:N,'2-3. Reise&Unterkunftskosten'!C:C,B39,'2-3. Reise&Unterkunftskosten'!B:B,$G$25)+SUMIFS('4. Ausrüstungskosten'!H:H,'4. Ausrüstungskosten'!C:C,B39,'4. Ausrüstungskosten'!B:B,$G$25)+SUMIFS('5. Kosten für Unteraufträge'!H:H,'5. Kosten für Unteraufträge'!C:C,B39,'5. Kosten für Unteraufträge'!B:B,$G$25) -> 0 | H39: =SUMIF('B. Spezieller Mob. - Student'!B:B,B39,'B. Spezieller Mob. - Student'!N:N)+SUMIF('B. Spezieller Mob. - Personal'!B:B,B39,'B. Spezieller Mob. - Personal'!N:N) -> 0 | I39: 0
B40: P15 | C40: =SUMIFS('1. Personalkosten'!S:S,'1. Personalkosten'!C:C,B40,'1. Personalkosten'!B:B,$C$25)+SUMIFS('2-3. Reise&Unterkunftskosten'!N:N,'2-3. Reise&Unterkunftskosten'!C:C,B40,'2-3. Reise&Unterkunftskosten'!B:B,$C$25)+SUMIFS('4. Ausrüstungskosten'!H:H,'4. Ausrüstungskosten'!C:C,B40,'4. Ausrüstungskosten'!B:B,$C$25)+SUMIFS('5. Kosten für Unteraufträge'!H:H,'5. Kosten für Unteraufträge'!C:C,B40,'5. Kosten für Unteraufträge'!B:B,$C$25) -> 0 | D40: =SUMIFS('1. Personalkosten'!S:S,'1. Personalkosten'!C:C,B40,'1. Personalkosten'!B:B,$D$25)+SUMIFS('2-3. Reise&Unterkunftskosten'!N:N,'2-3. Reise&Unterkunftskosten'!C:C,B40,'2-3. Reise&Unterkunftskosten'!B:B,$D$25)+SUMIFS('4. Ausrüstungskosten'!H:H,'4. Ausrüstungskosten'!C:C,B40,'4. Ausrüstungskosten'!B:B,$D$25)+SUMIFS('5. Kosten für Unteraufträge'!H:H,'5. Kosten für Unteraufträge'!C:C,B40,'5. Kosten für Unteraufträge'!B:B,$D$25) -> 0 | E40: =SUMIFS('1. Personalkosten'!S:S,'1. Personalkosten'!C:C,B40,'1. Personalkosten'!B:B,$E$25)+SUMIFS('2-3. Reise&Unterkunftskosten'!N:N,'2-3. Reise&Unterkunftskosten'!C:C,B40,'2-3. Reise&Unterkunftskosten'!B:B,$E$25)+SUMIFS('4. Ausrüstungskosten'!H:H,'4. Ausrüstungskosten'!C:C,B40,'4. Ausrüstungskosten'!B:B,$E$25)+SUMIFS('5. Kosten für Unteraufträge'!H:H,'5. Kosten für Unteraufträge'!C:C,B40,'5. Kosten für Unteraufträge'!B:B,$E$25) -> 0 | F40: =SUMIFS('1. Personalkosten'!S:S,'1. Personalkosten'!C:C,B40,'1. Personalkosten'!B:B,$B$8)+SUMIFS('2-3. Reise&Unterkunftskosten'!N:N,'2-3. Reise&Unterkunftskosten'!C:C,B40,'2-3. Reise&Unterkunftskosten'!B:B,$B$8)+SUMIFS('4. Ausrüstungskosten'!H:H,'4. Ausrüstungskosten'!C:C,B40,'4. Ausrüstungskosten'!B:B,$B$8)+SUMIFS('5. Kosten für Unteraufträge'!H:H,'5. Kosten für Unteraufträge'!C:C,B40,'5. Kosten für Unteraufträge'!B:B,$B$8) -> 0 | G40: =SUMIFS('1. Personalkosten'!S:S,'1. Personalkosten'!C:C,B40,'1. Personalkosten'!B:B,$G$25)+SUMIFS('2-3. Reise&Unterkunftskosten'!N:N,'2-3. Reise&Unterkunftskosten'!C:C,B40,'2-3. Reise&Unterkunftskosten'!B:B,$G$25)+SUMIFS('4. Ausrüstungskosten'!H:H,'4. Ausrüstungskosten'!C:C,B40,'4. Ausrüstungskosten'!B:B,$G$25)+SUMIFS('5. Kosten für Unteraufträge'!H:H,'5. Kosten für Unteraufträge'!C:C,B40,'5. Kosten für Unteraufträge'!B:B,$G$25) -> 0 | H40: =SUMIF('B. Spezieller Mob. - Student'!B:B,B40,'B. Spezieller Mob. - Student'!N:N)+SUMIF('B. Spezieller Mob. - Personal'!B:B,B40,'B. Spezieller Mob. - Personal'!N:N) -> 0 | I40: 0
B41: P16 | C41: =SUMIFS('1. Personalkosten'!S:S,'1. Personalkosten'!C:C,B41,'1. Personalkosten'!B:B,$C$25)+SUMIFS('2-3. Reise&Unterkunftskosten'!N:N,'2-3. Reise&Unterkunftskosten'!C:C,B41,'2-3. Reise&Unterkunftskosten'!B:B,$C$25)+SUMIFS('4. Ausrüstungskosten'!H:H,'4. Ausrüstungskosten'!C:C,B41,'4. Ausrüstungskosten'!B:B,$C$25)+SUMIFS('5. Kosten für Unteraufträge'!H:H,'5. Kosten für Unteraufträge'!C:C,B41,'5. Kosten für Unteraufträge'!B:B,$C$25) -> 0 | D41: =SUMIFS('1. Personalkosten'!S:S,'1. Personalkosten'!C:C,B41,'1. Personalkosten'!B:B,$D$25)+SUMIFS('2-3. Reise&Unterkunftskosten'!N:N,'2-3. Reise&Unterkunftskosten'!C:C,B41,'2-3. Reise&Unterkunftskosten'!B:B,$D$25)+SUMIFS('4. Ausrüstungskosten'!H:H,'4. Ausrüstungskosten'!C:C,B41,'4. Ausrüstungskosten'!B:B,$D$25)+SUMIFS('5. Kosten für Unteraufträge'!H:H,'5. Kosten für Unteraufträge'!C:C,B41,'5. Kosten für Unteraufträge'!B:B,$D$25) -> 0 | E41: =SUMIFS('1. Personalkosten'!S:S,'1. Personalkosten'!C:C,B41,'1. Personalkosten'!B:B,$E$25)+SUMIFS('2-3. Reise&Unterkunftskosten'!N:N,'2-3. Reise&Unterkunftskosten'!C:C,B41,'2-3. Reise&Unterkunftskosten'!B:B,$E$25)+SUMIFS('4. Ausrüstungskosten'!H:H,'4. Ausrüstungskosten'!C:C,B41,'4. Ausrüstungskosten'!B:B,$E$25)+SUMIFS('5. Kosten für Unteraufträge'!H:H,'5. Kosten für Unteraufträge'!C:C,B41,'5. Kosten für Unteraufträge'!B:B,$E$25) -> 0 | F41: =SUMIFS('1. Personalkosten'!S:S,'1. Personalkosten'!C:C,B41,'1. Personalkosten'!B:B,$B$8)+SUMIFS('2-3. Reise&Unterkunftskosten'!N:N,'2-3. Reise&Unterkunftskosten'!C:C,B41,'2-3. Reise&Unterkunftskosten'!B:B,$B$8)+SUMIFS('4. Ausrüstungskosten'!H:H,'4. Ausrüstungskosten'!C:C,B41,'4. Ausrüstungskosten'!B:B,$B$8)+SUMIFS('5. Kosten für Unteraufträge'!H:H,'5. Kosten für Unteraufträge'!C:C,B41,'5. Kosten für Unteraufträge'!B:B,$B$8) -> 0 | G41: =SUMIFS('1. Personalkosten'!S:S,'1. Personalkosten'!C:C,B41,'1. Personalkosten'!B:B,$G$25)+SUMIFS('2-3. Reise&Unterkunftskosten'!N:N,'2-3. Reise&Unterkunftskosten'!C:C,B41,'2-3. Reise&Unterkunftskosten'!B:B,$G$25)+SUMIFS('4. Ausrüstungskosten'!H:H,'4. Ausrüstungskosten'!C:C,B41,'4. Ausrüstungskosten'!B:B,$G$25)+SUMIFS('5. Kosten für Unteraufträge'!H:H,'5. Kosten für Unteraufträge'!C:C,B41,'5. Kosten für Unteraufträge'!B:B,$G$25) -> 0 | H41: =SUMIF('B. Spezieller Mob. - Student'!B:B,B41,'B. Spezieller Mob. - Student'!N:N)+SUMIF('B. Spezieller Mob. - Personal'!B:B,B41,'B. Spezieller Mob. - Personal'!N:N) -> 0 | I41: 0
B42: P17 | C42: =SUMIFS('1. Personalkosten'!S:S,'1. Personalkosten'!C:C,B42,'1. Personalkosten'!B:B,$C$25)+SUMIFS('2-3. Reise&Unterkunftskosten'!N:N,'2-3. Reise&Unterkunftskosten'!C:C,B42,'2-3. Reise&Unterkunftskosten'!B:B,$C$25)+SUMIFS('4. Ausrüstungskosten'!H:H,'4. Ausrüstungskosten'!C:C,B42,'4. Ausrüstungskosten'!B:B,$C$25)+SUMIFS('5. Kosten für Unteraufträge'!H:H,'5. Kosten für Unteraufträge'!C:C,B42,'5. Kosten für Unteraufträge'!B:B,$C$25) -> 0 | D42: =SUMIFS('1. Personalkosten'!S:S,'1. Personalkosten'!C:C,B42,'1. Personalkosten'!B:B,$D$25)+SUMIFS('2-3. Reise&Unterkunftskosten'!N:N,'2-3. Reise&Unterkunftskosten'!C:C,B42,'2-3. Reise&Unterkunftskosten'!B:B,$D$25)+SUMIFS('4. Ausrüstungskosten'!H:H,'4. Ausrüstungskosten'!C:C,B42,'4. Ausrüstungskosten'!B:B,$D$25)+SUMIFS('5. Kosten für Unteraufträge'!H:H,'5. Kosten für Unteraufträge'!C:C,B42,'5. Kosten für Unteraufträge'!B:B,$D$25) -> 0 | E42: =SUMIFS('1. Personalkosten'!S:S,'1. Personalkosten'!C:C,B42,'1. Personalkosten'!B:B,$E$25)+SUMIFS('2-3. Reise&Unterkunftskosten'!N:N,'2-3. Reise&Unterkunftskosten'!C:C,B42,'2-3. Reise&Unterkunftskosten'!B:B,$E$25)+SUMIFS('4. Ausrüstungskosten'!H:H,'4. Ausrüstungskosten'!C:C,B42,'4. Ausrüstungskosten'!B:B,$E$25)+SUMIFS('5. Kosten für Unteraufträge'!H:H,'5. Kosten für Unteraufträge'!C:C,B42,'5. Kosten für Unteraufträge'!B:B,$E$25) -> 0 | F42: =SUMIFS('1. Personalkosten'!S:S,'1. Personalkosten'!C:C,B42,'1. Personalkosten'!B:B,$B$8)+SUMIFS('2-3. Reise&Unterkunftskosten'!N:N,'2-3. Reise&Unterkunftskosten'!C:C,B42,'2-3. Reise&Unterkunftskosten'!B:B,$B$8)+SUMIFS('4. Ausrüstungskosten'!H:H,'4. Ausrüstungskosten'!C:C,B42,'4. Ausrüstungskosten'!B:B,$B$8)+SUMIFS('5. Kosten für Unteraufträge'!H:H,'5. Kosten für Unteraufträge'!C:C,B42,'5. Kosten für Unteraufträge'!B:B,$B$8) -> 0 | G42: =SUMIFS('1. Personalkosten'!S:S,'1. Personalkosten'!C:C,B42,'1. Personalkosten'!B:B,$G$25)+SUMIFS('2-3. Reise&Unterkunftskosten'!N:N,'2-3. Reise&Unterkunftskosten'!C:C,B42,'2-3. Reise&Unterkunftskosten'!B:B,$G$25)+SUMIFS('4. Ausrüstungskosten'!H:H,'4. Ausrüstungskosten'!C:C,B42,'4. Ausrüstungskosten'!B:B,$G$25)+SUMIFS('5. Kosten für Unteraufträge'!H:H,'5. Kosten für Unteraufträge'!C:C,B42,'5. Kosten für Unteraufträge'!B:B,$G$25) -> 0 | H42: =SUMIF('B. Spezieller Mob. - Student'!B:B,B42,'B. Spezieller Mob. - Student'!N:N)+SUMIF('B. Spezieller Mob. - Personal'!B:B,B42,'B. Spezieller Mob. - Personal'!N:N) -> 0 | I42: 0
B43: P18 | C43: =SUMIFS('1. Personalkosten'!S:S,'1. Personalkosten'!C:C,B43,'1. Personalkosten'!B:B,$C$25)+SUMIFS('2-3. Reise&Unterkunftskosten'!N:N,'2-3. Reise&Unterkunftskosten'!C:C,B43,'2-3. Reise&Unterkunftskosten'!B:B,$C$25)+SUMIFS('4. Ausrüstungskosten'!H:H,'4. Ausrüstungskosten'!C:C,B43,'4. Ausrüstungskosten'!B:B,$C$25)+SUMIFS('5. Kosten für Unteraufträge'!H:H,'5. Kosten für Unteraufträge'!C:C,B43,'5. Kosten für Unteraufträge'!B:B,$C$25) -> 0 | D43: =SUMIFS('1. Personalkosten'!S:S,'1. Personalkosten'!C:C,B43,'1. Personalkosten'!B:B,$D$25)+SUMIFS('2-3. Reise&Unterkunftskosten'!N:N,'2-3. Reise&Unterkunftskosten'!C:C,B43,'2-3. Reise&Unterkunftskosten'!B:B,$D$25)+SUMIFS('4. Ausrüstungskosten'!H:H,'4. Ausrüstungskosten'!C:C,B43,'4. Ausrüstungskosten'!B:B,$D$25)+SUMIFS('5. Kosten für Unteraufträge'!H:H,'5. Kosten für Unteraufträge'!C:C,B43,'5. Kosten für Unteraufträge'!B:B,$D$25) -> 0 | E43: =SUMIFS('1. Personalkosten'!S:S,'1. Personalkosten'!C:C,B43,'1. Personalkosten'!B:B,$E$25)+SUMIFS('2-3. Reise&Unterkunftskosten'!N:N,'2-3. Reise&Unterkunftskosten'!C:C,B43,'2-3. Reise&Unterkunftskosten'!B:B,$E$25)+SUMIFS('4. Ausrüstungskosten'!H:H,'4. Ausrüstungskosten'!C:C,B43,'4. Ausrüstungskosten'!B:B,$E$25)+SUMIFS('5. Kosten für Unteraufträge'!H:H,'5. Kosten für Unteraufträge'!C:C,B43,'5. Kosten für Unteraufträge'!B:B,$E$25) -> 0 | F43: =SUMIFS('1. Personalkosten'!S:S,'1. Personalkosten'!C:C,B43,'1. Personalkosten'!B:B,$B$8)+SUMIFS('2-3. Reise&Unterkunftskosten'!N:N,'2-3. Reise&Unterkunftskosten'!C:C,B43,'2-3. Reise&Unterkunftskosten'!B:B,$B$8)+SUMIFS('4. Ausrüstungskosten'!H:H,'4. Ausrüstungskosten'!C:C,B43,'4. Ausrüstungskosten'!B:B,$B$8)+SUMIFS('5. Kosten für Unteraufträge'!H:H,'5. Kosten für Unteraufträge'!C:C,B43,'5. Kosten für Unteraufträge'!B:B,$B$8) -> 0 | G43: =SUMIFS('1. Personalkosten'!S:S,'1. Personalkosten'!C:C,B43,'1. Personalkosten'!B:B,$G$25)+SUMIFS('2-3. Reise&Unterkunftskosten'!N:N,'2-3. Reise&Unterkunftskosten'!C:C,B43,'2-3. Reise&Unterkunftskosten'!B:B,$G$25)+SUMIFS('4. Ausrüstungskosten'!H:H,'4. Ausrüstungskosten'!C:C,B43,'4. Ausrüstungskosten'!B:B,$G$25)+SUMIFS('5. Kosten für Unteraufträge'!H:H,'5. Kosten für Unteraufträge'!C:C,B43,'5. Kosten für Unteraufträge'!B:B,$G$25) -> 0 | H43: =SUMIF('B. Spezieller Mob. - Student'!B:B,B43,'B. Spezieller Mob. - Student'!N:N)+SUMIF('B. Spezieller Mob. - Personal'!B:B,B43,'B. Spezieller Mob. - Personal'!N:N) -> 0 | I43: 0
B44: P19 | C44: =SUMIFS('1. Personalkosten'!S:S,'1. Personalkosten'!C:C,B44,'1. Personalkosten'!B:B,$C$25)+SUMIFS('2-3. Reise&Unterkunftskosten'!N:N,'2-3. Reise&Unterkunftskosten'!C:C,B44,'2-3. Reise&Unterkunftskosten'!B:B,$C$25)+SUMIFS('4. Ausrüstungskosten'!H:H,'4. Ausrüstungskosten'!C:C,B44,'4. Ausrüstungskosten'!B:B,$C$25)+SUMIFS('5. Kosten für Unteraufträge'!H:H,'5. Kosten für Unteraufträge'!C:C,B44,'5. Kosten für Unteraufträge'!B:B,$C$25) -> 0 | D44: =SUMIFS('1. Personalkosten'!S:S,'1. Personalkosten'!C:C,B44,'1. Personalkosten'!B:B,$D$25)+SUMIFS('2-3. Reise&Unterkunftskosten'!N:N,'2-3. Reise&Unterkunftskosten'!C:C,B44,'2-3. Reise&Unterkunftskosten'!B:B,$D$25)+SUMIFS('4. Ausrüstungskosten'!H:H,'4. Ausrüstungskosten'!C:C,B44,'4. Ausrüstungskosten'!B:B,$D$25)+SUMIFS('5. Kosten für Unteraufträge'!H:H,'5. Kosten für Unteraufträge'!C:C,B44,'5. Kosten für Unteraufträge'!B:B,$D$25) -> 0 | E44: =SUMIFS('1. Personalkosten'!S:S,'1. Personalkosten'!C:C,B44,'1. Personalkosten'!B:B,$E$25)+SUMIFS('2-3. Reise&Unterkunftskosten'!N:N,'2-3. Reise&Unterkunftskosten'!C:C,B44,'2-3. Reise&Unterkunftskosten'!B:B,$E$25)+SUMIFS('4. Ausrüstungskosten'!H:H,'4. Ausrüstungskosten'!C:C,B44,'4. Ausrüstungskosten'!B:B,$E$25)+SUMIFS('5. Kosten für Unteraufträge'!H:H,'5. Kosten für Unteraufträge'!C:C,B44,'5. Kosten für Unteraufträge'!B:B,$E$25) -> 0 | F44: =SUMIFS('1. Personalkosten'!S:S,'1. Personalkosten'!C:C,B44,'1. Personalkosten'!B:B,$B$8)+SUMIFS('2-3. Reise&Unterkunftskosten'!N:N,'2-3. Reise&Unterkunftskosten'!C:C,B44,'2-3. Reise&Unterkunftskosten'!B:B,$B$8)+SUMIFS('4. Ausrüstungskosten'!H:H,'4. Ausrüstungskosten'!C:C,B44,'4. Ausrüstungskosten'!B:B,$B$8)+SUMIFS('5. Kosten für Unteraufträge'!H:H,'5. Kosten für Unteraufträge'!C:C,B44,'5. Kosten für Unteraufträge'!B:B,$B$8) -> 0 | G44: =SUMIFS('1. Personalkosten'!S:S,'1. Personalkosten'!C:C,B44,'1. Personalkosten'!B:B,$G$25)+SUMIFS('2-3. Reise&Unterkunftskosten'!N:N,'2-3. Reise&Unterkunftskosten'!C:C,B44,'2-3. Reise&Unterkunftskosten'!B:B,$G$25)+SUMIFS('4. Ausrüstungskosten'!H:H,'4. Ausrüstungskosten'!C:C,B44,'4. Ausrüstungskosten'!B:B,$G$25)+SUMIFS('5. Kosten für Unteraufträge'!H:H,'5. Kosten für Unteraufträge'!C:C,B44,'5. Kosten für Unteraufträge'!B:B,$G$25) -> 0 | H44: =SUMIF('B. Spezieller Mob. - Student'!B:B,B44,'B. Spezieller Mob. - Student'!N:N)+SUMIF('B. Spezieller Mob. - Personal'!B:B,B44,'B. Spezieller Mob. - Personal'!N:N) -> 0 | I44: 0
B45: P20 | C45: =SUMIFS('1. Personalkosten'!S:S,'1. Personalkosten'!C:C,B45,'1. Personalkosten'!B:B,$C$25)+SUMIFS('2-3. Reise&Unterkunftskosten'!N:N,'2-3. Reise&Unterkunftskosten'!C:C,B45,'2-3. Reise&Unterkunftskosten'!B:B,$C$25)+SUMIFS('4. Ausrüstungskosten'!H:H,'4. Ausrüstungskosten'!C:C,B45,'4. Ausrüstungskosten'!B:B,$C$25)+SUMIFS('5. Kosten für Unteraufträge'!H:H,'5. Kosten für Unteraufträge'!C:C,B45,'5. Kosten für Unteraufträge'!B:B,$C$25) -> 0 | D45: =SUMIFS('1. Personalkosten'!S:S,'1. Personalkosten'!C:C,B45,'1. Personalkosten'!B:B,$D$25)+SUMIFS('2-3. Reise&Unterkunftskosten'!N:N,'2-3. Reise&Unterkunftskosten'!C:C,B45,'2-3. Reise&Unterkunftskosten'!B:B,$D$25)+SUMIFS('4. Ausrüstungskosten'!H:H,'4. Ausrüstungskosten'!C:C,B45,'4. Ausrüstungskosten'!B:B,$D$25)+SUMIFS('5. Kosten für Unteraufträge'!H:H,'5. Kosten für Unteraufträge'!C:C,B45,'5. Kosten für Unteraufträge'!B:B,$D$25) -> 0 | E45: =SUMIFS('1. Personalkosten'!S:S,'1. Personalkosten'!C:C,B45,'1. Personalkosten'!B:B,$E$25)+SUMIFS('2-3. Reise&Unterkunftskosten'!N:N,'2-3. Reise&Unterkunftskosten'!C:C,B45,'2-3. Reise&Unterkunftskosten'!B:B,$E$25)+SUMIFS('4. Ausrüstungskosten'!H:H,'4. Ausrüstungskosten'!C:C,B45,'4. Ausrüstungskosten'!B:B,$E$25)+SUMIFS('5. Kosten für Unteraufträge'!H:H,'5. Kosten für Unteraufträge'!C:C,B45,'5. Kosten für Unteraufträge'!B:B,$E$25) -> 0 | F45: =SUMIFS('1. Personalkosten'!S:S,'1. Personalkosten'!C:C,B45,'1. Personalkosten'!B:B,$B$8)+SUMIFS('2-3. Reise&Unterkunftskosten'!N:N,'2-3. Reise&Unterkunftskosten'!C:C,B45,'2-3. Reise&Unterkunftskosten'!B:B,$B$8)+SUMIFS('4. Ausrüstungskosten'!H:H,'4. Ausrüstungskosten'!C:C,B45,'4. Ausrüstungskosten'!B:B,$B$8)+SUMIFS('5. Kosten für Unteraufträge'!H:H,'5. Kosten für Unteraufträge'!C:C,B45,'5. Kosten für Unteraufträge'!B:B,$B$8) -> 0 | G45: =SUMIFS('1. Personalkosten'!S:S,'1. Personalkosten'!C:C,B45,'1. Personalkosten'!B:B,$G$25)+SUMIFS('2-3. Reise&Unterkunftskosten'!N:N,'2-3. Reise&Unterkunftskosten'!C:C,B45,'2-3. Reise&Unterkunftskosten'!B:B,$G$25)+SUMIFS('4. Ausrüstungskosten'!H:H,'4. Ausrüstungskosten'!C:C,B45,'4. Ausrüstungskosten'!B:B,$G$25)+SUMIFS('5. Kosten für Unteraufträge'!H:H,'5. Kosten für Unteraufträge'!C:C,B45,'5. Kosten für Unteraufträge'!B:B,$G$25) -> 0 | H45: =SUMIF('B. Spezieller Mob. - Student'!B:B,B45,'B. Spezieller Mob. - Student'!N:N)+SUMIF('B. Spezieller Mob. - Personal'!B:B,B45,'B. Spezieller Mob. - Personal'!N:N) -> 0 | I45: 0
B46: P21 | C46: =SUMIFS('1. Personalkosten'!S:S,'1. Personalkosten'!C:C,B46,'1. Personalkosten'!B:B,$C$25)+SUMIFS('2-3. Reise&Unterkunftskosten'!N:N,'2-3. Reise&Unterkunftskosten'!C:C,B46,'2-3. Reise&Unterkunftskosten'!B:B,$C$25)+SUMIFS('4. Ausrüstungskosten'!H:H,'4. Ausrüstungskosten'!C:C,B46,'4. Ausrüstungskosten'!B:B,$C$25)+SUMIFS('5. Kosten für Unteraufträge'!H:H,'5. Kosten für Unteraufträge'!C:C,B46,'5. Kosten für Unteraufträge'!B:B,$C$25) -> 0 | D46: =SUMIFS('1. Personalkosten'!S:S,'1. Personalkosten'!C:C,B46,'1. Personalkosten'!B:B,$D$25)+SUMIFS('2-3. Reise&Unterkunftskosten'!N:N,'2-3. Reise&Unterkunftskosten'!C:C,B46,'2-3. Reise&Unterkunftskosten'!B:B,$D$25)+SUMIFS('4. Ausrüstungskosten'!H:H,'4. Ausrüstungskosten'!C:C,B46,'4. Ausrüstungskosten'!B:B,$D$25)+SUMIFS('5. Kosten für Unteraufträge'!H:H,'5. Kosten für Unteraufträge'!C:C,B46,'5. Kosten für Unteraufträge'!B:B,$D$25) -> 0 | E46: =SUMIFS('1. Personalkosten'!S:S,'1. Personalkosten'!C:C,B46,'1. Personalkosten'!B:B,$E$25)+SUMIFS('2-3. Reise&Unterkunftskosten'!N:N,'2-3. Reise&Unterkunftskosten'!C:C,B46,'2-3. Reise&Unterkunftskosten'!B:B,$E$25)+SUMIFS('4. Ausrüstungskosten'!H:H,'4. Ausrüstungskosten'!C:C,B46,'4. Ausrüstungskosten'!B:B,$E$25)+SUMIFS('5. Kosten für Unteraufträge'!H:H,'5. Kosten für Unteraufträge'!C:C,B46,'5. Kosten für Unteraufträge'!B:B,$E$25) -> 0 | F46: =SUMIFS('1. Personalkosten'!S:S,'1. Personalkosten'!C:C,B46,'1. Personalkosten'!B:B,$B$8)+SUMIFS('2-3. Reise&Unterkunftskosten'!N:N,'2-3. Reise&Unterkunftskosten'!C:C,B46,'2-3. Reise&Unterkunftskosten'!B:B,$B$8)+SUMIFS('4. Ausrüstungskosten'!H:H,'4. Ausrüstungskosten'!C:C,B46,'4. Ausrüstungskosten'!B:B,$B$8)+SUMIFS('5. Kosten für Unteraufträge'!H:H,'5. Kosten für Unteraufträge'!C:C,B46,'5. Kosten für Unteraufträge'!B:B,$B$8) -> 0 | G46: =SUMIFS('1. Personalkosten'!S:S,'1. Personalkosten'!C:C,B46,'1. Personalkosten'!B:B,$G$25)+SUMIFS('2-3. Reise&Unterkunftskosten'!N:N,'2-3. Reise&Unterkunftskosten'!C:C,B46,'2-3. Reise&Unterkunftskosten'!B:B,$G$25)+SUMIFS('4. Ausrüstungskosten'!H:H,'4. Ausrüstungskosten'!C:C,B46,'4. Ausrüstungskosten'!B:B,$G$25)+SUMIFS('5. Kosten für Unteraufträge'!H:H,'5. Kosten für Unteraufträge'!C:C,B46,'5. Kosten für Unteraufträge'!B:B,$G$25) -> 0 | H46: =SUMIF('B. Spezieller Mob. - Student'!B:B,B46,'B. Spezieller Mob. - Student'!N:N)+SUMIF('B. Spezieller Mob. - Personal'!B:B,B46,'B. Spezieller Mob. - Personal'!N:N) -> 0 | I46: 0
B47: P22 | C47: =SUMIFS('1. Personalkosten'!S:S,'1. Personalkosten'!C:C,B47,'1. Personalkosten'!B:B,$C$25)+SUMIFS('2-3. Reise&Unterkunftskosten'!N:N,'2-3. Reise&Unterkunftskosten'!C:C,B47,'2-3. Reise&Unterkunftskosten'!B:B,$C$25)+SUMIFS('4. Ausrüstungskosten'!H:H,'4. Ausrüstungskosten'!C:C,B47,'4. Ausrüstungskosten'!B:B,$C$25)+SUMIFS('5. Kosten für Unteraufträge'!H:H,'5. Kosten für Unteraufträge'!C:C,B47,'5. Kosten für Unteraufträge'!B:B,$C$25) -> 0 | D47: =SUMIFS('1. Personalkosten'!S:S,'1. Personalkosten'!C:C,B47,'1. Personalkosten'!B:B,$D$25)+SUMIFS('2-3. Reise&Unterkunftskosten'!N:N,'2-3. Reise&Unterkunftskosten'!C:C,B47,'2-3. Reise&Unterkunftskosten'!B:B,$D$25)+SUMIFS('4. Ausrüstungskosten'!H:H,'4. Ausrüstungskosten'!C:C,B47,'4. Ausrüstungskosten'!B:B,$D$25)+SUMIFS('5. Kosten für Unteraufträge'!H:H,'5. Kosten für Unteraufträge'!C:C,B47,'5. Kosten für Unteraufträge'!B:B,$D$25) -> 0 | E47: =SUMIFS('1. Personalkosten'!S:S,'1. Personalkosten'!C:C,B47,'1. Personalkosten'!B:B,$E$25)+SUMIFS('2-3. Reise&Unterkunftskosten'!N:N,'2-3. Reise&Unterkunftskosten'!C:C,B47,'2-3. Reise&Unterkunftskosten'!B:B,$E$25)+SUMIFS('4. Ausrüstungskosten'!H:H,'4. Ausrüstungskosten'!C:C,B47,'4. Ausrüstungskosten'!B:B,$E$25)+SUMIFS('5. Kosten für Unteraufträge'!H:H,'5. Kosten für Unteraufträge'!C:C,B47,'5. Kosten für Unteraufträge'!B:B,$E$25) -> 0 | F47: =SUMIFS('1. Personalkosten'!S:S,'1. Personalkosten'!C:C,B47,'1. Personalkosten'!B:B,$B$8)+SUMIFS('2-3. Reise&Unterkunftskosten'!N:N,'2-3. Reise&Unterkunftskosten'!C:C,B47,'2-3. Reise&Unterkunftskosten'!B:B,$B$8)+SUMIFS('4. Ausrüstungskosten'!H:H,'4. Ausrüstungskosten'!C:C,B47,'4. Ausrüstungskosten'!B:B,$B$8)+SUMIFS('5. Kosten für Unteraufträge'!H:H,'5. Kosten für Unteraufträge'!C:C,B47,'5. Kosten für Unteraufträge'!B:B,$B$8) -> 0 | G47: =SUMIFS('1. Personalkosten'!S:S,'1. Personalkosten'!C:C,B47,'1. Personalkosten'!B:B,$G$25)+SUMIFS('2-3. Reise&Unterkunftskosten'!N:N,'2-3. Reise&Unterkunftskosten'!C:C,B47,'2-3. Reise&Unterkunftskosten'!B:B,$G$25)+SUMIFS('4. Ausrüstungskosten'!H:H,'4. Ausrüstungskosten'!C:C,B47,'4. Ausrüstungskosten'!B:B,$G$25)+SUMIFS('5. Kosten für Unteraufträge'!H:H,'5. Kosten für Unteraufträge'!C:C,B47,'5. Kosten für Unteraufträge'!B:B,$G$25) -> 0 | H47: =SUMIF('B. Spezieller Mob. - Student'!B:B,B47,'B. Spezieller Mob. - Student'!N:N)+SUMIF('B. Spezieller Mob. - Personal'!B:B,B47,'B. Spezieller Mob. - Personal'!N:N) -> 0 | I47: 0
B48: P23 | C48: =SUMIFS('1. Personalkosten'!S:S,'1. Personalkosten'!C:C,B48,'1. Personalkosten'!B:B,$C$25)+SUMIFS('2-3. Reise&Unterkunftskosten'!N:N,'2-3. Reise&Unterkunftskosten'!C:C,B48,'2-3. Reise&Unterkunftskosten'!B:B,$C$25)+SUMIFS('4. Ausrüstungskosten'!H:H,'4. Ausrüstungskosten'!C:C,B48,'4. Ausrüstungskosten'!B:B,$C$25)+SUMIFS('5. Kosten für Unteraufträge'!H:H,'5. Kosten für Unteraufträge'!C:C,B48,'5. Kosten für Unteraufträge'!B:B,$C$25) -> 0 | D48: =SUMIFS('1. Personalkosten'!S:S,'1. Personalkosten'!C:C,B48,'1. Personalkosten'!B:B,$D$25)+SUMIFS('2-3. Reise&Unterkunftskosten'!N:N,'2-3. Reise&Unterkunftskosten'!C:C,B48,'2-3. Reise&Unterkunftskosten'!B:B,$D$25)+SUMIFS('4. Ausrüstungskosten'!H:H,'4. Ausrüstungskosten'!C:C,B48,'4. Ausrüstungskosten'!B:B,$D$25)+SUMIFS('5. Kosten für Unteraufträge'!H:H,'5. Kosten für Unteraufträge'!C:C,B48,'5. Kosten für Unteraufträge'!B:B,$D$25) -> 0 | E48: =SUMIFS('1. Personalkosten'!S:S,'1. Personalkosten'!C:C,B48,'1. Personalkosten'!B:B,$E$25)+SUMIFS('2-3. Reise&Unterkunftskosten'!N:N,'2-3. Reise&Unterkunftskosten'!C:C,B48,'2-3. Reise&Unterkunftskosten'!B:B,$E$25)+SUMIFS('4. Ausrüstungskosten'!H:H,'4. Ausrüstungskosten'!C:C,B48,'4. Ausrüstungskosten'!B:B,$E$25)+SUMIFS('5. Kosten für Unteraufträge'!H:H,'5. Kosten für Unteraufträge'!C:C,B48,'5. Kosten für Unteraufträge'!B:B,$E$25) -> 0 | F48: =SUMIFS('1. Personalkosten'!S:S,'1. Personalkosten'!C:C,B48,'1. Personalkosten'!B:B,$B$8)+SUMIFS('2-3. Reise&Unterkunftskosten'!N:N,'2-3. Reise&Unterkunftskosten'!C:C,B48,'2-3. Reise&Unterkunftskosten'!B:B,$B$8)+SUMIFS('4. Ausrüstungskosten'!H:H,'4. Ausrüstungskosten'!C:C,B48,'4. Ausrüstungskosten'!B:B,$B$8)+SUMIFS('5. Kosten für Unteraufträge'!H:H,'5. Kosten für Unteraufträge'!C:C,B48,'5. Kosten für Unteraufträge'!B:B,$B$8) -> 0 | G48: =SUMIFS('1. Personalkosten'!S:S,'1. Personalkosten'!C:C,B48,'1. Personalkosten'!B:B,$G$25)+SUMIFS('2-3. Reise&Unterkunftskosten'!N:N,'2-3. Reise&Unterkunftskosten'!C:C,B48,'2-3. Reise&Unterkunftskosten'!B:B,$G$25)+SUMIFS('4. Ausrüstungskosten'!H:H,'4. Ausrüstungskosten'!C:C,B48,'4. Ausrüstungskosten'!B:B,$G$25)+SUMIFS('5. Kosten für Unteraufträge'!H:H,'5. Kosten für Unteraufträge'!C:C,B48,'5. Kosten für Unteraufträge'!B:B,$G$25) -> 0 | H48: =SUMIF('B. Spezieller Mob. - Student'!B:B,B48,'B. Spezieller Mob. - Student'!N:N)+SUMIF('B. Spezieller Mob. - Personal'!B:B,B48,'B. Spezieller Mob. - Personal'!N:N) -> 0 | I48: 0
B49: P24 | C49: =SUMIFS('1. Personalkosten'!S:S,'1. Personalkosten'!C:C,B49,'1. Personalkosten'!B:B,$C$25)+SUMIFS('2-3. Reise&Unterkunftskosten'!N:N,'2-3. Reise&Unterkunftskosten'!C:C,B49,'2-3. Reise&Unterkunftskosten'!B:B,$C$25)+SUMIFS('4. Ausrüstungskosten'!H:H,'4. Ausrüstungskosten'!C:C,B49,'4. Ausrüstungskosten'!B:B,$C$25)+SUMIFS('5. Kosten für Unteraufträge'!H:H,'5. Kosten für Unteraufträge'!C:C,B49,'5. Kosten für Unteraufträge'!B:B,$C$25) -> 0 | D49: =SUMIFS('1. Personalkosten'!S:S,'1. Personalkosten'!C:C,B49,'1. Personalkosten'!B:B,$D$25)+SUMIFS('2-3. Reise&Unterkunftskosten'!N:N,'2-3. Reise&Unterkunftskosten'!C:C,B49,'2-3. Reise&Unterkunftskosten'!B:B,$D$25)+SUMIFS('4. Ausrüstungskosten'!H:H,'4. Ausrüstungskosten'!C:C,B49,'4. Ausrüstungskosten'!B:B,$D$25)+SUMIFS('5. Kosten für Unteraufträge'!H:H,'5. Kosten für Unteraufträge'!C:C,B49,'5. Kosten für Unteraufträge'!B:B,$D$25) -> 0 | E49: =SUMIFS('1. Personalkosten'!S:S,'1. Personalkosten'!C:C,B49,'1. Personalkosten'!B:B,$E$25)+SUMIFS('2-3. Reise&Unterkunftskosten'!N:N,'2-3. Reise&Unterkunftskosten'!C:C,B49,'2-3. Reise&Unterkunftskosten'!B:B,$E$25)+SUMIFS('4. Ausrüstungskosten'!H:H,'4. Ausrüstungskosten'!C:C,B49,'4. Ausrüstungskosten'!B:B,$E$25)+SUMIFS('5. Kosten für Unteraufträge'!H:H,'5. Kosten für Unteraufträge'!C:C,B49,'5. Kosten für Unteraufträge'!B:B,$E$25) -> 0 | F49: =SUMIFS('1. Personalkosten'!S:S,'1. Personalkosten'!C:C,B49,'1. Personalkosten'!B:B,$B$8)+SUMIFS('2-3. Reise&Unterkunftskosten'!N:N,'2-3. Reise&Unterkunftskosten'!C:C,B49,'2-3. Reise&Unterkunftskosten'!B:B,$B$8)+SUMIFS('4. Ausrüstungskosten'!H:H,'4. Ausrüstungskosten'!C:C,B49,'4. Ausrüstungskosten'!B:B,$B$8)+SUMIFS('5. Kosten für Unteraufträge'!H:H,'5. Kosten für Unteraufträge'!C:C,B49,'5. Kosten für Unteraufträge'!B:B,$B$8) -> 0 | G49: =SUMIFS('1. Personalkosten'!S:S,'1. Personalkosten'!C:C,B49,'1. Personalkosten'!B:B,$G$25)+SUMIFS('2-3. Reise&Unterkunftskosten'!N:N,'2-3. Reise&Unterkunftskosten'!C:C,B49,'2-3. Reise&Unterkunftskosten'!B:B,$G$25)+SUMIFS('4. Ausrüstungskosten'!H:H,'4. Ausrüstungskosten'!C:C,B49,'4. Ausrüstungskosten'!B:B,$G$25)+SUMIFS('5. Kosten für Unteraufträge'!H:H,'5. Kosten für Unteraufträge'!C:C,B49,'5. Kosten für Unteraufträge'!B:B,$G$25) -> 0 | H49: =SUMIF('B. Spezieller Mob. - Student'!B:B,B49,'B. Spezieller Mob. - Student'!N:N)+SUMIF('B. Spezieller Mob. - Personal'!B:B,B49,'B. Spezieller Mob. - Personal'!N:N) -> 0 | I49: 0
B50: P25 | C50: =SUMIFS('1. Personalkosten'!S:S,'1. Personalkosten'!C:C,B50,'1. Personalkosten'!B:B,$C$25)+SUMIFS('2-3. Reise&Unterkunftskosten'!N:N,'2-3. Reise&Unterkunftskosten'!C:C,B50,'2-3. Reise&Unterkunftskosten'!B:B,$C$25)+SUMIFS('4. Ausrüstungskosten'!H:H,'4. Ausrüstungskosten'!C:C,B50,'4. Ausrüstungskosten'!B:B,$C$25)+SUMIFS('5. Kosten für Unteraufträge'!H:H,'5. Kosten für Unteraufträge'!C:C,B50,'5. Kosten für Unteraufträge'!B:B,$C$25) -> 0 | D50: =SUMIFS('1. Personalkosten'!S:S,'1. Personalkosten'!C:C,B50,'1. Personalkosten'!B:B,$D$25)+SUMIFS('2-3. Reise&Unterkunftskosten'!N:N,'2-3. Reise&Unterkunftskosten'!C:C,B50,'2-3. Reise&Unterkunftskosten'!B:B,$D$25)+SUMIFS('4. Ausrüstungskosten'!H:H,'4. Ausrüstungskosten'!C:C,B50,'4. Ausrüstungskosten'!B:B,$D$25)+SUMIFS('5. Kosten für Unteraufträge'!H:H,'5. Kosten für Unteraufträge'!C:C,B50,'5. Kosten für Unteraufträge'!B:B,$D$25) -> 0 | E50: =SUMIFS('1. Personalkosten'!S:S,'1. Personalkosten'!C:C,B50,'1. Personalkosten'!B:B,$E$25)+SUMIFS('2-3. Reise&Unterkunftskosten'!N:N,'2-3. Reise&Unterkunftskosten'!C:C,B50,'2-3. Reise&Unterkunftskosten'!B:B,$E$25)+SUMIFS('4. Ausrüstungskosten'!H:H,'4. Ausrüstungskosten'!C:C,B50,'4. Ausrüstungskosten'!B:B,$E$25)+SUMIFS('5. Kosten für Unteraufträge'!H:H,'5. Kosten für Unteraufträge'!C:C,B50,'5. Kosten für Unteraufträge'!B:B,$E$25) -> 0 | F50: =SUMIFS('1. Personalkosten'!S:S,'1. Personalkosten'!C:C,B50,'1. Personalkosten'!B:B,$B$8)+SUMIFS('2-3. Reise&Unterkunftskosten'!N:N,'2-3. Reise&Unterkunftskosten'!C:C,B50,'2-3. Reise&Unterkunftskosten'!B:B,$B$8)+SUMIFS('4. Ausrüstungskosten'!H:H,'4. Ausrüstungskosten'!C:C,B50,'4. Ausrüstungskosten'!B:B,$B$8)+SUMIFS('5. Kosten für Unteraufträge'!H:H,'5. Kosten für Unteraufträge'!C:C,B50,'5. Kosten für Unteraufträge'!B:B,$B$8) -> 0 | G50: =SUMIFS('1. Personalkosten'!S:S,'1. Personalkosten'!C:C,B50,'1. Personalkosten'!B:B,$G$25)+SUMIFS('2-3. Reise&Unterkunftskosten'!N:N,'2-3. Reise&Unterkunftskosten'!C:C,B50,'2-3. Reise&Unterkunftskosten'!B:B,$G$25)+SUMIFS('4. Ausrüstungskosten'!H:H,'4. Ausrüstungskosten'!C:C,B50,'4. Ausrüstungskosten'!B:B,$G$25)+SUMIFS('5. Kosten für Unteraufträge'!H:H,'5. Kosten für Unteraufträge'!C:C,B50,'5. Kosten für Unteraufträge'!B:B,$G$25) -> 0 | H50: =SUMIF('B. Spezieller Mob. - Student'!B:B,B50,'B. Spezieller Mob. - Student'!N:N)+SUMIF('B. Spezieller Mob. - Personal'!B:B,B50,'B. Spezieller Mob. - Personal'!N:N) -> 0 | I50: 0
B51: P26 | C51: =SUMIFS('1. Personalkosten'!S:S,'1. Personalkosten'!C:C,B51,'1. Personalkosten'!B:B,$C$25)+SUMIFS('2-3. Reise&Unterkunftskosten'!N:N,'2-3. Reise&Unterkunftskosten'!C:C,B51,'2-3. Reise&Unterkunftskosten'!B:B,$C$25)+SUMIFS('4. Ausrüstungskosten'!H:H,'4. Ausrüstungskosten'!C:C,B51,'4. Ausrüstungskosten'!B:B,$C$25)+SUMIFS('5. Kosten für Unteraufträge'!H:H,'5. Kosten für Unteraufträge'!C:C,B51,'5. Kosten für Unteraufträge'!B:B,$C$25) -> 0 | D51: =SUMIFS('1. Personalkosten'!S:S,'1. Personalkosten'!C:C,B51,'1. Personalkosten'!B:B,$D$25)+SUMIFS('2-3. Reise&Unterkunftskosten'!N:N,'2-3. Reise&Unterkunftskosten'!C:C,B51,'2-3. Reise&Unterkunftskosten'!B:B,$D$25)+SUMIFS('4. Ausrüstungskosten'!H:H,'4. Ausrüstungskosten'!C:C,B51,'4. Ausrüstungskosten'!B:B,$D$25)+SUMIFS('5. Kosten für Unteraufträge'!H:H,'5. Kosten für Unteraufträge'!C:C,B51,'5. Kosten für Unteraufträge'!B:B,$D$25) -> 0 | E51: =SUMIFS('1. Personalkosten'!S:S,'1. Personalkosten'!C:C,B51,'1. Personalkosten'!B:B,$E$25)+SUMIFS('2-3. Reise&Unterkunftskosten'!N:N,'2-3. Reise&Unterkunftskosten'!C:C,B51,'2-3. Reise&Unterkunftskosten'!B:B,$E$25)+SUMIFS('4. Ausrüstungskosten'!H:H,'4. Ausrüstungskosten'!C:C,B51,'4. Ausrüstungskosten'!B:B,$E$25)+SUMIFS('5. Kosten für Unteraufträge'!H:H,'5. Kosten für Unteraufträge'!C:C,B51,'5. Kosten für Unteraufträge'!B:B,$E$25) -> 0 | F51: =SUMIFS('1. Personalkosten'!S:S,'1. Personalkosten'!C:C,B51,'1. Personalkosten'!B:B,$B$8)+SUMIFS('2-3. Reise&Unterkunftskosten'!N:N,'2-3. Reise&Unterkunftskosten'!C:C,B51,'2-3. Reise&Unterkunftskosten'!B:B,$B$8)+SUMIFS('4. Ausrüstungskosten'!H:H,'4. Ausrüstungskosten'!C:C,B51,'4. Ausrüstungskosten'!B:B,$B$8)+SUMIFS('5. Kosten für Unteraufträge'!H:H,'5. Kosten für Unteraufträge'!C:C,B51,'5. Kosten für Unteraufträge'!B:B,$B$8) -> 0 | G51: =SUMIFS('1. Personalkosten'!S:S,'1. Personalkosten'!C:C,B51,'1. Personalkosten'!B:B,$G$25)+SUMIFS('2-3. Reise&Unterkunftskosten'!N:N,'2-3. Reise&Unterkunftskosten'!C:C,B51,'2-3. Reise&Unterkunftskosten'!B:B,$G$25)+SUMIFS('4. Ausrüstungskosten'!H:H,'4. Ausrüstungskosten'!C:C,B51,'4. Ausrüstungskosten'!B:B,$G$25)+SUMIFS('5. Kosten für Unteraufträge'!H:H,'5. Kosten für Unteraufträge'!C:C,B51,'5. Kosten für Unteraufträge'!B:B,$G$25) -> 0 | H51: =SUMIF('B. Spezieller Mob. - Student'!B:B,B51,'B. Spezieller Mob. - Student'!N:N)+SUMIF('B. Spezieller Mob. - Personal'!B:B,B51,'B. Spezieller Mob. - Personal'!N:N) -> 0 | I51: 0
B52: P27 | C52: =SUMIFS('1. Personalkosten'!S:S,'1. Personalkosten'!C:C,B52,'1. Personalkosten'!B:B,$C$25)+SUMIFS('2-3. Reise&Unterkunftskosten'!N:N,'2-3. Reise&Unterkunftskosten'!C:C,B52,'2-3. Reise&Unterkunftskosten'!B:B,$C$25)+SUMIFS('4. Ausrüstungskosten'!H:H,'4. Ausrüstungskosten'!C:C,B52,'4. Ausrüstungskosten'!B:B,$C$25)+SUMIFS('5. Kosten für Unteraufträge'!H:H,'5. Kosten für Unteraufträge'!C:C,B52,'5. Kosten für Unteraufträge'!B:B,$C$25) -> 0 | D52: =SUMIFS('1. Personalkosten'!S:S,'1. Personalkosten'!C:C,B52,'1. Personalkosten'!B:B,$D$25)+SUMIFS('2-3. Reise&Unterkunftskosten'!N:N,'2-3. Reise&Unterkunftskosten'!C:C,B52,'2-3. Reise&Unterkunftskosten'!B:B,$D$25)+SUMIFS('4. Ausrüstungskosten'!H:H,'4. Ausrüstungskosten'!C:C,B52,'4. Ausrüstungskosten'!B:B,$D$25)+SUMIFS('5. Kosten für Unteraufträge'!H:H,'5. Kosten für Unteraufträge'!C:C,B52,'5. Kosten für Unteraufträge'!B:B,$D$25) -> 0 | E52: =SUMIFS('1. Personalkosten'!S:S,'1. Personalkosten'!C:C,B52,'1. Personalkosten'!B:B,$E$25)+SUMIFS('2-3. Reise&Unterkunftskosten'!N:N,'2-3. Reise&Unterkunftskosten'!C:C,B52,'2-3. Reise&Unterkunftskosten'!B:B,$E$25)+SUMIFS('4. Ausrüstungskosten'!H:H,'4. Ausrüstungskosten'!C:C,B52,'4. Ausrüstungskosten'!B:B,$E$25)+SUMIFS('5. Kosten für Unteraufträge'!H:H,'5. Kosten für Unteraufträge'!C:C,B52,'5. Kosten für Unteraufträge'!B:B,$E$25) -> 0 | F52: =SUMIFS('1. Personalkosten'!S:S,'1. Personalkosten'!C:C,B52,'1. Personalkosten'!B:B,$B$8)+SUMIFS('2-3. Reise&Unterkunftskosten'!N:N,'2-3. Reise&Unterkunftskosten'!C:C,B52,'2-3. Reise&Unterkunftskosten'!B:B,$B$8)+SUMIFS('4. Ausrüstungskosten'!H:H,'4. Ausrüstungskosten'!C:C,B52,'4. Ausrüstungskosten'!B:B,$B$8)+SUMIFS('5. Kosten für Unteraufträge'!H:H,'5. Kosten für Unteraufträge'!C:C,B52,'5. Kosten für Unteraufträge'!B:B,$B$8) -> 0 | G52: =SUMIFS('1. Personalkosten'!S:S,'1. Personalkosten'!C:C,B52,'1. Personalkosten'!B:B,$G$25)+SUMIFS('2-3. Reise&Unterkunftskosten'!N:N,'2-3. Reise&Unterkunftskosten'!C:C,B52,'2-3. Reise&Unterkunftskosten'!B:B,$G$25)+SUMIFS('4. Ausrüstungskosten'!H:H,'4. Ausrüstungskosten'!C:C,B52,'4. Ausrüstungskosten'!B:B,$G$25)+SUMIFS('5. Kosten für Unteraufträge'!H:H,'5. Kosten für Unteraufträge'!C:C,B52,'5. Kosten für Unteraufträge'!B:B,$G$25) -> 0 | H52: =SUMIF('B. Spezieller Mob. - Student'!B:B,B52,'B. Spezieller Mob. - Student'!N:N)+SUMIF('B. Spezieller Mob. - Personal'!B:B,B52,'B. Spezieller Mob. - Personal'!N:N) -> 0 | I52: 0
B53: P28 | C53: =SUMIFS('1. Personalkosten'!S:S,'1. Personalkosten'!C:C,B53,'1. Personalkosten'!B:B,$C$25)+SUMIFS('2-3. Reise&Unterkunftskosten'!N:N,'2-3. Reise&Unterkunftskosten'!C:C,B53,'2-3. Reise&Unterkunftskosten'!B:B,$C$25)+SUMIFS('4. Ausrüstungskosten'!H:H,'4. Ausrüstungskosten'!C:C,B53,'4. Ausrüstungskosten'!B:B,$C$25)+SUMIFS('5. Kosten für Unteraufträge'!H:H,'5. Kosten für Unteraufträge'!C:C,B53,'5. Kosten für Unteraufträge'!B:B,$C$25) -> 0 | D53: =SUMIFS('1. Personalkosten'!S:S,'1. Personalkosten'!C:C,B53,'1. Personalkosten'!B:B,$D$25)+SUMIFS('2-3. Reise&Unterkunftskosten'!N:N,'2-3. Reise&Unterkunftskosten'!C:C,B53,'2-3. Reise&Unterkunftskosten'!B:B,$D$25)+SUMIFS('4. Ausrüstungskosten'!H:H,'4. Ausrüstungskosten'!C:C,B53,'4. Ausrüstungskosten'!B:B,$D$25)+SUMIFS('5. Kosten für Unteraufträge'!H:H,'5. Kosten für Unteraufträge'!C:C,B53,'5. Kosten für Unteraufträge'!B:B,$D$25) -> 0 | E53: =SUMIFS('1. Personalkosten'!S:S,'1. Personalkosten'!C:C,B53,'1. Personalkosten'!B:B,$E$25)+SUMIFS('2-3. Reise&Unterkunftskosten'!N:N,'2-3. Reise&Unterkunftskosten'!C:C,B53,'2-3. Reise&Unterkunftskosten'!B:B,$E$25)+SUMIFS('4. Ausrüstungskosten'!H:H,'4. Ausrüstungskosten'!C:C,B53,'4. Ausrüstungskosten'!B:B,$E$25)+SUMIFS('5. Kosten für Unteraufträge'!H:H,'5. Kosten für Unteraufträge'!C:C,B53,'5. Kosten für Unteraufträge'!B:B,$E$25) -> 0 | F53: =SUMIFS('1. Personalkosten'!S:S,'1. Personalkosten'!C:C,B53,'1. Personalkosten'!B:B,$B$8)+SUMIFS('2-3. Reise&Unterkunftskosten'!N:N,'2-3. Reise&Unterkunftskosten'!C:C,B53,'2-3. Reise&Unterkunftskosten'!B:B,$B$8)+SUMIFS('4. Ausrüstungskosten'!H:H,'4. Ausrüstungskosten'!C:C,B53,'4. Ausrüstungskosten'!B:B,$B$8)+SUMIFS('5. Kosten für Unteraufträge'!H:H,'5. Kosten für Unteraufträge'!C:C,B53,'5. Kosten für Unteraufträge'!B:B,$B$8) -> 0 | G53: =SUMIFS('1. Personalkosten'!S:S,'1. Personalkosten'!C:C,B53,'1. Personalkosten'!B:B,$G$25)+SUMIFS('2-3. Reise&Unterkunftskosten'!N:N,'2-3. Reise&Unterkunftskosten'!C:C,B53,'2-3. Reise&Unterkunftskosten'!B:B,$G$25)+SUMIFS('4. Ausrüstungskosten'!H:H,'4. Ausrüstungskosten'!C:C,B53,'4. Ausrüstungskosten'!B:B,$G$25)+SUMIFS('5. Kosten für Unteraufträge'!H:H,'5. Kosten für Unteraufträge'!C:C,B53,'5. Kosten für Unteraufträge'!B:B,$G$25) -> 0 | H53: =SUMIF('B. Spezieller Mob. - Student'!B:B,B53,'B. Spezieller Mob. - Student'!N:N)+SUMIF('B. Spezieller Mob. - Personal'!B:B,B53,'B. Spezieller Mob. - Personal'!N:N) -> 0 | I53: 0
B54: P29 | C54: =SUMIFS('1. Personalkosten'!S:S,'1. Personalkosten'!C:C,B54,'1. Personalkosten'!B:B,$C$25)+SUMIFS('2-3. Reise&Unterkunftskosten'!N:N,'2-3. Reise&Unterkunftskosten'!C:C,B54,'2-3. Reise&Unterkunftskosten'!B:B,$C$25)+SUMIFS('4. Ausrüstungskosten'!H:H,'4. Ausrüstungskosten'!C:C,B54,'4. Ausrüstungskosten'!B:B,$C$25)+SUMIFS('5. Kosten für Unteraufträge'!H:H,'5. Kosten für Unteraufträge'!C:C,B54,'5. Kosten für Unteraufträge'!B:B,$C$25) -> 0 | D54: =SUMIFS('1. Personalkosten'!S:S,'1. Personalkosten'!C:C,B54,'1. Personalkosten'!B:B,$D$25)+SUMIFS('2-3. Reise&Unterkunftskosten'!N:N,'2-3. Reise&Unterkunftskosten'!C:C,B54,'2-3. Reise&Unterkunftskosten'!B:B,$D$25)+SUMIFS('4. Ausrüstungskosten'!H:H,'4. Ausrüstungskosten'!C:C,B54,'4. Ausrüstungskosten'!B:B,$D$25)+SUMIFS('5. Kosten für Unteraufträge'!H:H,'5. Kosten für Unteraufträge'!C:C,B54,'5. Kosten für Unteraufträge'!B:B,$D$25) -> 0 | E54: =SUMIFS('1. Personalkosten'!S:S,'1. Personalkosten'!C:C,B54,'1. Personalkosten'!B:B,$E$25)+SUMIFS('2-3. Reise&Unterkunftskosten'!N:N,'2-3. Reise&Unterkunftskosten'!C:C,B54,'2-3. Reise&Unterkunftskosten'!B:B,$E$25)+SUMIFS('4. Ausrüstungskosten'!H:H,'4. Ausrüstungskosten'!C:C,B54,'4. Ausrüstungskosten'!B:B,$E$25)+SUMIFS('5. Kosten für Unteraufträge'!H:H,'5. Kosten für Unteraufträge'!C:C,B54,'5. Kosten für Unteraufträge'!B:B,$E$25) -> 0 | F54: =SUMIFS('1. Personalkosten'!S:S,'1. Personalkosten'!C:C,B54,'1. Personalkosten'!B:B,$B$8)+SUMIFS('2-3. Reise&Unterkunftskosten'!N:N,'2-3. Reise&Unterkunftskosten'!C:C,B54,'2-3. Reise&Unterkunftskosten'!B:B,$B$8)+SUMIFS('4. Ausrüstungskosten'!H:H,'4. Ausrüstungskosten'!C:C,B54,'4. Ausrüstungskosten'!B:B,$B$8)+SUMIFS('5. Kosten für Unteraufträge'!H:H,'5. Kosten für Unteraufträge'!C:C,B54,'5. Kosten für Unteraufträge'!B:B,$B$8) -> 0 | G54: =SUMIFS('1. Personalkosten'!S:S,'1. Personalkosten'!C:C,B54,'1. Personalkosten'!B:B,$G$25)+SUMIFS('2-3. Reise&Unterkunftskosten'!N:N,'2-3. Reise&Unterkunftskosten'!C:C,B54,'2-3. Reise&Unterkunftskosten'!B:B,$G$25)+SUMIFS('4. Ausrüstungskosten'!H:H,'4. Ausrüstungskosten'!C:C,B54,'4. Ausrüstungskosten'!B:B,$G$25)+SUMIFS('5. Kosten für Unteraufträge'!H:H,'5. Kosten für Unteraufträge'!C:C,B54,'5. Kosten für Unteraufträge'!B:B,$G$25) -> 0 | H54: =SUMIF('B. Spezieller Mob. - Student'!B:B,B54,'B. Spezieller Mob. - Student'!N:N)+SUMIF('B. Spezieller Mob. - Personal'!B:B,B54,'B. Spezieller Mob. - Personal'!N:N) -> 0 | I54: 0
B55: P30 | C55: =SUMIFS('1. Personalkosten'!S:S,'1. Personalkosten'!C:C,B55,'1. Personalkosten'!B:B,$C$25)+SUMIFS('2-3. Reise&Unterkunftskosten'!N:N,'2-3. Reise&Unterkunftskosten'!C:C,B55,'2-3. Reise&Unterkunftskosten'!B:B,$C$25)+SUMIFS('4. Ausrüstungskosten'!H:H,'4. Ausrüstungskosten'!C:C,B55,'4. Ausrüstungskosten'!B:B,$C$25)+SUMIFS('5. Kosten für Unteraufträge'!H:H,'5. Kosten für Unteraufträge'!C:C,B55,'5. Kosten für Unteraufträge'!B:B,$C$25) -> 0 | D55: =SUMIFS('1. Personalkosten'!S:S,'1. Personalkosten'!C:C,B55,'1. Personalkosten'!B:B,$D$25)+SUMIFS('2-3. Reise&Unterkunftskosten'!N:N,'2-3. Reise&Unterkunftskosten'!C:C,B55,'2-3. Reise&Unterkunftskosten'!B:B,$D$25)+SUMIFS('4. Ausrüstungskosten'!H:H,'4. Ausrüstungskosten'!C:C,B55,'4. Ausrüstungskosten'!B:B,$D$25)+SUMIFS('5. Kosten für Unteraufträge'!H:H,'5. Kosten für Unteraufträge'!C:C,B55,'5. Kosten für Unteraufträge'!B:B,$D$25) -> 0 | E55: =SUMIFS('1. Personalkosten'!S:S,'1. Personalkosten'!C:C,B55,'1. Personalkosten'!B:B,$E$25)+SUMIFS('2-3. Reise&Unterkunftskosten'!N:N,'2-3. Reise&Unterkunftskosten'!C:C,B55,'2-3. Reise&Unterkunftskosten'!B:B,$E$25)+SUMIFS('4. Ausrüstungskosten'!H:H,'4. Ausrüstungskosten'!C:C,B55,'4. Ausrüstungskosten'!B:B,$E$25)+SUMIFS('5. Kosten für Unteraufträge'!H:H,'5. Kosten für Unteraufträge'!C:C,B55,'5. Kosten für Unteraufträge'!B:B,$E$25) -> 0 | F55: =SUMIFS('1. Personalkosten'!S:S,'1. Personalkosten'!C:C,B55,'1. Personalkosten'!B:B,$B$8)+SUMIFS('2-3. Reise&Unterkunftskosten'!N:N,'2-3. Reise&Unterkunftskosten'!C:C,B55,'2-3. Reise&Unterkunftskosten'!B:B,$B$8)+SUMIFS('4. Ausrüstungskosten'!H:H,'4. Ausrüstungskosten'!C:C,B55,'4. Ausrüstungskosten'!B:B,$B$8)+SUMIFS('5. Kosten für Unteraufträge'!H:H,'5. Kosten für Unteraufträge'!C:C,B55,'5. Kosten für Unteraufträge'!B:B,$B$8) -> 0 | G55: =SUMIFS('1. Personalkosten'!S:S,'1. Personalkosten'!C:C,B55,'1. Personalkosten'!B:B,$G$25)+SUMIFS('2-3. Reise&Unterkunftskosten'!N:N,'2-3. Reise&Unterkunftskosten'!C:C,B55,'2-3. Reise&Unterkunftskosten'!B:B,$G$25)+SUMIFS('4. Ausrüstungskosten'!H:H,'4. Ausrüstungskosten'!C:C,B55,'4. Ausrüstungskosten'!B:B,$G$25)+SUMIFS('5. Kosten für Unteraufträge'!H:H,'5. Kosten für Unteraufträge'!C:C,B55,'5. Kosten für Unteraufträge'!B:B,$G$25) -> 0 | H55: =SUMIF('B. Spezieller Mob. - Student'!B:B,B55,'B. Spezieller Mob. - Student'!N:N)+SUMIF('B. Spezieller Mob. - Personal'!B:B,B55,'B. Spezieller Mob. - Personal'!N:N) -> 0 | I55: 0
B56: P31 | C56: =SUMIFS('1. Personalkosten'!S:S,'1. Personalkosten'!C:C,B56,'1. Personalkosten'!B:B,$C$25)+SUMIFS('2-3. Reise&Unterkunftskosten'!N:N,'2-3. Reise&Unterkunftskosten'!C:C,B56,'2-3. Reise&Unterkunftskosten'!B:B,$C$25)+SUMIFS('4. Ausrüstungskosten'!H:H,'4. Ausrüstungskosten'!C:C,B56,'4. Ausrüstungskosten'!B:B,$C$25)+SUMIFS('5. Kosten für Unteraufträge'!H:H,'5. Kosten für Unteraufträge'!C:C,B56,'5. Kosten für Unteraufträge'!B:B,$C$25) -> 0 | D56: =SUMIFS('1. Personalkosten'!S:S,'1. Personalkosten'!C:C,B56,'1. Personalkosten'!B:B,$D$25)+SUMIFS('2-3. Reise&Unterkunftskosten'!N:N,'2-3. Reise&Unterkunftskosten'!C:C,B56,'2-3. Reise&Unterkunftskosten'!B:B,$D$25)+SUMIFS('4. Ausrüstungskosten'!H:H,'4. Ausrüstungskosten'!C:C,B56,'4. Ausrüstungskosten'!B:B,$D$25)+SUMIFS('5. Kosten für Unteraufträge'!H:H,'5. Kosten für Unteraufträge'!C:C,B56,'5. Kosten für Unteraufträge'!B:B,$D$25) -> 0 | E56: =SUMIFS('1. Personalkosten'!S:S,'1. Personalkosten'!C:C,B56,'1. Personalkosten'!B:B,$E$25)+SUMIFS('2-3. Reise&Unterkunftskosten'!N:N,'2-3. Reise&Unterkunftskosten'!C:C,B56,'2-3. Reise&Unterkunftskosten'!B:B,$E$25)+SUMIFS('4. Ausrüstungskosten'!H:H,'4. Ausrüstungskosten'!C:C,B56,'4. Ausrüstungskosten'!B:B,$E$25)+SUMIFS('5. Kosten für Unteraufträge'!H:H,'5. Kosten für Unteraufträge'!C:C,B56,'5. Kosten für Unteraufträge'!B:B,$E$25) -> 0 | F56: =SUMIFS('1. Personalkosten'!S:S,'1. Personalkosten'!C:C,B56,'1. Personalkosten'!B:B,$B$8)+SUMIFS('2-3. Reise&Unterkunftskosten'!N:N,'2-3. Reise&Unterkunftskosten'!C:C,B56,'2-3. Reise&Unterkunftskosten'!B:B,$B$8)+SUMIFS('4. Ausrüstungskosten'!H:H,'4. Ausrüstungskosten'!C:C,B56,'4. Ausrüstungskosten'!B:B,$B$8)+SUMIFS('5. Kosten für Unteraufträge'!H:H,'5. Kosten für Unteraufträge'!C:C,B56,'5. Kosten für Unteraufträge'!B:B,$B$8) -> 0 | G56: =SUMIFS('1. Personalkosten'!S:S,'1. Personalkosten'!C:C,B56,'1. Personalkosten'!B:B,$G$25)+SUMIFS('2-3. Reise&Unterkunftskosten'!N:N,'2-3. Reise&Unterkunftskosten'!C:C,B56,'2-3. Reise&Unterkunftskosten'!B:B,$G$25)+SUMIFS('4. Ausrüstungskosten'!H:H,'4. Ausrüstungskosten'!C:C,B56,'4. Ausrüstungskosten'!B:B,$G$25)+SUMIFS('5. Kosten für Unteraufträge'!H:H,'5. Kosten für Unteraufträge'!C:C,B56,'5. Kosten für Unteraufträge'!B:B,$G$25) -> 0 | H56: =SUMIF('B. Spezieller Mob. - Student'!B:B,B56,'B. Spezieller Mob. - Student'!N:N)+SUMIF('B. Spezieller Mob. - Personal'!B:B,B56,'B. Spezieller Mob. - Personal'!N:N) -> 0 | I56: 0
B57: P32 | C57: =SUMIFS('1. Personalkosten'!S:S,'1. Personalkosten'!C:C,B57,'1. Personalkosten'!B:B,$C$25)+SUMIFS('2-3. Reise&Unterkunftskosten'!N:N,'2-3. Reise&Unterkunftskosten'!C:C,B57,'2-3. Reise&Unterkunftskosten'!B:B,$C$25)+SUMIFS('4. Ausrüstungskosten'!H:H,'4. Ausrüstungskosten'!C:C,B57,'4. Ausrüstungskosten'!B:B,$C$25)+SUMIFS('5. Kosten für Unteraufträge'!H:H,'5. Kosten für Unteraufträge'!C:C,B57,'5. Kosten für Unteraufträge'!B:B,$C$25) -> 0 | D57: =SUMIFS('1. Personalkosten'!S:S,'1. Personalkosten'!C:C,B57,'1. Personalkosten'!B:B,$D$25)+SUMIFS('2-3. Reise&Unterkunftskosten'!N:N,'2-3. Reise&Unterkunftskosten'!C:C,B57,'2-3. Reise&Unterkunftskosten'!B:B,$D$25)+SUMIFS('4. Ausrüstungskosten'!H:H,'4. Ausrüstungskosten'!C:C,B57,'4. Ausrüstungskosten'!B:B,$D$25)+SUMIFS('5. Kosten für Unteraufträge'!H:H,'5. Kosten für Unteraufträge'!C:C,B57,'5. Kosten für Unteraufträge'!B:B,$D$25) -> 0 | E57: =SUMIFS('1. Personalkosten'!S:S,'1. Personalkosten'!C:C,B57,'1. Personalkosten'!B:B,$E$25)+SUMIFS('2-3. Reise&Unterkunftskosten'!N:N,'2-3. Reise&Unterkunftskosten'!C:C,B57,'2-3. Reise&Unterkunftskosten'!B:B,$E$25)+SUMIFS('4. Ausrüstungskosten'!H:H,'4. Ausrüstungskosten'!C:C,B57,'4. Ausrüstungskosten'!B:B,$E$25)+SUMIFS('5. Kosten für Unteraufträge'!H:H,'5. Kosten für Unteraufträge'!C:C,B57,'5. Kosten für Unteraufträge'!B:B,$E$25) -> 0 | F57: =SUMIFS('1. Personalkosten'!S:S,'1. Personalkosten'!C:C,B57,'1. Personalkosten'!B:B,$B$8)+SUMIFS('2-3. Reise&Unterkunftskosten'!N:N,'2-3. Reise&Unterkunftskosten'!C:C,B57,'2-3. Reise&Unterkunftskosten'!B:B,$B$8)+SUMIFS('4. Ausrüstungskosten'!H:H,'4. Ausrüstungskosten'!C:C,B57,'4. Ausrüstungskosten'!B:B,$B$8)+SUMIFS('5. Kosten für Unteraufträge'!H:H,'5. Kosten für Unteraufträge'!C:C,B57,'5. Kosten für Unteraufträge'!B:B,$B$8) -> 0 | G57: =SUMIFS('1. Personalkosten'!S:S,'1. Personalkosten'!C:C,B57,'1. Personalkosten'!B:B,$G$25)+SUMIFS('2-3. Reise&Unterkunftskosten'!N:N,'2-3. Reise&Unterkunftskosten'!C:C,B57,'2-3. Reise&Unterkunftskosten'!B:B,$G$25)+SUMIFS('4. Ausrüstungskosten'!H:H,'4. Ausrüstungskosten'!C:C,B57,'4. Ausrüstungskosten'!B:B,$G$25)+SUMIFS('5. Kosten für Unteraufträge'!H:H,'5. Kosten für Unteraufträge'!C:C,B57,'5. Kosten für Unteraufträge'!B:B,$G$25) -> 0 | H57: =SUMIF('B. Spezieller Mob. - Student'!B:B,B57,'B. Spezieller Mob. - Student'!N:N)+SUMIF('B. Spezieller Mob. - Personal'!B:B,B57,'B. Spezieller Mob. - Personal'!N:N) -> 0 | I57: 0
B58: P33 | C58: =SUMIFS('1. Personalkosten'!S:S,'1. Personalkosten'!C:C,B58,'1. Personalkosten'!B:B,$C$25)+SUMIFS('2-3. Reise&Unterkunftskosten'!N:N,'2-3. Reise&Unterkunftskosten'!C:C,B58,'2-3. Reise&Unterkunftskosten'!B:B,$C$25)+SUMIFS('4. Ausrüstungskosten'!H:H,'4. Ausrüstungskosten'!C:C,B58,'4. Ausrüstungskosten'!B:B,$C$25)+SUMIFS('5. Kosten für Unteraufträge'!H:H,'5. Kosten für Unteraufträge'!C:C,B58,'5. Kosten für Unteraufträge'!B:B,$C$25) -> 0 | D58: =SUMIFS('1. Personalkosten'!S:S,'1. Personalkosten'!C:C,B58,'1. Personalkosten'!B:B,$D$25)+SUMIFS('2-3. Reise&Unterkunftskosten'!N:N,'2-3. Reise&Unterkunftskosten'!C:C,B58,'2-3. Reise&Unterkunftskosten'!B:B,$D$25)+SUMIFS('4. Ausrüstungskosten'!H:H,'4. Ausrüstungskosten'!C:C,B58,'4. Ausrüstungskosten'!B:B,$D$25)+SUMIFS('5. Kosten für Unteraufträge'!H:H,'5. Kosten für Unteraufträge'!C:C,B58,'5. Kosten für Unteraufträge'!B:B,$D$25) -> 0 | E58: =SUMIFS('1. Personalkosten'!S:S,'1. Personalkosten'!C:C,B58,'1. Personalkosten'!B:B,$E$25)+SUMIFS('2-3. Reise&Unterkunftskosten'!N:N,'2-3. Reise&Unterkunftskosten'!C:C,B58,'2-3. Reise&Unterkunftskosten'!B:B,$E$25)+SUMIFS('4. Ausrüstungskosten'!H:H,'4. Ausrüstungskosten'!C:C,B58,'4. Ausrüstungskosten'!B:B,$E$25)+SUMIFS('5. Kosten für Unteraufträge'!H:H,'5. Kosten für Unteraufträge'!C:C,B58,'5. Kosten für Unteraufträge'!B:B,$E$25) -> 0 | F58: =SUMIFS('1. Personalkosten'!S:S,'1. Personalkosten'!C:C,B58,'1. Personalkosten'!B:B,$B$8)+SUMIFS('2-3. Reise&Unterkunftskosten'!N:N,'2-3. Reise&Unterkunftskosten'!C:C,B58,'2-3. Reise&Unterkunftskosten'!B:B,$B$8)+SUMIFS('4. Ausrüstungskosten'!H:H,'4. Ausrüstungskosten'!C:C,B58,'4. Ausrüstungskosten'!B:B,$B$8)+SUMIFS('5. Kosten für Unteraufträge'!H:H,'5. Kosten für Unteraufträge'!C:C,B58,'5. Kosten für Unteraufträge'!B:B,$B$8) -> 0 | G58: =SUMIFS('1. Personalkosten'!S:S,'1. Personalkosten'!C:C,B58,'1. Personalkosten'!B:B,$G$25)+SUMIFS('2-3. Reise&Unterkunftskosten'!N:N,'2-3. Reise&Unterkunftskosten'!C:C,B58,'2-3. Reise&Unterkunftskosten'!B:B,$G$25)+SUMIFS('4. Ausrüstungskosten'!H:H,'4. Ausrüstungskosten'!C:C,B58,'4. Ausrüstungskosten'!B:B,$G$25)+SUMIFS('5. Kosten für Unteraufträge'!H:H,'5. Kosten für Unteraufträge'!C:C,B58,'5. Kosten für Unteraufträge'!B:B,$G$25) -> 0 | H58: =SUMIF('B. Spezieller Mob. - Student'!B:B,B58,'B. Spezieller Mob. - Student'!N:N)+SUMIF('B. Spezieller Mob. - Personal'!B:B,B58,'B. Spezieller Mob. - Personal'!N:N) -> 0 | I58: 0
B59: P34 | C59: =SUMIFS('1. Personalkosten'!S:S,'1. Personalkosten'!C:C,B59,'1. Personalkosten'!B:B,$C$25)+SUMIFS('2-3. Reise&Unterkunftskosten'!N:N,'2-3. Reise&Unterkunftskosten'!C:C,B59,'2-3. Reise&Unterkunftskosten'!B:B,$C$25)+SUMIFS('4. Ausrüstungskosten'!H:H,'4. Ausrüstungskosten'!C:C,B59,'4. Ausrüstungskosten'!B:B,$C$25)+SUMIFS('5. Kosten für Unteraufträge'!H:H,'5. Kosten für Unteraufträge'!C:C,B59,'5. Kosten für Unteraufträge'!B:B,$C$25) -> 0 | D59: =SUMIFS('1. Personalkosten'!S:S,'1. Personalkosten'!C:C,B59,'1. Personalkosten'!B:B,$D$25)+SUMIFS('2-3. Reise&Unterkunftskosten'!N:N,'2-3. Reise&Unterkunftskosten'!C:C,B59,'2-3. Reise&Unterkunftskosten'!B:B,$D$25)+SUMIFS('4. Ausrüstungskosten'!H:H,'4. Ausrüstungskosten'!C:C,B59,'4. Ausrüstungskosten'!B:B,$D$25)+SUMIFS('5. Kosten für Unteraufträge'!H:H,'5. Kosten für Unteraufträge'!C:C,B59,'5. Kosten für Unteraufträge'!B:B,$D$25) -> 0 | E59: =SUMIFS('1. Personalkosten'!S:S,'1. Personalkosten'!C:C,B59,'1. Personalkosten'!B:B,$E$25)+SUMIFS('2-3. Reise&Unterkunftskosten'!N:N,'2-3. Reise&Unterkunftskosten'!C:C,B59,'2-3. Reise&Unterkunftskosten'!B:B,$E$25)+SUMIFS('4. Ausrüstungskosten'!H:H,'4. Ausrüstungskosten'!C:C,B59,'4. Ausrüstungskosten'!B:B,$E$25)+SUMIFS('5. Kosten für Unteraufträge'!H:H,'5. Kosten für Unteraufträge'!C:C,B59,'5. Kosten für Unteraufträge'!B:B,$E$25) -> 0 | F59: =SUMIFS('1. Personalkosten'!S:S,'1. Personalkosten'!C:C,B59,'1. Personalkosten'!B:B,$B$8)+SUMIFS('2-3. Reise&Unterkunftskosten'!N:N,'2-3. Reise&Unterkunftskosten'!C:C,B59,'2-3. Reise&Unterkunftskosten'!B:B,$B$8)+SUMIFS('4. Ausrüstungskosten'!H:H,'4. Ausrüstungskosten'!C:C,B59,'4. Ausrüstungskosten'!B:B,$B$8)+SUMIFS('5. Kosten für Unteraufträge'!H:H,'5. Kosten für Unteraufträge'!C:C,B59,'5. Kosten für Unteraufträge'!B:B,$B$8) -> 0 | G59: =SUMIFS('1. Personalkosten'!S:S,'1. Personalkosten'!C:C,B59,'1. Personalkosten'!B:B,$G$25)+SUMIFS('2-3. Reise&Unterkunftskosten'!N:N,'2-3. Reise&Unterkunftskosten'!C:C,B59,'2-3. Reise&Unterkunftskosten'!B:B,$G$25)+SUMIFS('4. Ausrüstungskosten'!H:H,'4. Ausrüstungskosten'!C:C,B59,'4. Ausrüstungskosten'!B:B,$G$25)+SUMIFS('5. Kosten für Unteraufträge'!H:H,'5. Kosten für Unteraufträge'!C:C,B59,'5. Kosten für Unteraufträge'!B:B,$G$25) -> 0 | H59: =SUMIF('B. Spezieller Mob. - Student'!B:B,B59,'B. Spezieller Mob. - Student'!N:N)+SUMIF('B. Spezieller Mob. - Personal'!B:B,B59,'B. Spezieller Mob. - Personal'!N:N) -> 0 | I59: 0
B60: P35 | C60: =SUMIFS('1. Personalkosten'!S:S,'1. Personalkosten'!C:C,B60,'1. Personalkosten'!B:B,$C$25)+SUMIFS('2-3. Reise&Unterkunftskosten'!N:N,'2-3. Reise&Unterkunftskosten'!C:C,B60,'2-3. Reise&Unterkunftskosten'!B:B,$C$25)+SUMIFS('4. Ausrüstungskosten'!H:H,'4. Ausrüstungskosten'!C:C,B60,'4. Ausrüstungskosten'!B:B,$C$25)+SUMIFS('5. Kosten für Unteraufträge'!H:H,'5. Kosten für Unteraufträge'!C:C,B60,'5. Kosten für Unteraufträge'!B:B,$C$25) -> 0 | D60: =SUMIFS('1. Personalkosten'!S:S,'1. Personalkosten'!C:C,B60,'1. Personalkosten'!B:B,$D$25)+SUMIFS('2-3. Reise&Unterkunftskosten'!N:N,'2-3. Reise&Unterkunftskosten'!C:C,B60,'2-3. Reise&Unterkunftskosten'!B:B,$D$25)+SUMIFS('4. Ausrüstungskosten'!H:H,'4. Ausrüstungskosten'!C:C,B60,'4. Ausrüstungskosten'!B:B,$D$25)+SUMIFS('5. Kosten für Unteraufträge'!H:H,'5. Kosten für Unteraufträge'!C:C,B60,'5. Kosten für Unteraufträge'!B:B,$D$25) -> 0 | E60: =SUMIFS('1. Personalkosten'!S:S,'1. Personalkosten'!C:C,B60,'1. Personalkosten'!B:B,$E$25)+SUMIFS('2-3. Reise&Unterkunftskosten'!N:N,'2-3. Reise&Unterkunftskosten'!C:C,B60,'2-3. Reise&Unterkunftskosten'!B:B,$E$25)+SUMIFS('4. Ausrüstungskosten'!H:H,'4. Ausrüstungskosten'!C:C,B60,'4. Ausrüstungskosten'!B:B,$E$25)+SUMIFS('5. Kosten für Unteraufträge'!H:H,'5. Kosten für Unteraufträge'!C:C,B60,'5. Kosten für Unteraufträge'!B:B,$E$25) -> 0 | F60: =SUMIFS('1. Personalkosten'!S:S,'1. Personalkosten'!C:C,B60,'1. Personalkosten'!B:B,$B$8)+SUMIFS('2-3. Reise&Unterkunftskosten'!N:N,'2-3. Reise&Unterkunftskosten'!C:C,B60,'2-3. Reise&Unterkunftskosten'!B:B,$B$8)+SUMIFS('4. Ausrüstungskosten'!H:H,'4. Ausrüstungskosten'!C:C,B60,'4. Ausrüstungskosten'!B:B,$B$8)+SUMIFS('5. Kosten für Unteraufträge'!H:H,'5. Kosten für Unteraufträge'!C:C,B60,'5. Kosten für Unteraufträge'!B:B,$B$8) -> 0 | G60: =SUMIFS('1. Personalkosten'!S:S,'1. Personalkosten'!C:C,B60,'1. Personalkosten'!B:B,$G$25)+SUMIFS('2-3. Reise&Unterkunftskosten'!N:N,'2-3. Reise&Unterkunftskosten'!C:C,B60,'2-3. Reise&Unterkunftskosten'!B:B,$G$25)+SUMIFS('4. Ausrüstungskosten'!H:H,'4. Ausrüstungskosten'!C:C,B60,'4. Ausrüstungskosten'!B:B,$G$25)+SUMIFS('5. Kosten für Unteraufträge'!H:H,'5. Kosten für Unteraufträge'!C:C,B60,'5. Kosten für Unteraufträge'!B:B,$G$25) -> 0 | H60: =SUMIF('B. Spezieller Mob. - Student'!B:B,B60,'B. Spezieller Mob. - Student'!N:N)+SUMIF('B. Spezieller Mob. - Personal'!B:B,B60,'B. Spezieller Mob. - Personal'!N:N) -> 0 | I60: 0
B61: P36 | C61: =SUMIFS('1. Personalkosten'!S:S,'1. Personalkosten'!C:C,B61,'1. Personalkosten'!B:B,$C$25)+SUMIFS('2-3. Reise&Unterkunftskosten'!N:N,'2-3. Reise&Unterkunftskosten'!C:C,B61,'2-3. Reise&Unterkunftskosten'!B:B,$C$25)+SUMIFS('4. Ausrüstungskosten'!H:H,'4. Ausrüstungskosten'!C:C,B61,'4. Ausrüstungskosten'!B:B,$C$25)+SUMIFS('5. Kosten für Unteraufträge'!H:H,'5. Kosten für Unteraufträge'!C:C,B61,'5. Kosten für Unteraufträge'!B:B,$C$25) -> 0 | D61: =SUMIFS('1. Personalkosten'!S:S,'1. Personalkosten'!C:C,B61,'1. Personalkosten'!B:B,$D$25)+SUMIFS('2-3. Reise&Unterkunftskosten'!N:N,'2-3. Reise&Unterkunftskosten'!C:C,B61,'2-3. Reise&Unterkunftskosten'!B:B,$D$25)+SUMIFS('4. Ausrüstungskosten'!H:H,'4. Ausrüstungskosten'!C:C,B61,'4. Ausrüstungskosten'!B:B,$D$25)+SUMIFS('5. Kosten für Unteraufträge'!H:H,'5. Kosten für Unteraufträge'!C:C,B61,'5. Kosten für Unteraufträge'!B:B,$D$25) -> 0 | E61: =SUMIFS('1. Personalkosten'!S:S,'1. Personalkosten'!C:C,B61,'1. Personalkosten'!B:B,$E$25)+SUMIFS('2-3. Reise&Unterkunftskosten'!N:N,'2-3. Reise&Unterkunftskosten'!C:C,B61,'2-3. Reise&Unterkunftskosten'!B:B,$E$25)+SUMIFS('4. Ausrüstungskosten'!H:H,'4. Ausrüstungskosten'!C:C,B61,'4. Ausrüstungskosten'!B:B,$E$25)+SUMIFS('5. Kosten für Unteraufträge'!H:H,'5. Kosten für Unteraufträge'!C:C,B61,'5. Kosten für Unteraufträge'!B:B,$E$25) -> 0 | F61: =SUMIFS('1. Personalkosten'!S:S,'1. Personalkosten'!C:C,B61,'1. Personalkosten'!B:B,$B$8)+SUMIFS('2-3. Reise&Unterkunftskosten'!N:N,'2-3. Reise&Unterkunftskosten'!C:C,B61,'2-3. Reise&Unterkunftskosten'!B:B,$B$8)+SUMIFS('4. Ausrüstungskosten'!H:H,'4. Ausrüstungskosten'!C:C,B61,'4. Ausrüstungskosten'!B:B,$B$8)+SUMIFS('5. Kosten für Unteraufträge'!H:H,'5. Kosten für Unteraufträge'!C:C,B61,'5. Kosten für Unteraufträge'!B:B,$B$8) -> 0 | G61: =SUMIFS('1. Personalkosten'!S:S,'1. Personalkosten'!C:C,B61,'1. Personalkosten'!B:B,$G$25)+SUMIFS('2-3. Reise&Unterkunftskosten'!N:N,'2-3. Reise&Unterkunftskosten'!C:C,B61,'2-3. Reise&Unterkunftskosten'!B:B,$G$25)+SUMIFS('4. Ausrüstungskosten'!H:H,'4. Ausrüstungskosten'!C:C,B61,'4. Ausrüstungskosten'!B:B,$G$25)+SUMIFS('5. Kosten für Unteraufträge'!H:H,'5. Kosten für Unteraufträge'!C:C,B61,'5. Kosten für Unteraufträge'!B:B,$G$25) -> 0 | H61: =SUMIF('B. Spezieller Mob. - Student'!B:B,B61,'B. Spezieller Mob. - Student'!N:N)+SUMIF('B. Spezieller Mob. - Personal'!B:B,B61,'B. Spezieller Mob. - Personal'!N:N) -> 0 | I61: 0
B62: P37 | C62: =SUMIFS('1. Personalkosten'!S:S,'1. Personalkosten'!C:C,B62,'1. Personalkosten'!B:B,$C$25)+SUMIFS('2-3. Reise&Unterkunftskosten'!N:N,'2-3. Reise&Unterkunftskosten'!C:C,B62,'2-3. Reise&Unterkunftskosten'!B:B,$C$25)+SUMIFS('4. Ausrüstungskosten'!H:H,'4. Ausrüstungskosten'!C:C,B62,'4. Ausrüstungskosten'!B:B,$C$25)+SUMIFS('5. Kosten für Unteraufträge'!H:H,'5. Kosten für Unteraufträge'!C:C,B62,'5. Kosten für Unteraufträge'!B:B,$C$25) -> 0 | D62: =SUMIFS('1. Personalkosten'!S:S,'1. Personalkosten'!C:C,B62,'1. Personalkosten'!B:B,$D$25)+SUMIFS('2-3. Reise&Unterkunftskosten'!N:N,'2-3. Reise&Unterkunftskosten'!C:C,B62,'2-3. Reise&Unterkunftskosten'!B:B,$D$25)+SUMIFS('4. Ausrüstungskosten'!H:H,'4. Ausrüstungskosten'!C:C,B62,'4. Ausrüstungskosten'!B:B,$D$25)+SUMIFS('5. Kosten für Unteraufträge'!H:H,'5. Kosten für Unteraufträge'!C:C,B62,'5. Kosten für Unteraufträge'!B:B,$D$25) -> 0 | E62: =SUMIFS('1. Personalkosten'!S:S,'1. Personalkosten'!C:C,B62,'1. Personalkosten'!B:B,$E$25)+SUMIFS('2-3. Reise&Unterkunftskosten'!N:N,'2-3. Reise&Unterkunftskosten'!C:C,B62,'2-3. Reise&Unterkunftskosten'!B:B,$E$25)+SUMIFS('4. Ausrüstungskosten'!H:H,'4. Ausrüstungskosten'!C:C,B62,'4. Ausrüstungskosten'!B:B,$E$25)+SUMIFS('5. Kosten für Unteraufträge'!H:H,'5. Kosten für Unteraufträge'!C:C,B62,'5. Kosten für Unteraufträge'!B:B,$E$25) -> 0 | F62: =SUMIFS('1. Personalkosten'!S:S,'1. Personalkosten'!C:C,B62,'1. Personalkosten'!B:B,$B$8)+SUMIFS('2-3. Reise&Unterkunftskosten'!N:N,'2-3. Reise&Unterkunftskosten'!C:C,B62,'2-3. Reise&Unterkunftskosten'!B:B,$B$8)+SUMIFS('4. Ausrüstungskosten'!H:H,'4. Ausrüstungskosten'!C:C,B62,'4. Ausrüstungskosten'!B:B,$B$8)+SUMIFS('5. Kosten für Unteraufträge'!H:H,'5. Kosten für Unteraufträge'!C:C,B62,'5. Kosten für Unteraufträge'!B:B,$B$8) -> 0 | G62: =SUMIFS('1. Personalkosten'!S:S,'1. Personalkosten'!C:C,B62,'1. Personalkosten'!B:B,$G$25)+SUMIFS('2-3. Reise&Unterkunftskosten'!N:N,'2-3. Reise&Unterkunftskosten'!C:C,B62,'2-3. Reise&Unterkunftskosten'!B:B,$G$25)+SUMIFS('4. Ausrüstungskosten'!H:H,'4. Ausrüstungskosten'!C:C,B62,'4. Ausrüstungskosten'!B:B,$G$25)+SUMIFS('5. Kosten für Unteraufträge'!H:H,'5. Kosten für Unteraufträge'!C:C,B62,'5. Kosten für Unteraufträge'!B:B,$G$25) -> 0 | H62: =SUMIF('B. Spezieller Mob. - Student'!B:B,B62,'B. Spezieller Mob. - Student'!N:N)+SUMIF('B. Spezieller Mob. - Personal'!B:B,B62,'B. Spezieller Mob. - Personal'!N:N) -> 0 | I62: 0
B63: P38 | C63: =SUMIFS('1. Personalkosten'!S:S,'1. Personalkosten'!C:C,B63,'1. Personalkosten'!B:B,$C$25)+SUMIFS('2-3. Reise&Unterkunftskosten'!N:N,'2-3. Reise&Unterkunftskosten'!C:C,B63,'2-3. Reise&Unterkunftskosten'!B:B,$C$25)+SUMIFS('4. Ausrüstungskosten'!H:H,'4. Ausrüstungskosten'!C:C,B63,'4. Ausrüstungskosten'!B:B,$C$25)+SUMIFS('5. Kosten für Unteraufträge'!H:H,'5. Kosten für Unteraufträge'!C:C,B63,'5. Kosten für Unteraufträge'!B:B,$C$25) -> 0 | D63: =SUMIFS('1. Personalkosten'!S:S,'1. Personalkosten'!C:C,B63,'1. Personalkosten'!B:B,$D$25)+SUMIFS('2-3. Reise&Unterkunftskosten'!N:N,'2-3. Reise&Unterkunftskosten'!C:C,B63,'2-3. Reise&Unterkunftskosten'!B:B,$D$25)+SUMIFS('4. Ausrüstungskosten'!H:H,'4. Ausrüstungskosten'!C:C,B63,'4. Ausrüstungskosten'!B:B,$D$25)+SUMIFS('5. Kosten für Unteraufträge'!H:H,'5. Kosten für Unteraufträge'!C:C,B63,'5. Kosten für Unteraufträge'!B:B,$D$25) -> 0 | E63: =SUMIFS('1. Personalkosten'!S:S,'1. Personalkosten'!C:C,B63,'1. Personalkosten'!B:B,$E$25)+SUMIFS('2-3. Reise&Unterkunftskosten'!N:N,'2-3. Reise&Unterkunftskosten'!C:C,B63,'2-3. Reise&Unterkunftskosten'!B:B,$E$25)+SUMIFS('4. Ausrüstungskosten'!H:H,'4. Ausrüstungskosten'!C:C,B63,'4. Ausrüstungskosten'!B:B,$E$25)+SUMIFS('5. Kosten für Unteraufträge'!H:H,'5. Kosten für Unteraufträge'!C:C,B63,'5. Kosten für Unteraufträge'!B:B,$E$25) -> 0 | F63: =SUMIFS('1. Personalkosten'!S:S,'1. Personalkosten'!C:C,B63,'1. Personalkosten'!B:B,$B$8)+SUMIFS('2-3. Reise&Unterkunftskosten'!N:N,'2-3. Reise&Unterkunftskosten'!C:C,B63,'2-3. Reise&Unterkunftskosten'!B:B,$B$8)+SUMIFS('4. Ausrüstungskosten'!H:H,'4. Ausrüstungskosten'!C:C,B63,'4. Ausrüstungskosten'!B:B,$B$8)+SUMIFS('5. Kosten für Unteraufträge'!H:H,'5. Kosten für Unteraufträge'!C:C,B63,'5. Kosten für Unteraufträge'!B:B,$B$8) -> 0 | G63: =SUMIFS('1. Personalkosten'!S:S,'1. Personalkosten'!C:C,B63,'1. Personalkosten'!B:B,$G$25)+SUMIFS('2-3. Reise&Unterkunftskosten'!N:N,'2-3. Reise&Unterkunftskosten'!C:C,B63,'2-3. Reise&Unterkunftskosten'!B:B,$G$25)+SUMIFS('4. Ausrüstungskosten'!H:H,'4. Ausrüstungskosten'!C:C,B63,'4. Ausrüstungskosten'!B:B,$G$25)+SUMIFS('5. Kosten für Unteraufträge'!H:H,'5. Kosten für Unteraufträge'!C:C,B63,'5. Kosten für Unteraufträge'!B:B,$G$25) -> 0 | H63: =SUMIF('B. Spezieller Mob. - Student'!B:B,B63,'B. Spezieller Mob. - Student'!N:N)+SUMIF('B. Spezieller Mob. - Personal'!B:B,B63,'B. Spezieller Mob. - Personal'!N:N) -> 0 | I63: 0
B64: P39 | C64: =SUMIFS('1. Personalkosten'!S:S,'1. Personalkosten'!C:C,B64,'1. Personalkosten'!B:B,$C$25)+SUMIFS('2-3. Reise&Unterkunftskosten'!N:N,'2-3. Reise&Unterkunftskosten'!C:C,B64,'2-3. Reise&Unterkunftskosten'!B:B,$C$25)+SUMIFS('4. Ausrüstungskosten'!H:H,'4. Ausrüstungskosten'!C:C,B64,'4. Ausrüstungskosten'!B:B,$C$25)+SUMIFS('5. Kosten für Unteraufträge'!H:H,'5. Kosten für Unteraufträge'!C:C,B64,'5. Kosten für Unteraufträge'!B:B,$C$25) -> 0 | D64: =SUMIFS('1. Personalkosten'!S:S,'1. Personalkosten'!C:C,B64,'1. Personalkosten'!B:B,$D$25)+SUMIFS('2-3. Reise&Unterkunftskosten'!N:N,'2-3. Reise&Unterkunftskosten'!C:C,B64,'2-3. Reise&Unterkunftskosten'!B:B,$D$25)+SUMIFS('4. Ausrüstungskosten'!H:H,'4. Ausrüstungskosten'!C:C,B64,'4. Ausrüstungskosten'!B:B,$D$25)+SUMIFS('5. Kosten für Unteraufträge'!H:H,'5. Kosten für Unteraufträge'!C:C,B64,'5. Kosten für Unteraufträge'!B:B,$D$25) -> 0 | E64: =SUMIFS('1. Personalkosten'!S:S,'1. Personalkosten'!C:C,B64,'1. Personalkosten'!B:B,$E$25)+SUMIFS('2-3. Reise&Unterkunftskosten'!N:N,'2-3. Reise&Unterkunftskosten'!C:C,B64,'2-3. Reise&Unterkunftskosten'!B:B,$E$25)+SUMIFS('4. Ausrüstungskosten'!H:H,'4. Ausrüstungskosten'!C:C,B64,'4. Ausrüstungskosten'!B:B,$E$25)+SUMIFS('5. Kosten für Unteraufträge'!H:H,'5. Kosten für Unteraufträge'!C:C,B64,'5. Kosten für Unteraufträge'!B:B,$E$25) -> 0 | F64: =SUMIFS('1. Personalkosten'!S:S,'1. Personalkosten'!C:C,B64,'1. Personalkosten'!B:B,$B$8)+SUMIFS('2-3. Reise&Unterkunftskosten'!N:N,'2-3. Reise&Unterkunftskosten'!C:C,B64,'2-3. Reise&Unterkunftskosten'!B:B,$B$8)+SUMIFS('4. Ausrüstungskosten'!H:H,'4. Ausrüstungskosten'!C:C,B64,'4. Ausrüstungskosten'!B:B,$B$8)+SUMIFS('5. Kosten für Unteraufträge'!H:H,'5. Kosten für Unteraufträge'!C:C,B64,'5. Kosten für Unteraufträge'!B:B,$B$8) -> 0 | G64: =SUMIFS('1. Personalkosten'!S:S,'1. Personalkosten'!C:C,B64,'1. Personalkosten'!B:B,$G$25)+SUMIFS('2-3. Reise&Unterkunftskosten'!N:N,'2-3. Reise&Unterkunftskosten'!C:C,B64,'2-3. Reise&Unterkunftskosten'!B:B,$G$25)+SUMIFS('4. Ausrüstungskosten'!H:H,'4. Ausrüstungskosten'!C:C,B64,'4. Ausrüstungskosten'!B:B,$G$25)+SUMIFS('5. Kosten für Unteraufträge'!H:H,'5. Kosten für Unteraufträge'!C:C,B64,'5. Kosten für Unteraufträge'!B:B,$G$25) -> 0 | H64: =SUMIF('B. Spezieller Mob. - Student'!B:B,B64,'B. Spezieller Mob. - Student'!N:N)+SUMIF('B. Spezieller Mob. - Personal'!B:B,B64,'B. Spezieller Mob. - Personal'!N:N) -> 0 | I64: 0
B65: P40 | C65: =SUMIFS('1. Personalkosten'!S:S,'1. Personalkosten'!C:C,B65,'1. Personalkosten'!B:B,$C$25)+SUMIFS('2-3. Reise&Unterkunftskosten'!N:N,'2-3. Reise&Unterkunftskosten'!C:C,B65,'2-3. Reise&Unterkunftskosten'!B:B,$C$25)+SUMIFS('4. Ausrüstungskosten'!H:H,'4. Ausrüstungskosten'!C:C,B65,'4. Ausrüstungskosten'!B:B,$C$25)+SUMIFS('5. Kosten für Unteraufträge'!H:H,'5. Kosten für Unteraufträge'!C:C,B65,'5. Kosten für Unteraufträge'!B:B,$C$25) -> 0 | D65: =SUMIFS('1. Personalkosten'!S:S,'1. Personalkosten'!C:C,B65,'1. Personalkosten'!B:B,$D$25)+SUMIFS('2-3. Reise&Unterkunftskosten'!N:N,'2-3. Reise&Unterkunftskosten'!C:C,B65,'2-3. Reise&Unterkunftskosten'!B:B,$D$25)+SUMIFS('4. Ausrüstungskosten'!H:H,'4. Ausrüstungskosten'!C:C,B65,'4. Ausrüstungskosten'!B:B,$D$25)+SUMIFS('5. Kosten für Unteraufträge'!H:H,'5. Kosten für Unteraufträge'!C:C,B65,'5. Kosten für Unteraufträge'!B:B,$D$25) -> 0 | E65: =SUMIFS('1. Personalkosten'!S:S,'1. Personalkosten'!C:C,B65,'1. Personalkosten'!B:B,$E$25)+SUMIFS('2-3. Reise&Unterkunftskosten'!N:N,'2-3. Reise&Unterkunftskosten'!C:C,B65,'2-3. Reise&Unterkunftskosten'!B:B,$E$25)+SUMIFS('4. Ausrüstungskosten'!H:H,'4. Ausrüstungskosten'!C:C,B65,'4. Ausrüstungskosten'!B:B,$E$25)+SUMIFS('5. Kosten für Unteraufträge'!H:H,'5. Kosten für Unteraufträge'!C:C,B65,'5. Kosten für Unteraufträge'!B:B,$E$25) -> 0 | F65: =SUMIFS('1. Personalkosten'!S:S,'1. Personalkosten'!C:C,B65,'1. Personalkosten'!B:B,$B$8)+SUMIFS('2-3. Reise&Unterkunftskosten'!N:N,'2-3. Reise&Unterkunftskosten'!C:C,B65,'2-3. Reise&Unterkunftskosten'!B:B,$B$8)+SUMIFS('4. Ausrüstungskosten'!H:H,'4. Ausrüstungskosten'!C:C,B65,'4. Ausrüstungskosten'!B:B,$B$8)+SUMIFS('5. Kosten für Unteraufträge'!H:H,'5. Kosten für Unteraufträge'!C:C,B65,'5. Kosten für Unteraufträge'!B:B,$B$8) -> 0 | G65: =SUMIFS('1. Personalkosten'!S:S,'1. Personalkosten'!C:C,B65,'1. Personalkosten'!B:B,$G$25)+SUMIFS('2-3. Reise&Unterkunftskosten'!N:N,'2-3. Reise&Unterkunftskosten'!C:C,B65,'2-3. Reise&Unterkunftskosten'!B:B,$G$25)+SUMIFS('4. Ausrüstungskosten'!H:H,'4. Ausrüstungskosten'!C:C,B65,'4. Ausrüstungskosten'!B:B,$G$25)+SUMIFS('5. Kosten für Unteraufträge'!H:H,'5. Kosten für Unteraufträge'!C:C,B65,'5. Kosten für Unteraufträge'!B:B,$G$25) -> 0 | H65: =SUMIF('B. Spezieller Mob. - Student'!B:B,B65,'B. Spezieller Mob. - Student'!N:N)+SUMIF('B. Spezieller Mob. - Personal'!B:B,B65,'B. Spezieller Mob. - Personal'!N:N) -> 0 | I65: 0
B66: P41 | C66: =SUMIFS('1. Personalkosten'!S:S,'1. Personalkosten'!C:C,B66,'1. Personalkosten'!B:B,$C$25)+SUMIFS('2-3. Reise&Unterkunftskosten'!N:N,'2-3. Reise&Unterkunftskosten'!C:C,B66,'2-3. Reise&Unterkunftskosten'!B:B,$C$25)+SUMIFS('4. Ausrüstungskosten'!H:H,'4. Ausrüstungskosten'!C:C,B66,'4. Ausrüstungskosten'!B:B,$C$25)+SUMIFS('5. Kosten für Unteraufträge'!H:H,'5. Kosten für Unteraufträge'!C:C,B66,'5. Kosten für Unteraufträge'!B:B,$C$25) -> 0 | D66: =SUMIFS('1. Personalkosten'!S:S,'1. Personalkosten'!C:C,B66,'1. Personalkosten'!B:B,$D$25)+SUMIFS('2-3. Reise&Unterkunftskosten'!N:N,'2-3. Reise&Unterkunftskosten'!C:C,B66,'2-3. Reise&Unterkunftskosten'!B:B,$D$25)+SUMIFS('4. Ausrüstungskosten'!H:H,'4. Ausrüstungskosten'!C:C,B66,'4. Ausrüstungskosten'!B:B,$D$25)+SUMIFS('5. Kosten für Unteraufträge'!H:H,'5. Kosten für Unteraufträge'!C:C,B66,'5. Kosten für Unteraufträge'!B:B,$D$25) -> 0 | E66: =SUMIFS('1. Personalkosten'!S:S,'1. Personalkosten'!C:C,B66,'1. Personalkosten'!B:B,$E$25)+SUMIFS('2-3. Reise&Unterkunftskosten'!N:N,'2-3. Reise&Unterkunftskosten'!C:C,B66,'2-3. Reise&Unterkunftskosten'!B:B,$E$25)+SUMIFS('4. Ausrüstungskosten'!H:H,'4. Ausrüstungskosten'!C:C,B66,'4. Ausrüstungskosten'!B:B,$E$25)+SUMIFS('5. Kosten für Unteraufträge'!H:H,'5. Kosten für Unteraufträge'!C:C,B66,'5. Kosten für Unteraufträge'!B:B,$E$25) -> 0 | F66: =SUMIFS('1. Personalkosten'!S:S,'1. Personalkosten'!C:C,B66,'1. Personalkosten'!B:B,$B$8)+SUMIFS('2-3. Reise&Unterkunftskosten'!N:N,'2-3. Reise&Unterkunftskosten'!C:C,B66,'2-3. Reise&Unterkunftskosten'!B:B,$B$8)+SUMIFS('4. Ausrüstungskosten'!H:H,'4. Ausrüstungskosten'!C:C,B66,'4. Ausrüstungskosten'!B:B,$B$8)+SUMIFS('5. Kosten für Unteraufträge'!H:H,'5. Kosten für Unteraufträge'!C:C,B66,'5. Kosten für Unteraufträge'!B:B,$B$8) -> 0 | G66: =SUMIFS('1. Personalkosten'!S:S,'1. Personalkosten'!C:C,B66,'1. Personalkosten'!B:B,$G$25)+SUMIFS('2-3. Reise&Unterkunftskosten'!N:N,'2-3. Reise&Unterkunftskosten'!C:C,B66,'2-3. Reise&Unterkunftskosten'!B:B,$G$25)+SUMIFS('4. Ausrüstungskosten'!H:H,'4. Ausrüstungskosten'!C:C,B66,'4. Ausrüstungskosten'!B:B,$G$25)+SUMIFS('5. Kosten für Unteraufträge'!H:H,'5. Kosten für Unteraufträge'!C:C,B66,'5. Kosten für Unteraufträge'!B:B,$G$25) -> 0 | H66: =SUMIF('B. Spezieller Mob. - Student'!B:B,B66,'B. Spezieller Mob. - Student'!N:N)+SUMIF('B. Spezieller Mob. - Personal'!B:B,B66,'B. Spezieller Mob. - Personal'!N:N) -> 0 | I66: 0
B67: P42 | C67: =SUMIFS('1. Personalkosten'!S:S,'1. Personalkosten'!C:C,B67,'1. Personalkosten'!B:B,$C$25)+SUMIFS('2-3. Reise&Unterkunftskosten'!N:N,'2-3. Reise&Unterkunftskosten'!C:C,B67,'2-3. Reise&Unterkunftskosten'!B:B,$C$25)+SUMIFS('4. Ausrüstungskosten'!H:H,'4. Ausrüstungskosten'!C:C,B67,'4. Ausrüstungskosten'!B:B,$C$25)+SUMIFS('5. Kosten für Unteraufträge'!H:H,'5. Kosten für Unteraufträge'!C:C,B67,'5. Kosten für Unteraufträge'!B:B,$C$25) -> 0 | D67: =SUMIFS('1. Personalkosten'!S:S,'1. Personalkosten'!C:C,B67,'1. Personalkosten'!B:B,$D$25)+SUMIFS('2-3. Reise&Unterkunftskosten'!N:N,'2-3. Reise&Unterkunftskosten'!C:C,B67,'2-3. Reise&Unterkunftskosten'!B:B,$D$25)+SUMIFS('4. Ausrüstungskosten'!H:H,'4. Ausrüstungskosten'!C:C,B67,'4. Ausrüstungskosten'!B:B,$D$25)+SUMIFS('5. Kosten für Unteraufträge'!H:H,'5. Kosten für Unteraufträge'!C:C,B67,'5. Kosten für Unteraufträge'!B:B,$D$25) -> 0 | E67: =SUMIFS('1. Personalkosten'!S:S,'1. Personalkosten'!C:C,B67,'1. Personalkosten'!B:B,$E$25)+SUMIFS('2-3. Reise&Unterkunftskosten'!N:N,'2-3. Reise&Unterkunftskosten'!C:C,B67,'2-3. Reise&Unterkunftskosten'!B:B,$E$25)+SUMIFS('4. Ausrüstungskosten'!H:H,'4. Ausrüstungskosten'!C:C,B67,'4. Ausrüstungskosten'!B:B,$E$25)+SUMIFS('5. Kosten für Unteraufträge'!H:H,'5. Kosten für Unteraufträge'!C:C,B67,'5. Kosten für Unteraufträge'!B:B,$E$25) -> 0 | F67: =SUMIFS('1. Personalkosten'!S:S,'1. Personalkosten'!C:C,B67,'1. Personalkosten'!B:B,$B$8)+SUMIFS('2-3. Reise&Unterkunftskosten'!N:N,'2-3. Reise&Unterkunftskosten'!C:C,B67,'2-3. Reise&Unterkunftskosten'!B:B,$B$8)+SUMIFS('4. Ausrüstungskosten'!H:H,'4. Ausrüstungskosten'!C:C,B67,'4. Ausrüstungskosten'!B:B,$B$8)+SUMIFS('5. Kosten für Unteraufträge'!H:H,'5. Kosten für Unteraufträge'!C:C,B67,'5. Kosten für Unteraufträge'!B:B,$B$8) -> 0 | G67: =SUMIFS('1. Personalkosten'!S:S,'1. Personalkosten'!C:C,B67,'1. Personalkosten'!B:B,$G$25)+SUMIFS('2-3. Reise&Unterkunftskosten'!N:N,'2-3. Reise&Unterkunftskosten'!C:C,B67,'2-3. Reise&Unterkunftskosten'!B:B,$G$25)+SUMIFS('4. Ausrüstungskosten'!H:H,'4. Ausrüstungskosten'!C:C,B67,'4. Ausrüstungskosten'!B:B,$G$25)+SUMIFS('5. Kosten für Unteraufträge'!H:H,'5. Kosten für Unteraufträge'!C:C,B67,'5. Kosten für Unteraufträge'!B:B,$G$25) -> 0 | H67: =SUMIF('B. Spezieller Mob. - Student'!B:B,B67,'B. Spezieller Mob. - Student'!N:N)+SUMIF('B. Spezieller Mob. - Personal'!B:B,B67,'B. Spezieller Mob. - Personal'!N:N) -> 0 | I67: 0
B68: P43 | C68: =SUMIFS('1. Personalkosten'!S:S,'1. Personalkosten'!C:C,B68,'1. Personalkosten'!B:B,$C$25)+SUMIFS('2-3. Reise&Unterkunftskosten'!N:N,'2-3. Reise&Unterkunftskosten'!C:C,B68,'2-3. Reise&Unterkunftskosten'!B:B,$C$25)+SUMIFS('4. Ausrüstungskosten'!H:H,'4. Ausrüstungskosten'!C:C,B68,'4. Ausrüstungskosten'!B:B,$C$25)+SUMIFS('5. Kosten für Unteraufträge'!H:H,'5. Kosten für Unteraufträge'!C:C,B68,'5. Kosten für Unteraufträge'!B:B,$C$25) -> 0 | D68: =SUMIFS('1. Personalkosten'!S:S,'1. Personalkosten'!C:C,B68,'1. Personalkosten'!B:B,$D$25)+SUMIFS('2-3. Reise&Unterkunftskosten'!N:N,'2-3. Reise&Unterkunftskosten'!C:C,B68,'2-3. Reise&Unterkunftskosten'!B:B,$D$25)+SUMIFS('4. Ausrüstungskosten'!H:H,'4. Ausrüstungskosten'!C:C,B68,'4. Ausrüstungskosten'!B:B,$D$25)+SUMIFS('5. Kosten für Unteraufträge'!H:H,'5. Kosten für Unteraufträge'!C:C,B68,'5. Kosten für Unteraufträge'!B:B,$D$25) -> 0 | E68: =SUMIFS('1. Personalkosten'!S:S,'1. Personalkosten'!C:C,B68,'1. Personalkosten'!B:B,$E$25)+SUMIFS('2-3. Reise&Unterkunftskosten'!N:N,'2-3. Reise&Unterkunftskosten'!C:C,B68,'2-3. Reise&Unterkunftskosten'!B:B,$E$25)+SUMIFS('4. Ausrüstungskosten'!H:H,'4. Ausrüstungskosten'!C:C,B68,'4. Ausrüstungskosten'!B:B,$E$25)+SUMIFS('5. Kosten für Unteraufträge'!H:H,'5. Kosten für Unteraufträge'!C:C,B68,'5. Kosten für Unteraufträge'!B:B,$E$25) -> 0 | F68: =SUMIFS('1. Personalkosten'!S:S,'1. Personalkosten'!C:C,B68,'1. Personalkosten'!B:B,$B$8)+SUMIFS('2-3. Reise&Unterkunftskosten'!N:N,'2-3. Reise&Unterkunftskosten'!C:C,B68,'2-3. Reise&Unterkunftskosten'!B:B,$B$8)+SUMIFS('4. Ausrüstungskosten'!H:H,'4. Ausrüstungskosten'!C:C,B68,'4. Ausrüstungskosten'!B:B,$B$8)+SUMIFS('5. Kosten für Unteraufträge'!H:H,'5. Kosten für Unteraufträge'!C:C,B68,'5. Kosten für Unteraufträge'!B:B,$B$8) -> 0 | G68: =SUMIFS('1. Personalkosten'!S:S,'1. Personalkosten'!C:C,B68,'1. Personalkosten'!B:B,$G$25)+SUMIFS('2-3. Reise&Unterkunftskosten'!N:N,'2-3. Reise&Unterkunftskosten'!C:C,B68,'2-3. Reise&Unterkunftskosten'!B:B,$G$25)+SUMIFS('4. Ausrüstungskosten'!H:H,'4. Ausrüstungskosten'!C:C,B68,'4. Ausrüstungskosten'!B:B,$G$25)+SUMIFS('5. Kosten für Unteraufträge'!H:H,'5. Kosten für Unteraufträge'!C:C,B68,'5. Kosten für Unteraufträge'!B:B,$G$25) -> 0 | H68: =SUMIF('B. Spezieller Mob. - Student'!B:B,B68,'B. Spezieller Mob. - Student'!N:N)+SUMIF('B. Spezieller Mob. - Personal'!B:B,B68,'B. Spezieller Mob. - Personal'!N:N) -> 0 | I68: 0
B69: P44 | C69: =SUMIFS('1. Personalkosten'!S:S,'1. Personalkosten'!C:C,B69,'1. Personalkosten'!B:B,$C$25)+SUMIFS('2-3. Reise&Unterkunftskosten'!N:N,'2-3. Reise&Unterkunftskosten'!C:C,B69,'2-3. Reise&Unterkunftskosten'!B:B,$C$25)+SUMIFS('4. Ausrüstungskosten'!H:H,'4. Ausrüstungskosten'!C:C,B69,'4. Ausrüstungskosten'!B:B,$C$25)+SUMIFS('5. Kosten für Unteraufträge'!H:H,'5. Kosten für Unteraufträge'!C:C,B69,'5. Kosten für Unteraufträge'!B:B,$C$25) -> 0 | D69: =SUMIFS('1. Personalkosten'!S:S,'1. Personalkosten'!C:C,B69,'1. Personalkosten'!B:B,$D$25)+SUMIFS('2-3. Reise&Unterkunftskosten'!N:N,'2-3. Reise&Unterkunftskosten'!C:C,B69,'2-3. Reise&Unterkunftskosten'!B:B,$D$25)+SUMIFS('4. Ausrüstungskosten'!H:H,'4. Ausrüstungskosten'!C:C,B69,'4. Ausrüstungskosten'!B:B,$D$25)+SUMIFS('5. Kosten für Unteraufträge'!H:H,'5. Kosten für Unteraufträge'!C:C,B69,'5. Kosten für Unteraufträge'!B:B,$D$25) -> 0 | E69: =SUMIFS('1. Personalkosten'!S:S,'1. Personalkosten'!C:C,B69,'1. Personalkosten'!B:B,$E$25)+SUMIFS('2-3. Reise&Unterkunftskosten'!N:N,'2-3. Reise&Unterkunftskosten'!C:C,B69,'2-3. Reise&Unterkunftskosten'!B:B,$E$25)+SUMIFS('4. Ausrüstungskosten'!H:H,'4. Ausrüstungskosten'!C:C,B69,'4. Ausrüstungskosten'!B:B,$E$25)+SUMIFS('5. Kosten für Unteraufträge'!H:H,'5. Kosten für Unteraufträge'!C:C,B69,'5. Kosten für Unteraufträge'!B:B,$E$25) -> 0 | F69: =SUMIFS('1. Personalkosten'!S:S,'1. Personalkosten'!C:C,B69,'1. Personalkosten'!B:B,$B$8)+SUMIFS('2-3. Reise&Unterkunftskosten'!N:N,'2-3. Reise&Unterkunftskosten'!C:C,B69,'2-3. Reise&Unterkunftskosten'!B:B,$B$8)+SUMIFS('4. Ausrüstungskosten'!H:H,'4. Ausrüstungskosten'!C:C,B69,'4. Ausrüstungskosten'!B:B,$B$8)+SUMIFS('5. Kosten für Unteraufträge'!H:H,'5. Kosten für Unteraufträge'!C:C,B69,'5. Kosten für Unteraufträge'!B:B,$B$8) -> 0 | G69: =SUMIFS('1. Personalkosten'!S:S,'1. Personalkosten'!C:C,B69,'1. Personalkosten'!B:B,$G$25)+SUMIFS('2-3. Reise&Unterkunftskosten'!N:N,'2-3. Reise&Unterkunftskosten'!C:C,B69,'2-3. Reise&Unterkunftskosten'!B:B,$G$25)+SUMIFS('4. Ausrüstungskosten'!H:H,'4. Ausrüstungskosten'!C:C,B69,'4. Ausrüstungskosten'!B:B,$G$25)+SUMIFS('5. Kosten für Unteraufträge'!H:H,'5. Kosten für Unteraufträge'!C:C,B69,'5. Kosten für Unteraufträge'!B:B,$G$25) -> 0 | H69: =SUMIF('B. Spezieller Mob. - Student'!B:B,B69,'B. Spezieller Mob. - Student'!N:N)+SUMIF('B. Spezieller Mob. - Personal'!B:B,B69,'B. Spezieller Mob. - Personal'!N:N) -> 0 | I69: 0
B70: P45 | C70: =SUMIFS('1. Personalkosten'!S:S,'1. Personalkosten'!C:C,B70,'1. Personalkosten'!B:B,$C$25)+SUMIFS('2-3. Reise&Unterkunftskosten'!N:N,'2-3. Reise&Unterkunftskosten'!C:C,B70,'2-3. Reise&Unterkunftskosten'!B:B,$C$25)+SUMIFS('4. Ausrüstungskosten'!H:H,'4. Ausrüstungskosten'!C:C,B70,'4. Ausrüstungskosten'!B:B,$C$25)+SUMIFS('5. Kosten für Unteraufträge'!H:H,'5. Kosten für Unteraufträge'!C:C,B70,'5. Kosten für Unteraufträge'!B:B,$C$25) -> 0 | D70: =SUMIFS('1. Personalkosten'!S:S,'1. Personalkosten'!C:C,B70,'1. Personalkosten'!B:B,$D$25)+SUMIFS('2-3. Reise&Unterkunftskosten'!N:N,'2-3. Reise&Unterkunftskosten'!C:C,B70,'2-3. Reise&Unterkunftskosten'!B:B,$D$25)+SUMIFS('4. Ausrüstungskosten'!H:H,'4. Ausrüstungskosten'!C:C,B70,'4. Ausrüstungskosten'!B:B,$D$25)+SUMIFS('5. Kosten für Unteraufträge'!H:H,'5. Kosten für Unteraufträge'!C:C,B70,'5. Kosten für Unteraufträge'!B:B,$D$25) -> 0 | E70: =SUMIFS('1. Personalkosten'!S:S,'1. Personalkosten'!C:C,B70,'1. Personalkosten'!B:B,$E$25)+SUMIFS('2-3. Reise&Unterkunftskosten'!N:N,'2-3. Reise&Unterkunftskosten'!C:C,B70,'2-3. Reise&Unterkunftskosten'!B:B,$E$25)+SUMIFS('4. Ausrüstungskosten'!H:H,'4. Ausrüstungskosten'!C:C,B70,'4. Ausrüstungskosten'!B:B,$E$25)+SUMIFS('5. Kosten für Unteraufträge'!H:H,'5. Kosten für Unteraufträge'!C:C,B70,'5. Kosten für Unteraufträge'!B:B,$E$25) -> 0 | F70: =SUMIFS('1. Personalkosten'!S:S,'1. Personalkosten'!C:C,B70,'1. Personalkosten'!B:B,$B$8)+SUMIFS('2-3. Reise&Unterkunftskosten'!N:N,'2-3. Reise&Unterkunftskosten'!C:C,B70,'2-3. Reise&Unterkunftskosten'!B:B,$B$8)+SUMIFS('4. Ausrüstungskosten'!H:H,'4. Ausrüstungskosten'!C:C,B70,'4. Ausrüstungskosten'!B:B,$B$8)+SUMIFS('5. Kosten für Unteraufträge'!H:H,'5. Kosten für Unteraufträge'!C:C,B70,'5. Kosten für Unteraufträge'!B:B,$B$8) -> 0 | G70: =SUMIFS('1. Personalkosten'!S:S,'1. Personalkosten'!C:C,B70,'1. Personalkosten'!B:B,$G$25)+SUMIFS('2-3. Reise&Unterkunftskosten'!N:N,'2-3. Reise&Unterkunftskosten'!C:C,B70,'2-3. Reise&Unterkunftskosten'!B:B,$G$25)+SUMIFS('4. Ausrüstungskosten'!H:H,'4. Ausrüstungskosten'!C:C,B70,'4. Ausrüstungskosten'!B:B,$G$25)+SUMIFS('5. Kosten für Unteraufträge'!H:H,'5. Kosten für Unteraufträge'!C:C,B70,'5. Kosten für Unteraufträge'!B:B,$G$25) -> 0 | H70: =SUMIF('B. Spezieller Mob. - Student'!B:B,B70,'B. Spezieller Mob. - Student'!N:N)+SUMIF('B. Spezieller Mob. - Personal'!B:B,B70,'B. Spezieller Mob. - Personal'!N:N) -> 0 | I70: 0
B71: P46 | C71: =SUMIFS('1. Personalkosten'!S:S,'1. Personalkosten'!C:C,B71,'1. Personalkosten'!B:B,$C$25)+SUMIFS('2-3. Reise&Unterkunftskosten'!N:N,'2-3. Reise&Unterkunftskosten'!C:C,B71,'2-3. Reise&Unterkunftskosten'!B:B,$C$25)+SUMIFS('4. Ausrüstungskosten'!H:H,'4. Ausrüstungskosten'!C:C,B71,'4. Ausrüstungskosten'!B:B,$C$25)+SUMIFS('5. Kosten für Unteraufträge'!H:H,'5. Kosten für Unteraufträge'!C:C,B71,'5. Kosten für Unteraufträge'!B:B,$C$25) -> 0 | D71: =SUMIFS('1. Personalkosten'!S:S,'1. Personalkosten'!C:C,B71,'1. Personalkosten'!B:B,$D$25)+SUMIFS('2-3. Reise&Unterkunftskosten'!N:N,'2-3. Reise&Unterkunftskosten'!C:C,B71,'2-3. Reise&Unterkunftskosten'!B:B,$D$25)+SUMIFS('4. Ausrüstungskosten'!H:H,'4. Ausrüstungskosten'!C:C,B71,'4. Ausrüstungskosten'!B:B,$D$25)+SUMIFS('5. Kosten für Unteraufträge'!H:H,'5. Kosten für Unteraufträge'!C:C,B71,'5. Kosten für Unteraufträge'!B:B,$D$25) -> 0 | E71: =SUMIFS('1. Personalkosten'!S:S,'1. Personalkosten'!C:C,B71,'1. Personalkosten'!B:B,$E$25)+SUMIFS('2-3. Reise&Unterkunftskosten'!N:N,'2-3. Reise&Unterkunftskosten'!C:C,B71,'2-3. Reise&Unterkunftskosten'!B:B,$E$25)+SUMIFS('4. Ausrüstungskosten'!H:H,'4. Ausrüstungskosten'!C:C,B71,'4. Ausrüstungskosten'!B:B,$E$25)+SUMIFS('5. Kosten für Unteraufträge'!H:H,'5. Kosten für Unteraufträge'!C:C,B71,'5. Kosten für Unteraufträge'!B:B,$E$25) -> 0 | F71: =SUMIFS('1. Personalkosten'!S:S,'1. Personalkosten'!C:C,B71,'1. Personalkosten'!B:B,$B$8)+SUMIFS('2-3. Reise&Unterkunftskosten'!N:N,'2-3. Reise&Unterkunftskosten'!C:C,B71,'2-3. Reise&Unterkunftskosten'!B:B,$B$8)+SUMIFS('4. Ausrüstungskosten'!H:H,'4. Ausrüstungskosten'!C:C,B71,'4. Ausrüstungskosten'!B:B,$B$8)+SUMIFS('5. Kosten für Unteraufträge'!H:H,'5. Kosten für Unteraufträge'!C:C,B71,'5. Kosten für Unteraufträge'!B:B,$B$8) -> 0 | G71: =SUMIFS('1. Personalkosten'!S:S,'1. Personalkosten'!C:C,B71,'1. Personalkosten'!B:B,$G$25)+SUMIFS('2-3. Reise&Unterkunftskosten'!N:N,'2-3. Reise&Unterkunftskosten'!C:C,B71,'2-3. Reise&Unterkunftskosten'!B:B,$G$25)+SUMIFS('4. Ausrüstungskosten'!H:H,'4. Ausrüstungskosten'!C:C,B71,'4. Ausrüstungskosten'!B:B,$G$25)+SUMIFS('5. Kosten für Unteraufträge'!H:H,'5. Kosten für Unteraufträge'!C:C,B71,'5. Kosten für Unteraufträge'!B:B,$G$25) -> 0 | H71: =SUMIF('B. Spezieller Mob. - Student'!B:B,B71,'B. Spezieller Mob. - Student'!N:N)+SUMIF('B. Spezieller Mob. - Personal'!B:B,B71,'B. Spezieller Mob. - Personal'!N:N) -> 0 | I71: 0
B72: P47 | C72: =SUMIFS('1. Personalkosten'!S:S,'1. Personalkosten'!C:C,B72,'1. Personalkosten'!B:B,$C$25)+SUMIFS('2-3. Reise&Unterkunftskosten'!N:N,'2-3. Reise&Unterkunftskosten'!C:C,B72,'2-3. Reise&Unterkunftskosten'!B:B,$C$25)+SUMIFS('4. Ausrüstungskosten'!H:H,'4. Ausrüstungskosten'!C:C,B72,'4. Ausrüstungskosten'!B:B,$C$25)+SUMIFS('5. Kosten für Unteraufträge'!H:H,'5. Kosten für Unteraufträge'!C:C,B72,'5. Kosten für Unteraufträge'!B:B,$C$25) -> 0 | D72: =SUMIFS('1. Personalkosten'!S:S,'1. Personalkosten'!C:C,B72,'1. Personalkosten'!B:B,$D$25)+SUMIFS('2-3. Reise&Unterkunftskosten'!N:N,'2-3. Reise&Unterkunftskosten'!C:C,B72,'2-3. Reise&Unterkunftskosten'!B:B,$D$25)+SUMIFS('4. Ausrüstungskosten'!H:H,'4. Ausrüstungskosten'!C:C,B72,'4. Ausrüstungskosten'!B:B,$D$25)+SUMIFS('5. Kosten für Unteraufträge'!H:H,'5. Kosten für Unteraufträge'!C:C,B72,'5. Kosten für Unteraufträge'!B:B,$D$25) -> 0 | E72: =SUMIFS('1. Personalkosten'!S:S,'1. Personalkosten'!C:C,B72,'1. Personalkosten'!B:B,$E$25)+SUMIFS('2-3. Reise&Unterkunftskosten'!N:N,'2-3. Reise&Unterkunftskosten'!C:C,B72,'2-3. Reise&Unterkunftskosten'!B:B,$E$25)+SUMIFS('4. Ausrüstungskosten'!H:H,'4. Ausrüstungskosten'!C:C,B72,'4. Ausrüstungskosten'!B:B,$E$25)+SUMIFS('5. Kosten für Unteraufträge'!H:H,'5. Kosten für Unteraufträge'!C:C,B72,'5. Kosten für Unteraufträge'!B:B,$E$25) -> 0 | F72: =SUMIFS('1. Personalkosten'!S:S,'1. Personalkosten'!C:C,B72,'1. Personalkosten'!B:B,$B$8)+SUMIFS('2-3. Reise&Unterkunftskosten'!N:N,'2-3. Reise&Unterkunftskosten'!C:C,B72,'2-3. Reise&Unterkunftskosten'!B:B,$B$8)+SUMIFS('4. Ausrüstungskosten'!H:H,'4. Ausrüstungskosten'!C:C,B72,'4. Ausrüstungskosten'!B:B,$B$8)+SUMIFS('5. Kosten für Unteraufträge'!H:H,'5. Kosten für Unteraufträge'!C:C,B72,'5. Kosten für Unteraufträge'!B:B,$B$8) -> 0 | G72: =SUMIFS('1. Personalkosten'!S:S,'1. Personalkosten'!C:C,B72,'1. Personalkosten'!B:B,$G$25)+SUMIFS('2-3. Reise&Unterkunftskosten'!N:N,'2-3. Reise&Unterkunftskosten'!C:C,B72,'2-3. Reise&Unterkunftskosten'!B:B,$G$25)+SUMIFS('4. Ausrüstungskosten'!H:H,'4. Ausrüstungskosten'!C:C,B72,'4. Ausrüstungskosten'!B:B,$G$25)+SUMIFS('5. Kosten für Unteraufträge'!H:H,'5. Kosten für Unteraufträge'!C:C,B72,'5. Kosten für Unteraufträge'!B:B,$G$25) -> 0 | H72: =SUMIF('B. Spezieller Mob. - Student'!B:B,B72,'B. Spezieller Mob. - Student'!N:N)+SUMIF('B. Spezieller Mob. - Personal'!B:B,B72,'B. Spezieller Mob. - Personal'!N:N) -> 0 | I72: 0
B73: P48 | C73: =SUMIFS('1. Personalkosten'!S:S,'1. Personalkosten'!C:C,B73,'1. Personalkosten'!B:B,$C$25)+SUMIFS('2-3. Reise&Unterkunftskosten'!N:N,'2-3. Reise&Unterkunftskosten'!C:C,B73,'2-3. Reise&Unterkunftskosten'!B:B,$C$25)+SUMIFS('4. Ausrüstungskosten'!H:H,'4. Ausrüstungskosten'!C:C,B73,'4. Ausrüstungskosten'!B:B,$C$25)+SUMIFS('5. Kosten für Unteraufträge'!H:H,'5. Kosten für Unteraufträge'!C:C,B73,'5. Kosten für Unteraufträge'!B:B,$C$25) -> 0 | D73: =SUMIFS('1. Personalkosten'!S:S,'1. Personalkosten'!C:C,B73,'1. Personalkosten'!B:B,$D$25)+SUMIFS('2-3. Reise&Unterkunftskosten'!N:N,'2-3. Reise&Unterkunftskosten'!C:C,B73,'2-3. Reise&Unterkunftskosten'!B:B,$D$25)+SUMIFS('4. Ausrüstungskosten'!H:H,'4. Ausrüstungskosten'!C:C,B73,'4. Ausrüstungskosten'!B:B,$D$25)+SUMIFS('5. Kosten für Unteraufträge'!H:H,'5. Kosten für Unteraufträge'!C:C,B73,'5. Kosten für Unteraufträge'!B:B,$D$25) -> 0 | E73: =SUMIFS('1. Personalkosten'!S:S,'1. Personalkosten'!C:C,B73,'1. Personalkosten'!B:B,$E$25)+SUMIFS('2-3. Reise&Unterkunftskosten'!N:N,'2-3. Reise&Unterkunftskosten'!C:C,B73,'2-3. Reise&Unterkunftskosten'!B:B,$E$25)+SUMIFS('4. Ausrüstungskosten'!H:H,'4. Ausrüstungskosten'!C:C,B73,'4. Ausrüstungskosten'!B:B,$E$25)+SUMIFS('5. Kosten für Unteraufträge'!H:H,'5. Kosten für Unteraufträge'!C:C,B73,'5. Kosten für Unteraufträge'!B:B,$E$25) -> 0 | F73: =SUMIFS('1. Personalkosten'!S:S,'1. Personalkosten'!C:C,B73,'1. Personalkosten'!B:B,$B$8)+SUMIFS('2-3. Reise&Unterkunftskosten'!N:N,'2-3. Reise&Unterkunftskosten'!C:C,B73,'2-3. Reise&Unterkunftskosten'!B:B,$B$8)+SUMIFS('4. Ausrüstungskosten'!H:H,'4. Ausrüstungskosten'!C:C,B73,'4. Ausrüstungskosten'!B:B,$B$8)+SUMIFS('5. Kosten für Unteraufträge'!H:H,'5. Kosten für Unteraufträge'!C:C,B73,'5. Kosten für Unteraufträge'!B:B,$B$8) -> 0 | G73: =SUMIFS('1. Personalkosten'!S:S,'1. Personalkosten'!C:C,B73,'1. Personalkosten'!B:B,$G$25)+SUMIFS('2-3. Reise&Unterkunftskosten'!N:N,'2-3. Reise&Unterkunftskosten'!C:C,B73,'2-3. Reise&Unterkunftskosten'!B:B,$G$25)+SUMIFS('4. Ausrüstungskosten'!H:H,'4. Ausrüstungskosten'!C:C,B73,'4. Ausrüstungskosten'!B:B,$G$25)+SUMIFS('5. Kosten für Unteraufträge'!H:H,'5. Kosten für Unteraufträge'!C:C,B73,'5. Kosten für Unteraufträge'!B:B,$G$25) -> 0 | H73: =SUMIF('B. Spezieller Mob. - Student'!B:B,B73,'B. Spezieller Mob. - Student'!N:N)+SUMIF('B. Spezieller Mob. - Personal'!B:B,B73,'B. Spezieller Mob. - Personal'!N:N) -> 0 | I73: 0
B74: P49 | C74: =SUMIFS('1. Personalkosten'!S:S,'1. Personalkosten'!C:C,B74,'1. Personalkosten'!B:B,$C$25)+SUMIFS('2-3. Reise&Unterkunftskosten'!N:N,'2-3. Reise&Unterkunftskosten'!C:C,B74,'2-3. Reise&Unterkunftskosten'!B:B,$C$25)+SUMIFS('4. Ausrüstungskosten'!H:H,'4. Ausrüstungskosten'!C:C,B74,'4. Ausrüstungskosten'!B:B,$C$25)+SUMIFS('5. Kosten für Unteraufträge'!H:H,'5. Kosten für Unteraufträge'!C:C,B74,'5. Kosten für Unteraufträge'!B:B,$C$25) -> 0 | D74: =SUMIFS('1. Personalkosten'!S:S,'1. Personalkosten'!C:C,B74,'1. Personalkosten'!B:B,$D$25)+SUMIFS('2-3. Reise&Unterkunftskosten'!N:N,'2-3. Reise&Unterkunftskosten'!C:C,B74,'2-3. Reise&Unterkunftskosten'!B:B,$D$25)+SUMIFS('4. Ausrüstungskosten'!H:H,'4. Ausrüstungskosten'!C:C,B74,'4. Ausrüstungskosten'!B:B,$D$25)+SUMIFS('5. Kosten für Unteraufträge'!H:H,'5. Kosten für Unteraufträge'!C:C,B74,'5. Kosten für Unteraufträge'!B:B,$D$25) -> 0 | E74: =SUMIFS('1. Personalkosten'!S:S,'1. Personalkosten'!C:C,B74,'1. Personalkosten'!B:B,$E$25)+SUMIFS('2-3. Reise&Unterkunftskosten'!N:N,'2-3. Reise&Unterkunftskosten'!C:C,B74,'2-3. Reise&Unterkunftskosten'!B:B,$E$25)+SUMIFS('4. Ausrüstungskosten'!H:H,'4. Ausrüstungskosten'!C:C,B74,'4. Ausrüstungskosten'!B:B,$E$25)+SUMIFS('5. Kosten für Unteraufträge'!H:H,'5. Kosten für Unteraufträge'!C:C,B74,'5. Kosten für Unteraufträge'!B:B,$E$25) -> 0 | F74: =SUMIFS('1. Personalkosten'!S:S,'1. Personalkosten'!C:C,B74,'1. Personalkosten'!B:B,$B$8)+SUMIFS('2-3. Reise&Unterkunftskosten'!N:N,'2-3. Reise&Unterkunftskosten'!C:C,B74,'2-3. Reise&Unterkunftskosten'!B:B,$B$8)+SUMIFS('4. Ausrüstungskosten'!H:H,'4. Ausrüstungskosten'!C:C,B74,'4. Ausrüstungskosten'!B:B,$B$8)+SUMIFS('5. Kosten für Unteraufträge'!H:H,'5. Kosten für Unteraufträge'!C:C,B74,'5. Kosten für Unteraufträge'!B:B,$B$8) -> 0 | G74: =SUMIFS('1. Personalkosten'!S:S,'1. Personalkosten'!C:C,B74,'1. Personalkosten'!B:B,$G$25)+SUMIFS('2-3. Reise&Unterkunftskosten'!N:N,'2-3. Reise&Unterkunftskosten'!C:C,B74,'2-3. Reise&Unterkunftskosten'!B:B,$G$25)+SUMIFS('4. Ausrüstungskosten'!H:H,'4. Ausrüstungskosten'!C:C,B74,'4. Ausrüstungskosten'!B:B,$G$25)+SUMIFS('5. Kosten für Unteraufträge'!H:H,'5. Kosten für Unteraufträge'!C:C,B74,'5. Kosten für Unteraufträge'!B:B,$G$25) -> 0 | H74: =SUMIF('B. Spezieller Mob. - Student'!B:B,B74,'B. Spezieller Mob. - Student'!N:N)+SUMIF('B. Spezieller Mob. - Personal'!B:B,B74,'B. Spezieller Mob. - Personal'!N:N) -> 0 | I74: 0
B75: P50 | C75: =SUMIFS('1. Personalkosten'!S:S,'1. Personalkosten'!C:C,B75,'1. Personalkosten'!B:B,$C$25)+SUMIFS('2-3. Reise&Unterkunftskosten'!N:N,'2-3. Reise&Unterkunftskosten'!C:C,B75,'2-3. Reise&Unterkunftskosten'!B:B,$C$25)+SUMIFS('4. Ausrüstungskosten'!H:H,'4. Ausrüstungskosten'!C:C,B75,'4. Ausrüstungskosten'!B:B,$C$25)+SUMIFS('5. Kosten für Unteraufträge'!H:H,'5. Kosten für Unteraufträge'!C:C,B75,'5. Kosten für Unteraufträge'!B:B,$C$25) -> 0 | D75: =SUMIFS('1. Personalkosten'!S:S,'1. Personalkosten'!C:C,B75,'1. Personalkosten'!B:B,$D$25)+SUMIFS('2-3. Reise&Unterkunftskosten'!N:N,'2-3. Reise&Unterkunftskosten'!C:C,B75,'2-3. Reise&Unterkunftskosten'!B:B,$D$25)+SUMIFS('4. Ausrüstungskosten'!H:H,'4. Ausrüstungskosten'!C:C,B75,'4. Ausrüstungskosten'!B:B,$D$25)+SUMIFS('5. Kosten für Unteraufträge'!H:H,'5. Kosten für Unteraufträge'!C:C,B75,'5. Kosten für Unteraufträge'!B:B,$D$25) -> 0 | E75: =SUMIFS('1. Personalkosten'!S:S,'1. Personalkosten'!C:C,B75,'1. Personalkosten'!B:B,$E$25)+SUMIFS('2-3. Reise&Unterkunftskosten'!N:N,'2-3. Reise&Unterkunftskosten'!C:C,B75,'2-3. Reise&Unterkunftskosten'!B:B,$E$25)+SUMIFS('4. Ausrüstungskosten'!H:H,'4. Ausrüstungskosten'!C:C,B75,'4. Ausrüstungskosten'!B:B,$E$25)+SUMIFS('5. Kosten für Unteraufträge'!H:H,'5. Kosten für Unteraufträge'!C:C,B75,'5. Kosten für Unteraufträge'!B:B,$E$25) -> 0 | F75: =SUMIFS('1. Personalkosten'!S:S,'1. Personalkosten'!C:C,B75,'1. Personalkosten'!B:B,$B$8)+SUMIFS('2-3. Reise&Unterkunftskosten'!N:N,'2-3. Reise&Unterkunftskosten'!C:C,B75,'2-3. Reise&Unterkunftskosten'!B:B,$B$8)+SUMIFS('4. Ausrüstungskosten'!H:H,'4. Ausrüstungskosten'!C:C,B75,'4. Ausrüstungskosten'!B:B,$B$8)+SUMIFS('5. Kosten für Unteraufträge'!H:H,'5. Kosten für Unteraufträge'!C:C,B75,'5. Kosten für Unteraufträge'!B:B,$B$8) -> 0 | G75: =SUMIFS('1. Personalkosten'!S:S,'1. Personalkosten'!C:C,B75,'1. Personalkosten'!B:B,$G$25)+SUMIFS('2-3. Reise&Unterkunftskosten'!N:N,'2-3. Reise&Unterkunftskosten'!C:C,B75,'2-3. Reise&Unterkunftskosten'!B:B,$G$25)+SUMIFS('4. Ausrüstungskosten'!H:H,'4. Ausrüstungskosten'!C:C,B75,'4. Ausrüstungskosten'!B:B,$G$25)+SUMIFS('5. Kosten für Unteraufträge'!H:H,'5. Kosten für Unteraufträge'!C:C,B75,'5. Kosten für Unteraufträge'!B:B,$G$25) -> 0 | H75: =SUMIF('B. Spezieller Mob. - Student'!B:B,B75,'B. Spezieller Mob. - Student'!N:N)+SUMIF('B. Spezieller Mob. - Personal'!B:B,B75,'B. Spezieller Mob. - Personal'!N:N) -> 0 | I75: 0
B76: P51 | C76: =SUMIFS('1. Personalkosten'!S:S,'1. Personalkosten'!C:C,B76,'1. Personalkosten'!B:B,$C$25)+SUMIFS('2-3. Reise&Unterkunftskosten'!N:N,'2-3. Reise&Unterkunftskosten'!C:C,B76,'2-3. Reise&Unterkunftskosten'!B:B,$C$25)+SUMIFS('4. Ausrüstungskosten'!H:H,'4. Ausrüstungskosten'!C:C,B76,'4. Ausrüstungskosten'!B:B,$C$25)+SUMIFS('5. Kosten für Unteraufträge'!H:H,'5. Kosten für Unteraufträge'!C:C,B76,'5. Kosten für Unteraufträge'!B:B,$C$25) -> 0 | D76: =SUMIFS('1. Personalkosten'!S:S,'1. Personalkosten'!C:C,B76,'1. Personalkosten'!B:B,$D$25)+SUMIFS('2-3. Reise&Unterkunftskosten'!N:N,'2-3. Reise&Unterkunftskosten'!C:C,B76,'2-3. Reise&Unterkunftskosten'!B:B,$D$25)+SUMIFS('4. Ausrüstungskosten'!H:H,'4. Ausrüstungskosten'!C:C,B76,'4. Ausrüstungskosten'!B:B,$D$25)+SUMIFS('5. Kosten für Unteraufträge'!H:H,'5. Kosten für Unteraufträge'!C:C,B76,'5. Kosten für Unteraufträge'!B:B,$D$25) -> 0 | E76: =SUMIFS('1. Personalkosten'!S:S,'1. Personalkosten'!C:C,B76,'1. Personalkosten'!B:B,$E$25)+SUMIFS('2-3. Reise&Unterkunftskosten'!N:N,'2-3. Reise&Unterkunftskosten'!C:C,B76,'2-3. Reise&Unterkunftskosten'!B:B,$E$25)+SUMIFS('4. Ausrüstungskosten'!H:H,'4. Ausrüstungskosten'!C:C,B76,'4. Ausrüstungskosten'!B:B,$E$25)+SUMIFS('5. Kosten für Unteraufträge'!H:H,'5. Kosten für Unteraufträge'!C:C,B76,'5. Kosten für Unteraufträge'!B:B,$E$25) -> 0 | F76: =SUMIFS('1. Personalkosten'!S:S,'1. Personalkosten'!C:C,B76,'1. Personalkosten'!B:B,$B$8)+SUMIFS('2-3. Reise&Unterkunftskosten'!N:N,'2-3. Reise&Unterkunftskosten'!C:C,B76,'2-3. Reise&Unterkunftskosten'!B:B,$B$8)+SUMIFS('4. Ausrüstungskosten'!H:H,'4. Ausrüstungskosten'!C:C,B76,'4. Ausrüstungskosten'!B:B,$B$8)+SUMIFS('5. Kosten für Unteraufträge'!H:H,'5. Kosten für Unteraufträge'!C:C,B76,'5. Kosten für Unteraufträge'!B:B,$B$8) -> 0 | G76: =SUMIFS('1. Personalkosten'!S:S,'1. Personalkosten'!C:C,B76,'1. Personalkosten'!B:B,$G$25)+SUMIFS('2-3. Reise&Unterkunftskosten'!N:N,'2-3. Reise&Unterkunftskosten'!C:C,B76,'2-3. Reise&Unterkunftskosten'!B:B,$G$25)+SUMIFS('4. Ausrüstungskosten'!H:H,'4. Ausrüstungskosten'!C:C,B76,'4. Ausrüstungskosten'!B:B,$G$25)+SUMIFS('5. Kosten für Unteraufträge'!H:H,'5. Kosten für Unteraufträge'!C:C,B76,'5. Kosten für Unteraufträge'!B:B,$G$25) -> 0 | H76: =SUMIF('B. Spezieller Mob. - Student'!B:B,B76,'B. Spezieller Mob. - Student'!N:N)+SUMIF('B. Spezieller Mob. - Personal'!B:B,B76,'B. Spezieller Mob. - Personal'!N:N) -> 0 | I76: 0
B77: P52 | C77: =SUMIFS('1. Personalkosten'!S:S,'1. Personalkosten'!C:C,B77,'1. Personalkosten'!B:B,$C$25)+SUMIFS('2-3. Reise&Unterkunftskosten'!N:N,'2-3. Reise&Unterkunftskosten'!C:C,B77,'2-3. Reise&Unterkunftskosten'!B:B,$C$25)+SUMIFS('4. Ausrüstungskosten'!H:H,'4. Ausrüstungskosten'!C:C,B77,'4. Ausrüstungskosten'!B:B,$C$25)+SUMIFS('5. Kosten für Unteraufträge'!H:H,'5. Kosten für Unteraufträge'!C:C,B77,'5. Kosten für Unteraufträge'!B:B,$C$25) -> 0 | D77: =SUMIFS('1. Personalkosten'!S:S,'1. Personalkosten'!C:C,B77,'1. Personalkosten'!B:B,$D$25)+SUMIFS('2-3. Reise&Unterkunftskosten'!N:N,'2-3. Reise&Unterkunftskosten'!C:C,B77,'2-3. Reise&Unterkunftskosten'!B:B,$D$25)+SUMIFS('4. Ausrüstungskosten'!H:H,'4. Ausrüstungskosten'!C:C,B77,'4. Ausrüstungskosten'!B:B,$D$25)+SUMIFS('5. Kosten für Unteraufträge'!H:H,'5. Kosten für Unteraufträge'!C:C,B77,'5. Kosten für Unteraufträge'!B:B,$D$25) -> 0 | E77: =SUMIFS('1. Personalkosten'!S:S,'1. Personalkosten'!C:C,B77,'1. Personalkosten'!B:B,$E$25)+SUMIFS('2-3. Reise&Unterkunftskosten'!N:N,'2-3. Reise&Unterkunftskosten'!C:C,B77,'2-3. Reise&Unterkunftskosten'!B:B,$E$25)+SUMIFS('4. Ausrüstungskosten'!H:H,'4. Ausrüstungskosten'!C:C,B77,'4. Ausrüstungskosten'!B:B,$E$25)+SUMIFS('5. Kosten für Unteraufträge'!H:H,'5. Kosten für Unteraufträge'!C:C,B77,'5. Kosten für Unteraufträge'!B:B,$E$25) -> 0 | F77: =SUMIFS('1. Personalkosten'!S:S,'1. Personalkosten'!C:C,B77,'1. Personalkosten'!B:B,$B$8)+SUMIFS('2-3. Reise&Unterkunftskosten'!N:N,'2-3. Reise&Unterkunftskosten'!C:C,B77,'2-3. Reise&Unterkunftskosten'!B:B,$B$8)+SUMIFS('4. Ausrüstungskosten'!H:H,'4. Ausrüstungskosten'!C:C,B77,'4. Ausrüstungskosten'!B:B,$B$8)+SUMIFS('5. Kosten für Unteraufträge'!H:H,'5. Kosten für Unteraufträge'!C:C,B77,'5. Kosten für Unteraufträge'!B:B,$B$8) -> 0 | G77: =SUMIFS('1. Personalkosten'!S:S,'1. Personalkosten'!C:C,B77,'1. Personalkosten'!B:B,$G$25)+SUMIFS('2-3. Reise&Unterkunftskosten'!N:N,'2-3. Reise&Unterkunftskosten'!C:C,B77,'2-3. Reise&Unterkunftskosten'!B:B,$G$25)+SUMIFS('4. Ausrüstungskosten'!H:H,'4. Ausrüstungskosten'!C:C,B77,'4. Ausrüstungskosten'!B:B,$G$25)+SUMIFS('5. Kosten für Unteraufträge'!H:H,'5. Kosten für Unteraufträge'!C:C,B77,'5. Kosten für Unteraufträge'!B:B,$G$25) -> 0 | H77: =SUMIF('B. Spezieller Mob. - Student'!B:B,B77,'B. Spezieller Mob. - Student'!N:N)+SUMIF('B. Spezieller Mob. - Personal'!B:B,B77,'B. Spezieller Mob. - Personal'!N:N) -> 0 | I77: 0
B78: P53 | C78: =SUMIFS('1. Personalkosten'!S:S,'1. Personalkosten'!C:C,B78,'1. Personalkosten'!B:B,$C$25)+SUMIFS('2-3. Reise&Unterkunftskosten'!N:N,'2-3. Reise&Unterkunftskosten'!C:C,B78,'2-3. Reise&Unterkunftskosten'!B:B,$C$25)+SUMIFS('4. Ausrüstungskosten'!H:H,'4. Ausrüstungskosten'!C:C,B78,'4. Ausrüstungskosten'!B:B,$C$25)+SUMIFS('5. Kosten für Unteraufträge'!H:H,'5. Kosten für Unteraufträge'!C:C,B78,'5. Kosten für Unteraufträge'!B:B,$C$25) -> 0 | D78: =SUMIFS('1. Personalkosten'!S:S,'1. Personalkosten'!C:C,B78,'1. Personalkosten'!B:B,$D$25)+SUMIFS('2-3. Reise&Unterkunftskosten'!N:N,'2-3. Reise&Unterkunftskosten'!C:C,B78,'2-3. Reise&Unterkunftskosten'!B:B,$D$25)+SUMIFS('4. Ausrüstungskosten'!H:H,'4. Ausrüstungskosten'!C:C,B78,'4. Ausrüstungskosten'!B:B,$D$25)+SUMIFS('5. Kosten für Unteraufträge'!H:H,'5. Kosten für Unteraufträge'!C:C,B78,'5. Kosten für Unteraufträge'!B:B,$D$25) -> 0 | E78: =SUMIFS('1. Personalkosten'!S:S,'1. Personalkosten'!C:C,B78,'1. Personalkosten'!B:B,$E$25)+SUMIFS('2-3. Reise&Unterkunftskosten'!N:N,'2-3. Reise&Unterkunftskosten'!C:C,B78,'2-3. Reise&Unterkunftskosten'!B:B,$E$25)+SUMIFS('4. Ausrüstungskosten'!H:H,'4. Ausrüstungskosten'!C:C,B78,'4. Ausrüstungskosten'!B:B,$E$25)+SUMIFS('5. Kosten für Unteraufträge'!H:H,'5. Kosten für Unteraufträge'!C:C,B78,'5. Kosten für Unteraufträge'!B:B,$E$25) -> 0 | F78: =SUMIFS('1. Personalkosten'!S:S,'1. Personalkosten'!C:C,B78,'1. Personalkosten'!B:B,$B$8)+SUMIFS('2-3. Reise&Unterkunftskosten'!N:N,'2-3. Reise&Unterkunftskosten'!C:C,B78,'2-3. Reise&Unterkunftskosten'!B:B,$B$8)+SUMIFS('4. Ausrüstungskosten'!H:H,'4. Ausrüstungskosten'!C:C,B78,'4. Ausrüstungskosten'!B:B,$B$8)+SUMIFS('5. Kosten für Unteraufträge'!H:H,'5. Kosten für Unteraufträge'!C:C,B78,'5. Kosten für Unteraufträge'!B:B,$B$8) -> 0 | G78: =SUMIFS('1. Personalkosten'!S:S,'1. Personalkosten'!C:C,B78,'1. Personalkosten'!B:B,$G$25)+SUMIFS('2-3. Reise&Unterkunftskosten'!N:N,'2-3. Reise&Unterkunftskosten'!C:C,B78,'2-3. Reise&Unterkunftskosten'!B:B,$G$25)+SUMIFS('4. Ausrüstungskosten'!H:H,'4. Ausrüstungskosten'!C:C,B78,'4. Ausrüstungskosten'!B:B,$G$25)+SUMIFS('5. Kosten für Unteraufträge'!H:H,'5. Kosten für Unteraufträge'!C:C,B78,'5. Kosten für Unteraufträge'!B:B,$G$25) -> 0 | H78: =SUMIF('B. Spezieller Mob. - Student'!B:B,B78,'B. Spezieller Mob. - Student'!N:N)+SUMIF('B. Spezieller Mob. - Personal'!B:B,B78,'B. Spezieller Mob. - Personal'!N:N) -> 0 | I78: 0
B79: P54 | C79: =SUMIFS('1. Personalkosten'!S:S,'1. Personalkosten'!C:C,B79,'1. Personalkosten'!B:B,$C$25)+SUMIFS('2-3. Reise&Unterkunftskosten'!N:N,'2-3. Reise&Unterkunftskosten'!C:C,B79,'2-3. Reise&Unterkunftskosten'!B:B,$C$25)+SUMIFS('4. Ausrüstungskosten'!H:H,'4. Ausrüstungskosten'!C:C,B79,'4. Ausrüstungskosten'!B:B,$C$25)+SUMIFS('5. Kosten für Unteraufträge'!H:H,'5. Kosten für Unteraufträge'!C:C,B79,'5. Kosten für Unteraufträge'!B:B,$C$25) -> 0 | D79: =SUMIFS('1. Personalkosten'!S:S,'1. Personalkosten'!C:C,B79,'1. Personalkosten'!B:B,$D$25)+SUMIFS('2-3. Reise&Unterkunftskosten'!N:N,'2-3. Reise&Unterkunftskosten'!C:C,B79,'2-3. Reise&Unterkunftskosten'!B:B,$D$25)+SUMIFS('4. Ausrüstungskosten'!H:H,'4. Ausrüstungskosten'!C:C,B79,'4. Ausrüstungskosten'!B:B,$D$25)+SUMIFS('5. Kosten für Unteraufträge'!H:H,'5. Kosten für Unteraufträge'!C:C,B79,'5. Kosten für Unteraufträge'!B:B,$D$25) -> 0 | E79: =SUMIFS('1. Personalkosten'!S:S,'1. Personalkosten'!C:C,B79,'1. Personalkosten'!B:B,$E$25)+SUMIFS('2-3. Reise&Unterkunftskosten'!N:N,'2-3. Reise&Unterkunftskosten'!C:C,B79,'2-3. Reise&Unterkunftskosten'!B:B,$E$25)+SUMIFS('4. Ausrüstungskosten'!H:H,'4. Ausrüstungskosten'!C:C,B79,'4. Ausrüstungskosten'!B:B,$E$25)+SUMIFS('5. Kosten für Unteraufträge'!H:H,'5. Kosten für Unteraufträge'!C:C,B79,'5. Kosten für Unteraufträge'!B:B,$E$25) -> 0 | F79: =SUMIFS('1. Personalkosten'!S:S,'1. Personalkosten'!C:C,B79,'1. Personalkosten'!B:B,$B$8)+SUMIFS('2-3. Reise&Unterkunftskosten'!N:N,'2-3. Reise&Unterkunftskosten'!C:C,B79,'2-3. Reise&Unterkunftskosten'!B:B,$B$8)+SUMIFS('4. Ausrüstungskosten'!H:H,'4. Ausrüstungskosten'!C:C,B79,'4. Ausrüstungskosten'!B:B,$B$8)+SUMIFS('5. Kosten für Unteraufträge'!H:H,'5. Kosten für Unteraufträge'!C:C,B79,'5. Kosten für Unteraufträge'!B:B,$B$8) -> 0 | G79: =SUMIFS('1. Personalkosten'!S:S,'1. Personalkosten'!C:C,B79,'1. Personalkosten'!B:B,$G$25)+SUMIFS('2-3. Reise&Unterkunftskosten'!N:N,'2-3. Reise&Unterkunftskosten'!C:C,B79,'2-3. Reise&Unterkunftskosten'!B:B,$G$25)+SUMIFS('4. Ausrüstungskosten'!H:H,'4. Ausrüstungskosten'!C:C,B79,'4. Ausrüstungskosten'!B:B,$G$25)+SUMIFS('5. Kosten für Unteraufträge'!H:H,'5. Kosten für Unteraufträge'!C:C,B79,'5. Kosten für Unteraufträge'!B:B,$G$25) -> 0 | H79: =SUMIF('B. Spezieller Mob. - Student'!B:B,B79,'B. Spezieller Mob. - Student'!N:N)+SUMIF('B. Spezieller Mob. - Personal'!B:B,B79,'B. Spezieller Mob. - Personal'!N:N) -> 0 | I79: 0
B80: P55 | C80: =SUMIFS('1. Personalkosten'!S:S,'1. Personalkosten'!C:C,B80,'1. Personalkosten'!B:B,$C$25)+SUMIFS('2-3. Reise&Unterkunftskosten'!N:N,'2-3. Reise&Unterkunftskosten'!C:C,B80,'2-3. Reise&Unterkunftskosten'!B:B,$C$25)+SUMIFS('4. Ausrüstungskosten'!H:H,'4. Ausrüstungskosten'!C:C,B80,'4. Ausrüstungskosten'!B:B,$C$25)+SUMIFS('5. Kosten für Unteraufträge'!H:H,'5. Kosten für Unteraufträge'!C:C,B80,'5. Kosten für Unteraufträge'!B:B,$C$25) -> 0 | D80: =SUMIFS('1. Personalkosten'!S:S,'1. Personalkosten'!C:C,B80,'1. Personalkosten'!B:B,$D$25)+SUMIFS('2-3. Reise&Unterkunftskosten'!N:N,'2-3. Reise&Unterkunftskosten'!C:C,B80,'2-3. Reise&Unterkunftskosten'!B:B,$D$25)+SUMIFS('4. Ausrüstungskosten'!H:H,'4. Ausrüstungskosten'!C:C,B80,'4. Ausrüstungskosten'!B:B,$D$25)+SUMIFS('5. Kosten für Unteraufträge'!H:H,'5. Kosten für Unteraufträge'!C:C,B80,'5. Kosten für Unteraufträge'!B:B,$D$25) -> 0 | E80: =SUMIFS('1. Personalkosten'!S:S,'1. Personalkosten'!C:C,B80,'1. Personalkosten'!B:B,$E$25)+SUMIFS('2-3. Reise&Unterkunftskosten'!N:N,'2-3. Reise&Unterkunftskosten'!C:C,B80,'2-3. Reise&Unterkunftskosten'!B:B,$E$25)+SUMIFS('4. Ausrüstungskosten'!H:H,'4. Ausrüstungskosten'!C:C,B80,'4. Ausrüstungskosten'!B:B,$E$25)+SUMIFS('5. Kosten für Unteraufträge'!H:H,'5. Kosten für Unteraufträge'!C:C,B80,'5. Kosten für Unteraufträge'!B:B,$E$25) -> 0 | F80: =SUMIFS('1. Personalkosten'!S:S,'1. Personalkosten'!C:C,B80,'1. Personalkosten'!B:B,$B$8)+SUMIFS('2-3. Reise&Unterkunftskosten'!N:N,'2-3. Reise&Unterkunftskosten'!C:C,B80,'2-3. Reise&Unterkunftskosten'!B:B,$B$8)+SUMIFS('4. Ausrüstungskosten'!H:H,'4. Ausrüstungskosten'!C:C,B80,'4. Ausrüstungskosten'!B:B,$B$8)+SUMIFS('5. Kosten für Unteraufträge'!H:H,'5. Kosten für Unteraufträge'!C:C,B80,'5. Kosten für Unteraufträge'!B:B,$B$8) -> 0 | G80: =SUMIFS('1. Personalkosten'!S:S,'1. Personalkosten'!C:C,B80,'1. Personalkosten'!B:B,$G$25)+SUMIFS('2-3. Reise&Unterkunftskosten'!N:N,'2-3. Reise&Unterkunftskosten'!C:C,B80,'2-3. Reise&Unterkunftskosten'!B:B,$G$25)+SUMIFS('4. Ausrüstungskosten'!H:H,'4. Ausrüstungskosten'!C:C,B80,'4. Ausrüstungskosten'!B:B,$G$25)+SUMIFS('5. Kosten für Unteraufträge'!H:H,'5. Kosten für Unteraufträge'!C:C,B80,'5. Kosten für Unteraufträge'!B:B,$G$25) -> 0 | H80: =SUMIF('B. Spezieller Mob. - Student'!B:B,B80,'B. Spezieller Mob. - Student'!N:N)+SUMIF('B. Spezieller Mob. - Personal'!B:B,B80,'B. Spezieller Mob. - Personal'!N:N) -> 0 | I80: 0
B81: Gesamtbetrag | C81: =SUM(C26:C80) -> 0 | D81: =SUM(D26:D80) -> 0 | E81: 0 | F81: 0 | G81: 0 | H81: 0 | I81: =SUM(C81:H81) -> 0

Sheet Rates (hidden)
E2: Staff Costs | I2: SMS
C3: Land | D3: PR/PA | E3: Manager | F3: Lehrkraft/Ausbilder/Forscher | G3: Techniker | H3: Verwaltungskraft | I3: Student von Partnerländer | J3: Student von Programmländer | K3: Personal von Partnerländer | L3: Personal von Programmländer | N3: Country SMS | P3: Distance | Q3: Travel Costs (EUR)
B4: 1 | C4: Belgien | D4: Programmländer | E4: 280 | F4: 214 | G4: 162 | H4: 131 | I4: 800 | J4: 0 | K4: 140 | L4: 0 | N4: Belgien | P4: 0 KM und 9 KM | Q4: 0
B5: 2 | C5: Bulgarien | D5: Programmländer | E5: 88 | F5: 74 | G5: 55 | H5: 39 | I5: 750 | J5: 0 | K5: 140 | L5: 0 | N5: Bulgarien | P5: 10 KM und 99 KM | Q5: 20
B6: 3 | C6: Dänemark | D6: Programmländer | E6: 294 | F6: 241 | G6: 190 | H6: 157 | I6: 850 | J6: 0 | K6: 160 | L6: 0 | N6: Dänemark | P6: 100 KM und 499 KM | Q6: 180
B7: 4 | C7: Deutschland | D7: Programmländer | E7: 280 | F7: 214 | G7: 162 | H7: 131 | I7: 800 | J7: 0 | K7: 120 | L7: 0 | N7: Deutschland | P7: 500 KM und 1999 KM | Q7: 275
B8: 5 | C8: Ehemalige jugoslawische Republik Mazedonien | D8: Programmländer | E8: 88 | F8: 74 | G8: 55 | H8: 39 | I8: 750 | J8: 0 | K8: 120 | L8: 0 | N8: Ehemalige jugoslawische Republik Mazedonien | P8: 2000 KM und 2999 KM | Q8: 360
B9: 6 | C9: Estland | D9: Programmländer | E9: 88 | F9: 74 | G9: 55 | H9: 39 | I9: 750 | J9: 0 | K9: 100 | L9: 0 | N9: Estland | P9: 3000 KM und 3999 KM | Q9: 530
B10: 7 | C10: Finnland | D10: Programmländer | E10: 280 | F10: 214 | G10: 162 | H10: 131 | I10: 850 | J10: 0 | K10: 140 | L10: 0 | N10: Finnland | P10: 4000 KM und 7999 KM | Q10: 820
B11: 8 | C11: Frankreich | D11: Programmländer | E11: 280 | F11: 214 | G11: 162 | H11: 131 | I11: 850 | J11: 0 | K11: 140 | L11: 0 | N11: Frankreich | P11: 8000 KM und mehr | Q11: 1100
B12: 9 | C12: Griechenland | D12: Programmländer | E12: 164 | F12: 137 | G12: 102 | H12: 78 | I12: 800 | J12: 0 | K12: 140 | L12: 0 | N12: Griechenland
B13: 10 | C13: Irland | D13: Programmländer | E13: 294 | F13: 241 | G13: 190 | H13: 157 | I13: 850 | J13: 0 | K13: 160 | L13: 0 | N13: Irland | P13: Work Package
B14: 11 | C14: Island | D14: Programmländer | E14: 280 | F14: 214 | G14: 162 | H14: 131 | I14: 800 | J14: 0 | K14: 140 | L14: 0 | N14: Island | P14: Vorbereitung
B15: 12 | C15: Italien | D15: Programmländer | E15: 280 | F15: 214 | G15: 162 | H15: 131 | I15: 850 | J15: 0 | K15: 140 | L15: 0 | N15: Italien | P15: Entwicklung
B16: 13 | C16: Kroatien | D16: Programmländer | E16: 88 | F16: 74 | G16: 55 | H16: 39 | I16: 800 | J16: 0 | K16: 100 | L16: 0 | N16: Kroatien | P16: Qualitätssicherungsplan
B17: 14 | C17: Lettland | D17: Programmländer | E17: 88 | F17: 74 | G17: 55 | H17: 39 | I17: 750 | J17: 0 | K17: 120 | L17: 0 | N17: Lettland | P17: Verbeitung und Nutzung der Ergebnisse
B18: 15 | C18: Liechtenstein | D18: Programmländer | E18: 294 | F18: 241 | G18: 190 | H18: 157 | I18: 850 | J18: 0 | K18: 140 | L18: 0 | N18: Liechtenstein | P18: Verwaltung
B19: 16 | C19: Litauen | D19: Programmländer | E19: 88 | F19: 74 | G19: 55 | H19: 39 | I19: 750 | J19: 0 | K19: 100 | L19: 0 | N19: Litauen
B20: 17 | C20: Luxemburg | D20: Programmländer | E20: 294 | F20: 241 | G20: 190 | H20: 157 | I20: 800 | J20: 0 | K20: 140 | L20: 0 | N20: Luxemburg | P20: Action Type
B21: 18 | C21: Malta | D21: Programmländer | E21: 164 | F21: 137 | G21: 102 | H21: 78 | I21: 750 | J21: 0 | K21: 120 | L21: 0 | N21: Malta | P21: Algemeen Projekt
B22: 19 | C22: Niederlande | D22: Programmländer | E22: 294 | F22: 241 | G22: 190 | H22: 157 | I22: 800 | J22: 0 | K22: 160 | L22: 0 | N22: Niederlande | P22: Structurele Projekt
B23: 20 | C23: Norwegen | D23: Programmländer | E23: 294 | F23: 241 | G23: 190 | H23: 157 | I23: 850 | J23: 0 | K23: 140 | L23: 0 | N23: Norwegen
B24: 21 | C24: Österreich | D24: Programmländer | E24: 294 | F24: 241 | G24: 190 | H24: 157 | I24: 850 | J24: 0 | K24: 140 | L24: 0 | N24: Österreich | P24: Duration
B25: 22 | C25: Polen | D25: Programmländer | E25: 88 | F25: 74 | G25: 55 | H25: 39 | I25: 750 | J25: 0 | K25: 140 | L25: 0 | N25: Polen | P25: 24
B26: 23 | C26: Portugal | D26: Programmländer | E26: 164 | F26: 137 | G26: 102 | H26: 78 | I26: 800 | J26: 0 | K26: 120 | L26: 0 | N26: Portugal | P26: 36
B27: 24 | C27: Rumänien | D27: Programmländer | E27: 88 | F27: 74 | G27: 55 | H27: 39 | I27: 750 | J27: 0 | K27: 140 | L27: 0 | N27: Rumänien
B28: 25 | C28: Schweden | D28: Programmländer | E28: 294 | F28: 241 | G28: 190 | H28: 157 | I28: 850 | J28: 0 | K28: 160 | L28: 0 | N28: Schweden | P28: Category 2
B29: 26 | C29: Slowakei | D29: Programmländer | E29: 88 | F29: 74 | G29: 55 | H29: 39 | I29: 750 | J29: 0 | K29: 120 | L29: 0 | N29: Slowakei | P29: Student
B30: 27 | C30: Slowenien | D30: Programmländer | E30: 164 | F30: 137 | G30: 102 | H30: 78 | I30: 800 | J30: 0 | K30: 100 | L30: 0 | N30: Slowenien | P30: Personal
B31: 28 | C31: Spanien | D31: Programmländer | E31: 164 | F31: 137 | G31: 102 | H31: 78 | I31: 800 | J31: 0 | K31: 120 | L31: 0 | N31: Spanien
B32: 29 | C32: Tschechische Republik | D32: Programmländer | E32: 164 | F32: 137 | G32: 102 | H32: 78 | I32: 800 | J32: 0 | K32: 140 | L32: 0 | N32: Tschechische Republik
B33: 30 | C33: Türkei | D33: Programmländer | E33: 88 | F33: 74 | G33: 55 | H33: 39 | I33: 800 | J33: 0 | K33: 140 | L33: 0 | N33: Türkei
B34: 31 | C34: Ungarn | D34: Programmländer | E34: 88 | F34: 74 | G34: 55 | H34: 39 | I34: 750 | J34: 0 | K34: 140 | L34: 0 | N34: Ungarn
B35: 32 | C35: Vereinigtes Königreich | D35: Programmländer | E35: 280 | F35: 214 | G35: 162 | H35: 131 | I35: 850 | J35: 0 | K35: 160 | L35: 0 | N35: Vereinigtes Königreich
B36: 33 | C36: Zypern | D36: Programmländer | E36: 164 | F36: 137 | G36: 102 | H36: 78 | I36: 800 | J36: 0 | K36: 140 | L36: 0 | N36: Zypern
B37: 34 | C37: Afghanistan | D37: Partnerländer | E37: 77 | F37: 57 | G37: 40 | H37: 32 | I37: 0 | J37: 0 | K37: 0 | L37: 0 | N37: Ägypten
B38: 35 | C38: Ägypten | D38: Partnerländer | E38: 47 | F38: 33 | G38: 22 | H38: 17 | I38: 750 | J38: 650 | K38: 100 | L38: 160 | N38: Albanien
B39: 36 | C39: Albanien | D39: Partnerländer | E39: 108 | F39: 80 | G39: 57 | H39: 45 | I39: 750 | J39: 650 | K39: 100 | L39: 160 | N39: Algerien
B40: 37 | C40: Algerien | D40: Partnerländer | E40: 47 | F40: 33 | G40: 22 | H40: 17 | I40: 750 | J40: 650 | K40: 100 | L40: 160 | N40: Armenien
B41: 38 | C41: Angola | D41: Partnerländer | E41: 108 | F41: 80 | G41: 57 | H41: 45 | I41: 0 | J41: 0 | K41: 0 | L41: 0 | N41: Aserbaidschan
B42: 39 | C42: Antigua und Barbuda | D42: Partnerländer | E42: 108 | F42: 80 | G42: 57 | H42: 45 | I42: 0 | J42: 0 | K42: 0 | L42: 0 | N42: Belarus
B43: 40 | C43: Äquatorial Guinea | D43: Partnerländer | E43: 47 | F43: 33 | G43: 22 | H43: 17 | I43: 0 | J43: 0 | K43: 0 | L43: 0 | N43: Bosnien und Herzegowina
B44: 41 | C44: Argentinien | D44: Partnerländer | E44: 108 | F44: 80 | G44: 57 | H44: 45 | I44: 0 | J44: 0 | K44: 0 | L44: 0 | N44: Georgien
B45: 42 | C45: Armenien | D45: Partnerländer | E45: 47 | F45: 33 | G45: 22 | H45: 17 | I45: 750 | J45: 650 | K45: 100 | L45: 160 | N45: Israel
B46: 43 | C46: Aserbaidschan | D46: Partnerländer | E46: 77 | F46: 57 | G46: 40 | H46: 32 | I46: 750 | J46: 650 | K46: 100 | L46: 160 | N46: Jordanien
B47: 44 | C47: Äthiopien | D47: Partnerländer | E47: 47 | F47: 33 | G47: 22 | H47: 17 | I47: 0 | J47: 0 | K47: 0 | L47: 0 | N47: Kosovo
B48: 45 | C48: Bahamas | D48: Partnerländer | E48: 77 | F48: 57 | G48: 40 | H48: 32 | I48: 0 | J48: 0 | K48: 0 | L48: 0 | N48: Libanon
B49: 46 | C49: Bangladesch | D49: Partnerländer | E49: 47 | F49: 33 | G49: 22 | H49: 17 | I49: 0 | J49: 0 | K49: 0 | L49: 0 | N49: Libyen
B50: 47 | C50: Barbados | D50: Partnerländer | E50: 108 | F50: 80 | G50: 57 | H50: 45 | I50: 0 | J50: 0 | K50: 0 | L50: 0 | N50: Marokko
B51: 48 | C51: Belarus | D51: Partnerländer | E51: 47 | F51: 33 | G51: 22 | H51: 17 | I51: 750 | J51: 650 | K51: 100 | L51: 160 | N51: Moldau
B52: 49 | C52: Belize | D52: Partnerländer | E52: 47 | F52: 33 | G52: 22 | H52: 17 | I52: 0 | J52: 0 | K52: 0 | L52: 0 | N52: Montenegro
B53: 50 | C53: Benin | D53: Partnerländer | E53: 47 | F53: 33 | G53: 22 | H53: 17 | I53: 0 | J53: 0 | K53: 0 | L53: 0 | N53: Palästina
B54: 51 | C54: Bhutan | D54: Partnerländer | E54: 47 | F54: 33 | G54: 22 | H54: 17 | I54: 0 | J54: 0 | K54: 0 | L54: 0 | N54: Serbien
B55: 52 | C55: Bolivien | D55: Partnerländer | E55: 77 | F55: 57 | G55: 40 | H55: 32 | I55: 0 | J55: 0 | K55: 0 | L55: 0 | N55: Syrien
B56: 53 | C56: Bosnien und Herzegowina | D56: Partnerländer | E56: 108 | F56: 80 | G56: 57 | H56: 45 | I56: 750 | J56: 650 | K56: 100 | L56: 160 | N56: Tunesien
B57: 54 | C57: Botswana | D57: Partnerländer | E57: 47 | F57: 33 | G57: 22 | H57: 17 | I57: 0 | J57: 0 | K57: 0 | L57: 0 | N57: Ukraine
B58: 55 | C58: Brasilien | D58: Partnerländer | E58: 108 | F58: 80 | G58: 57 | H58: 45 | I58: 0 | J58: 0 | K58: 0 | L58: 0
B59: 56 | C59: Burkina Faso | D59: Partnerländer | E59: 77 | F59: 57 | G59: 40 | H59: 32 | I59: 0 | J59: 0 | K59: 0 | L59: 0
B60: 57 | C60: Burundi | D60: Partnerländer | E60: 47 | F60: 33 | G60: 22 | H60: 17 | I60: 0 | J60: 0 | K60: 0 | L60: 0
B61: 58 | C61: Cabo Verde | D61: Partnerländer | E61: 47 | F61: 33 | G61: 22 | H61: 17 | I61: 0 | J61: 0 | K61: 0 | L61: 0
B62: 59 | C62: Chad | D62: Partnerländer | E62: 47 | F62: 33 | G62: 22 | H62: 17 | I62: 0 | J62: 0 | K62: 0 | L62: 0
B63: 60 | C63: Chile | D63: Partnerländer | E63: 108 | F63: 80 | G63: 57 | H63: 45 | I63: 0 | J63: 0 | K63: 0 | L63: 0
B64: 61 | C64: China | D64: Partnerländer | E64: 77 | F64: 57 | G64: 40 | H64: 32 | I64: 0 | J64: 0 | K64: 0 | L64: 0
B65: 62 | C65: Congo (Brazzaville) | D65: Partnerländer | E65: 77 | F65: 57 | G65: 40 | H65: 32 | I65: 0 | J65: 0 | K65: 0 | L65: 0
B66: 63 | C66: Congo (Kinshasa) | D66: Partnerländer | E66: 47 | F66: 33 | G66: 22 | H66: 17 | I66: 0 | J66: 0 | K66: 0 | L66: 0
B67: 64 | C67: Cookinseln | D67: Partnerländer | E67: 108 | F67: 80 | G67: 57 | H67: 45 | I67: 0 | J67: 0 | K67: 0 | L67: 0
B68: 65 | C68: Costa Rica | D68: Partnerländer | E68: 77 | F68: 57 | G68: 40 | H68: 32 | I68: 0 | J68: 0 | K68: 0 | L68: 0
B69: 66 | C69: Côte d’Ivoire | D69: Partnerländer | E69: 108 | F69: 80 | G69: 57 | H69: 45 | I69: 0 | J69: 0 | K69: 0 | L69: 0
B70: 67 | C70: Dominica | D70: Partnerländer | E70: 108 | F70: 80 | G70: 57 | H70: 45 | I70: 0 | J70: 0 | K70: 0 | L70: 0
B71: 68 | C71: Dominikanische Republik | D71: Partnerländer | E71: 77 | F71: 57 | G71: 40 | H71: 32 | I71: 0 | J71: 0 | K71: 0 | L71: 0
B72: 69 | C72: Dschibuti | D72: Partnerländer | E72: 77 | F72: 57 | G72: 40 | H72: 32 | I72: 0 | J72: 0 | K72: 0 | L72: 0
B73: 70 | C73: DV Korea | D73: Partnerländer | E73: 47 | F73: 33 | G73: 22 | H73: 17 | I73: 0 | J73: 0 | K73: 0 | L73: 0
B74: 71 | C74: Ecuador | D74: Partnerländer | E74: 77 | F74: 57 | G74: 40 | H74: 32 | I74: 0 | J74: 0 | K74: 0 | L74: 0
B75: 72 | C75: El Salvador | D75: Partnerländer | E75: 77 | F75: 57 | G75: 40 | H75: 32 | I75: 0 | J75: 0 | K75: 0 | L75: 0
B76: 73 | C76: Eritrea | D76: Partnerländer | E76: 47 | F76: 33 | G76: 22 | H76: 17 | I76: 0 | J76: 0 | K76: 0 | L76: 0
B77: 74 | C77: Fidschi | D77: Partnerländer | E77: 47 | F77: 33 | G77: 22 | H77: 17 | I77: 0 | J77: 0 | K77: 0 | L77: 0
B78: 75 | C78: Gabun | D78: Partnerländer | E78: 108 | F78: 80 | G78: 57 | H78: 45 | I78: 0 | J78: 0 | K78: 0 | L78: 0
B79: 76 | C79: Gambia | D79: Partnerländer | E79: 47 | F79: 33 | G79: 22 | H79: 17 | I79: 0 | J79: 0 | K79: 0 | L79: 0
B80: 77 | C80: Georgien | D80: Partnerländer | E80: 77 | F80: 57 | G80: 40 | H80: 32 | I80: 750 | J80: 650 | K80: 100 | L80: 160
B81: 78 | C81: Ghana | D81: Partnerländer | E81: 47 | F81: 33 | G81: 22 | H81: 17 | I81: 0 | J81: 0 | K81: 0 | L81: 0
B82: 79 | C82: Grenada | D82: Partnerländer | E82: 108 | F82: 80 | G82: 57 | H82: 45 | I82: 0 | J82: 0 | K82: 0 | L82: 0
B83: 80 | C83: Guatemala | D83: Partnerländer | E83: 77 | F83: 57 | G83: 40 | H83: 32 | I83: 0 | J83: 0 | K83: 0 | L83: 0
B84: 81 | C84: Guinea-Bissau | D84: Partnerländer | E84: 77 | F84: 57 | G84: 40 | H84: 32 | I84: 0 | J84: 0 | K84: 0 | L84: 0
B85: 82 | C85: Guyana | D85: Partnerländer | E85: 47 | F85: 33 | G85: 22 | H85: 17 | I85: 0 | J85: 0 | K85: 0 | L85: 0
B86: 83 | C86: Haiti | D86: Partnerländer | E86: 77 | F86: 57 | G86: 40 | H86: 32 | I86: 0 | J86: 0 | K86: 0 | L86: 0
B87: 84 | C87: Honduras | D87: Partnerländer | E87: 47 | F87: 33 | G87: 22 | H87: 17 | I87: 0 | J87: 0 | K87: 0 | L87: 0
B88: 85 | C88: Indien | D88: Partnerländer | E88: 47 | F88: 33 | G88: 22 | H88: 17 | I88: 0 | J88: 0 | K88: 0 | L88: 0
B89: 86 | C89: Indonesien | D89: Partnerländer | E89: 47 | F89: 33 | G89: 22 | H89: 17 | I89: 0 | J89: 0 | K89: 0 | L89: 0
B90: 87 | C90: Irak | D90: Partnerländer | E90: 77 | F90: 57 | G90: 40 | H90: 32 | I90: 0 | J90: 0 | K90: 0 | L90: 0
B91: 88 | C91: Iran | D91: Partnerländer | E91: 77 | F91: 57 | G91: 40 | H91: 32 | I91: 0 | J91: 0 | K91: 0 | L91: 0
B92: 89 | C92: Israel | D92: Partnerländer | E92: 166 | F92: 132 | G92: 102 | H92: 92 | I92: 750 | J92: 650 | K92: 100 | L92: 160
B93: 90 | C93: Jamaica | D93: Partnerländer | E93: 77 | F93: 57 | G93: 40 | H93: 32 | I93: 0 | J93: 0 | K93: 0 | L93: 0
B94: 91 | C94: Jemen | D94: Partnerländer | E94: 47 | F94: 33 | G94: 22 | H94: 17 | I94: 0 | J94: 0 | K94: 0 | L94: 0
B95: 92 | C95: Jordanien | D95: Partnerländer | E95: 77 | F95: 57 | G95: 40 | H95: 32 | I95: 750 | J95: 650 | K95: 100 | L95: 160
B96: 93 | C96: Kambodscha | D96: Partnerländer | E96: 47 | F96: 33 | G96: 22 | H96: 17 | I96: 0 | J96: 0 | K96: 0 | L96: 0
B97: 94 | C97: Kamerun | D97: Partnerländer | E97: 77 | F97: 57 | G97: 40 | H97: 32 | I97: 0 | J97: 0 | K97: 0 | L97: 0
B98: 95 | C98: Kasachstan | D98: Partnerländer | E98: 77 | F98: 57 | G98: 40 | H98: 32 | I98: 0 | J98: 0 | K98: 0 | L98: 0
B99: 96 | C99: Kenia | D99: Partnerländer | E99: 77 | F99: 57 | G99: 40 | H99: 32 | I99: 0 | J99: 0 | K99: 0 | L99: 0
B100: 97 | C100: Kirgisistan | D100: Partnerländer | E100: 47 | F100: 33 | G100: 22 | H100: 17 | I100: 0 | J100: 0 | K100: 0 | L100: 0
B101: 98 | C101: Kiribati | D101: Partnerländer | E101: 47 | F101: 33 | G101: 22 | H101: 17 | I101: 0 | J101: 0 | K101: 0 | L101: 0
B102: 99 | C102: Kolumbien | D102: Partnerländer | E102: 108 | F102: 80 | G102: 57 | H102: 45 | I102: 0 | J102: 0 | K102: 0 | L102: 0
B103: 100 | C103: Komoren | D103: Partnerländer | E103: 108 | F103: 80 | G103: 57 | H103: 45 | I103: 0 | J103: 0 | K103: 0 | L103: 0
B104: 101 | C104: Kosovo | D104: Partnerländer | E104: 108 | F104: 80 | G104: 57 | H104: 45 | I104: 750 | J104: 650 | K104: 100 | L104: 160
B105: 102 | C105: Kuba | D105: Partnerländer | E105: 47 | F105: 33 | G105: 22 | H105: 17 | I105: 0 | J105: 0 | K105: 0 | L105: 0
B106: 103 | C106: Laos | D106: Partnerländer | E106: 47 | F106: 33 | G106: 22 | H106: 17 | I106: 0 | J106: 0 | K106: 0 | L106: 0
B107: 104 | C107: Lesotho | D107: Partnerländer | E107: 47 | F107: 33 | G107: 22 | H107: 17 | I107: 0 | J107: 0 | K107: 0 | L107: 0
B108: 105 | C108: Libanon | D108: Partnerländer | E108: 108 | F108: 80 | G108: 57 | H108: 45 | I108: 750 | J108: 650 | K108: 100 | L108: 160
B109: 106 | C109: Liberia | D109: Partnerländer | E109: 47 | F109: 33 | G109: 22 | H109: 17 | I109: 0 | J109: 0 | K109: 0 | L109: 0
B110: 107 | C110: Libyen | D110: Partnerländer | E110: 108 | F110: 80 | G110: 57 | H110: 45 | I110: 750 | J110: 650 | K110: 100 | L110: 160
B111: 108 | C111: Madagaskar | D111: Partnerländer | E111: 47 | F111: 33 | G111: 22 | H111: 17 | I111: 0 | J111: 0 | K111: 0 | L111: 0
B112: 109 | C112: Malawi | D112: Partnerländer | E112: 47 | F112: 33 | G112: 22 | H112: 17 | I112: 0 | J112: 0 | K112: 0 | L112: 0
B113: 110 | C113: Malaysia | D113: Partnerländer | E113: 47 | F113: 33 | G113: 22 | H113: 17 | I113: 0 | J113: 0 | K113: 0 | L113: 0
B114: 111 | C114: Malediven | D114: Partnerländer | E114: 47 | F114: 33 | G114: 22 | H114: 17 | I114: 0 | J114: 0 | K114: 0 | L114: 0
B115: 112 | C115: Mali | D115: Partnerländer | E115: 47 | F115: 33 | G115: 22 | H115: 17 | I115: 0 | J115: 0 | K115: 0 | L115: 0
B116: 113 | C116: Marokko | D116: Partnerländer | E116: 77 | F116: 57 | G116: 40 | H116: 32 | I116: 750 | J116: 650 | K116: 100 | L116: 160
B117: 114 | C117: Marshallinseln | D117: Partnerländer | E117: 47 | F117: 33 | G117: 22 | H117: 17 | I117: 0 | J117: 0 | K117: 0 | L117: 0
B118: 115 | C118: Mauretanien | D118: Partnerländer | E118: 47 | F118: 33 | G118: 22 | H118: 17 | I118: 0 | J118: 0 | K118: 0 | L118: 0
B119: 116 | C119: Mauritius | D119: Partnerländer | E119: 47 | F119: 33 | G119: 22 | H119: 17 | I119: 0 | J119: 0 | K119: 0 | L119: 0
B120: 117 | C120: Mexiko | D120: Partnerländer | E120: 108 | F120: 80 | G120: 57 | H120: 45 | I120: 0 | J120: 0 | K120: 0 | L120: 0
B121: 118 | C121: Mikronesien | D121: Partnerländer | E121: 77 | F121: 57 | G121: 40 | H121: 32 | I121: 0 | J121: 0 | K121: 0 | L121: 0
B122: 119 | C122: Moldau | D122: Partnerländer | E122: 47 | F122: 33 | G122: 22 | H122: 17 | I122: 750 | J122: 650 | K122: 100 | L122: 160
B123: 120 | C123: Mongolei | D123: Partnerländer | E123: 47 | F123: 33 | G123: 22 | H123: 17 | I123: 0 | J123: 0 | K123: 0 | L123: 0
B124: 121 | C124: Montenegro | D124: Partnerländer | E124: 108 | F124: 80 | G124: 57 | H124: 45 | I124: 750 | J124: 650 | K124: 100 | L124: 160
B125: 122 | C125: Mosambik | D125: Partnerländer | E125: 77 | F125: 57 | G125: 40 | H125: 32 | I125: 0 | J125: 0 | K125: 0 | L125: 0
B126: 123 | C126: Myanmar | D126: Partnerländer | E126: 47 | F126: 33 | G126: 22 | H126: 17 | I126: 0 | J126: 0 | K126: 0 | L126: 0
B127: 124 | C127: Namibia | D127: Partnerländer | E127: 77 | F127: 57 | G127: 40 | H127: 32 | I127: 0 | J127: 0 | K127: 0 | L127: 0
B128: 125 | C128: Nauru | D128: Partnerländer | E128: 47 | F128: 33 | G128: 22 | H128: 17 | I128: 0 | J128: 0 | K128: 0 | L128: 0
B129: 126 | C129: Nepal | D129: Partnerländer | E129: 47 | F129: 33 | G129: 22 | H129: 17 | I129: 0 | J129: 0 | K129: 0 | L129: 0
B130: 127 | C130: Nicaragua | D130: Partnerländer | E130: 47 | F130: 33 | G130: 22 | H130: 17 | I130: 0 | J130: 0 | K130: 0 | L130: 0
B131: 128 | C131: Niger | D131: Partnerländer | E131: 47 | F131: 33 | G131: 22 | H131: 17 | I131: 0 | J131: 0 | K131: 0 | L131: 0
B132: 129 | C132: Nigeria | D132: Partnerländer | E132: 108 | F132: 80 | G132: 57 | H132: 45 | I132: 0 | J132: 0 | K132: 0 | L132: 0
B133: 130 | C133: Niue | D133: Partnerländer | E133: 47 | F133: 33 | G133: 22 | H133: 17 | I133: 0 | J133: 0 | K133: 0 | L133: 0
B134: 131 | C134: Osttimor | D134: Partnerländer | E134: 47 | F134: 33 | G134: 22 | H134: 17 | I134: 0 | J134: 0 | K134: 0 | L134: 0
B135: 132 | C135: Pakistan | D135: Partnerländer | E135: 47 | F135: 33 | G135: 22 | H135: 17 | I135: 0 | J135: 0 | K135: 0 | L135: 0
B136: 133 | C136: Palästina | D136: Partnerländer | E136: 77 | F136: 57 | G136: 40 | H136: 32 | I136: 750 | J136: 650 | K136: 100 | L136: 160
B137: 134 | C137: Palau | D137: Partnerländer | E137: 47 | F137: 33 | G137: 22 | H137: 17 | I137: 0 | J137: 0 | K137: 0 | L137: 0
B138: 135 | C138: Panama | D138: Partnerländer | E138: 77 | F138: 57 | G138: 40 | H138: 32 | I138: 0 | J138: 0 | K138: 0 | L138: 0
B139: 136 | C139: Papua Neuguinea | D139: Partnerländer | E139: 77 | F139: 57 | G139: 40 | H139: 32 | I139: 0 | J139: 0 | K139: 0 | L139: 0
B140: 137 | C140: Paraguay | D140: Partnerländer | E140: 77 | F140: 57 | G140: 40 | H140: 32 | I140: 0 | J140: 0 | K140: 0 | L140: 0
B141: 138 | C141: Peru | D141: Partnerländer | E141: 108 | F141: 80 | G141: 57 | H141: 45 | I141: 0 | J141: 0 | K141: 0 | L141: 0
B142: 139 | C142: Philippinen | D142: Partnerländer | E142: 47 | F142: 33 | G142: 22 | H142: 17 | I142: 0 | J142: 0 | K142: 0 | L142: 0
B143: 140 | C143: Republik Guinea | D143: Partnerländer | E143: 47 | F143: 33 | G143: 22 | H143: 17 | I143: 0 | J143: 0 | K143: 0 | L143: 0
B144: 141 | C144: Ruanda | D144: Partnerländer | E144: 47 | F144: 33 | G144: 22 | H144: 17 | I144: 0 | J144: 0 | K144: 0 | L144: 0
B145: 142 | C145: Russlands | D145: Partnerländer | E145: 77 | F145: 57 | G145: 40 | H145: 32 | I145: 0 | J145: 0 | K145: 0 | L145: 0
B146: 143 | C146: Salomonen | D146: Partnerländer | E146: 47 | F146: 33 | G146: 22 | H146: 17 | I146: 0 | J146: 0 | K146: 0 | L146: 0
B147: 144 | C147: Sambia | D147: Partnerländer | E147: 108 | F147: 80 | G147: 57 | H147: 45 | I147: 0 | J147: 0 | K147: 0 | L147: 0
B148: 145 | C148: Samoa | D148: Partnerländer | E148: 47 | F148: 33 | G148: 22 | H148: 17 | I148: 0 | J148: 0 | K148: 0 | L148: 0
B149: 146 | C149: São Tomé und Príncipe | D149: Partnerländer | E149: 108 | F149: 80 | G149: 57 | H149: 45 | I149: 0 | J149: 0 | K149: 0 | L149: 0
B150: 147 | C150: Senegal | D150: Partnerländer | E150: 77 | F150: 57 | G150: 40 | H150: 32 | I150: 0 | J150: 0 | K150: 0 | L150: 0
B151: 148 | C151: Serbien | D151: Partnerländer | E151: 108 | F151: 80 | G151: 57 | H151: 45 | I151: 750 | J151: 650 | K151: 100 | L151: 160
B152: 149 | C152: Seychellen | D152: Partnerländer | E152: 108 | F152: 80 | G152: 57 | H152: 45 | I152: 0 | J152: 0 | K152: 0 | L152: 0
B153: 150 | C153: Sierra Leone | D153: Partnerländer | E153: 47 | F153: 33 | G153: 22 | H153: 17 | I153: 0 | J153: 0 | K153: 0 | L153: 0
B154: 151 | C154: Simbabwe | D154: Partnerländer | E154: 108 | F154: 80 | G154: 57 | H154: 45 | I154: 0 | J154: 0 | K154: 0 | L154: 0
B155: 152 | C155: Somalia | D155: Partnerländer | E155: 47 | F155: 33 | G155: 22 | H155: 17 | I155: 0 | J155: 0 | K155: 0 | L155: 0
B156: 153 | C156: Sri Lanka | D156: Partnerländer | E156: 47 | F156: 33 | G156: 22 | H156: 17 | I156: 0 | J156: 0 | K156: 0 | L156: 0
B157: 154 | C157: St. Kitts und Nevis | D157: Partnerländer | E157: 108 | F157: 80 | G157: 57 | H157: 45 | I157: 0 | J157: 0 | K157: 0 | L157: 0
B158: 155 | C158: St. Lucia | D158: Partnerländer | E158: 108 | F158: 80 | G158: 57 | H158: 45 | I158: 0 | J158: 0 | K158: 0 | L158: 0
B159: 156 | C159: St. Vincent und die Grenadinen | D159: Partnerländer | E159: 108 | F159: 80 | G159: 57 | H159: 45 | I159: 0 | J159: 0 | K159: 0 | L159: 0
B160: 157 | C160: Südafrika | D160: Partnerländer | E160: 77 | F160: 57 | G160: 40 | H160: 32 | I160: 0 | J160: 0 | K160: 0 | L160: 0
B161: 158 | C161: Sudan | D161: Partnerländer | E161: 47 | F161: 33 | G161: 22 | H161: 17 | I161: 0 | J161: 0 | K161: 0 | L161: 0
B162: 159 | C162: Südsudan | D162: Partnerländer | E162: 47 | F162: 33 | G162: 22 | H162: 17 | I162: 0 | J162: 0 | K162: 0 | L162: 0
B163: 160 | C163: Suriname | D163: Partnerländer | E163: 77 | F163: 57 | G163: 40 | H163: 32 | I163: 0 | J163: 0 | K163: 0 | L163: 0
B164: 161 | C164: Swasiland | D164: Partnerländer | E164: 77 | F164: 57 | G164: 40 | H164: 32 | I164: 0 | J164: 0 | K164: 0 | L164: 0
B165: 162 | C165: Syrien | D165: Partnerländer | E165: 47 | F165: 33 | G165: 22 | H165: 17 | I165: 750 | J165: 650 | K165: 100 | L165: 160
B166: 163 | C166: Tadschikistan | D166: Partnerländer | E166: 47 | F166: 33 | G166: 22 | H166: 17 | I166: 0 | J166: 0 | K166: 0 | L166: 0
B167: 164 | C167: Tansania | D167: Partnerländer | E167: 47 | F167: 33 | G167: 22 | H167: 17 | I167: 0 | J167: 0 | K167: 0 | L167: 0
B168: 165 | C168: Thailand | D168: Partnerländer | E168: 108 | F168: 80 | G168: 57 | H168: 45 | I168: 0 | J168: 0 | K168: 0 | L168: 0
B169: 166 | C169: Togo | D169: Partnerländer | E169: 47 | F169: 33 | G169: 22 | H169: 17 | I169: 0 | J169: 0 | K169: 0 | L169: 0
B170: 167 | C170: Tonga | D170: Partnerländer | E170: 47 | F170: 33 | G170: 22 | H170: 17 | I170: 0 | J170: 0 | K170: 0 | L170: 0
B171: 168 | C171: Trinidad und Tobago | D171: Partnerländer | E171: 77 | F171: 57 | G171: 40 | H171: 32 | I171: 0 | J171: 0 | K171: 0 | L171: 0
B172: 169 | C172: Tunesien | D172: Partnerländer | E172: 47 | F172: 33 | G172: 22 | H172: 17 | I172: 750 | J172: 650 | K172: 100 | L172: 160
B173: 170 | C173: Turkmenistan | D173: Partnerländer | E173: 47 | F173: 33 | G173: 22 | H173: 17 | I173: 0 | J173: 0 | K173: 0 | L173: 0
B174: 171 | C174: Tuvalu | D174: Partnerländer | E174: 47 | F174: 33 | G174: 22 | H174: 17 | I174: 0 | J174: 0 | K174: 0 | L174: 0
B175: 172 | C175: Uganda | D175: Partnerländer | E175: 47 | F175: 33 | G175: 22 | H175: 17 | I175: 0 | J175: 0 | K175: 0 | L175: 0
B176: 173 | C176: Ukraine | D176: Partnerländer | E176: 108 | F176: 80 | G176: 57 | H176: 45 | I176: 750 | J176: 650 | K176: 100 | L176: 160
B177: 174 | C177: Uruguay | D177: Partnerländer | E177: 108 | F177: 80 | G177: 57 | H177: 45 | I177: 0 | J177: 0 | K177: 0 | L177: 0
B178: 175 | C178: Usbekistan | D178: Partnerländer | E178: 47 | F178: 33 | G178: 22 | H178: 17 | I178: 0 | J178: 0 | K178: 0 | L178: 0
B179: 176 | C179: Vanuatu | D179: Partnerländer | E179: 77 | F179: 57 | G179: 40 | H179: 32 | I179: 0 | J179: 0 | K179: 0 | L179: 0
B180: 177 | C180: Venezuela | D180: Partnerländer | E180: 108 | F180: 80 | G180: 57 | H180: 45 | I180: 0 | J180: 0 | K180: 0 | L180: 0
B181: 178 | C181: Vietnam | D181: Partnerländer | E181: 47 | F181: 33 | G181: 22 | H181: 17 | I181: 0 | J181: 0 | K181: 0 | L181: 0
B182: 179 | C182: Zentral afrikanische Republik | D182: Partnerländer | E182: 47 | F182: 33 | G182: 22 | H182: 17 | I182: 0 | J182: 0 | K182: 0 | L182: 0

Sheet Kosten und Finanzierung
B1: KOSTEN JE EINHEIT UND ZUSAMMENFASSUNG DER REGELN FÜR DIE FINANZIERUNG VON GEMEINSAMEN UND STRUKTURELLEN PROJEKTEN ZUM KAPAZITÄTSAUFBAU Nachstehend finden Sie die Kosten je Leistungseinheit dieser Datei für die Berechnung der Finanzhilfe. Im Erasmus+ Programmleitfaden 2017* finden Sie einen vollständigen Überblick über die Finanzierungsvorschriften für die gemeinsamen und strukturellen Projekte zum Kapazitätsaufbau im Hochschulbereich (Teil B und Anhang 1).
B2: * Web-Link zum Erasmus+ Programmleitfaden 2017: | C2: http://ec.europa.eu/programmes/erasmus-plus/resources_en
B3: * Web-Link zur Aufforderung zur Einreichung von Vorschlägen, Antragsformulare, Anhänge und Leitlinien: | C3: http://eur-lex.europa.eu/legal-content/EN/TXT/?uri=OJ:JOC_2016_386_R_0009
B4: A.1 Personalkosten | I4: A.2 & B Reisekosten | L4: A. 3 Unterkunftskosten | P4: A.4 Ausrüstung | S4: A.5 Vergabe von Unteraufträgen | W4: B - Spezieller Mobilitätsbereich
B5: Kosten je Einheit Beitrag zu den Kosten des Personals, das Aufgaben durchführt, die für die Erreichung der Projektziele direkt erforderlich sind. Voraussetzung: die Antragsteller müssen Typ und Umfang der für die Durchführung der vorgeschlagenen Aktivitäten bzw. der zur Erzielung der vorgesehenen Ergebnisse benötigten Unterstützung begründen. Der Beitrag wird unter der Bedingung gewährt, dass das Gehalt für dieselbe Aufgabe nur einmal entschädigt wird. | I5: Kosten je Einheit je nach Entfernung und pro Teilnehmer. Die Entfernungen müssen mit dem Entfernungsrechner der Kommission ermittelt werden. Der Antragsteller muss die Entfernung der einfachen Strecke angeben, damit die Höhe der EU-Finanzhilfe für die Reise hin und zurück berechnet werden kann. | L5: Kosten für Aufenthalt, Unterbringung, lokale und öffentliche Transportmittel wie Bus und Taxi, persönliche oder freiwillige Krankenversicherung. Kosten je Einheit je nach Dauer des Aufenthalts der Teilnehmer: Personal: 120 EUR/tag von 1. Tag bis zum 14 70 EUR/tag von 15 Tag bis zum 60 50 EUR/tag von 61 Tag bis zum 90 Student: 55 EUR/tag von 1. Tag bis zum 14 40 EUR/tag von 15 Tag bis zum 90 | P5: Beitrag zum Erwerb der Ausrüstung, die für die Durchführung des Projekts erforderlich ist. Unterstützung wird nur für Ausrüstung gewährt, die zugunsten von Hochschuleinrichtungen in Partnerländern beschafft wird. Voraussetzung: Der Antrag auf finanzielle Förderung zur Deckung dieser Kosten muss auf dem Antragsformular begründet werden. | S5: Unterstützung für die Kosten im Rahmen der Vergabe von Unteraufträgen, die für die Durchführung des Projektes erforderlich ist, insbesondere Kosten für obligatorische Finanzprüfungen (Prüfbescheinigung) und externe Verfahren zur Qualitätssicherung. Die Vergabe von Unteraufträgen für Aufgaben im Rahmen des Projektmanagement ist nicht förderfähig. Die Vergabe von Unteraufträgen an externe Organe sollte nur ausnahmsweise erfolgen. Die spezifischen Kompetenzen und insbesondere die Erfahrung, die zur Erreichung der Projektziele benötigt werden, sollten aus dem Konsortium bezogen werden und die Zusammenstellung desselben bedingen. | W5: Reisekosten: beitrag zu den Reisekosten der am Projekt beteiligten Studierenden und des Personals, von ihrem Herkunftsort zum Ort der jeweiligen Aktivität und zurück (einschließlich Visagebühren und eine diesbezügliche obligatorische Versicherung, Reiseversicherung und gerechtfertigte Stornierungskosten). Die Aktivitäten und die damit verbundenen Reise müssen in den am Projekt beteiligten Ländern durchgeführt werden. Alle Ausnahmen von dieser Regel erfordern die Genehmigung der Agentur. Eine detaillierte Liste der förderfähigen Aktivitäten ist in Anhang I dieses Leitfadens bereitgestellt. Aufenthaltskosten: Kosten je Einheit je nach Dauer des Aufenthalts pro Teilnehmer. Kosten für Aufenthalt, Unterbringung, lokale und öffentliche Transportmittel wie Bus und Taxi, persönliche oder freiwillige Krankenversicherung. Je nach Dauer des Aufenthalts pro Teilnehmer.
W6: Aufenthaltskosten für den speziellen Mobilitätsbereich
B7: Land | C7: PR/PA | D7: Manager | E7: Lehrkraft/Ausbilder/Forscher | F7: Techniker | G7: Verwaltungskraft | I7: Entfernung | J7: Reisekosten (EUR) | L7: Anzahl von Tagen | M7: Student | N7: Personal | P7: 100% der förderfähigen Kosten Max. 30% der gesamten Finanzhilfe | S7: 100% der förderfähigen Kosten Max. 10% der gesamten Finanzhilfe | W7: Land | X7: PR/PA | Y7: Student von Partnerländer | Z7: Student von Programmländer | AA7: Personal von Partnerländer | AB7: Personal von Programmländer
B8: =Rates!C4 -> Belgien | C8: =Rates!D4 -> Programmländer | D8: =Rates!E4 -> 280 | E8: =Rates!F4 -> 214 | F8: =Rates!G4 -> 162 | G8: =Rates!H4 -> 131 | I8: =Rates!P4 -> 0 KM und 9 KM | J8: =Rates!Q4 -> 0 | L8: 1 | M8: =L8*55 -> 55 | N8: =L8*120 -> 120 | W8: =Rates!N4 -> Belgien | X8: =VLOOKUP(W8,Rates!$C$4:$L$182,2,FALSE) -> Programmländer | Y8: =VLOOKUP(W8,Rates!$C$4:$L$182,7,FALSE) -> 800 | Z8: =VLOOKUP(W8,Rates!$C$4:$L$182,8,FALSE) -> 0 | AA8: =VLOOKUP(W8,Rates!$C$4:$L$182,9,FALSE) -> 140 | AB8: =VLOOKUP(W8,Rates!$C$4:$L$182,10,FALSE) -> 0
B9: =Rates!C5 -> Bulgarien | C9: =Rates!D5 -> Programmländer | D9: =Rates!E5 -> 88 | E9: =Rates!F5 -> 74 | F9: =Rates!G5 -> 55 | G9: =Rates!H5 -> 39 | I9: =Rates!P5 -> 10 KM und 99 KM | J9: =Rates!Q5 -> 20 | L9: 2 | M9: =L9*55 -> 110 | N9: =L9*120 -> 240 | W9: =Rates!N5 -> Bulgarien | X9: =VLOOKUP(W9,Rates!$C$4:$L$182,2,FALSE) -> Programmländer | Y9: =VLOOKUP(W9,Rates!$C$4:$L$182,7,FALSE) -> 750 | Z9: =VLOOKUP(W9,Rates!$C$4:$L$182,8,FALSE) -> 0 | AA9: =VLOOKUP(W9,Rates!$C$4:$L$182,9,FALSE) -> 140 | AB9: =VLOOKUP(W9,Rates!$C$4:$L$182,10,FALSE) -> 0
B10: =Rates!C6 -> Dänemark | C10: =Rates!D6 -> Programmländer | D10: =Rates!E6 -> 294 | E10: =Rates!F6 -> 241 | F10: =Rates!G6 -> 190 | G10: =Rates!H6 -> 157 | I10: =Rates!P6 -> 100 KM und 499 KM | J10: =Rates!Q6 -> 180 | L10: 3 | M10: 165 | N10: 360 | W10: =Rates!N6 -> Dänemark | X10: =VLOOKUP(W10,Rates!$C$4:$L$182,2,FALSE) -> Programmländer | Y10: =VLOOKUP(W10,Rates!$C$4:$L$182,7,FALSE) -> 850 | Z10: =VLOOKUP(W10,Rates!$C$4:$L$182,8,FALSE) -> 0 | AA10: =VLOOKUP(W10,Rates!$C$4:$L$182,9,FALSE) -> 160 | AB10: =VLOOKUP(W10,Rates!$C$4:$L$182,10,FALSE) -> 0
B11: =Rates!C7 -> Deutschland | C11: =Rates!D7 -> Programmländer | D11: =Rates!E7 -> 280 | E11: =Rates!F7 -> 214 | F11: =Rates!G7 -> 162 | G11: =Rates!H7 -> 131 | I11: =Rates!P7 -> 500 KM und 1999 KM | J11: =Rates!Q7 -> 275 | L11: 4 | M11: 220 | N11: 480 | W11: =Rates!N7 -> Deutschland | X11: =VLOOKUP(W11,Rates!$C$4:$L$182,2,FALSE) -> Programmländer | Y11: =VLOOKUP(W11,Rates!$C$4:$L$182,7,FALSE) -> 800 | Z11: =VLOOKUP(W11,Rates!$C$4:$L$182,8,FALSE) -> 0 | AA11: =VLOOKUP(W11,Rates!$C$4:$L$182,9,FALSE) -> 120 | AB11: =VLOOKUP(W11,Rates!$C$4:$L$182,10,FALSE) -> 0
B12: =Rates!C8 -> Ehemalige jugoslawische Republik Mazedonien | C12: =Rates!D8 -> Programmländer | D12: =Rates!E8 -> 88 | E12: =Rates!F8 -> 74 | F12: =Rates!G8 -> 55 | G12: =Rates!H8 -> 39 | I12: =Rates!P8 -> 2000 KM und 2999 KM | J12: =Rates!Q8 -> 360 | L12: 5 | M12: 275 | N12: 600 | W12: =Rates!N8 -> Ehemalige jugoslawische Republik Mazedonien | X12: =VLOOKUP(W12,Rates!$C$4:$L$182,2,FALSE) -> Programmländer | Y12: =VLOOKUP(W12,Rates!$C$4:$L$182,7,FALSE) -> 750 | Z12: =VLOOKUP(W12,Rates!$C$4:$L$182,8,FALSE) -> 0 | AA12: =VLOOKUP(W12,Rates!$C$4:$L$182,9,FALSE) -> 120 | AB12: =VLOOKUP(W12,Rates!$C$4:$L$182,10,FALSE) -> 0
B13: =Rates!C9 -> Estland | C13: =Rates!D9 -> Programmländer | D13: =Rates!E9 -> 88 | E13: =Rates!F9 -> 74 | F13: =Rates!G9 -> 55 | G13: =Rates!H9 -> 39 | I13: =Rates!P9 -> 3000 KM und 3999 KM | J13: =Rates!Q9 -> 530 | L13: 6 | M13: 330 | N13: 720 | W13: =Rates!N9 -> Estland | X13: =VLOOKUP(W13,Rates!$C$4:$L$182,2,FALSE) -> Programmländer | Y13: =VLOOKUP(W13,Rates!$C$4:$L$182,7,FALSE) -> 750 | Z13: =VLOOKUP(W13,Rates!$C$4:$L$182,8,FALSE) -> 0 | AA13: =VLOOKUP(W13,Rates!$C$4:$L$182,9,FALSE) -> 100 | AB13: =VLOOKUP(W13,Rates!$C$4:$L$182,10,FALSE) -> 0
B14: =Rates!C10 -> Finnland | C14: =Rates!D10 -> Programmländer | D14: =Rates!E10 -> 280 | E14: =Rates!F10 -> 214 | F14: =Rates!G10 -> 162 | G14: =Rates!H10 -> 131 | I14: =Rates!P10 -> 4000 KM und 7999 KM | J14: =Rates!Q10 -> 820 | L14: 7 | M14: 385 | N14: 840 | W14: =Rates!N10 -> Finnland | X14: =VLOOKUP(W14,Rates!$C$4:$L$182,2,FALSE) -> Programmländer | Y14: =VLOOKUP(W14,Rates!$C$4:$L$182,7,FALSE) -> 850 | Z14: =VLOOKUP(W14,Rates!$C$4:$L$182,8,FALSE) -> 0 | AA14: =VLOOKUP(W14,Rates!$C$4:$L$182,9,FALSE) -> 140 | AB14: =VLOOKUP(W14,Rates!$C$4:$L$182,10,FALSE) -> 0
B15: =Rates!C11 -> Frankreich | C15: =Rates!D11 -> Programmländer | D15: =Rates!E11 -> 280 | E15: =Rates!F11 -> 214 | F15: =Rates!G11 -> 162 | G15: =Rates!H11 -> 131 | I15: =Rates!P11 -> 8000 KM und mehr | J15: =Rates!Q11 -> 1100 | L15: 8 | M15: 440 | N15: 960 | W15: =Rates!N11 -> Frankreich | X15: =VLOOKUP(W15,Rates!$C$4:$L$182,2,FALSE) -> Programmländer | Y15: =VLOOKUP(W15,Rates!$C$4:$L$182,7,FALSE) -> 850 | Z15: =VLOOKUP(W15,Rates!$C$4:$L$182,8,FALSE) -> 0 | AA15: =VLOOKUP(W15,Rates!$C$4:$L$182,9,FALSE) -> 140 | AB15: =VLOOKUP(W15,Rates!$C$4:$L$182,10,FALSE) -> 0
B16: =Rates!C12 -> Griechenland | C16: =Rates!D12 -> Programmländer | D16: =Rates!E12 -> 164 | E16: =Rates!F12 -> 137 | F16: =Rates!G12 -> 102 | G16: =Rates!H12 -> 78 | L16: 9 | M16: 495 | N16: 1080 | W16: =Rates!N12 -> Griechenland | X16: =VLOOKUP(W16,Rates!$C$4:$L$182,2,FALSE) -> Programmländer | Y16: =VLOOKUP(W16,Rates!$C$4:$L$182,7,FALSE) -> 800 | Z16: =VLOOKUP(W16,Rates!$C$4:$L$182,8,FALSE) -> 0 | AA16: =VLOOKUP(W16,Rates!$C$4:$L$182,9,FALSE) -> 140 | AB16: =VLOOKUP(W16,Rates!$C$4:$L$182,10,FALSE) -> 0
B17: =Rates!C13 -> Irland | C17: =Rates!D13 -> Programmländer | D17: =Rates!E13 -> 294 | E17: =Rates!F13 -> 241 | F17: =Rates!G13 -> 190 | G17: =Rates!H13 -> 157 | L17: 10 | M17: 550 | N17: 1200 | W17: =Rates!N13 -> Irland | X17: =VLOOKUP(W17,Rates!$C$4:$L$182,2,FALSE) -> Programmländer | Y17: =VLOOKUP(W17,Rates!$C$4:$L$182,7,FALSE) -> 850 | Z17: =VLOOKUP(W17,Rates!$C$4:$L$182,8,FALSE) -> 0 | AA17: =VLOOKUP(W17,Rates!$C$4:$L$182,9,FALSE) -> 160 | AB17: =VLOOKUP(W17,Rates!$C$4:$L$182,10,FALSE) -> 0
B18: =Rates!C14 -> Island | C18: =Rates!D14 -> Programmländer | D18: =Rates!E14 -> 280 | E18: =Rates!F14 -> 214 | F18: =Rates!G14 -> 162 | G18: =Rates!H14 -> 131 | L18: 11 | M18: 605 | N18: 1320 | W18: =Rates!N14 -> Island | X18: =VLOOKUP(W18,Rates!$C$4:$L$182,2,FALSE) -> Programmländer | Y18: =VLOOKUP(W18,Rates!$C$4:$L$182,7,FALSE) -> 800 | Z18: =VLOOKUP(W18,Rates!$C$4:$L$182,8,FALSE) -> 0 | AA18: =VLOOKUP(W18,Rates!$C$4:$L$182,9,FALSE) -> 140 | AB18: =VLOOKUP(W18,Rates!$C$4:$L$182,10,FALSE) -> 0
B19: =Rates!C15 -> Italien | C19: =Rates!D15 -> Programmländer | D19: =Rates!E15 -> 280 | E19: =Rates!F15 -> 214 | F19: =Rates!G15 -> 162 | G19: =Rates!H15 -> 131 | L19: 12 | M19: 660 | N19: 1440 | W19: =Rates!N15 -> Italien | X19: =VLOOKUP(W19,Rates!$C$4:$L$182,2,FALSE) -> Programmländer | Y19: =VLOOKUP(W19,Rates!$C$4:$L$182,7,FALSE) -> 850 | Z19: =VLOOKUP(W19,Rates!$C$4:$L$182,8,FALSE) -> 0 | AA19: =VLOOKUP(W19,Rates!$C$4:$L$182,9,FALSE) -> 140 | AB19: =VLOOKUP(W19,Rates!$C$4:$L$182,10,FALSE) -> 0
B20: =Rates!C16 -> Kroatien | C20: =Rates!D16 -> Programmländer | D20: =Rates!E16 -> 88 | E20: =Rates!F16 -> 74 | F20: =Rates!G16 -> 55 | G20: =Rates!H16 -> 39 | L20: 13 | M20: 715 | N20: 1560 | W20: =Rates!N16 -> Kroatien | X20: =VLOOKUP(W20,Rates!$C$4:$L$182,2,FALSE) -> Programmländer | Y20: =VLOOKUP(W20,Rates!$C$4:$L$182,7,FALSE) -> 800 | Z20: =VLOOKUP(W20,Rates!$C$4:$L$182,8,FALSE) -> 0 | AA20: =VLOOKUP(W20,Rates!$C$4:$L$182,9,FALSE) -> 100 | AB20: =VLOOKUP(W20,Rates!$C$4:$L$182,10,FALSE) -> 0
B21: =Rates!C17 -> Lettland | C21: =Rates!D17 -> Programmländer | D21: =Rates!E17 -> 88 | E21: =Rates!F17 -> 74 | F21: =Rates!G17 -> 55 | G21: =Rates!H17 -> 39 | L21: 14 | M21: 770 | N21: 1680 | W21: =Rates!N17 -> Lettland | X21: =VLOOKUP(W21,Rates!$C$4:$L$182,2,FALSE) -> Programmländer | Y21: =VLOOKUP(W21,Rates!$C$4:$L$182,7,FALSE) -> 750 | Z21: =VLOOKUP(W21,Rates!$C$4:$L$182,8,FALSE) -> 0 | AA21: =VLOOKUP(W21,Rates!$C$4:$L$182,9,FALSE) -> 120 | AB21: =VLOOKUP(W21,Rates!$C$4:$L$182,10,FALSE) -> 0
B22: =Rates!C18 -> Liechtenstein | C22: =Rates!D18 -> Programmländer | D22: =Rates!E18 -> 294 | E22: =Rates!F18 -> 241 | F22: =Rates!G18 -> 190 | G22: =Rates!H18 -> 157 | L22: 15 | M22: =((L22-$L$21)*40)+770 -> 810 | N22: =((L22-$L$21)*70)+1680 -> 1750 | W22: =Rates!N18 -> Liechtenstein | X22: =VLOOKUP(W22,Rates!$C$4:$L$182,2,FALSE) -> Programmländer | Y22: =VLOOKUP(W22,Rates!$C$4:$L$182,7,FALSE) -> 850 | Z22: =VLOOKUP(W22,Rates!$C$4:$L$182,8,FALSE) -> 0 | AA22: =VLOOKUP(W22,Rates!$C$4:$L$182,9,FALSE) -> 140 | AB22: =VLOOKUP(W22,Rates!$C$4:$L$182,10,FALSE) -> 0
B23: =Rates!C19 -> Litauen | C23: =Rates!D19 -> Programmländer | D23: =Rates!E19 -> 88 | E23: =Rates!F19 -> 74 | F23: =Rates!G19 -> 55 | G23: =Rates!H19 -> 39 | L23: 16 | M23: =((L23-$L$21)*40)+770 -> 850 | N23: =((L23-$L$21)*70)+1680 -> 1820 | W23: =Rates!N19 -> Litauen | X23: =VLOOKUP(W23,Rates!$C$4:$L$182,2,FALSE) -> Programmländer | Y23: =VLOOKUP(W23,Rates!$C$4:$L$182,7,FALSE) -> 750 | Z23: =VLOOKUP(W23,Rates!$C$4:$L$182,8,FALSE) -> 0 | AA23: =VLOOKUP(W23,Rates!$C$4:$L$182,9,FALSE) -> 100 | AB23: =VLOOKUP(W23,Rates!$C$4:$L$182,10,FALSE) -> 0
B24: =Rates!C20 -> Luxemburg | C24: =Rates!D20 -> Programmländer | D24: =Rates!E20 -> 294 | E24: =Rates!F20 -> 241 | F24: =Rates!G20 -> 190 | G24: =Rates!H20 -> 157 | L24: 17 | M24: 890 | N24: 1890 | W24: =Rates!N20 -> Luxemburg | X24: =VLOOKUP(W24,Rates!$C$4:$L$182,2,FALSE) -> Programmländer | Y24: =VLOOKUP(W24,Rates!$C$4:$L$182,7,FALSE) -> 800 | Z24: =VLOOKUP(W24,Rates!$C$4:$L$182,8,FALSE) -> 0 | AA24: =VLOOKUP(W24,Rates!$C$4:$L$182,9,FALSE) -> 140 | AB24: =VLOOKUP(W24,Rates!$C$4:$L$182,10,FALSE) -> 0
B25: =Rates!C21 -> Malta | C25: =Rates!D21 -> Programmländer | D25: =Rates!E21 -> 164 | E25: =Rates!F21 -> 137 | F25: =Rates!G21 -> 102 | G25: =Rates!H21 -> 78 | L25: 18 | M25: 930 | N25: 1960 | W25: =Rates!N21 -> Malta | X25: =VLOOKUP(W25,Rates!$C$4:$L$182,2,FALSE) -> Programmländer | Y25: =VLOOKUP(W25,Rates!$C$4:$L$182,7,FALSE) -> 750 | Z25: =VLOOKUP(W25,Rates!$C$4:$L$182,8,FALSE) -> 0 | AA25: =VLOOKUP(W25,Rates!$C$4:$L$182,9,FALSE) -> 120 | AB25: =VLOOKUP(W25,Rates!$C$4:$L$182,10,FALSE) -> 0
B26: =Rates!C22 -> Niederlande | C26: =Rates!D22 -> Programmländer | D26: =Rates!E22 -> 294 | E26: =Rates!F22 -> 241 | F26: =Rates!G22 -> 190 | G26: =Rates!H22 -> 157 | L26: 19 | M26: 970 | N26: 2030 | W26: =Rates!N22 -> Niederlande | X26: =VLOOKUP(W26,Rates!$C$4:$L$182,2,FALSE) -> Programmländer | Y26: =VLOOKUP(W26,Rates!$C$4:$L$182,7,FALSE) -> 800 | Z26: =VLOOKUP(W26,Rates!$C$4:$L$182,8,FALSE) -> 0 | AA26: =VLOOKUP(W26,Rates!$C$4:$L$182,9,FALSE) -> 160 | AB26: =VLOOKUP(W26,Rates!$C$4:$L$182,10,FALSE) -> 0
B27: =Rates!C23 -> Norwegen | C27: =Rates!D23 -> Programmländer | D27: =Rates!E23 -> 294 | E27: =Rates!F23 -> 241 | F27: =Rates!G23 -> 190 | G27: =Rates!H23 -> 157 | L27: 20 | M27: 1010 | N27: 2100 | W27: =Rates!N23 -> Norwegen | X27: =VLOOKUP(W27,Rates!$C$4:$L$182,2,FALSE) -> Programmländer | Y27: =VLOOKUP(W27,Rates!$C$4:$L$182,7,FALSE) -> 850 | Z27: =VLOOKUP(W27,Rates!$C$4:$L$182,8,FALSE) -> 0 | AA27: =VLOOKUP(W27,Rates!$C$4:$L$182,9,FALSE) -> 140 | AB27: =VLOOKUP(W27,Rates!$C$4:$L$182,10,FALSE) -> 0
B28: =Rates!C24 -> Österreich | C28: =Rates!D24 -> Programmländer | D28: =Rates!E24 -> 294 | E28: =Rates!F24 -> 241 | F28: =Rates!G24 -> 190 | G28: =Rates!H24 -> 157 | L28: 21 | M28: 1050 | N28: 2170 | W28: =Rates!N24 -> Österreich | X28: =VLOOKUP(W28,Rates!$C$4:$L$182,2,FALSE) -> Programmländer | Y28: =VLOOKUP(W28,Rates!$C$4:$L$182,7,FALSE) -> 850 | Z28: =VLOOKUP(W28,Rates!$C$4:$L$182,8,FALSE) -> 0 | AA28: =VLOOKUP(W28,Rates!$C$4:$L$182,9,FALSE) -> 140 | AB28: =VLOOKUP(W28,Rates!$C$4:$L$182,10,FALSE) -> 0
B29: =Rates!C25 -> Polen | C29: =Rates!D25 -> Programmländer | D29: =Rates!E25 -> 88 | E29: =Rates!F25 -> 74 | F29: =Rates!G25 -> 55 | G29: =Rates!H25 -> 39 | L29: 22 | M29: 1090 | N29: 2240 | W29: =Rates!N25 -> Polen | X29: =VLOOKUP(W29,Rates!$C$4:$L$182,2,FALSE) -> Programmländer | Y29: =VLOOKUP(W29,Rates!$C$4:$L$182,7,FALSE) -> 750 | Z29: =VLOOKUP(W29,Rates!$C$4:$L$182,8,FALSE) -> 0 | AA29: =VLOOKUP(W29,Rates!$C$4:$L$182,9,FALSE) -> 140 | AB29: =VLOOKUP(W29,Rates!$C$4:$L$182,10,FALSE) -> 0
B30: =Rates!C26 -> Portugal | C30: =Rates!D26 -> Programmländer | D30: =Rates!E26 -> 164 | E30: =Rates!F26 -> 137 | F30: =Rates!G26 -> 102 | G30: =Rates!H26 -> 78 | L30: 23 | M30: 1130 | N30: 2310 | W30: =Rates!N26 -> Portugal | X30: =VLOOKUP(W30,Rates!$C$4:$L$182,2,FALSE) -> Programmländer | Y30: =VLOOKUP(W30,Rates!$C$4:$L$182,7,FALSE) -> 800 | Z30: =VLOOKUP(W30,Rates!$C$4:$L$182,8,FALSE) -> 0 | AA30: =VLOOKUP(W30,Rates!$C$4:$L$182,9,FALSE) -> 120 | AB30: =VLOOKUP(W30,Rates!$C$4:$L$182,10,FALSE) -> 0
B31: =Rates!C27 -> Rumänien | C31: =Rates!D27 -> Programmländer | D31: =Rates!E27 -> 88 | E31: =Rates!F27 -> 74 | F31: =Rates!G27 -> 55 | G31: =Rates!H27 -> 39 | L31: 24 | M31: 1170 | N31: 2380 | W31: =Rates!N27 -> Rumänien | X31: =VLOOKUP(W31,Rates!$C$4:$L$182,2,FALSE) -> Programmländer | Y31: =VLOOKUP(W31,Rates!$C$4:$L$182,7,FALSE) -> 750 | Z31: =VLOOKUP(W31,Rates!$C$4:$L$182,8,FALSE) -> 0 | AA31: =VLOOKUP(W31,Rates!$C$4:$L$182,9,FALSE) -> 140 | AB31: =VLOOKUP(W31,Rates!$C$4:$L$182,10,FALSE) -> 0
B32: =Rates!C28 -> Schweden | C32: =Rates!D28 -> Programmländer | D32: =Rates!E28 -> 294 | E32: =Rates!F28 -> 241 | F32: =Rates!G28 -> 190 | G32: =Rates!H28 -> 157 | L32: 25 | M32: 1210 | N32: 2450 | W32: =Rates!N28 -> Schweden | X32: =VLOOKUP(W32,Rates!$C$4:$L$182,2,FALSE) -> Programmländer | Y32: =VLOOKUP(W32,Rates!$C$4:$L$182,7,FALSE) -> 850 | Z32: =VLOOKUP(W32,Rates!$C$4:$L$182,8,FALSE) -> 0 | AA32: =VLOOKUP(W32,Rates!$C$4:$L$182,9,FALSE) -> 160 | AB32: =VLOOKUP(W32,Rates!$C$4:$L$182,10,FALSE) -> 0
B33: =Rates!C29 -> Slowakei | C33: =Rates!D29 -> Programmländer | D33: =Rates!E29 -> 88 | E33: =Rates!F29 -> 74 | F33: =Rates!G29 -> 55 | G33: =Rates!H29 -> 39 | L33: 26 | M33: 1250 | N33: 2520 | W33: =Rates!N29 -> Slowakei | X33: =VLOOKUP(W33,Rates!$C$4:$L$182,2,FALSE) -> Programmländer | Y33: =VLOOKUP(W33,Rates!$C$4:$L$182,7,FALSE) -> 750 | Z33: =VLOOKUP(W33,Rates!$C$4:$L$182,8,FALSE) -> 0 | AA33: =VLOOKUP(W33,Rates!$C$4:$L$182,9,FALSE) -> 120 | AB33: =VLOOKUP(W33,Rates!$C$4:$L$182,10,FALSE) -> 0
B34: =Rates!C30 -> Slowenien | C34: =Rates!D30 -> Programmländer | D34: =Rates!E30 -> 164 | E34: =Rates!F30 -> 137 | F34: =Rates!G30 -> 102 | G34: =Rates!H30 -> 78 | L34: 27 | M34: 1290 | N34: 2590 | W34: =Rates!N30 -> Slowenien | X34: =VLOOKUP(W34,Rates!$C$4:$L$182,2,FALSE) -> Programmländer | Y34: =VLOOKUP(W34,Rates!$C$4:$L$182,7,FALSE) -> 800 | Z34: =VLOOKUP(W34,Rates!$C$4:$L$182,8,FALSE) -> 0 | AA34: =VLOOKUP(W34,Rates!$C$4:$L$182,9,FALSE) -> 100 | AB34: =VLOOKUP(W34,Rates!$C$4:$L$182,10,FALSE) -> 0
B35: =Rates!C31 -> Spanien | C35: =Rates!D31 -> Programmländer | D35: =Rates!E31 -> 164 | E35: =Rates!F31 -> 137 | F35: =Rates!G31 -> 102 | G35: =Rates!H31 -> 78 | L35: 28 | M35: 1330 | N35: 2660 | W35: =Rates!N31 -> Spanien | X35: =VLOOKUP(W35,Rates!$C$4:$L$182,2,FALSE) -> Programmländer | Y35: =VLOOKUP(W35,Rates!$C$4:$L$182,7,FALSE) -> 800 | Z35: =VLOOKUP(W35,Rates!$C$4:$L$182,8,FALSE) -> 0 | AA35: =VLOOKUP(W35,Rates!$C$4:$L$182,9,FALSE) -> 120 | AB35: =VLOOKUP(W35,Rates!$C$4:$L$182,10,FALSE) -> 0
B36: =Rates!C32 -> Tschechische Republik | C36: =Rates!D32 -> Programmländer | D36: =Rates!E32 -> 164 | E36: =Rates!F32 -> 137 | F36: =Rates!G32 -> 102 | G36: =Rates!H32 -> 78 | L36: 29 | M36: 1370 | N36: 2730 | W36: =Rates!N32 -> Tschechische Republik | X36: =VLOOKUP(W36,Rates!$C$4:$L$182,2,FALSE) -> Programmländer | Y36: =VLOOKUP(W36,Rates!$C$4:$L$182,7,FALSE) -> 800 | Z36: =VLOOKUP(W36,Rates!$C$4:$L$182,8,FALSE) -> 0 | AA36: =VLOOKUP(W36,Rates!$C$4:$L$182,9,FALSE) -> 140 | AB36: =VLOOKUP(W36,Rates!$C$4:$L$182,10,FALSE) -> 0
B37: =Rates!C33 -> Türkei | C37: =Rates!D33 -> Programmländer | D37: =Rates!E33 -> 88 | E37: =Rates!F33 -> 74 | F37: =Rates!G33 -> 55 | G37: =Rates!H33 -> 39 | L37: 30 | M37: 1410 | N37: 2800 | W37: =Rates!N33 -> Türkei | X37: =VLOOKUP(W37,Rates!$C$4:$L$182,2,FALSE) -> Programmländer | Y37: =VLOOKUP(W37,Rates!$C$4:$L$182,7,FALSE) -> 800 | Z37: =VLOOKUP(W37,Rates!$C$4:$L$182,8,FALSE) -> 0 | AA37: =VLOOKUP(W37,Rates!$C$4:$L$182,9,FALSE) -> 140 | AB37: =VLOOKUP(W37,Rates!$C$4:$L$182,10,FALSE) -> 0
B38: =Rates!C34 -> Ungarn | C38: =Rates!D34 -> Programmländer | D38: =Rates!E34 -> 88 | E38: =Rates!F34 -> 74 | F38: =Rates!G34 -> 55 | G38: =Rates!H34 -> 39 | L38: 31 | M38: 1450 | N38: 2870 | W38: =Rates!N34 -> Ungarn | X38: =VLOOKUP(W38,Rates!$C$4:$L$182,2,FALSE) -> Programmländer | Y38: =VLOOKUP(W38,Rates!$C$4:$L$182,7,FALSE) -> 750 | Z38: =VLOOKUP(W38,Rates!$C$4:$L$182,8,FALSE) -> 0 | AA38: =VLOOKUP(W38,Rates!$C$4:$L$182,9,FALSE) -> 140 | AB38: =VLOOKUP(W38,Rates!$C$4:$L$182,10,FALSE) -> 0
B39: =Rates!C35 -> Vereinigtes Königreich | C39: =Rates!D35 -> Programmländer | D39: =Rates!E35 -> 280 | E39: =Rates!F35 -> 214 | F39: =Rates!G35 -> 162 | G39: =Rates!H35 -> 131 | L39: 32 | M39: 1490 | N39: 2940 | W39: =Rates!N35 -> Vereinigtes Königreich | X39: =VLOOKUP(W39,Rates!$C$4:$L$182,2,FALSE) -> Programmländer | Y39: =VLOOKUP(W39,Rates!$C$4:$L$182,7,FALSE) -> 850 | Z39: =VLOOKUP(W39,Rates!$C$4:$L$182,8,FALSE) -> 0 | AA39: =VLOOKUP(W39,Rates!$C$4:$L$182,9,FALSE) -> 160 | AB39: =VLOOKUP(W39,Rates!$C$4:$L$182,10,FALSE) -> 0
B40: =Rates!C36 -> Zypern | C40: =Rates!D36 -> Programmländer | D40: =Rates!E36 -> 164 | E40: =Rates!F36 -> 137 | F40: =Rates!G36 -> 102 | G40: =Rates!H36 -> 78 | L40: 33 | M40: 1530 | N40: 3010 | W40: =Rates!N36 -> Zypern | X40: =VLOOKUP(W40,Rates!$C$4:$L$182,2,FALSE) -> Programmländer | Y40: =VLOOKUP(W40,Rates!$C$4:$L$182,7,FALSE) -> 800 | Z40: =VLOOKUP(W40,Rates!$C$4:$L$182,8,FALSE) -> 0 | AA40: =VLOOKUP(W40,Rates!$C$4:$L$182,9,FALSE) -> 140 | AB40: =VLOOKUP(W40,Rates!$C$4:$L$182,10,FALSE) -> 0
B41: =Rates!C37 -> Afghanistan | C41: =Rates!D37 -> Partnerländer | D41: =Rates!E37 -> 77 | E41: =Rates!F37 -> 57 | F41: =Rates!G37 -> 40 | G41: =Rates!H37 -> 32 | L41: 34 | M41: 1570 | N41: 3080 | W41: =Rates!N37 -> Ägypten | X41: =VLOOKUP(W41,Rates!$C$4:$L$182,2,FALSE) -> Partnerländer | Y41: =VLOOKUP(W41,Rates!$C$4:$L$182,7,FALSE) -> 750 | Z41: =VLOOKUP(W41,Rates!$C$4:$L$182,8,FALSE) -> 650 | AA41: =VLOOKUP(W41,Rates!$C$4:$L$182,9,FALSE) -> 100 | AB41: =VLOOKUP(W41,Rates!$C$4:$L$182,10,FALSE) -> 160
B42: =Rates!C38 -> Ägypten | C42: =Rates!D38 -> Partnerländer | D42: =Rates!E38 -> 47 | E42: =Rates!F38 -> 33 | F42: =Rates!G38 -> 22 | G42: =Rates!H38 -> 17 | L42: 35 | M42: 1610 | N42: 3150 | W42: =Rates!N38 -> Albanien | X42: =VLOOKUP(W42,Rates!$C$4:$L$182,2,FALSE) -> Partnerländer | Y42: =VLOOKUP(W42,Rates!$C$4:$L$182,7,FALSE) -> 750 | Z42: =VLOOKUP(W42,Rates!$C$4:$L$182,8,FALSE) -> 650 | AA42: =VLOOKUP(W42,Rates!$C$4:$L$182,9,FALSE) -> 100 | AB42: =VLOOKUP(W42,Rates!$C$4:$L$182,10,FALSE) -> 160
B43: =Rates!C39 -> Albanien | C43: =Rates!D39 -> Partnerländer | D43: =Rates!E39 -> 108 | E43: =Rates!F39 -> 80 | F43: =Rates!G39 -> 57 | G43: =Rates!H39 -> 45 | L43: 36 | M43: 1650 | N43: 3220 | W43: =Rates!N39 -> Algerien | X43: =VLOOKUP(W43,Rates!$C$4:$L$182,2,FALSE) -> Partnerländer | Y43: =VLOOKUP(W43,Rates!$C$4:$L$182,7,FALSE) -> 750 | Z43: =VLOOKUP(W43,Rates!$C$4:$L$182,8,FALSE) -> 650 | AA43: =VLOOKUP(W43,Rates!$C$4:$L$182,9,FALSE) -> 100 | AB43: =VLOOKUP(W43,Rates!$C$4:$L$182,10,FALSE) -> 160
B44: =Rates!C40 -> Algerien | C44: =Rates!D40 -> Partnerländer | D44: =Rates!E40 -> 47 | E44: =Rates!F40 -> 33 | F44: =Rates!G40 -> 22 | G44: =Rates!H40 -> 17 | L44: 37 | M44: 1690 | N44: 3290 | W44: =Rates!N40 -> Armenien | X44: =VLOOKUP(W44,Rates!$C$4:$L$182,2,FALSE) -> Partnerländer | Y44: =VLOOKUP(W44,Rates!$C$4:$L$182,7,FALSE) -> 750 | Z44: =VLOOKUP(W44,Rates!$C$4:$L$182,8,FALSE) -> 650 | AA44: =VLOOKUP(W44,Rates!$C$4:$L$182,9,FALSE) -> 100 | AB44: =VLOOKUP(W44,Rates!$C$4:$L$182,10,FALSE) -> 160
B45: =Rates!C41 -> Angola | C45: =Rates!D41 -> Partnerländer | D45: =Rates!E41 -> 108 | E45: =Rates!F41 -> 80 | F45: =Rates!G41 -> 57 | G45: =Rates!H41 -> 45 | L45: 38 | M45: 1730 | N45: 3360 | W45: =Rates!N41 -> Aserbaidschan | X45: =VLOOKUP(W45,Rates!$C$4:$L$182,2,FALSE) -> Partnerländer | Y45: =VLOOKUP(W45,Rates!$C$4:$L$182,7,FALSE) -> 750 | Z45: =VLOOKUP(W45,Rates!$C$4:$L$182,8,FALSE) -> 650 | AA45: =VLOOKUP(W45,Rates!$C$4:$L$182,9,FALSE) -> 100 | AB45: =VLOOKUP(W45,Rates!$C$4:$L$182,10,FALSE) -> 160
B46: =Rates!C42 -> Antigua und Barbuda | C46: =Rates!D42 -> Partnerländer | D46: =Rates!E42 -> 108 | E46: =Rates!F42 -> 80 | F46: =Rates!G42 -> 57 | G46: =Rates!H42 -> 45 | L46: 39 | M46: 1770 | N46: 3430 | W46: =Rates!N42 -> Belarus | X46: =VLOOKUP(W46,Rates!$C$4:$L$182,2,FALSE) -> Partnerländer | Y46: =VLOOKUP(W46,Rates!$C$4:$L$182,7,FALSE) -> 750 | Z46: =VLOOKUP(W46,Rates!$C$4:$L$182,8,FALSE) -> 650 | AA46: =VLOOKUP(W46,Rates!$C$4:$L$182,9,FALSE) -> 100 | AB46: =VLOOKUP(W46,Rates!$C$4:$L$182,10,FALSE) -> 160
B47: =Rates!C43 -> Äquatorial Guinea | C47: =Rates!D43 -> Partnerländer | D47: =Rates!E43 -> 47 | E47: =Rates!F43 -> 33 | F47: =Rates!G43 -> 22 | G47: =Rates!H43 -> 17 | L47: 40 | M47: 1810 | N47: 3500 | W47: =Rates!N43 -> Bosnien und Herzegowina | X47: =VLOOKUP(W47,Rates!$C$4:$L$182,2,FALSE) -> Partnerländer | Y47: =VLOOKUP(W47,Rates!$C$4:$L$182,7,FALSE) -> 750 | Z47: =VLOOKUP(W47,Rates!$C$4:$L$182,8,FALSE) -> 650 | AA47: =VLOOKUP(W47,Rates!$C$4:$L$182,9,FALSE) -> 100 | AB47: =VLOOKUP(W47,Rates!$C$4:$L$182,10,FALSE) -> 160
B48: =Rates!C44 -> Argentinien | C48: =Rates!D44 -> Partnerländer | D48: =Rates!E44 -> 108 | E48: =Rates!F44 -> 80 | F48: =Rates!G44 -> 57 | G48: =Rates!H44 -> 45 | L48: 41 | M48: 1850 | N48: 3570 | W48: =Rates!N44 -> Georgien | X48: =VLOOKUP(W48,Rates!$C$4:$L$182,2,FALSE) -> Partnerländer | Y48: =VLOOKUP(W48,Rates!$C$4:$L$182,7,FALSE) -> 750 | Z48: =VLOOKUP(W48,Rates!$C$4:$L$182,8,FALSE) -> 650 | AA48: =VLOOKUP(W48,Rates!$C$4:$L$182,9,FALSE) -> 100 | AB48: =VLOOKUP(W48,Rates!$C$4:$L$182,10,FALSE) -> 160
B49: =Rates!C45 -> Armenien | C49: =Rates!D45 -> Partnerländer | D49: =Rates!E45 -> 47 | E49: =Rates!F45 -> 33 | F49: =Rates!G45 -> 22 | G49: =Rates!H45 -> 17 | L49: 42 | M49: 1890 | N49: 3640 | W49: =Rates!N45 -> Israel | X49: =VLOOKUP(W49,Rates!$C$4:$L$182,2,FALSE) -> Partnerländer | Y49: =VLOOKUP(W49,Rates!$C$4:$L$182,7,FALSE) -> 750 | Z49: =VLOOKUP(W49,Rates!$C$4:$L$182,8,FALSE) -> 650 | AA49: =VLOOKUP(W49,Rates!$C$4:$L$182,9,FALSE) -> 100 | AB49: =VLOOKUP(W49,Rates!$C$4:$L$182,10,FALSE) -> 160
B50: =Rates!C46 -> Aserbaidschan | C50: =Rates!D46 -> Partnerländer | D50: =Rates!E46 -> 77 | E50: =Rates!F46 -> 57 | F50: =Rates!G46 -> 40 | G50: =Rates!H46 -> 32 | L50: 43 | M50: 1930 | N50: 3710 | W50: =Rates!N46 -> Jordanien | X50: =VLOOKUP(W50,Rates!$C$4:$L$182,2,FALSE) -> Partnerländer | Y50: =VLOOKUP(W50,Rates!$C$4:$L$182,7,FALSE) -> 750 | Z50: =VLOOKUP(W50,Rates!$C$4:$L$182,8,FALSE) -> 650 | AA50: =VLOOKUP(W50,Rates!$C$4:$L$182,9,FALSE) -> 100 | AB50: =VLOOKUP(W50,Rates!$C$4:$L$182,10,FALSE) -> 160
B51: =Rates!C47 -> Äthiopien | C51: =Rates!D47 -> Partnerländer | D51: =Rates!E47 -> 47 | E51: =Rates!F47 -> 33 | F51: =Rates!G47 -> 22 | G51: =Rates!H47 -> 17 | L51: 44 | M51: 1970 | N51: 3780 | W51: =Rates!N47 -> Kosovo | X51: =VLOOKUP(W51,Rates!$C$4:$L$182,2,FALSE) -> Partnerländer | Y51: =VLOOKUP(W51,Rates!$C$4:$L$182,7,FALSE) -> 750 | Z51: =VLOOKUP(W51,Rates!$C$4:$L$182,8,FALSE) -> 650 | AA51: =VLOOKUP(W51,Rates!$C$4:$L$182,9,FALSE) -> 100 | AB51: =VLOOKUP(W51,Rates!$C$4:$L$182,10,FALSE) -> 160
B52: =Rates!C48 -> Bahamas | C52: =Rates!D48 -> Partnerländer | D52: =Rates!E48 -> 77 | E52: =Rates!F48 -> 57 | F52: =Rates!G48 -> 40 | G52: =Rates!H48 -> 32 | L52: 45 | M52: 2010 | N52: 3850 | W52: =Rates!N48 -> Libanon | X52: =VLOOKUP(W52,Rates!$C$4:$L$182,2,FALSE) -> Partnerländer | Y52: =VLOOKUP(W52,Rates!$C$4:$L$182,7,FALSE) -> 750 | Z52: =VLOOKUP(W52,Rates!$C$4:$L$182,8,FALSE) -> 650 | AA52: =VLOOKUP(W52,Rates!$C$4:$L$182,9,FALSE) -> 100 | AB52: =VLOOKUP(W52,Rates!$C$4:$L$182,10,FALSE) -> 160
B53: =Rates!C49 -> Bangladesch | C53: =Rates!D49 -> Partnerländer | D53: =Rates!E49 -> 47 | E53: =Rates!F49 -> 33 | F53: =Rates!G49 -> 22 | G53: =Rates!H49 -> 17 | L53: 46 | M53: 2050 | N53: 3920 | W53: =Rates!N49 -> Libyen | X53: =VLOOKUP(W53,Rates!$C$4:$L$182,2,FALSE) -> Partnerländer | Y53: =VLOOKUP(W53,Rates!$C$4:$L$182,7,FALSE) -> 750 | Z53: =VLOOKUP(W53,Rates!$C$4:$L$182,8,FALSE) -> 650 | AA53: =VLOOKUP(W53,Rates!$C$4:$L$182,9,FALSE) -> 100 | AB53: =VLOOKUP(W53,Rates!$C$4:$L$182,10,FALSE) -> 160
B54: =Rates!C50 -> Barbados | C54: =Rates!D50 -> Partnerländer | D54: =Rates!E50 -> 108 | E54: =Rates!F50 -> 80 | F54: =Rates!G50 -> 57 | G54: =Rates!H50 -> 45 | L54: 47 | M54: 2090 | N54: 3990 | W54: =Rates!N50 -> Marokko | X54: =VLOOKUP(W54,Rates!$C$4:$L$182,2,FALSE) -> Partnerländer | Y54: =VLOOKUP(W54,Rates!$C$4:$L$182,7,FALSE) -> 750 | Z54: =VLOOKUP(W54,Rates!$C$4:$L$182,8,FALSE) -> 650 | AA54: =VLOOKUP(W54,Rates!$C$4:$L$182,9,FALSE) -> 100 | AB54: =VLOOKUP(W54,Rates!$C$4:$L$182,10,FALSE) -> 160
B55: =Rates!C51 -> Belarus | C55: =Rates!D51 -> Partnerländer | D55: =Rates!E51 -> 47 | E55: =Rates!F51 -> 33 | F55: =Rates!G51 -> 22 | G55: =Rates!H51 -> 17 | L55: 48 | M55: 2130 | N55: 4060 | W55: =Rates!N51 -> Moldau | X55: =VLOOKUP(W55,Rates!$C$4:$L$182,2,FALSE) -> Partnerländer | Y55: =VLOOKUP(W55,Rates!$C$4:$L$182,7,FALSE) -> 750 | Z55: =VLOOKUP(W55,Rates!$C$4:$L$182,8,FALSE) -> 650 | AA55: =VLOOKUP(W55,Rates!$C$4:$L$182,9,FALSE) -> 100 | AB55: =VLOOKUP(W55,Rates!$C$4:$L$182,10,FALSE) -> 160
B56: =Rates!C52 -> Belize | C56: =Rates!D52 -> Partnerländer | D56: =Rates!E52 -> 47 | E56: =Rates!F52 -> 33 | F56: =Rates!G52 -> 22 | G56: =Rates!H52 -> 17 | L56: 49 | M56: 2170 | N56: 4130 | W56: =Rates!N52 -> Montenegro | X56: =VLOOKUP(W56,Rates!$C$4:$L$182,2,FALSE) -> Partnerländer | Y56: =VLOOKUP(W56,Rates!$C$4:$L$182,7,FALSE) -> 750 | Z56: =VLOOKUP(W56,Rates!$C$4:$L$182,8,FALSE) -> 650 | AA56: =VLOOKUP(W56,Rates!$C$4:$L$182,9,FALSE) -> 100 | AB56: =VLOOKUP(W56,Rates!$C$4:$L$182,10,FALSE) -> 160
B57: =Rates!C53 -> Benin | C57: =Rates!D53 -> Partnerländer | D57: =Rates!E53 -> 47 | E57: =Rates!F53 -> 33 | F57: =Rates!G53 -> 22 | G57: =Rates!H53 -> 17 | L57: 50 | M57: 2210 | N57: 4200 | W57: =Rates!N53 -> Palästina | X57: =VLOOKUP(W57,Rates!$C$4:$L$182,2,FALSE) -> Partnerländer | Y57: =VLOOKUP(W57,Rates!$C$4:$L$182,7,FALSE) -> 750 | Z57: =VLOOKUP(W57,Rates!$C$4:$L$182,8,FALSE) -> 650 | AA57: =VLOOKUP(W57,Rates!$C$4:$L$182,9,FALSE) -> 100 | AB57: =VLOOKUP(W57,Rates!$C$4:$L$182,10,FALSE) -> 160
B58: =Rates!C54 -> Bhutan | C58: =Rates!D54 -> Partnerländer | D58: =Rates!E54 -> 47 | E58: =Rates!F54 -> 33 | F58: =Rates!G54 -> 22 | G58: =Rates!H54 -> 17 | L58: 51 | M58: 2250 | N58: 4270 | W58: =Rates!N54 -> Serbien | X58: =VLOOKUP(W58,Rates!$C$4:$L$182,2,FALSE) -> Partnerländer | Y58: =VLOOKUP(W58,Rates!$C$4:$L$182,7,FALSE) -> 750 | Z58: =VLOOKUP(W58,Rates!$C$4:$L$182,8,FALSE) -> 650 | AA58: =VLOOKUP(W58,Rates!$C$4:$L$182,9,FALSE) -> 100 | AB58: =VLOOKUP(W58,Rates!$C$4:$L$182,10,FALSE) -> 160
B59: =Rates!C55 -> Bolivien | C59: =Rates!D55 -> Partnerländer | D59: =Rates!E55 -> 77 | E59: =Rates!F55 -> 57 | F59: =Rates!G55 -> 40 | G59: =Rates!H55 -> 32 | L59: 52 | M59: 2290 | N59: 4340 | W59: =Rates!N55 -> Syrien | X59: =VLOOKUP(W59,Rates!$C$4:$L$182,2,FALSE) -> Partnerländer | Y59: =VLOOKUP(W59,Rates!$C$4:$L$182,7,FALSE) -> 750 | Z59: =VLOOKUP(W59,Rates!$C$4:$L$182,8,FALSE) -> 650 | AA59: =VLOOKUP(W59,Rates!$C$4:$L$182,9,FALSE) -> 100 | AB59: =VLOOKUP(W59,Rates!$C$4:$L$182,10,FALSE) -> 160
B60: =Rates!C56 -> Bosnien und Herzegowina | C60: =Rates!D56 -> Partnerländer | D60: =Rates!E56 -> 108 | E60: =Rates!F56 -> 80 | F60: =Rates!G56 -> 57 | G60: =Rates!H56 -> 45 | L60: 53 | M60: 2330 | N60: 4410 | W60: =Rates!N56 -> Tunesien | X60: =VLOOKUP(W60,Rates!$C$4:$L$182,2,FALSE) -> Partnerländer | Y60: =VLOOKUP(W60,Rates!$C$4:$L$182,7,FALSE) -> 750 | Z60: =VLOOKUP(W60,Rates!$C$4:$L$182,8,FALSE) -> 650 | AA60: =VLOOKUP(W60,Rates!$C$4:$L$182,9,FALSE) -> 100 | AB60: =VLOOKUP(W60,Rates!$C$4:$L$182,10,FALSE) -> 160
B61: =Rates!C57 -> Botswana | C61: =Rates!D57 -> Partnerländer | D61: =Rates!E57 -> 47 | E61: =Rates!F57 -> 33 | F61: =Rates!G57 -> 22 | G61: =Rates!H57 -> 17 | L61: 54 | M61: 2370 | N61: 4480 | W61: =Rates!N57 -> Ukraine | X61: =VLOOKUP(W61,Rates!$C$4:$L$182,2,FALSE) -> Partnerländer | Y61: =VLOOKUP(W61,Rates!$C$4:$L$182,7,FALSE) -> 750 | Z61: =VLOOKUP(W61,Rates!$C$4:$L$182,8,FALSE) -> 650 | AA61: =VLOOKUP(W61,Rates!$C$4:$L$182,9,FALSE) -> 100 | AB61: =VLOOKUP(W61,Rates!$C$4:$L$182,10,FALSE) -> 160
B62: =Rates!C58 -> Brasilien | C62: =Rates!D58 -> Partnerländer | D62: =Rates!E58 -> 108 | E62: =Rates!F58 -> 80 | F62: =Rates!G58 -> 57 | G62: =Rates!H58 -> 45 | L62: 55 | M62: 2410 | N62: 4550
B63: =Rates!C59 -> Burkina Faso | C63: =Rates!D59 -> Partnerländer | D63: =Rates!E59 -> 77 | E63: =Rates!F59 -> 57 | F63: =Rates!G59 -> 40 | G63: =Rates!H59 -> 32 | L63: 56 | M63: 2450 | N63: 4620
B64: =Rates!C60 -> Burundi | C64: =Rates!D60 -> Partnerländer | D64: =Rates!E60 -> 47 | E64: =Rates!F60 -> 33 | F64: =Rates!G60 -> 22 | G64: =Rates!H60 -> 17 | L64: 57 | M64: 2490 | N64: 4690
B65: =Rates!C61 -> Cabo Verde | C65: =Rates!D61 -> Partnerländer | D65: =Rates!E61 -> 47 | E65: =Rates!F61 -> 33 | F65: =Rates!G61 -> 22 | G65: =Rates!H61 -> 17 | L65: 58 | M65: 2530 | N65: 4760
B66: =Rates!C62 -> Chad | C66: =Rates!D62 -> Partnerländer | D66: =Rates!E62 -> 47 | E66: =Rates!F62 -> 33 | F66: =Rates!G62 -> 22 | G66: =Rates!H62 -> 17 | L66: 59 | M66: 2570 | N66: 4830
B67: =Rates!C63 -> Chile | C67: =Rates!D63 -> Partnerländer | D67: =Rates!E63 -> 108 | E67: =Rates!F63 -> 80 | F67: =Rates!G63 -> 57 | G67: =Rates!H63 -> 45 | L67: 60 | M67: 2610 | N67: 4900
B68: =Rates!C64 -> China | C68: =Rates!D64 -> Partnerländer | D68: =Rates!E64 -> 77 | E68: =Rates!F64 -> 57 | F68: =Rates!G64 -> 40 | G68: =Rates!H64 -> 32 | L68: 61 | M68: 2650 | N68: =((L68-$L$67)*50)+4900 -> 4950
B69: =Rates!C65 -> Congo (Brazzaville) | C69: =Rates!D65 -> Partnerländer | D69: =Rates!E65 -> 77 | E69: =Rates!F65 -> 57 | F69: =Rates!G65 -> 40 | G69: =Rates!H65 -> 32 | L69: 62 | M69: 2690 | N69: =((L69-$L$67)*50)+4900 -> 5000
B70: =Rates!C66 -> Congo (Kinshasa) | C70: =Rates!D66 -> Partnerländer | D70: =Rates!E66 -> 47 | E70: =Rates!F66 -> 33 | F70: =Rates!G66 -> 22 | G70: =Rates!H66 -> 17 | L70: 63 | M70: 2730 | N70: 5050
B71: =Rates!C67 -> Cookinseln | C71: =Rates!D67 -> Partnerländer | D71: =Rates!E67 -> 108 | E71: =Rates!F67 -> 80 | F71: =Rates!G67 -> 57 | G71: =Rates!H67 -> 45 | L71: 64 | M71: 2770 | N71: 5100
B72: =Rates!C68 -> Costa Rica | C72: =Rates!D68 -> Partnerländer | D72: =Rates!E68 -> 77 | E72: =Rates!F68 -> 57 | F72: =Rates!G68 -> 40 | G72: =Rates!H68 -> 32 | L72: 65 | M72: 2810 | N72: 5150
B73: =Rates!C69 -> Côte d’Ivoire | C73: =Rates!D69 -> Partnerländer | D73: =Rates!E69 -> 108 | E73: =Rates!F69 -> 80 | F73: =Rates!G69 -> 57 | G73: =Rates!H69 -> 45 | L73: 66 | M73: 2850 | N73: 5200
B74: =Rates!C70 -> Dominica | C74: =Rates!D70 -> Partnerländer | D74: =Rates!E70 -> 108 | E74: =Rates!F70 -> 80 | F74: =Rates!G70 -> 57 | G74: =Rates!H70 -> 45 | L74: 67 | M74: 2890 | N74: 5250
B75: =Rates!C71 -> Dominikanische Republik | C75: =Rates!D71 -> Partnerländer | D75: =Rates!E71 -> 77 | E75: =Rates!F71 -> 57 | F75: =Rates!G71 -> 40 | G75: =Rates!H71 -> 32 | L75: 68 | M75: 2930 | N75: 5300
B76: =Rates!C72 -> Dschibuti | C76: =Rates!D72 -> Partnerländer | D76: =Rates!E72 -> 77 | E76: =Rates!F72 -> 57 | F76: =Rates!G72 -> 40 | G76: =Rates!H72 -> 32 | L76: 69 | M76: 2970 | N76: 5350
B77: =Rates!C73 -> DV Korea | C77: =Rates!D73 -> Partnerländer | D77: =Rates!E73 -> 47 | E77: =Rates!F73 -> 33 | F77: =Rates!G73 -> 22 | G77: =Rates!H73 -> 17 | L77: 70 | M77: 3010 | N77: 5400
B78: =Rates!C74 -> Ecuador | C78: =Rates!D74 -> Partnerländer | D78: =Rates!E74 -> 77 | E78: =Rates!F74 -> 57 | F78: =Rates!G74 -> 40 | G78: =Rates!H74 -> 32 | L78: 71 | M78: 3050 | N78: 5450
B79: =Rates!C75 -> El Salvador | C79: =Rates!D75 -> Partnerländer | D79: =Rates!E75 -> 77 | E79: =Rates!F75 -> 57 | F79: =Rates!G75 -> 40 | G79: =Rates!H75 -> 32 | L79: 72 | M79: 3090 | N79: 5500
B80: =Rates!C76 -> Eritrea | C80: =Rates!D76 -> Partnerländer | D80: =Rates!E76 -> 47 | E80: =Rates!F76 -> 33 | F80: =Rates!G76 -> 22 | G80: =Rates!H76 -> 17 | L80: 73 | M80: 3130 | N80: 5550
B81: =Rates!C77 -> Fidschi | C81: =Rates!D77 -> Partnerländer | D81: =Rates!E77 -> 47 | E81: =Rates!F77 -> 33 | F81: =Rates!G77 -> 22 | G81: =Rates!H77 -> 17 | L81: 74 | M81: 3170 | N81: 5600
B82: =Rates!C78 -> Gabun | C82: =Rates!D78 -> Partnerländer | D82: =Rates!E78 -> 108 | E82: =Rates!F78 -> 80 | F82: =Rates!G78 -> 57 | G82: =Rates!H78 -> 45 | L82: 75 | M82: 3210 | N82: 5650
B83: =Rates!C79 -> Gambia | C83: =Rates!D79 -> Partnerländer | D83: =Rates!E79 -> 47 | E83: =Rates!F79 -> 33 | F83: =Rates!G79 -> 22 | G83: =Rates!H79 -> 17 | L83: 76 | M83: 3250 | N83: 5700
B84: =Rates!C80 -> Georgien | C84: =Rates!D80 -> Partnerländer | D84: =Rates!E80 -> 77 | E84: =Rates!F80 -> 57 | F84: =Rates!G80 -> 40 | G84: =Rates!H80 -> 32 | L84: 77 | M84: 3290 | N84: 5750
B85: =Rates!C81 -> Ghana | C85: =Rates!D81 -> Partnerländer | D85: =Rates!E81 -> 47 | E85: =Rates!F81 -> 33 | F85: =Rates!G81 -> 22 | G85: =Rates!H81 -> 17 | L85: 78 | M85: 3330 | N85: 5800
B86: =Rates!C82 -> Grenada | C86: =Rates!D82 -> Partnerländer | D86: =Rates!E82 -> 108 | E86: =Rates!F82 -> 80 | F86: =Rates!G82 -> 57 | G86: =Rates!H82 -> 45 | L86: 79 | M86: 3370 | N86: 5850
B87: =Rates!C83 -> Guatemala | C87: =Rates!D83 -> Partnerländer | D87: =Rates!E83 -> 77 | E87: =Rates!F83 -> 57 | F87: =Rates!G83 -> 40 | G87: =Rates!H83 -> 32 | L87: 80 | M87: =((L87-$L$21)*40)+770 -> 3410 | N87: 5900
B88: =Rates!C84 -> Guinea-Bissau | C88: =Rates!D84 -> Partnerländer | D88: =Rates!E84 -> 77 | E88: =Rates!F84 -> 57 | F88: =Rates!G84 -> 40 | G88: =Rates!H84 -> 32 | L88: 81 | M88: 3450 | N88: 5950
B89: =Rates!C85 -> Guyana | C89: =Rates!D85 -> Partnerländer | D89: =Rates!E85 -> 47 | E89: =Rates!F85 -> 33 | F89: =Rates!G85 -> 22 | G89: =Rates!H85 -> 17 | L89: 82 | M89: 3490 | N89: 6000
B90: =Rates!C86 -> Haiti | C90: =Rates!D86 -> Partnerländer | D90: =Rates!E86 -> 77 | E90: =Rates!F86 -> 57 | F90: =Rates!G86 -> 40 | G90: =Rates!H86 -> 32 | L90: 83 | M90: 3530 | N90: 6050
B91: =Rates!C87 -> Honduras | C91: =Rates!D87 -> Partnerländer | D91: =Rates!E87 -> 47 | E91: =Rates!F87 -> 33 | F91: =Rates!G87 -> 22 | G91: =Rates!H87 -> 17 | L91: 84 | M91: 3570 | N91: 6100
B92: =Rates!C88 -> Indien | C92: =Rates!D88 -> Partnerländer | D92: =Rates!E88 -> 47 | E92: =Rates!F88 -> 33 | F92: =Rates!G88 -> 22 | G92: =Rates!H88 -> 17 | L92: 85 | M92: 3610 | N92: 6150
B93: =Rates!C89 -> Indonesien | C93: =Rates!D89 -> Partnerländer | D93: =Rates!E89 -> 47 | E93: =Rates!F89 -> 33 | F93: =Rates!G89 -> 22 | G93: =Rates!H89 -> 17 | L93: 86 | M93: 3650 | N93: 6200
B94: =Rates!C90 -> Irak | C94: =Rates!D90 -> Partnerländer | D94: =Rates!E90 -> 77 | E94: =Rates!F90 -> 57 | F94: =Rates!G90 -> 40 | G94: =Rates!H90 -> 32 | L94: 87 | M94: 3690 | N94: 6250
B95: =Rates!C91 -> Iran | C95: =Rates!D91 -> Partnerländer | D95: =Rates!E91 -> 77 | E95: =Rates!F91 -> 57 | F95: =Rates!G91 -> 40 | G95: =Rates!H91 -> 32 | L95: 88 | M95: 3730 | N95: 6300
B96: =Rates!C92 -> Israel | C96: =Rates!D92 -> Partnerländer | D96: =Rates!E92 -> 166 | E96: =Rates!F92 -> 132 | F96: =Rates!G92 -> 102 | G96: =Rates!H92 -> 92 | L96: 89 | M96: 3770 | N96: 6350
B97: =Rates!C93 -> Jamaica | C97: =Rates!D93 -> Partnerländer | D97: =Rates!E93 -> 77 | E97: =Rates!F93 -> 57 | F97: =Rates!G93 -> 40 | G97: =Rates!H93 -> 32 | L97: 90 | M97: 3810 | N97: 6400
B98: =Rates!C94 -> Jemen | C98: =Rates!D94 -> Partnerländer | D98: =Rates!E94 -> 47 | E98: =Rates!F94 -> 33 | F98: =Rates!G94 -> 22 | G98: =Rates!H94 -> 17
B99: =Rates!C95 -> Jordanien | C99: =Rates!D95 -> Partnerländer | D99: =Rates!E95 -> 77 | E99: =Rates!F95 -> 57 | F99: =Rates!G95 -> 40 | G99: =Rates!H95 -> 32
B100: =Rates!C96 -> Kambodscha | C100: =Rates!D96 -> Partnerländer | D100: =Rates!E96 -> 47 | E100: =Rates!F96 -> 33 | F100: =Rates!G96 -> 22 | G100: =Rates!H96 -> 17
B101: =Rates!C97 -> Kamerun | C101: =Rates!D97 -> Partnerländer | D101: =Rates!E97 -> 77 | E101: =Rates!F97 -> 57 | F101: =Rates!G97 -> 40 | G101: =Rates!H97 -> 32
B102: =Rates!C98 -> Kasachstan | C102: =Rates!D98 -> Partnerländer | D102: =Rates!E98 -> 77 | E102: =Rates!F98 -> 57 | F102: =Rates!G98 -> 40 | G102: =Rates!H98 -> 32
B103: =Rates!C99 -> Kenia | C103: =Rates!D99 -> Partnerländer | D103: =Rates!E99 -> 77 | E103: =Rates!F99 -> 57 | F103: =Rates!G99 -> 40 | G103: =Rates!H99 -> 32
B104: =Rates!C100 -> Kirgisistan | C104: =Rates!D100 -> Partnerländer | D104: =Rates!E100 -> 47 | E104: =Rates!F100 -> 33 | F104: =Rates!G100 -> 22 | G104: =Rates!H100 -> 17
B105: =Rates!C101 -> Kiribati | C105: =Rates!D101 -> Partnerländer | D105: =Rates!E101 -> 47 | E105: =Rates!F101 -> 33 | F105: =Rates!G101 -> 22 | G105: =Rates!H101 -> 17
B106: =Rates!C102 -> Kolumbien | C106: =Rates!D102 -> Partnerländer | D106: =Rates!E102 -> 108 | E106: =Rates!F102 -> 80 | F106: =Rates!G102 -> 57 | G106: =Rates!H102 -> 45
B107: =Rates!C103 -> Komoren | C107: =Rates!D103 -> Partnerländer | D107: =Rates!E103 -> 108 | E107: =Rates!F103 -> 80 | F107: =Rates!G103 -> 57 | G107: =Rates!H103 -> 45
B108: =Rates!C104 -> Kosovo | C108: =Rates!D104 -> Partnerländer | D108: =Rates!E104 -> 108 | E108: =Rates!F104 -> 80 | F108: =Rates!G104 -> 57 | G108: =Rates!H104 -> 45
B109: =Rates!C105 -> Kuba | C109: =Rates!D105 -> Partnerländer | D109: =Rates!E105 -> 47 | E109: =Rates!F105 -> 33 | F109: =Rates!G105 -> 22 | G109: =Rates!H105 -> 17
B110: =Rates!C106 -> Laos | C110: =Rates!D106 -> Partnerländer | D110: =Rates!E106 -> 47 | E110: =Rates!F106 -> 33 | F110: =Rates!G106 -> 22 | G110: =Rates!H106 -> 17
B111: =Rates!C107 -> Lesotho | C111: =Rates!D107 -> Partnerländer | D111: =Rates!E107 -> 47 | E111: =Rates!F107 -> 33 | F111: =Rates!G107 -> 22 | G111: =Rates!H107 -> 17
B112: =Rates!C108 -> Libanon | C112: =Rates!D108 -> Partnerländer | D112: =Rates!E108 -> 108 | E112: =Rates!F108 -> 80 | F112: =Rates!G108 -> 57 | G112: =Rates!H108 -> 45
B113: =Rates!C109 -> Liberia | C113: =Rates!D109 -> Partnerländer | D113: =Rates!E109 -> 47 | E113: =Rates!F109 -> 33 | F113: =Rates!G109 -> 22 | G113: =Rates!H109 -> 17
B114: =Rates!C110 -> Libyen | C114: =Rates!D110 -> Partnerländer | D114: =Rates!E110 -> 108 | E114: =Rates!F110 -> 80 | F114: =Rates!G110 -> 57 | G114: =Rates!H110 -> 45
B115: =Rates!C111 -> Madagaskar | C115: =Rates!D111 -> Partnerländer | D115: =Rates!E111 -> 47 | E115: =Rates!F111 -> 33 | F115: =Rates!G111 -> 22 | G115: =Rates!H111 -> 17
B116: =Rates!C112 -> Malawi | C116: =Rates!D112 -> Partnerländer | D116: =Rates!E112 -> 47 | E116: =Rates!F112 -> 33 | F116: =Rates!G112 -> 22 | G116: =Rates!H112 -> 17
B117: =Rates!C113 -> Malaysia | C117: =Rates!D113 -> Partnerländer | D117: =Rates!E113 -> 47 | E117: =Rates!F113 -> 33 | F117: =Rates!G113 -> 22 | G117: =Rates!H113 -> 17
B118: =Rates!C114 -> Malediven | C118: =Rates!D114 -> Partnerländer | D118: =Rates!E114 -> 47 | E118: =Rates!F114 -> 33 | F118: =Rates!G114 -> 22 | G118: =Rates!H114 -> 17
B119: =Rates!C115 -> Mali | C119: =Rates!D115 -> Partnerländer | D119: =Rates!E115 -> 47 | E119: =Rates!F115 -> 33 | F119: =Rates!G115 -> 22 | G119: =Rates!H115 -> 17
B120: =Rates!C116 -> Marokko | C120: =Rates!D116 -> Partnerländer | D120: =Rates!E116 -> 77 | E120: =Rates!F116 -> 57 | F120: =Rates!G116 -> 40 | G120: =Rates!H116 -> 32
B121: =Rates!C117 -> Marshallinseln | C121: =Rates!D117 -> Partnerländer | D121: =Rates!E117 -> 47 | E121: =Rates!F117 -> 33 | F121: =Rates!G117 -> 22 | G121: =Rates!H117 -> 17
B122: =Rates!C118 -> Mauretanien | C122: =Rates!D118 -> Partnerländer | D122: =Rates!E118 -> 47 | E122: =Rates!F118 -> 33 | F122: =Rates!G118 -> 22 | G122: =Rates!H118 -> 17
B123: =Rates!C119 -> Mauritius | C123: =Rates!D119 -> Partnerländer | D123: =Rates!E119 -> 47 | E123: =Rates!F119 -> 33 | F123: =Rates!G119 -> 22 | G123: =Rates!H119 -> 17
B124: =Rates!C120 -> Mexiko | C124: =Rates!D120 -> Partnerländer | D124: =Rates!E120 -> 108 | E124: =Rates!F120 -> 80 | F124: =Rates!G120 -> 57 | G124: =Rates!H120 -> 45
B125: =Rates!C121 -> Mikronesien | C125: =Rates!D121 -> Partnerländer | D125: =Rates!E121 -> 77 | E125: =Rates!F121 -> 57 | F125: =Rates!G121 -> 40 | G125: =Rates!H121 -> 32
B126: =Rates!C122 -> Moldau | C126: =Rates!D122 -> Partnerländer | D126: =Rates!E122 -> 47 | E126: =Rates!F122 -> 33 | F126: =Rates!G122 -> 22 | G126: =Rates!H122 -> 17
B127: =Rates!C123 -> Mongolei | C127: =Rates!D123 -> Partnerländer | D127: =Rates!E123 -> 47 | E127: =Rates!F123 -> 33 | F127: =Rates!G123 -> 22 | G127: =Rates!H123 -> 17
B128: =Rates!C124 -> Montenegro | C128: =Rates!D124 -> Partnerländer | D128: =Rates!E124 -> 108 | E128: =Rates!F124 -> 80 | F128: =Rates!G124 -> 57 | G128: =Rates!H124 -> 45
B129: =Rates!C125 -> Mosambik | C129: =Rates!D125 -> Partnerländer | D129: =Rates!E125 -> 77 | E129: =Rates!F125 -> 57 | F129: =Rates!G125 -> 40 | G129: =Rates!H125 -> 32
B130: =Rates!C126 -> Myanmar | C130: =Rates!D126 -> Partnerländer | D130: =Rates!E126 -> 47 | E130: =Rates!F126 -> 33 | F130: =Rates!G126 -> 22 | G130: =Rates!H126 -> 17
B131: =Rates!C127 -> Namibia | C131: =Rates!D127 -> Partnerländer | D131: =Rates!E127 -> 77 | E131: =Rates!F127 -> 57 | F131: =Rates!G127 -> 40 | G131: =Rates!H127 -> 32
B132: =Rates!C128 -> Nauru | C132: =Rates!D128 -> Partnerländer | D132: =Rates!E128 -> 47 | E132: =Rates!F128 -> 33 | F132: =Rates!G128 -> 22 | G132: =Rates!H128 -> 17
B133: =Rates!C129 -> Nepal | C133: =Rates!D129 -> Partnerländer | D133: =Rates!E129 -> 47 | E133: =Rates!F129 -> 33 | F133: =Rates!G129 -> 22 | G133: =Rates!H129 -> 17
B134: =Rates!C130 -> Nicaragua | C134: =Rates!D130 -> Partnerländer | D134: =Rates!E130 -> 47 | E134: =Rates!F130 -> 33 | F134: =Rates!G130 -> 22 | G134: =Rates!H130 -> 17
B135: =Rates!C131 -> Niger | C135: =Rates!D131 -> Partnerländer | D135: =Rates!E131 -> 47 | E135: =Rates!F131 -> 33 | F135: =Rates!G131 -> 22 | G135: =Rates!H131 -> 17
B136: =Rates!C132 -> Nigeria | C136: =Rates!D132 -> Partnerländer | D136: =Rates!E132 -> 108 | E136: =Rates!F132 -> 80 | F136: =Rates!G132 -> 57 | G136: =Rates!H132 -> 45
B137: =Rates!C133 -> Niue | C137: =Rates!D133 -> Partnerländer | D137: =Rates!E133 -> 47 | E137: =Rates!F133 -> 33 | F137: =Rates!G133 -> 22 | G137: =Rates!H133 -> 17
B138: =Rates!C134 -> Osttimor | C138: =Rates!D134 -> Partnerländer | D138: =Rates!E134 -> 47 | E138: =Rates!F134 -> 33 | F138: =Rates!G134 -> 22 | G138: =Rates!H134 -> 17
B139: =Rates!C135 -> Pakistan | C139: =Rates!D135 -> Partnerländer | D139: =Rates!E135 -> 47 | E139: =Rates!F135 -> 33 | F139: =Rates!G135 -> 22 | G139: =Rates!H135 -> 17
B140: =Rates!C136 -> Palästina | C140: =Rates!D136 -> Partnerländer | D140: =Rates!E136 -> 77 | E140: =Rates!F136 -> 57 | F140: =Rates!G136 -> 40 | G140: =Rates!H136 -> 32
B141: =Rates!C137 -> Palau | C141: =Rates!D137 -> Partnerländer | D141: =Rates!E137 -> 47 | E141: =Rates!F137 -> 33 | F141: =Rates!G137 -> 22 | G141: =Rates!H137 -> 17
B142: =Rates!C138 -> Panama | C142: =Rates!D138 -> Partnerländer | D142: =Rates!E138 -> 77 | E142: =Rates!F138 -> 57 | F142: =Rates!G138 -> 40 | G142: =Rates!H138 -> 32
B143: =Rates!C139 -> Papua Neuguinea | C143: =Rates!D139 -> Partnerländer | D143: =Rates!E139 -> 77 | E143: =Rates!F139 -> 57 | F143: =Rates!G139 -> 40 | G143: =Rates!H139 -> 32
B144: =Rates!C140 -> Paraguay | C144: =Rates!D140 -> Partnerländer | D144: =Rates!E140 -> 77 | E144: =Rates!F140 -> 57 | F144: =Rates!G140 -> 40 | G144: =Rates!H140 -> 32
B145: =Rates!C141 -> Peru | C145: =Rates!D141 -> Partnerländer | D145: =Rates!E141 -> 108 | E145: =Rates!F141 -> 80 | F145: =Rates!G141 -> 57 | G145: =Rates!H141 -> 45
B146: =Rates!C142 -> Philippinen | C146: =Rates!D142 -> Partnerländer | D146: =Rates!E142 -> 47 | E146: =Rates!F142 -> 33 | F146: =Rates!G142 -> 22 | G146: =Rates!H142 -> 17
B147: =Rates!C143 -> Republik Guinea | C147: =Rates!D143 -> Partnerländer | D147: =Rates!E143 -> 47 | E147: =Rates!F143 -> 33 | F147: =Rates!G143 -> 22 | G147: =Rates!H143 -> 17
B148: =Rates!C144 -> Ruanda | C148: =Rates!D144 -> Partnerländer | D148: =Rates!E144 -> 47 | E148: =Rates!F144 -> 33 | F148: =Rates!G144 -> 22 | G148: =Rates!H144 -> 17
B149: =Rates!C145 -> Russlands | C149: =Rates!D145 -> Partnerländer | D149: =Rates!E145 -> 77 | E149: =Rates!F145 -> 57 | F149: =Rates!G145 -> 40 | G149: =Rates!H145 -> 32
B150: =Rates!C146 -> Salomonen | C150: =Rates!D146 -> Partnerländer | D150: =Rates!E146 -> 47 | E150: =Rates!F146 -> 33 | F150: =Rates!G146 -> 22 | G150: =Rates!H146 -> 17
B151: =Rates!C147 -> Sambia | C151: =Rates!D147 -> Partnerländer | D151: =Rates!E147 -> 108 | E151: =Rates!F147 -> 80 | F151: =Rates!G147 -> 57 | G151: =Rates!H147 -> 45
B152: =Rates!C148 -> Samoa | C152: =Rates!D148 -> Partnerländer | D152: =Rates!E148 -> 47 | E152: =Rates!F148 -> 33 | F152: =Rates!G148 -> 22 | G152: =Rates!H148 -> 17
B153: =Rates!C149 -> São Tomé und Príncipe | C153: =Rates!D149 -> Partnerländer | D153: =Rates!E149 -> 108 | E153: =Rates!F149 -> 80 | F153: =Rates!G149 -> 57 | G153: =Rates!H149 -> 45
B154: =Rates!C150 -> Senegal | C154: =Rates!D150 -> Partnerländer | D154: =Rates!E150 -> 77 | E154: =Rates!F150 -> 57 | F154: =Rates!G150 -> 40 | G154: =Rates!H150 -> 32
B155: =Rates!C151 -> Serbien | C155: =Rates!D151 -> Partnerländer | D155: =Rates!E151 -> 108 | E155: =Rates!F151 -> 80 | F155: =Rates!G151 -> 57 | G155: =Rates!H151 -> 45
B156: =Rates!C152 -> Seychellen | C156: =Rates!D152 -> Partnerländer | D156: =Rates!E152 -> 108 | E156: =Rates!F152 -> 80 | F156: =Rates!G152 -> 57 | G156: =Rates!H152 -> 45
B157: =Rates!C153 -> Sierra Leone | C157: =Rates!D153 -> Partnerländer | D157: =Rates!E153 -> 47 | E157: =Rates!F153 -> 33 | F157: =Rates!G153 -> 22 | G157: =Rates!H153 -> 17
B158: =Rates!C154 -> Simbabwe | C158: =Rates!D154 -> Partnerländer | D158: =Rates!E154 -> 108 | E158: =Rates!F154 -> 80 | F158: =Rates!G154 -> 57 | G158: =Rates!H154 -> 45
B159: =Rates!C155 -> Somalia | C159: =Rates!D155 -> Partnerländer | D159: =Rates!E155 -> 47 | E159: =Rates!F155 -> 33 | F159: =Rates!G155 -> 22 | G159: =Rates!H155 -> 17
B160: =Rates!C156 -> Sri Lanka | C160: =Rates!D156 -> Partnerländer | D160: =Rates!E156 -> 47 | E160: =Rates!F156 -> 33 | F160: =Rates!G156 -> 22 | G160: =Rates!H156 -> 17
B161: =Rates!C157 -> St. Kitts und Nevis | C161: =Rates!D157 -> Partnerländer | D161: =Rates!E157 -> 108 | E161: =Rates!F157 -> 80 | F161: =Rates!G157 -> 57 | G161: =Rates!H157 -> 45
B162: =Rates!C158 -> St. Lucia | C162: =Rates!D158 -> Partnerländer | D162: =Rates!E158 -> 108 | E162: =Rates!F158 -> 80 | F162: =Rates!G158 -> 57 | G162: =Rates!H158 -> 45
B163: =Rates!C159 -> St. Vincent und die Grenadinen | C163: =Rates!D159 -> Partnerländer | D163: =Rates!E159 -> 108 | E163: =Rates!F159 -> 80 | F163: =Rates!G159 -> 57 | G163: =Rates!H159 -> 45
B164: =Rates!C160 -> Südafrika | C164: =Rates!D160 -> Partnerländer | D164: =Rates!E160 -> 77 | E164: =Rates!F160 -> 57 | F164: =Rates!G160 -> 40 | G164: =Rates!H160 -> 32
B165: =Rates!C161 -> Sudan | C165: =Rates!D161 -> Partnerländer | D165: =Rates!E161 -> 47 | E165: =Rates!F161 -> 33 | F165: =Rates!G161 -> 22 | G165: =Rates!H161 -> 17
B166: =Rates!C162 -> Südsudan | C166: =Rates!D162 -> Partnerländer | D166: =Rates!E162 -> 47 | E166: =Rates!F162 -> 33 | F166: =Rates!G162 -> 22 | G166: =Rates!H162 -> 17
B167: =Rates!C163 -> Suriname | C167: =Rates!D163 -> Partnerländer | D167: =Rates!E163 -> 77 | E167: =Rates!F163 -> 57 | F167: =Rates!G163 -> 40 | G167: =Rates!H163 -> 32
B168: =Rates!C164 -> Swasiland | C168: =Rates!D164 -> Partnerländer | D168: =Rates!E164 -> 77 | E168: =Rates!F164 -> 57 | F168: =Rates!G164 -> 40 | G168: =Rates!H164 -> 32
B169: =Rates!C165 -> Syrien | C169: =Rates!D165 -> Partnerländer | D169: =Rates!E165 -> 47 | E169: =Rates!F165 -> 33 | F169: =Rates!G165 -> 22 | G169: =Rates!H165 -> 17
B170: =Rates!C166 -> Tadschikistan | C170: =Rates!D166 -> Partnerländer | D170: =Rates!E166 -> 47 | E170: =Rates!F166 -> 33 | F170: =Rates!G166 -> 22 | G170: =Rates!H166 -> 17
B171: =Rates!C167 -> Tansania | C171: =Rates!D167 -> Partnerländer | D171: =Rates!E167 -> 47 | E171: =Rates!F167 -> 33 | F171: =Rates!G167 -> 22 | G171: =Rates!H167 -> 17
B172: =Rates!C168 -> Thailand | C172: =Rates!D168 -> Partnerländer | D172: =Rates!E168 -> 108 | E172: =Rates!F168 -> 80 | F172: =Rates!G168 -> 57 | G172: =Rates!H168 -> 45
B173: =Rates!C169 -> Togo | C173: =Rates!D169 -> Partnerländer | D173: =Rates!E169 -> 47 | E173: =Rates!F169 -> 33 | F173: =Rates!G169 -> 22 | G173: =Rates!H169 -> 17
B174: =Rates!C170 -> Tonga | C174: =Rates!D170 -> Partnerländer | D174: =Rates!E170 -> 47 | E174: =Rates!F170 -> 33 | F174: =Rates!G170 -> 22 | G174: =Rates!H170 -> 17
B175: =Rates!C171 -> Trinidad und Tobago | C175: =Rates!D171 -> Partnerländer | D175: =Rates!E171 -> 77 | E175: =Rates!F171 -> 57 | F175: =Rates!G171 -> 40 | G175: =Rates!H171 -> 32
B176: =Rates!C172 -> Tunesien | C176: =Rates!D172 -> Partnerländer | D176: =Rates!E172 -> 47 | E176: =Rates!F172 -> 33 | F176: =Rates!G172 -> 22 | G176: =Rates!H172 -> 17
B177: =Rates!C173 -> Turkmenistan | C177: =Rates!D173 -> Partnerländer | D177: =Rates!E173 -> 47 | E177: =Rates!F173 -> 33 | F177: =Rates!G173 -> 22 | G177: =Rates!H173 -> 17
B178: =Rates!C174 -> Tuvalu | C178: =Rates!D174 -> Partnerländer | D178: =Rates!E174 -> 47 | E178: =Rates!F174 -> 33 | F178: =Rates!G174 -> 22 | G178: =Rates!H174 -> 17
B179: =Rates!C175 -> Uganda | C179: =Rates!D175 -> Partnerländer | D179: =Rates!E175 -> 47 | E179: =Rates!F175 -> 33 | F179: =Rates!G175 -> 22 | G179: =Rates!H175 -> 17
B180: =Rates!C176 -> Ukraine | C180: =Rates!D176 -> Partnerländer | D180: =Rates!E176 -> 108 | E180: =Rates!F176 -> 80 | F180: =Rates!G176 -> 57 | G180: =Rates!H176 -> 45
B181: =Rates!C177 -> Uruguay | C181: =Rates!D177 -> Partnerländer | D181: =Rates!E177 -> 108 | E181: =Rates!F177 -> 80 | F181: =Rates!G177 -> 57 | G181: =Rates!H177 -> 45
B182: =Rates!C178 -> Usbekistan | C182: =Rates!D178 -> Partnerländer | D182: =Rates!E178 -> 47 | E182: =Rates!F178 -> 33 | F182: =Rates!G178 -> 22 | G182: =Rates!H178 -> 17
B183: =Rates!C179 -> Vanuatu | C183: =Rates!D179 -> Partnerländer | D183: =Rates!E179 -> 77 | E183: =Rates!F179 -> 57 | F183: =Rates!G179 -> 40 | G183: =Rates!H179 -> 32
B184: =Rates!C180 -> Venezuela | C184: =Rates!D180 -> Partnerländer | D184: =Rates!E180 -> 108 | E184: =Rates!F180 -> 80 | F184: =Rates!G180 -> 57 | G184: =Rates!H180 -> 45
B185: =Rates!C181 -> Vietnam | C185: =Rates!D181 -> Partnerländer | D185: =Rates!E181 -> 47 | E185: =Rates!F181 -> 33 | F185: =Rates!G181 -> 22 | G185: =Rates!H181 -> 17
B186: =Rates!C182 -> Zentral afrikanische Republik | C186: =Rates!D182 -> Partnerländer | D186: =Rates!E182 -> 47 | E186: =Rates!F182 -> 33 | F186: =Rates!G182 -> 22 | G186: =Rates!H182 -> 17
